Workbook

Sheet input➡

Sheet 施設コード
A1: 参照する期間 | B1: ID | C1: 回答エリア | D1: 都道府県 | E1: 6分類 | F1: 市町村
A2: 7月 | B2: 300004 | C2: =IFERROR(VLOOKUP(B2,【M】エリア!B:C,2,0),"ID(施設コード)を入力してください。") -> 福井駅前 エリア | D2: 福井県 | E2: =IFERROR(VLOOKUP(B2,【M】エリア!B:E,4,0),"ID(施設コード)を入力してください。") -> 福井市・永平寺町 | F2: =IFERROR(VLOOKUP(B2,【M】エリア!B:D,3,0),"ID(施設コード)を入力してください。") -> 福井市
A16: エリア一覧
A17: エリア番号 | B17: ID | C17: QRコード名 | D17: 市町 | E17: 6分類 | F17: DMO
A18: 1 | B18: 300004 | C18: 福井駅前 エリア | D18: 福井市 | E18: 福井市・永平寺町
A19: 2 | B19: 300072 | C19: 福井駅前 エリア（宿泊施設） | D19: 福井市 | E19: 福井市・永平寺町
A20: 3 | B20: 300073 | C20: 北ノ庄 エリア | D20: 福井市 | E20: 福井市・永平寺町
A21: 4 | B21: 300005 | C21: 名勝 養浩館庭園 エリア | D21: 福井市 | E21: 福井市・永平寺町
A22: 5 | B22: 300074 | C22: ふくい鮮いちば エリア | D22: 福井市 | E22: 福井市・永平寺町
A23: 6 | B23: 300001 | C23: 一乗谷朝倉氏遺跡 エリア | D23: 福井市 | E23: 福井市・永平寺町
A24: 7 | B24: 300002 | C24: 越前海岸 北部 エリア | D24: 福井市 | E24: 福井市・永平寺町
A25: 8 | B25: 300075 | C25: 大安禅寺 エリア | D25: 福井市 | E25: 福井市・永平寺町
A26: 9 | B26: 300076 | C26: 三国湊 エリア | D26: 坂井市 | E26: あわら市・坂井市 | F26: (一社)DMOさかい観光局
A27: 10 | B27: 300006 | C27: 東尋坊 エリア | D27: 坂井市 | E27: あわら市・坂井市 | F27: (一社)DMOさかい観光局
A28: 11 | B28: 300077 | C28: 越前松島水族館 エリア | D28: 坂井市 | E28: あわら市・坂井市 | F28: (一社)DMOさかい観光局
A29: 12 | B29: 300007 | C29: 芝政ワールド エリア | D29: 坂井市 | E29: あわら市・坂井市 | F29: (一社)DMOさかい観光局
A30: 13 | B30: 300008 | C30: 丸岡城 エリア | D30: 坂井市 | E30: あわら市・坂井市 | F30: (一社)DMOさかい観光局
A31: 14 | B31: 300009 | C31: 花の駅 ゆりの里公園 エリア | D31: 坂井市 | E31: あわら市・坂井市 | F31: (一社)DMOさかい観光局
A32: 15 | B32: 300010 | C32: 道の駅みくに ふれあいパーク三里浜 エリア | D32: 坂井市 | E32: あわら市・坂井市 | F32: (一社)DMOさかい観光局
A33: 16 | B33: 300078 | C33: JR芦原温泉駅 エリア | D33: あわら市 | E33: あわら市・坂井市
A34: 17 | B34: 300011 | C34: あわら湯のまち エリア | D34: あわら市 | E34: あわら市・坂井市
A35: 18 | B35: 300013 | C35: フルーツライン エリア | D35: あわら市 | E35: あわら市・坂井市
A36: 19 | B36: 300079 | C36: 波松 エリア | D36: あわら市 | E36: あわら市・坂井市
A37: 20 | B37: 300014 | C37: 北潟湖 エリア | D37: あわら市 | E37: あわら市・坂井市
A38: 21 | B38: 300015 | C38: 越前大野城・城下町 エリア | D38: 大野市 | E38: 勝山市・大野市
A39: 22 | B39: 300016 | C39: 道の駅「越前おおの荒島の郷」 エリア | D39: 大野市 | E39: 勝山市・大野市
A40: 23 | B40: 300017 | C40: JR九頭竜湖駅 エリア | D40: 大野市 | E40: 勝山市・大野市
A41: 24 | B41: 300018 | C41: 六呂師高原 エリア | D41: 大野市 | E41: 勝山市・大野市
A42: 25 | B42: 300019 | C42: スーベニアショップ ラプトル エリア | D42: 勝山市 | E42: 勝山市・大野市 | F42: 勝山市観光まちづくり(株)
A43: 26 | B43: 300020 | C43: 道の駅「恐竜渓谷かつやま」 エリア | D43: 勝山市 | E43: 勝山市・大野市 | F43: 勝山市観光まちづくり(株)
A44: 27 | B44: 300021 | C44: スキージャム勝山 エリア | D44: 勝山市 | E44: 勝山市・大野市 | F44: 勝山市観光まちづくり(株)
A45: 28 | B45: 300022 | C45: 越前大仏 エリア | D45: 勝山市 | E45: 勝山市・大野市 | F45: 勝山市観光まちづくり(株)
A46: 29 | B46: 300023 | C46: 平泉寺白山神社 エリア | D46: 勝山市 | E46: 勝山市・大野市 | F46: 勝山市観光まちづくり(株)
A47: 30 | B47: 300024 | C47: はたや記念館 ゆめおーれ勝山 エリア | D47: 勝山市 | E47: 勝山市・大野市 | F47: 勝山市観光まちづくり(株)
A48: 31 | B48: 300080 | C48: えちぜん鉄道 永平寺口駅 エリア | D48: 永平寺町 | E48: 福井市・永平寺町
A49: 32 | B49: 300081 | C49: 九頭竜川 エリア（鮎・釣り） | D49: 永平寺町 | E49: 福井市・永平寺町
A50: 33 | B50: 300027 | C50: えちぜん鉄道 松岡駅 エリア | D50: 永平寺町 | E50: 福井市・永平寺町
A51: 34 | B51: 300025 | C51: 大本山 永平寺 エリア | D51: 永平寺町 | E51: 福井市・永平寺町
A52: 35 | B52: 300026 | C52: 道の駅「禅の里」 エリア | D52: 永平寺町 | E52: 福井市・永平寺町
A53: 36 | B53: 300028 | C53: 越前和紙の里 エリア | D53: 越前市 | E53: 丹南
A54: 37 | B54: 300029 | C54: 越前そばの里 エリア | D54: 越前市 | E54: 丹南
A55: 38 | B55: 300082 | C55: 北陸新幹線 越前たけふ駅 エリア | D55: 越前市 | E55: 丹南
A56: 39 | B56: 300030 | C56: タケフナイフビレッジ エリア | D56: 越前市 | E56: 丹南
A57: 40 | B57: 300031 | C57: 武生駅 エリア | D57: 越前市 | E57: 丹南
A58: 41 | B58: 300083 | C58: 紫式部公園 エリア | D58: 越前市 | E58: 丹南
A59: 42 | B59: 300084 | C59: だるまちゃん広場 エリア | D59: 越前市 | E59: 丹南
A60: 43 | B60: 300085 | C60: 刃物の里 エリア | D60: 越前市 | E60: 丹南
A61: 44 | B61: 300032 | C61: 道の駅「西山公園」 エリア | D61: 鯖江市 | E61: 丹南
A62: 45 | B62: 300033 | C62: メガネストリート エリア | D62: 鯖江市 | E62: 丹南
A63: 46 | B63: 300034 | C63: うるしの里 エリア | D63: 鯖江市 | E63: 丹南
A64: 47 | B64: 300035 | C64: まちの市場 こってコテいけだ エリア | D64: 池田町 | E64: 丹南 | F64: 一般財団法人 池田屋DMO準備室
A65: 48 | B65: 300037 | C65: かずら橋 エリア | D65: 池田町 | E65: 丹南 | F65: 一般財団法人 池田屋DMO準備室
A66: 49 | B66: 300038 | C66: 道の駅「越前」 エリア | D66: 越前町 | E66: 丹南 | F66: 一般社団法人 越前町観光連盟
A67: 50 | B67: 300039 | C67: 道の駅「パークイン丹生ヶ丘」 エリア | D67: 越前町 | E67: 丹南 | F67: 一般社団法人 越前町観光連盟
A68: 51 | B68: 300040 | C68: 劔神社 エリア | D68: 越前町 | E68: 丹南 | F68: 一般社団法人 越前町観光連盟
A69: 52 | B69: 300041 | C69: 越前陶芸村 エリア | D69: 越前町 | E69: 丹南 | F69: 一般社団法人 越前町観光連盟
A70: 53 | B70: 300042 | C70: 越前海岸 越前岬 エリア | D70: 越前町 | E70: 丹南 | F70: 一般社団法人 越前町観光連盟
A71: 54 | B71: 300086 | C71: 越前漁港 エリア | D71: 越前町 | E71: 丹南 | F71: 一般社団法人 越前町観光連盟
A72: 55 | B72: 300087 | C72: 越前海岸 茂原民宿街 エリア | D72: 越前町 | E72: 丹南 | F72: 一般社団法人 越前町観光連盟
A73: 56 | B73: 300088 | C73: 越前海岸 高佐米ノ旅館街 エリア | D73: 越前町 | E73: 丹南 | F73: 一般社団法人 越前町観光連盟
A74: 57 | B74: 300089 | C74: 越前海岸 くりや旅館街 エリア | D74: 越前町 | E74: 丹南 | F74: 一般社団法人 越前町観光連盟
A75: 58 | B75: 300043 | C75: 道の駅「南えちぜん山海里」 エリア | D75: 南越前町 | E75: 丹南
A76: 59 | B76: 300044 | C76: 北前船主の館 右近家 エリア | D76: 南越前町 | E76: 丹南
A77: 60 | B77: 300045 | C77: 今庄宿 エリア | D77: 南越前町 | E77: 丹南
A78: 61 | B78: 300046 | C78: 日本海さかな街 エリア | D78: 敦賀市 | E78: 嶺南東部
A79: 62 | B79: 300047 | C79: 神楽通り エリア | D79: 敦賀市 | E79: 嶺南東部
A80: 63 | B80: 300048 | C80: JR敦賀駅前 エリア | D80: 敦賀市 | E80: 嶺南東部
A81: 64 | B81: 300049 | C81: 金ヶ崎 エリア | D81: 敦賀市 | E81: 嶺南東部
A82: 65 | B82: 300050 | C82: 敦賀市立博物館 エリア | D82: 敦賀市 | E82: 嶺南東部
A83: 66 | B83: 300090 | C83: 水島 エリア | D83: 敦賀市 | E83: 嶺南東部
A84: 67 | B84: 300091 | C84: 小浜市 阿納 エリア | D84: 小浜市 | E84: 嶺南西部 | F84: (株)まちづくり小浜
A85: 68 | B85: 300051 | C85: 道の駅「若狭おばま」 エリア | D85: 小浜市 | E85: 嶺南西部 | F85: (株)まちづくり小浜
A86: 69 | B86: 300052 | C86: 小浜 エリア（宿泊施設） | D86: 小浜市 | E86: 嶺南西部 | F86: (株)まちづくり小浜
A87: 70 | B87: 300053 | C87: 若狭フィッシャーマンズワーフ エリア | D87: 小浜市 | E87: 嶺南西部 | F87: (株)まちづくり小浜
A88: 71 | B88: 300054 | C88: 御食国若狭おばま食文化館 エリア | D88: 小浜市 | E88: 嶺南西部 | F88: (株)まちづくり小浜
A89: 72 | B89: 300056 | C89: 小浜市まちの駅 エリア | D89: 小浜市 | E89: 嶺南西部 | F89: (株)まちづくり小浜
A90: 73 | B90: 300057 | C90: 明通寺 エリア | D90: 小浜市 | E90: 嶺南西部 | F90: (株)まちづくり小浜
A91: 74 | B91: 300058 | C91: 箸のふるさと館WAKASA エリア | D91: 小浜市 | E91: 嶺南西部 | F91: (株)まちづくり小浜
A92: 75 | B92: 300092 | C92: 水晶浜 エリア | D92: 美浜町 | E92: 嶺南東部 | F92: 三方五湖DMO(株)
A93: 76 | B93: 300093 | C93: 美浜町レイクセンター エリア | D93: 美浜町 | E93: 嶺南東部 | F93: 三方五湖DMO(株)
A94: 77 | B94: 300059 | C94: レインボーライン エリア | D94: 美浜町 | E94: 嶺南東部 | F94: 三方五湖DMO(株)
A95: 78 | B95: 300060 | C95: 若狭海遊バザール 千鳥苑 エリア | D95: 美浜町 | E95: 嶺南東部 | F95: 三方五湖DMO(株)
A96: 79 | B96: 300061 | C96: JR美浜駅 エリア | D96: 美浜町 | E96: 嶺南東部 | F96: 三方五湖DMO(株)
A97: 80 | B97: 300094 | C97: 新庄 渓流の里 エリア | D97: 美浜町 | E97: 嶺南東部 | F97: 三方五湖DMO(株)
A98: 81 | B98: 300062 | C98: 熊川宿 エリア | D98: 若狭町 | E98: 嶺南東部 | F98: 三方五湖DMO(株)
A99: 82 | B99: 300095 | C99: 湖上館パムコ（水月湖）エリア | D99: 若狭町 | E99: 嶺南東部 | F99: 三方五湖DMO(株)
A100: 83 | B100: 300063 | C100: 道の駅「三方五湖」 エリア | D100: 若狭町 | E100: 嶺南東部 | F100: 三方五湖DMO(株)
A101: 84 | B101: 300064 | C101: うみんぴあ大飯 エリア | D101: おおい町 | E101: 嶺南西部
A102: 85 | B102: 300065 | C102: 若州一滴文庫 エリア | D102: おおい町 | E102: 嶺南西部
A103: 86 | B103: 300066 | C103: 名田庄 エリア | D103: おおい町 | E103: 嶺南西部
A104: 87 | B104: 300067 | C104: 赤礁崎オートキャンプ場 エリア | D104: おおい町 | E104: 嶺南西部
A105: 88 | B105: 300068 | C105: 道の駅「シーサイド高浜」 エリア | D105: 高浜町 | E105: 嶺南西部
A106: 89 | B106: 300096 | C106: 若狭和田 エリア | D106: 高浜町 | E106: 嶺南西部
A107: 90 | B107: 300070 | C107: 若狭高浜 エリア | D107: 高浜町 | E107: 嶺南西部

Sheet output➡

Sheet 回答数
A1: 集計区分 | C1: 回答数 | D1: 回答月 | R1: 回答数 | T1: 回答月
D2: 4月 | E2: 5月 | F2: 6月 | G2: 7月 | H2: 8月 | I2: 9月 | J2: 10月 | K2: 11月 | L2: 12月 | M2: 1月 | N2: 2月 | O2: 3月 | P2: 合計 | T2: 4月 | U2: 5月 | V2: 6月 | W2: 7月 | X2: 8月 | Y2: 9月 | Z2: 10月 | AA2: 11月 | AB2: 12月 | AC2: 1月 | AD2: 2月 | AE2: 3月 | AF2: 合計
A3: 全体 | B3: =施設コード!$D$2 -> 福井県 | D3: =COUNTIFS(OFFSET(raw!$A$1,2,MATCH($D$1,raw!$2:$2,0)-1,COUNTA(raw!$A:$A)-1,1),D$2) -> 3241 | E3: =COUNTIFS(OFFSET(raw!$A$1,2,MATCH($D$1,raw!$2:$2,0)-1,COUNTA(raw!$A:$A)-1,1),E$2) -> 2939 | F3: =COUNTIFS(OFFSET(raw!$A$1,2,MATCH($D$1,raw!$2:$2,0)-1,COUNTA(raw!$A:$A)-1,1),F$2) -> 2330 | G3: =COUNTIFS(OFFSET(raw!$A$1,2,MATCH($D$1,raw!$2:$2,0)-1,COUNTA(raw!$A:$A)-1,1),G$2) -> 1900 | H3: =COUNTIFS(OFFSET(raw!$A$1,2,MATCH($D$1,raw!$2:$2,0)-1,COUNTA(raw!$A:$A)-1,1),H$2) -> 0 | I3: =COUNTIFS(OFFSET(raw!$A$1,2,MATCH($D$1,raw!$2:$2,0)-1,COUNTA(raw!$A:$A)-1,1),I$2) -> 0 | J3: =COUNTIFS(OFFSET(raw!$A$1,2,MATCH($D$1,raw!$2:$2,0)-1,COUNTA(raw!$A:$A)-1,1),J$2) -> 0 | K3: =COUNTIFS(OFFSET(raw!$A$1,2,MATCH($D$1,raw!$2:$2,0)-1,COUNTA(raw!$A:$A)-1,1),K$2) -> 0 | L3: =COUNTIFS(OFFSET(raw!$A$1,2,MATCH($D$1,raw!$2:$2,0)-1,COUNTA(raw!$A:$A)-1,1),L$2) -> 0 | M3: =COUNTIFS(OFFSET(raw!$A$1,2,MATCH($D$1,raw!$2:$2,0)-1,COUNTA(raw!$A:$A)-1,1),M$2) -> 0 | N3: =COUNTIFS(OFFSET(raw!$A$1,2,MATCH($D$1,raw!$2:$2,0)-1,COUNTA(raw!$A:$A)-1,1),N$2) -> 0 | O3: =COUNTIFS(OFFSET(raw!$A$1,2,MATCH($D$1,raw!$2:$2,0)-1,COUNTA(raw!$A:$A)-1,1),O$2) -> 0 | P3: =D3+E3+F3+G3+H3+I3+J3+K3+L3+M3+N3+O3 -> 10410 | R3: 福井県 | S3: 単月 | T3: =D3 -> 3241 | U3: =E3 -> 2939 | V3: 2330 | W3: 1900 | X3: 0 | Y3: 0 | Z3: 0 | AA3: 0 | AB3: 0 | AC3: 0 | AD3: 0 | AE3: 0 | AF3: =P3 -> 10410
A4: 6分類 | B4: =施設コード!$E$2 -> 福井市・永平寺町 | D4: =COUNTIFS( OFFSET(raw!$A$1,2,MATCH(回答数!$A4,raw!$2:$2,0)-1,COUNTA(raw!$A:$A)-1,1),回答数!$B4, OFFSET(raw!$A$1,2,MATCH($D$1,raw!$2:$2,0)-1,COUNTA(raw!$A:$A)-1,1),D$2) -> 497 | E4: =COUNTIFS( OFFSET(raw!$A$1,2,MATCH(回答数!$A4,raw!$2:$2,0)-1,COUNTA(raw!$A:$A)-1,1),回答数!$B4, OFFSET(raw!$A$1,2,MATCH($D$1,raw!$2:$2,0)-1,COUNTA(raw!$A:$A)-1,1),E$2) -> 575 | F4: =COUNTIFS( OFFSET(raw!$A$1,2,MATCH(回答数!$A4,raw!$2:$2,0)-1,COUNTA(raw!$A:$A)-1,1),回答数!$B4, OFFSET(raw!$A$1,2,MATCH($D$1,raw!$2:$2,0)-1,COUNTA(raw!$A:$A)-1,1),F$2) -> 514 | G4: =COUNTIFS( OFFSET(raw!$A$1,2,MATCH(回答数!$A4,raw!$2:$2,0)-1,COUNTA(raw!$A:$A)-1,1),回答数!$B4, OFFSET(raw!$A$1,2,MATCH($D$1,raw!$2:$2,0)-1,COUNTA(raw!$A:$A)-1,1),G$2) -> 383 | H4: =COUNTIFS( OFFSET(raw!$A$1,2,MATCH(回答数!$A4,raw!$2:$2,0)-1,COUNTA(raw!$A:$A)-1,1),回答数!$B4, OFFSET(raw!$A$1,2,MATCH($D$1,raw!$2:$2,0)-1,COUNTA(raw!$A:$A)-1,1),H$2) -> 0 | I4: =COUNTIFS( OFFSET(raw!$A$1,2,MATCH(回答数!$A4,raw!$2:$2,0)-1,COUNTA(raw!$A:$A)-1,1),回答数!$B4, OFFSET(raw!$A$1,2,MATCH($D$1,raw!$2:$2,0)-1,COUNTA(raw!$A:$A)-1,1),I$2) -> 0 | J4: =COUNTIFS( OFFSET(raw!$A$1,2,MATCH(回答数!$A4,raw!$2:$2,0)-1,COUNTA(raw!$A:$A)-1,1),回答数!$B4, OFFSET(raw!$A$1,2,MATCH($D$1,raw!$2:$2,0)-1,COUNTA(raw!$A:$A)-1,1),J$2) -> 0 | K4: =COUNTIFS( OFFSET(raw!$A$1,2,MATCH(回答数!$A4,raw!$2:$2,0)-1,COUNTA(raw!$A:$A)-1,1),回答数!$B4, OFFSET(raw!$A$1,2,MATCH($D$1,raw!$2:$2,0)-1,COUNTA(raw!$A:$A)-1,1),K$2) -> 0 | L4: =COUNTIFS( OFFSET(raw!$A$1,2,MATCH(回答数!$A4,raw!$2:$2,0)-1,COUNTA(raw!$A:$A)-1,1),回答数!$B4, OFFSET(raw!$A$1,2,MATCH($D$1,raw!$2:$2,0)-1,COUNTA(raw!$A:$A)-1,1),L$2) -> 0 | M4: =COUNTIFS( OFFSET(raw!$A$1,2,MATCH(回答数!$A4,raw!$2:$2,0)-1,COUNTA(raw!$A:$A)-1,1),回答数!$B4, OFFSET(raw!$A$1,2,MATCH($D$1,raw!$2:$2,0)-1,COUNTA(raw!$A:$A)-1,1),M$2) -> 0 | N4: =COUNTIFS( OFFSET(raw!$A$1,2,MATCH(回答数!$A4,raw!$2:$2,0)-1,COUNTA(raw!$A:$A)-1,1),回答数!$B4, OFFSET(raw!$A$1,2,MATCH($D$1,raw!$2:$2,0)-1,COUNTA(raw!$A:$A)-1,1),N$2) -> 0 | O4: =COUNTIFS( OFFSET(raw!$A$1,2,MATCH(回答数!$A4,raw!$2:$2,0)-1,COUNTA(raw!$A:$A)-1,1),回答数!$B4, OFFSET(raw!$A$1,2,MATCH($D$1,raw!$2:$2,0)-1,COUNTA(raw!$A:$A)-1,1),O$2) -> 0 | P4: =D4+E4+F4+G4+H4+I4+J4+K4+L4+M4+N4+O4 -> 1969 | S4: 累計 | T4: =T3 -> 3241 | U4: =T4+U3 -> 6180 | V4: =U4+V3 -> 8510 | W4: 10410 | X4: 10410 | Y4: 10410 | Z4: 10410 | AA4: 10410 | AB4: 10410 | AC4: 10410 | AD4: 10410 | AE4: 10410 | AF4: =AE4+AF3 -> 20820
A5: 市町村 | B5: =施設コード!F$2 -> 福井市 | D5: =COUNTIFS( OFFSET(raw!$A$1,2,MATCH(回答数!$A5,raw!$2:$2,0)-1,COUNTA(raw!$A:$A)-1,1),回答数!$B5, OFFSET(raw!$A$1,2,MATCH($D$1,raw!$2:$2,0)-1,COUNTA(raw!$A:$A)-1,1),D$2) -> 384 | E5: =COUNTIFS( OFFSET(raw!$A$1,2,MATCH(回答数!$A5,raw!$2:$2,0)-1,COUNTA(raw!$A:$A)-1,1),回答数!$B5, OFFSET(raw!$A$1,2,MATCH($D$1,raw!$2:$2,0)-1,COUNTA(raw!$A:$A)-1,1),E$2) -> 322 | F5: =COUNTIFS( OFFSET(raw!$A$1,2,MATCH(回答数!$A5,raw!$2:$2,0)-1,COUNTA(raw!$A:$A)-1,1),回答数!$B5, OFFSET(raw!$A$1,2,MATCH($D$1,raw!$2:$2,0)-1,COUNTA(raw!$A:$A)-1,1),F$2) -> 287 | G5: =COUNTIFS( OFFSET(raw!$A$1,2,MATCH(回答数!$A5,raw!$2:$2,0)-1,COUNTA(raw!$A:$A)-1,1),回答数!$B5, OFFSET(raw!$A$1,2,MATCH($D$1,raw!$2:$2,0)-1,COUNTA(raw!$A:$A)-1,1),G$2) -> 211 | H5: =COUNTIFS( OFFSET(raw!$A$1,2,MATCH(回答数!$A5,raw!$2:$2,0)-1,COUNTA(raw!$A:$A)-1,1),回答数!$B5, OFFSET(raw!$A$1,2,MATCH($D$1,raw!$2:$2,0)-1,COUNTA(raw!$A:$A)-1,1),H$2) -> 0 | I5: =COUNTIFS( OFFSET(raw!$A$1,2,MATCH(回答数!$A5,raw!$2:$2,0)-1,COUNTA(raw!$A:$A)-1,1),回答数!$B5, OFFSET(raw!$A$1,2,MATCH($D$1,raw!$2:$2,0)-1,COUNTA(raw!$A:$A)-1,1),I$2) -> 0 | J5: =COUNTIFS( OFFSET(raw!$A$1,2,MATCH(回答数!$A5,raw!$2:$2,0)-1,COUNTA(raw!$A:$A)-1,1),回答数!$B5, OFFSET(raw!$A$1,2,MATCH($D$1,raw!$2:$2,0)-1,COUNTA(raw!$A:$A)-1,1),J$2) -> 0 | K5: =COUNTIFS( OFFSET(raw!$A$1,2,MATCH(回答数!$A5,raw!$2:$2,0)-1,COUNTA(raw!$A:$A)-1,1),回答数!$B5, OFFSET(raw!$A$1,2,MATCH($D$1,raw!$2:$2,0)-1,COUNTA(raw!$A:$A)-1,1),K$2) -> 0 | L5: =COUNTIFS( OFFSET(raw!$A$1,2,MATCH(回答数!$A5,raw!$2:$2,0)-1,COUNTA(raw!$A:$A)-1,1),回答数!$B5, OFFSET(raw!$A$1,2,MATCH($D$1,raw!$2:$2,0)-1,COUNTA(raw!$A:$A)-1,1),L$2) -> 0 | M5: =COUNTIFS( OFFSET(raw!$A$1,2,MATCH(回答数!$A5,raw!$2:$2,0)-1,COUNTA(raw!$A:$A)-1,1),回答数!$B5, OFFSET(raw!$A$1,2,MATCH($D$1,raw!$2:$2,0)-1,COUNTA(raw!$A:$A)-1,1),M$2) -> 0 | N5: =COUNTIFS( OFFSET(raw!$A$1,2,MATCH(回答数!$A5,raw!$2:$2,0)-1,COUNTA(raw!$A:$A)-1,1),回答数!$B5, OFFSET(raw!$A$1,2,MATCH($D$1,raw!$2:$2,0)-1,COUNTA(raw!$A:$A)-1,1),N$2) -> 0 | O5: =COUNTIFS( OFFSET(raw!$A$1,2,MATCH(回答数!$A5,raw!$2:$2,0)-1,COUNTA(raw!$A:$A)-1,1),回答数!$B5, OFFSET(raw!$A$1,2,MATCH($D$1,raw!$2:$2,0)-1,COUNTA(raw!$A:$A)-1,1),O$2) -> 0 | P5: =D5+E5+F5+G5+H5+I5+J5+K5+L5+M5+N5+O5 -> 1204 | R5: =施設コード!$E$2 -> 福井市・永平寺町 | S5: 単月 | T5: =D4 -> 497 | U5: =E4 -> 575 | V5: 514 | W5: 383 | X5: 0 | Y5: 0 | Z5: 0 | AA5: 0 | AB5: 0 | AC5: 0 | AD5: 0 | AE5: 0 | AF5: =P4 -> 1969
A6: 回答エリア | B6: 福井駅前 エリア | D6: =COUNTIFS( OFFSET(raw!$A$1,2,MATCH(回答数!$A6,raw!$2:$2,0)-1,COUNTA(raw!$A:$A)-1,1),回答数!$B6, OFFSET(raw!$A$1,2,MATCH($D$1,raw!$2:$2,0)-1,COUNTA(raw!$A:$A)-1,1),D$2) -> 164 | E6: =COUNTIFS( OFFSET(raw!$A$1,2,MATCH(回答数!$A6,raw!$2:$2,0)-1,COUNTA(raw!$A:$A)-1,1),回答数!$B6, OFFSET(raw!$A$1,2,MATCH($D$1,raw!$2:$2,0)-1,COUNTA(raw!$A:$A)-1,1),E$2) -> 158 | F6: =COUNTIFS( OFFSET(raw!$A$1,2,MATCH(回答数!$A6,raw!$2:$2,0)-1,COUNTA(raw!$A:$A)-1,1),回答数!$B6, OFFSET(raw!$A$1,2,MATCH($D$1,raw!$2:$2,0)-1,COUNTA(raw!$A:$A)-1,1),F$2) -> 123 | G6: =COUNTIFS( OFFSET(raw!$A$1,2,MATCH(回答数!$A6,raw!$2:$2,0)-1,COUNTA(raw!$A:$A)-1,1),回答数!$B6, OFFSET(raw!$A$1,2,MATCH($D$1,raw!$2:$2,0)-1,COUNTA(raw!$A:$A)-1,1),G$2) -> 75 | H6: =COUNTIFS( OFFSET(raw!$A$1,2,MATCH(回答数!$A6,raw!$2:$2,0)-1,COUNTA(raw!$A:$A)-1,1),回答数!$B6, OFFSET(raw!$A$1,2,MATCH($D$1,raw!$2:$2,0)-1,COUNTA(raw!$A:$A)-1,1),H$2) -> 0 | I6: =COUNTIFS( OFFSET(raw!$A$1,2,MATCH(回答数!$A6,raw!$2:$2,0)-1,COUNTA(raw!$A:$A)-1,1),回答数!$B6, OFFSET(raw!$A$1,2,MATCH($D$1,raw!$2:$2,0)-1,COUNTA(raw!$A:$A)-1,1),I$2) -> 0 | J6: =COUNTIFS( OFFSET(raw!$A$1,2,MATCH(回答数!$A6,raw!$2:$2,0)-1,COUNTA(raw!$A:$A)-1,1),回答数!$B6, OFFSET(raw!$A$1,2,MATCH($D$1,raw!$2:$2,0)-1,COUNTA(raw!$A:$A)-1,1),J$2) -> 0 | K6: =COUNTIFS( OFFSET(raw!$A$1,2,MATCH(回答数!$A6,raw!$2:$2,0)-1,COUNTA(raw!$A:$A)-1,1),回答数!$B6, OFFSET(raw!$A$1,2,MATCH($D$1,raw!$2:$2,0)-1,COUNTA(raw!$A:$A)-1,1),K$2) -> 0 | L6: =COUNTIFS( OFFSET(raw!$A$1,2,MATCH(回答数!$A6,raw!$2:$2,0)-1,COUNTA(raw!$A:$A)-1,1),回答数!$B6, OFFSET(raw!$A$1,2,MATCH($D$1,raw!$2:$2,0)-1,COUNTA(raw!$A:$A)-1,1),L$2) -> 0 | M6: =COUNTIFS( OFFSET(raw!$A$1,2,MATCH(回答数!$A6,raw!$2:$2,0)-1,COUNTA(raw!$A:$A)-1,1),回答数!$B6, OFFSET(raw!$A$1,2,MATCH($D$1,raw!$2:$2,0)-1,COUNTA(raw!$A:$A)-1,1),M$2) -> 0 | N6: =COUNTIFS( OFFSET(raw!$A$1,2,MATCH(回答数!$A6,raw!$2:$2,0)-1,COUNTA(raw!$A:$A)-1,1),回答数!$B6, OFFSET(raw!$A$1,2,MATCH($D$1,raw!$2:$2,0)-1,COUNTA(raw!$A:$A)-1,1),N$2) -> 0 | O6: =COUNTIFS( OFFSET(raw!$A$1,2,MATCH(回答数!$A6,raw!$2:$2,0)-1,COUNTA(raw!$A:$A)-1,1),回答数!$B6, OFFSET(raw!$A$1,2,MATCH($D$1,raw!$2:$2,0)-1,COUNTA(raw!$A:$A)-1,1),O$2) -> 0 | P6: 520 | S6: 累計 | T6: =T5 -> 497 | U6: =T6+U5 -> 1072 | V6: =U6+V5 -> 1586 | W6: =V6+W5 -> 1969 | X6: =W6+X5 -> 1969 | Y6: =X6+Y5 -> 1969 | Z6: =Y6+Z5 -> 1969 | AA6: =Z6+AA5 -> 1969 | AB6: =AA6+AB5 -> 1969 | AC6: =AB6+AC5 -> 1969 | AD6: =AC6+AD5 -> 1969 | AE6: =AD6+AE5 -> 1969 | AF6: =AE6+AF5 -> 3938
A7: 回答エリア | B7: 福井駅前 エリア（宿泊施設） | D7: =COUNTIFS( OFFSET(raw!$A$1,2,MATCH(回答数!$A7,raw!$2:$2,0)-1,COUNTA(raw!$A:$A)-1,1),回答数!$B7, OFFSET(raw!$A$1,2,MATCH($D$1,raw!$2:$2,0)-1,COUNTA(raw!$A:$A)-1,1),D$2) -> 52 | E7: =COUNTIFS( OFFSET(raw!$A$1,2,MATCH(回答数!$A7,raw!$2:$2,0)-1,COUNTA(raw!$A:$A)-1,1),回答数!$B7, OFFSET(raw!$A$1,2,MATCH($D$1,raw!$2:$2,0)-1,COUNTA(raw!$A:$A)-1,1),E$2) -> 42 | F7: =COUNTIFS( OFFSET(raw!$A$1,2,MATCH(回答数!$A7,raw!$2:$2,0)-1,COUNTA(raw!$A:$A)-1,1),回答数!$B7, OFFSET(raw!$A$1,2,MATCH($D$1,raw!$2:$2,0)-1,COUNTA(raw!$A:$A)-1,1),F$2) -> 37 | G7: =COUNTIFS( OFFSET(raw!$A$1,2,MATCH(回答数!$A7,raw!$2:$2,0)-1,COUNTA(raw!$A:$A)-1,1),回答数!$B7, OFFSET(raw!$A$1,2,MATCH($D$1,raw!$2:$2,0)-1,COUNTA(raw!$A:$A)-1,1),G$2) -> 36 | H7: =COUNTIFS( OFFSET(raw!$A$1,2,MATCH(回答数!$A7,raw!$2:$2,0)-1,COUNTA(raw!$A:$A)-1,1),回答数!$B7, OFFSET(raw!$A$1,2,MATCH($D$1,raw!$2:$2,0)-1,COUNTA(raw!$A:$A)-1,1),H$2) -> 0 | I7: =COUNTIFS( OFFSET(raw!$A$1,2,MATCH(回答数!$A7,raw!$2:$2,0)-1,COUNTA(raw!$A:$A)-1,1),回答数!$B7, OFFSET(raw!$A$1,2,MATCH($D$1,raw!$2:$2,0)-1,COUNTA(raw!$A:$A)-1,1),I$2) -> 0 | J7: =COUNTIFS( OFFSET(raw!$A$1,2,MATCH(回答数!$A7,raw!$2:$2,0)-1,COUNTA(raw!$A:$A)-1,1),回答数!$B7, OFFSET(raw!$A$1,2,MATCH($D$1,raw!$2:$2,0)-1,COUNTA(raw!$A:$A)-1,1),J$2) -> 0 | K7: =COUNTIFS( OFFSET(raw!$A$1,2,MATCH(回答数!$A7,raw!$2:$2,0)-1,COUNTA(raw!$A:$A)-1,1),回答数!$B7, OFFSET(raw!$A$1,2,MATCH($D$1,raw!$2:$2,0)-1,COUNTA(raw!$A:$A)-1,1),K$2) -> 0 | L7: =COUNTIFS( OFFSET(raw!$A$1,2,MATCH(回答数!$A7,raw!$2:$2,0)-1,COUNTA(raw!$A:$A)-1,1),回答数!$B7, OFFSET(raw!$A$1,2,MATCH($D$1,raw!$2:$2,0)-1,COUNTA(raw!$A:$A)-1,1),L$2) -> 0 | M7: =COUNTIFS( OFFSET(raw!$A$1,2,MATCH(回答数!$A7,raw!$2:$2,0)-1,COUNTA(raw!$A:$A)-1,1),回答数!$B7, OFFSET(raw!$A$1,2,MATCH($D$1,raw!$2:$2,0)-1,COUNTA(raw!$A:$A)-1,1),M$2) -> 0 | N7: =COUNTIFS( OFFSET(raw!$A$1,2,MATCH(回答数!$A7,raw!$2:$2,0)-1,COUNTA(raw!$A:$A)-1,1),回答数!$B7, OFFSET(raw!$A$1,2,MATCH($D$1,raw!$2:$2,0)-1,COUNTA(raw!$A:$A)-1,1),N$2) -> 0 | O7: =COUNTIFS( OFFSET(raw!$A$1,2,MATCH(回答数!$A7,raw!$2:$2,0)-1,COUNTA(raw!$A:$A)-1,1),回答数!$B7, OFFSET(raw!$A$1,2,MATCH($D$1,raw!$2:$2,0)-1,COUNTA(raw!$A:$A)-1,1),O$2) -> 0 | P7: =D7+E7+F7+G7+H7+I7+J7+K7+L7+M7+N7+O7 -> 167 | R7: =施設コード!$F$2 -> 福井市 | S7: 単月 | T7: =D5 -> 384 | U7: =E5 -> 322 | V7: 287 | W7: 211 | X7: 0 | Y7: 0 | Z7: 0 | AA7: 0 | AB7: 0 | AC7: 0 | AD7: 0 | AE7: 0 | AF7: =P5 -> 1204
A8: 回答エリア | B8: 北ノ庄 エリア | D8: =COUNTIFS( OFFSET(raw!$A$1,2,MATCH(回答数!$A8,raw!$2:$2,0)-1,COUNTA(raw!$A:$A)-1,1),回答数!$B8, OFFSET(raw!$A$1,2,MATCH($D$1,raw!$2:$2,0)-1,COUNTA(raw!$A:$A)-1,1),D$2) -> 14 | E8: =COUNTIFS( OFFSET(raw!$A$1,2,MATCH(回答数!$A8,raw!$2:$2,0)-1,COUNTA(raw!$A:$A)-1,1),回答数!$B8, OFFSET(raw!$A$1,2,MATCH($D$1,raw!$2:$2,0)-1,COUNTA(raw!$A:$A)-1,1),E$2) -> 11 | F8: =COUNTIFS( OFFSET(raw!$A$1,2,MATCH(回答数!$A8,raw!$2:$2,0)-1,COUNTA(raw!$A:$A)-1,1),回答数!$B8, OFFSET(raw!$A$1,2,MATCH($D$1,raw!$2:$2,0)-1,COUNTA(raw!$A:$A)-1,1),F$2) -> 15 | G8: =COUNTIFS( OFFSET(raw!$A$1,2,MATCH(回答数!$A8,raw!$2:$2,0)-1,COUNTA(raw!$A:$A)-1,1),回答数!$B8, OFFSET(raw!$A$1,2,MATCH($D$1,raw!$2:$2,0)-1,COUNTA(raw!$A:$A)-1,1),G$2) -> 4 | H8: =COUNTIFS( OFFSET(raw!$A$1,2,MATCH(回答数!$A8,raw!$2:$2,0)-1,COUNTA(raw!$A:$A)-1,1),回答数!$B8, OFFSET(raw!$A$1,2,MATCH($D$1,raw!$2:$2,0)-1,COUNTA(raw!$A:$A)-1,1),H$2) -> 0 | I8: =COUNTIFS( OFFSET(raw!$A$1,2,MATCH(回答数!$A8,raw!$2:$2,0)-1,COUNTA(raw!$A:$A)-1,1),回答数!$B8, OFFSET(raw!$A$1,2,MATCH($D$1,raw!$2:$2,0)-1,COUNTA(raw!$A:$A)-1,1),I$2) -> 0 | J8: =COUNTIFS( OFFSET(raw!$A$1,2,MATCH(回答数!$A8,raw!$2:$2,0)-1,COUNTA(raw!$A:$A)-1,1),回答数!$B8, OFFSET(raw!$A$1,2,MATCH($D$1,raw!$2:$2,0)-1,COUNTA(raw!$A:$A)-1,1),J$2) -> 0 | K8: =COUNTIFS( OFFSET(raw!$A$1,2,MATCH(回答数!$A8,raw!$2:$2,0)-1,COUNTA(raw!$A:$A)-1,1),回答数!$B8, OFFSET(raw!$A$1,2,MATCH($D$1,raw!$2:$2,0)-1,COUNTA(raw!$A:$A)-1,1),K$2) -> 0 | L8: =COUNTIFS( OFFSET(raw!$A$1,2,MATCH(回答数!$A8,raw!$2:$2,0)-1,COUNTA(raw!$A:$A)-1,1),回答数!$B8, OFFSET(raw!$A$1,2,MATCH($D$1,raw!$2:$2,0)-1,COUNTA(raw!$A:$A)-1,1),L$2) -> 0 | M8: =COUNTIFS( OFFSET(raw!$A$1,2,MATCH(回答数!$A8,raw!$2:$2,0)-1,COUNTA(raw!$A:$A)-1,1),回答数!$B8, OFFSET(raw!$A$1,2,MATCH($D$1,raw!$2:$2,0)-1,COUNTA(raw!$A:$A)-1,1),M$2) -> 0 | N8: =COUNTIFS( OFFSET(raw!$A$1,2,MATCH(回答数!$A8,raw!$2:$2,0)-1,COUNTA(raw!$A:$A)-1,1),回答数!$B8, OFFSET(raw!$A$1,2,MATCH($D$1,raw!$2:$2,0)-1,COUNTA(raw!$A:$A)-1,1),N$2) -> 0 | O8: =COUNTIFS( OFFSET(raw!$A$1,2,MATCH(回答数!$A8,raw!$2:$2,0)-1,COUNTA(raw!$A:$A)-1,1),回答数!$B8, OFFSET(raw!$A$1,2,MATCH($D$1,raw!$2:$2,0)-1,COUNTA(raw!$A:$A)-1,1),O$2) -> 0 | P8: 44 | S8: 累計 | T8: =T7 -> 384 | U8: =T8+U7 -> 706 | V8: =U8+V7 -> 993 | W8: =V8+W7 -> 1204 | X8: =W8+X7 -> 1204 | Y8: =X8+Y7 -> 1204 | Z8: =Y8+Z7 -> 1204 | AA8: =Z8+AA7 -> 1204 | AB8: =AA8+AB7 -> 1204 | AC8: =AB8+AC7 -> 1204 | AD8: =AC8+AD7 -> 1204 | AE8: =AD8+AE7 -> 1204 | AF8: =AE8+AF7 -> 2408
A9: 回答エリア | B9: 名勝 養浩館庭園 エリア | D9: =COUNTIFS( OFFSET(raw!$A$1,2,MATCH(回答数!$A9,raw!$2:$2,0)-1,COUNTA(raw!$A:$A)-1,1),回答数!$B9, OFFSET(raw!$A$1,2,MATCH($D$1,raw!$2:$2,0)-1,COUNTA(raw!$A:$A)-1,1),D$2) -> 14 | E9: =COUNTIFS( OFFSET(raw!$A$1,2,MATCH(回答数!$A9,raw!$2:$2,0)-1,COUNTA(raw!$A:$A)-1,1),回答数!$B9, OFFSET(raw!$A$1,2,MATCH($D$1,raw!$2:$2,0)-1,COUNTA(raw!$A:$A)-1,1),E$2) -> 23 | F9: =COUNTIFS( OFFSET(raw!$A$1,2,MATCH(回答数!$A9,raw!$2:$2,0)-1,COUNTA(raw!$A:$A)-1,1),回答数!$B9, OFFSET(raw!$A$1,2,MATCH($D$1,raw!$2:$2,0)-1,COUNTA(raw!$A:$A)-1,1),F$2) -> 19 | G9: =COUNTIFS( OFFSET(raw!$A$1,2,MATCH(回答数!$A9,raw!$2:$2,0)-1,COUNTA(raw!$A:$A)-1,1),回答数!$B9, OFFSET(raw!$A$1,2,MATCH($D$1,raw!$2:$2,0)-1,COUNTA(raw!$A:$A)-1,1),G$2) -> 12 | H9: =COUNTIFS( OFFSET(raw!$A$1,2,MATCH(回答数!$A9,raw!$2:$2,0)-1,COUNTA(raw!$A:$A)-1,1),回答数!$B9, OFFSET(raw!$A$1,2,MATCH($D$1,raw!$2:$2,0)-1,COUNTA(raw!$A:$A)-1,1),H$2) -> 0 | I9: =COUNTIFS( OFFSET(raw!$A$1,2,MATCH(回答数!$A9,raw!$2:$2,0)-1,COUNTA(raw!$A:$A)-1,1),回答数!$B9, OFFSET(raw!$A$1,2,MATCH($D$1,raw!$2:$2,0)-1,COUNTA(raw!$A:$A)-1,1),I$2) -> 0 | J9: =COUNTIFS( OFFSET(raw!$A$1,2,MATCH(回答数!$A9,raw!$2:$2,0)-1,COUNTA(raw!$A:$A)-1,1),回答数!$B9, OFFSET(raw!$A$1,2,MATCH($D$1,raw!$2:$2,0)-1,COUNTA(raw!$A:$A)-1,1),J$2) -> 0 | K9: =COUNTIFS( OFFSET(raw!$A$1,2,MATCH(回答数!$A9,raw!$2:$2,0)-1,COUNTA(raw!$A:$A)-1,1),回答数!$B9, OFFSET(raw!$A$1,2,MATCH($D$1,raw!$2:$2,0)-1,COUNTA(raw!$A:$A)-1,1),K$2) -> 0 | L9: =COUNTIFS( OFFSET(raw!$A$1,2,MATCH(回答数!$A9,raw!$2:$2,0)-1,COUNTA(raw!$A:$A)-1,1),回答数!$B9, OFFSET(raw!$A$1,2,MATCH($D$1,raw!$2:$2,0)-1,COUNTA(raw!$A:$A)-1,1),L$2) -> 0 | M9: =COUNTIFS( OFFSET(raw!$A$1,2,MATCH(回答数!$A9,raw!$2:$2,0)-1,COUNTA(raw!$A:$A)-1,1),回答数!$B9, OFFSET(raw!$A$1,2,MATCH($D$1,raw!$2:$2,0)-1,COUNTA(raw!$A:$A)-1,1),M$2) -> 0 | N9: =COUNTIFS( OFFSET(raw!$A$1,2,MATCH(回答数!$A9,raw!$2:$2,0)-1,COUNTA(raw!$A:$A)-1,1),回答数!$B9, OFFSET(raw!$A$1,2,MATCH($D$1,raw!$2:$2,0)-1,COUNTA(raw!$A:$A)-1,1),N$2) -> 0 | O9: =COUNTIFS( OFFSET(raw!$A$1,2,MATCH(回答数!$A9,raw!$2:$2,0)-1,COUNTA(raw!$A:$A)-1,1),回答数!$B9, OFFSET(raw!$A$1,2,MATCH($D$1,raw!$2:$2,0)-1,COUNTA(raw!$A:$A)-1,1),O$2) -> 0 | P9: 68 | R9: =施設コード!$C$2 -> 福井駅前 エリア | S9: 単月 | T9: =INDEX(D$6:D$95,MATCH($R$9,$B$6:$B$95,0),1) -> 164 | U9: 158 | V9: 123 | W9: 75 | X9: 0 | Y9: 0 | Z9: 0 | AA9: 0 | AB9: 0 | AC9: 0 | AD9: 0 | AE9: 0 | AF9: =INDEX(P$6:P$94,MATCH($R$9,$B$6:$B$94,0),1) -> 520
A10: 回答エリア | B10: ふくい鮮いちば エリア | D10: =COUNTIFS( OFFSET(raw!$A$1,2,MATCH(回答数!$A10,raw!$2:$2,0)-1,COUNTA(raw!$A:$A)-1,1),回答数!$B10, OFFSET(raw!$A$1,2,MATCH($D$1,raw!$2:$2,0)-1,COUNTA(raw!$A:$A)-1,1),D$2) -> 28 | E10: =COUNTIFS( OFFSET(raw!$A$1,2,MATCH(回答数!$A10,raw!$2:$2,0)-1,COUNTA(raw!$A:$A)-1,1),回答数!$B10, OFFSET(raw!$A$1,2,MATCH($D$1,raw!$2:$2,0)-1,COUNTA(raw!$A:$A)-1,1),E$2) -> 17 | F10: =COUNTIFS( OFFSET(raw!$A$1,2,MATCH(回答数!$A10,raw!$2:$2,0)-1,COUNTA(raw!$A:$A)-1,1),回答数!$B10, OFFSET(raw!$A$1,2,MATCH($D$1,raw!$2:$2,0)-1,COUNTA(raw!$A:$A)-1,1),F$2) -> 14 | G10: =COUNTIFS( OFFSET(raw!$A$1,2,MATCH(回答数!$A10,raw!$2:$2,0)-1,COUNTA(raw!$A:$A)-1,1),回答数!$B10, OFFSET(raw!$A$1,2,MATCH($D$1,raw!$2:$2,0)-1,COUNTA(raw!$A:$A)-1,1),G$2) -> 15 | H10: =COUNTIFS( OFFSET(raw!$A$1,2,MATCH(回答数!$A10,raw!$2:$2,0)-1,COUNTA(raw!$A:$A)-1,1),回答数!$B10, OFFSET(raw!$A$1,2,MATCH($D$1,raw!$2:$2,0)-1,COUNTA(raw!$A:$A)-1,1),H$2) -> 0 | I10: =COUNTIFS( OFFSET(raw!$A$1,2,MATCH(回答数!$A10,raw!$2:$2,0)-1,COUNTA(raw!$A:$A)-1,1),回答数!$B10, OFFSET(raw!$A$1,2,MATCH($D$1,raw!$2:$2,0)-1,COUNTA(raw!$A:$A)-1,1),I$2) -> 0 | J10: =COUNTIFS( OFFSET(raw!$A$1,2,MATCH(回答数!$A10,raw!$2:$2,0)-1,COUNTA(raw!$A:$A)-1,1),回答数!$B10, OFFSET(raw!$A$1,2,MATCH($D$1,raw!$2:$2,0)-1,COUNTA(raw!$A:$A)-1,1),J$2) -> 0 | K10: =COUNTIFS( OFFSET(raw!$A$1,2,MATCH(回答数!$A10,raw!$2:$2,0)-1,COUNTA(raw!$A:$A)-1,1),回答数!$B10, OFFSET(raw!$A$1,2,MATCH($D$1,raw!$2:$2,0)-1,COUNTA(raw!$A:$A)-1,1),K$2) -> 0 | L10: =COUNTIFS( OFFSET(raw!$A$1,2,MATCH(回答数!$A10,raw!$2:$2,0)-1,COUNTA(raw!$A:$A)-1,1),回答数!$B10, OFFSET(raw!$A$1,2,MATCH($D$1,raw!$2:$2,0)-1,COUNTA(raw!$A:$A)-1,1),L$2) -> 0 | M10: =COUNTIFS( OFFSET(raw!$A$1,2,MATCH(回答数!$A10,raw!$2:$2,0)-1,COUNTA(raw!$A:$A)-1,1),回答数!$B10, OFFSET(raw!$A$1,2,MATCH($D$1,raw!$2:$2,0)-1,COUNTA(raw!$A:$A)-1,1),M$2) -> 0 | N10: =COUNTIFS( OFFSET(raw!$A$1,2,MATCH(回答数!$A10,raw!$2:$2,0)-1,COUNTA(raw!$A:$A)-1,1),回答数!$B10, OFFSET(raw!$A$1,2,MATCH($D$1,raw!$2:$2,0)-1,COUNTA(raw!$A:$A)-1,1),N$2) -> 0 | O10: =COUNTIFS( OFFSET(raw!$A$1,2,MATCH(回答数!$A10,raw!$2:$2,0)-1,COUNTA(raw!$A:$A)-1,1),回答数!$B10, OFFSET(raw!$A$1,2,MATCH($D$1,raw!$2:$2,0)-1,COUNTA(raw!$A:$A)-1,1),O$2) -> 0 | P10: 74 | S10: 累計 | T10: =T9 -> 164 | U10: =T10+U9 -> 322 | V10: 445 | W10: 520 | X10: 520 | Y10: 520 | Z10: 520 | AA10: 520 | AB10: 520 | AC10: 520 | AD10: 520 | AE10: 520 | AF10: =AE10+AF9 -> 1040
A11: 回答エリア | B11: 一乗谷朝倉氏遺跡 エリア | D11: =COUNTIFS( OFFSET(raw!$A$1,2,MATCH(回答数!$A11,raw!$2:$2,0)-1,COUNTA(raw!$A:$A)-1,1),回答数!$B11, OFFSET(raw!$A$1,2,MATCH($D$1,raw!$2:$2,0)-1,COUNTA(raw!$A:$A)-1,1),D$2) -> 97 | E11: =COUNTIFS( OFFSET(raw!$A$1,2,MATCH(回答数!$A11,raw!$2:$2,0)-1,COUNTA(raw!$A:$A)-1,1),回答数!$B11, OFFSET(raw!$A$1,2,MATCH($D$1,raw!$2:$2,0)-1,COUNTA(raw!$A:$A)-1,1),E$2) -> 59 | F11: =COUNTIFS( OFFSET(raw!$A$1,2,MATCH(回答数!$A11,raw!$2:$2,0)-1,COUNTA(raw!$A:$A)-1,1),回答数!$B11, OFFSET(raw!$A$1,2,MATCH($D$1,raw!$2:$2,0)-1,COUNTA(raw!$A:$A)-1,1),F$2) -> 63 | G11: =COUNTIFS( OFFSET(raw!$A$1,2,MATCH(回答数!$A11,raw!$2:$2,0)-1,COUNTA(raw!$A:$A)-1,1),回答数!$B11, OFFSET(raw!$A$1,2,MATCH($D$1,raw!$2:$2,0)-1,COUNTA(raw!$A:$A)-1,1),G$2) -> 50 | H11: =COUNTIFS( OFFSET(raw!$A$1,2,MATCH(回答数!$A11,raw!$2:$2,0)-1,COUNTA(raw!$A:$A)-1,1),回答数!$B11, OFFSET(raw!$A$1,2,MATCH($D$1,raw!$2:$2,0)-1,COUNTA(raw!$A:$A)-1,1),H$2) -> 0 | I11: =COUNTIFS( OFFSET(raw!$A$1,2,MATCH(回答数!$A11,raw!$2:$2,0)-1,COUNTA(raw!$A:$A)-1,1),回答数!$B11, OFFSET(raw!$A$1,2,MATCH($D$1,raw!$2:$2,0)-1,COUNTA(raw!$A:$A)-1,1),I$2) -> 0 | J11: =COUNTIFS( OFFSET(raw!$A$1,2,MATCH(回答数!$A11,raw!$2:$2,0)-1,COUNTA(raw!$A:$A)-1,1),回答数!$B11, OFFSET(raw!$A$1,2,MATCH($D$1,raw!$2:$2,0)-1,COUNTA(raw!$A:$A)-1,1),J$2) -> 0 | K11: =COUNTIFS( OFFSET(raw!$A$1,2,MATCH(回答数!$A11,raw!$2:$2,0)-1,COUNTA(raw!$A:$A)-1,1),回答数!$B11, OFFSET(raw!$A$1,2,MATCH($D$1,raw!$2:$2,0)-1,COUNTA(raw!$A:$A)-1,1),K$2) -> 0 | L11: =COUNTIFS( OFFSET(raw!$A$1,2,MATCH(回答数!$A11,raw!$2:$2,0)-1,COUNTA(raw!$A:$A)-1,1),回答数!$B11, OFFSET(raw!$A$1,2,MATCH($D$1,raw!$2:$2,0)-1,COUNTA(raw!$A:$A)-1,1),L$2) -> 0 | M11: =COUNTIFS( OFFSET(raw!$A$1,2,MATCH(回答数!$A11,raw!$2:$2,0)-1,COUNTA(raw!$A:$A)-1,1),回答数!$B11, OFFSET(raw!$A$1,2,MATCH($D$1,raw!$2:$2,0)-1,COUNTA(raw!$A:$A)-1,1),M$2) -> 0 | N11: =COUNTIFS( OFFSET(raw!$A$1,2,MATCH(回答数!$A11,raw!$2:$2,0)-1,COUNTA(raw!$A:$A)-1,1),回答数!$B11, OFFSET(raw!$A$1,2,MATCH($D$1,raw!$2:$2,0)-1,COUNTA(raw!$A:$A)-1,1),N$2) -> 0 | O11: =COUNTIFS( OFFSET(raw!$A$1,2,MATCH(回答数!$A11,raw!$2:$2,0)-1,COUNTA(raw!$A:$A)-1,1),回答数!$B11, OFFSET(raw!$A$1,2,MATCH($D$1,raw!$2:$2,0)-1,COUNTA(raw!$A:$A)-1,1),O$2) -> 0 | P11: 269
A12: 回答エリア | B12: 越前海岸 北部 エリア | D12: =COUNTIFS( OFFSET(raw!$A$1,2,MATCH(回答数!$A12,raw!$2:$2,0)-1,COUNTA(raw!$A:$A)-1,1),回答数!$B12, OFFSET(raw!$A$1,2,MATCH($D$1,raw!$2:$2,0)-1,COUNTA(raw!$A:$A)-1,1),D$2) -> 14 | E12: =COUNTIFS( OFFSET(raw!$A$1,2,MATCH(回答数!$A12,raw!$2:$2,0)-1,COUNTA(raw!$A:$A)-1,1),回答数!$B12, OFFSET(raw!$A$1,2,MATCH($D$1,raw!$2:$2,0)-1,COUNTA(raw!$A:$A)-1,1),E$2) -> 12 | F12: =COUNTIFS( OFFSET(raw!$A$1,2,MATCH(回答数!$A12,raw!$2:$2,0)-1,COUNTA(raw!$A:$A)-1,1),回答数!$B12, OFFSET(raw!$A$1,2,MATCH($D$1,raw!$2:$2,0)-1,COUNTA(raw!$A:$A)-1,1),F$2) -> 12 | G12: =COUNTIFS( OFFSET(raw!$A$1,2,MATCH(回答数!$A12,raw!$2:$2,0)-1,COUNTA(raw!$A:$A)-1,1),回答数!$B12, OFFSET(raw!$A$1,2,MATCH($D$1,raw!$2:$2,0)-1,COUNTA(raw!$A:$A)-1,1),G$2) -> 16 | H12: =COUNTIFS( OFFSET(raw!$A$1,2,MATCH(回答数!$A12,raw!$2:$2,0)-1,COUNTA(raw!$A:$A)-1,1),回答数!$B12, OFFSET(raw!$A$1,2,MATCH($D$1,raw!$2:$2,0)-1,COUNTA(raw!$A:$A)-1,1),H$2) -> 0 | I12: =COUNTIFS( OFFSET(raw!$A$1,2,MATCH(回答数!$A12,raw!$2:$2,0)-1,COUNTA(raw!$A:$A)-1,1),回答数!$B12, OFFSET(raw!$A$1,2,MATCH($D$1,raw!$2:$2,0)-1,COUNTA(raw!$A:$A)-1,1),I$2) -> 0 | J12: =COUNTIFS( OFFSET(raw!$A$1,2,MATCH(回答数!$A12,raw!$2:$2,0)-1,COUNTA(raw!$A:$A)-1,1),回答数!$B12, OFFSET(raw!$A$1,2,MATCH($D$1,raw!$2:$2,0)-1,COUNTA(raw!$A:$A)-1,1),J$2) -> 0 | K12: =COUNTIFS( OFFSET(raw!$A$1,2,MATCH(回答数!$A12,raw!$2:$2,0)-1,COUNTA(raw!$A:$A)-1,1),回答数!$B12, OFFSET(raw!$A$1,2,MATCH($D$1,raw!$2:$2,0)-1,COUNTA(raw!$A:$A)-1,1),K$2) -> 0 | L12: =COUNTIFS( OFFSET(raw!$A$1,2,MATCH(回答数!$A12,raw!$2:$2,0)-1,COUNTA(raw!$A:$A)-1,1),回答数!$B12, OFFSET(raw!$A$1,2,MATCH($D$1,raw!$2:$2,0)-1,COUNTA(raw!$A:$A)-1,1),L$2) -> 0 | M12: =COUNTIFS( OFFSET(raw!$A$1,2,MATCH(回答数!$A12,raw!$2:$2,0)-1,COUNTA(raw!$A:$A)-1,1),回答数!$B12, OFFSET(raw!$A$1,2,MATCH($D$1,raw!$2:$2,0)-1,COUNTA(raw!$A:$A)-1,1),M$2) -> 0 | N12: =COUNTIFS( OFFSET(raw!$A$1,2,MATCH(回答数!$A12,raw!$2:$2,0)-1,COUNTA(raw!$A:$A)-1,1),回答数!$B12, OFFSET(raw!$A$1,2,MATCH($D$1,raw!$2:$2,0)-1,COUNTA(raw!$A:$A)-1,1),N$2) -> 0 | O12: =COUNTIFS( OFFSET(raw!$A$1,2,MATCH(回答数!$A12,raw!$2:$2,0)-1,COUNTA(raw!$A:$A)-1,1),回答数!$B12, OFFSET(raw!$A$1,2,MATCH($D$1,raw!$2:$2,0)-1,COUNTA(raw!$A:$A)-1,1),O$2) -> 0 | P12: 54
A13: 回答エリア | B13: 大安禅寺 エリア | D13: =COUNTIFS( OFFSET(raw!$A$1,2,MATCH(回答数!$A13,raw!$2:$2,0)-1,COUNTA(raw!$A:$A)-1,1),回答数!$B13, OFFSET(raw!$A$1,2,MATCH($D$1,raw!$2:$2,0)-1,COUNTA(raw!$A:$A)-1,1),D$2) -> 1 | E13: =COUNTIFS( OFFSET(raw!$A$1,2,MATCH(回答数!$A13,raw!$2:$2,0)-1,COUNTA(raw!$A:$A)-1,1),回答数!$B13, OFFSET(raw!$A$1,2,MATCH($D$1,raw!$2:$2,0)-1,COUNTA(raw!$A:$A)-1,1),E$2) -> 0 | F13: =COUNTIFS( OFFSET(raw!$A$1,2,MATCH(回答数!$A13,raw!$2:$2,0)-1,COUNTA(raw!$A:$A)-1,1),回答数!$B13, OFFSET(raw!$A$1,2,MATCH($D$1,raw!$2:$2,0)-1,COUNTA(raw!$A:$A)-1,1),F$2) -> 4 | G13: =COUNTIFS( OFFSET(raw!$A$1,2,MATCH(回答数!$A13,raw!$2:$2,0)-1,COUNTA(raw!$A:$A)-1,1),回答数!$B13, OFFSET(raw!$A$1,2,MATCH($D$1,raw!$2:$2,0)-1,COUNTA(raw!$A:$A)-1,1),G$2) -> 3 | H13: =COUNTIFS( OFFSET(raw!$A$1,2,MATCH(回答数!$A13,raw!$2:$2,0)-1,COUNTA(raw!$A:$A)-1,1),回答数!$B13, OFFSET(raw!$A$1,2,MATCH($D$1,raw!$2:$2,0)-1,COUNTA(raw!$A:$A)-1,1),H$2) -> 0 | I13: =COUNTIFS( OFFSET(raw!$A$1,2,MATCH(回答数!$A13,raw!$2:$2,0)-1,COUNTA(raw!$A:$A)-1,1),回答数!$B13, OFFSET(raw!$A$1,2,MATCH($D$1,raw!$2:$2,0)-1,COUNTA(raw!$A:$A)-1,1),I$2) -> 0 | J13: =COUNTIFS( OFFSET(raw!$A$1,2,MATCH(回答数!$A13,raw!$2:$2,0)-1,COUNTA(raw!$A:$A)-1,1),回答数!$B13, OFFSET(raw!$A$1,2,MATCH($D$1,raw!$2:$2,0)-1,COUNTA(raw!$A:$A)-1,1),J$2) -> 0 | K13: =COUNTIFS( OFFSET(raw!$A$1,2,MATCH(回答数!$A13,raw!$2:$2,0)-1,COUNTA(raw!$A:$A)-1,1),回答数!$B13, OFFSET(raw!$A$1,2,MATCH($D$1,raw!$2:$2,0)-1,COUNTA(raw!$A:$A)-1,1),K$2) -> 0 | L13: =COUNTIFS( OFFSET(raw!$A$1,2,MATCH(回答数!$A13,raw!$2:$2,0)-1,COUNTA(raw!$A:$A)-1,1),回答数!$B13, OFFSET(raw!$A$1,2,MATCH($D$1,raw!$2:$2,0)-1,COUNTA(raw!$A:$A)-1,1),L$2) -> 0 | M13: =COUNTIFS( OFFSET(raw!$A$1,2,MATCH(回答数!$A13,raw!$2:$2,0)-1,COUNTA(raw!$A:$A)-1,1),回答数!$B13, OFFSET(raw!$A$1,2,MATCH($D$1,raw!$2:$2,0)-1,COUNTA(raw!$A:$A)-1,1),M$2) -> 0 | N13: =COUNTIFS( OFFSET(raw!$A$1,2,MATCH(回答数!$A13,raw!$2:$2,0)-1,COUNTA(raw!$A:$A)-1,1),回答数!$B13, OFFSET(raw!$A$1,2,MATCH($D$1,raw!$2:$2,0)-1,COUNTA(raw!$A:$A)-1,1),N$2) -> 0 | O13: =COUNTIFS( OFFSET(raw!$A$1,2,MATCH(回答数!$A13,raw!$2:$2,0)-1,COUNTA(raw!$A:$A)-1,1),回答数!$B13, OFFSET(raw!$A$1,2,MATCH($D$1,raw!$2:$2,0)-1,COUNTA(raw!$A:$A)-1,1),O$2) -> 0 | P13: 8
A14: 回答エリア | B14: 三国湊 エリア | D14: =COUNTIFS( OFFSET(raw!$A$1,2,MATCH(回答数!$A14,raw!$2:$2,0)-1,COUNTA(raw!$A:$A)-1,1),回答数!$B14, OFFSET(raw!$A$1,2,MATCH($D$1,raw!$2:$2,0)-1,COUNTA(raw!$A:$A)-1,1),D$2) -> 52 | E14: =COUNTIFS( OFFSET(raw!$A$1,2,MATCH(回答数!$A14,raw!$2:$2,0)-1,COUNTA(raw!$A:$A)-1,1),回答数!$B14, OFFSET(raw!$A$1,2,MATCH($D$1,raw!$2:$2,0)-1,COUNTA(raw!$A:$A)-1,1),E$2) -> 49 | F14: =COUNTIFS( OFFSET(raw!$A$1,2,MATCH(回答数!$A14,raw!$2:$2,0)-1,COUNTA(raw!$A:$A)-1,1),回答数!$B14, OFFSET(raw!$A$1,2,MATCH($D$1,raw!$2:$2,0)-1,COUNTA(raw!$A:$A)-1,1),F$2) -> 34 | G14: =COUNTIFS( OFFSET(raw!$A$1,2,MATCH(回答数!$A14,raw!$2:$2,0)-1,COUNTA(raw!$A:$A)-1,1),回答数!$B14, OFFSET(raw!$A$1,2,MATCH($D$1,raw!$2:$2,0)-1,COUNTA(raw!$A:$A)-1,1),G$2) -> 16 | H14: =COUNTIFS( OFFSET(raw!$A$1,2,MATCH(回答数!$A14,raw!$2:$2,0)-1,COUNTA(raw!$A:$A)-1,1),回答数!$B14, OFFSET(raw!$A$1,2,MATCH($D$1,raw!$2:$2,0)-1,COUNTA(raw!$A:$A)-1,1),H$2) -> 0 | I14: =COUNTIFS( OFFSET(raw!$A$1,2,MATCH(回答数!$A14,raw!$2:$2,0)-1,COUNTA(raw!$A:$A)-1,1),回答数!$B14, OFFSET(raw!$A$1,2,MATCH($D$1,raw!$2:$2,0)-1,COUNTA(raw!$A:$A)-1,1),I$2) -> 0 | J14: =COUNTIFS( OFFSET(raw!$A$1,2,MATCH(回答数!$A14,raw!$2:$2,0)-1,COUNTA(raw!$A:$A)-1,1),回答数!$B14, OFFSET(raw!$A$1,2,MATCH($D$1,raw!$2:$2,0)-1,COUNTA(raw!$A:$A)-1,1),J$2) -> 0 | K14: =COUNTIFS( OFFSET(raw!$A$1,2,MATCH(回答数!$A14,raw!$2:$2,0)-1,COUNTA(raw!$A:$A)-1,1),回答数!$B14, OFFSET(raw!$A$1,2,MATCH($D$1,raw!$2:$2,0)-1,COUNTA(raw!$A:$A)-1,1),K$2) -> 0 | L14: =COUNTIFS( OFFSET(raw!$A$1,2,MATCH(回答数!$A14,raw!$2:$2,0)-1,COUNTA(raw!$A:$A)-1,1),回答数!$B14, OFFSET(raw!$A$1,2,MATCH($D$1,raw!$2:$2,0)-1,COUNTA(raw!$A:$A)-1,1),L$2) -> 0 | M14: =COUNTIFS( OFFSET(raw!$A$1,2,MATCH(回答数!$A14,raw!$2:$2,0)-1,COUNTA(raw!$A:$A)-1,1),回答数!$B14, OFFSET(raw!$A$1,2,MATCH($D$1,raw!$2:$2,0)-1,COUNTA(raw!$A:$A)-1,1),M$2) -> 0 | N14: =COUNTIFS( OFFSET(raw!$A$1,2,MATCH(回答数!$A14,raw!$2:$2,0)-1,COUNTA(raw!$A:$A)-1,1),回答数!$B14, OFFSET(raw!$A$1,2,MATCH($D$1,raw!$2:$2,0)-1,COUNTA(raw!$A:$A)-1,1),N$2) -> 0 | O14: =COUNTIFS( OFFSET(raw!$A$1,2,MATCH(回答数!$A14,raw!$2:$2,0)-1,COUNTA(raw!$A:$A)-1,1),回答数!$B14, OFFSET(raw!$A$1,2,MATCH($D$1,raw!$2:$2,0)-1,COUNTA(raw!$A:$A)-1,1),O$2) -> 0 | P14: 151
A15: 回答エリア | B15: 東尋坊 エリア | D15: =COUNTIFS( OFFSET(raw!$A$1,2,MATCH(回答数!$A15,raw!$2:$2,0)-1,COUNTA(raw!$A:$A)-1,1),回答数!$B15, OFFSET(raw!$A$1,2,MATCH($D$1,raw!$2:$2,0)-1,COUNTA(raw!$A:$A)-1,1),D$2) -> 68 | E15: =COUNTIFS( OFFSET(raw!$A$1,2,MATCH(回答数!$A15,raw!$2:$2,0)-1,COUNTA(raw!$A:$A)-1,1),回答数!$B15, OFFSET(raw!$A$1,2,MATCH($D$1,raw!$2:$2,0)-1,COUNTA(raw!$A:$A)-1,1),E$2) -> 66 | F15: =COUNTIFS( OFFSET(raw!$A$1,2,MATCH(回答数!$A15,raw!$2:$2,0)-1,COUNTA(raw!$A:$A)-1,1),回答数!$B15, OFFSET(raw!$A$1,2,MATCH($D$1,raw!$2:$2,0)-1,COUNTA(raw!$A:$A)-1,1),F$2) -> 49 | G15: =COUNTIFS( OFFSET(raw!$A$1,2,MATCH(回答数!$A15,raw!$2:$2,0)-1,COUNTA(raw!$A:$A)-1,1),回答数!$B15, OFFSET(raw!$A$1,2,MATCH($D$1,raw!$2:$2,0)-1,COUNTA(raw!$A:$A)-1,1),G$2) -> 39 | H15: =COUNTIFS( OFFSET(raw!$A$1,2,MATCH(回答数!$A15,raw!$2:$2,0)-1,COUNTA(raw!$A:$A)-1,1),回答数!$B15, OFFSET(raw!$A$1,2,MATCH($D$1,raw!$2:$2,0)-1,COUNTA(raw!$A:$A)-1,1),H$2) -> 0 | I15: =COUNTIFS( OFFSET(raw!$A$1,2,MATCH(回答数!$A15,raw!$2:$2,0)-1,COUNTA(raw!$A:$A)-1,1),回答数!$B15, OFFSET(raw!$A$1,2,MATCH($D$1,raw!$2:$2,0)-1,COUNTA(raw!$A:$A)-1,1),I$2) -> 0 | J15: =COUNTIFS( OFFSET(raw!$A$1,2,MATCH(回答数!$A15,raw!$2:$2,0)-1,COUNTA(raw!$A:$A)-1,1),回答数!$B15, OFFSET(raw!$A$1,2,MATCH($D$1,raw!$2:$2,0)-1,COUNTA(raw!$A:$A)-1,1),J$2) -> 0 | K15: =COUNTIFS( OFFSET(raw!$A$1,2,MATCH(回答数!$A15,raw!$2:$2,0)-1,COUNTA(raw!$A:$A)-1,1),回答数!$B15, OFFSET(raw!$A$1,2,MATCH($D$1,raw!$2:$2,0)-1,COUNTA(raw!$A:$A)-1,1),K$2) -> 0 | L15: =COUNTIFS( OFFSET(raw!$A$1,2,MATCH(回答数!$A15,raw!$2:$2,0)-1,COUNTA(raw!$A:$A)-1,1),回答数!$B15, OFFSET(raw!$A$1,2,MATCH($D$1,raw!$2:$2,0)-1,COUNTA(raw!$A:$A)-1,1),L$2) -> 0 | M15: =COUNTIFS( OFFSET(raw!$A$1,2,MATCH(回答数!$A15,raw!$2:$2,0)-1,COUNTA(raw!$A:$A)-1,1),回答数!$B15, OFFSET(raw!$A$1,2,MATCH($D$1,raw!$2:$2,0)-1,COUNTA(raw!$A:$A)-1,1),M$2) -> 0 | N15: =COUNTIFS( OFFSET(raw!$A$1,2,MATCH(回答数!$A15,raw!$2:$2,0)-1,COUNTA(raw!$A:$A)-1,1),回答数!$B15, OFFSET(raw!$A$1,2,MATCH($D$1,raw!$2:$2,0)-1,COUNTA(raw!$A:$A)-1,1),N$2) -> 0 | O15: =COUNTIFS( OFFSET(raw!$A$1,2,MATCH(回答数!$A15,raw!$2:$2,0)-1,COUNTA(raw!$A:$A)-1,1),回答数!$B15, OFFSET(raw!$A$1,2,MATCH($D$1,raw!$2:$2,0)-1,COUNTA(raw!$A:$A)-1,1),O$2) -> 0 | P15: 222
A16: 回答エリア | B16: 越前松島水族館 エリア | D16: =COUNTIFS( OFFSET(raw!$A$1,2,MATCH(回答数!$A16,raw!$2:$2,0)-1,COUNTA(raw!$A:$A)-1,1),回答数!$B16, OFFSET(raw!$A$1,2,MATCH($D$1,raw!$2:$2,0)-1,COUNTA(raw!$A:$A)-1,1),D$2) -> 29 | E16: =COUNTIFS( OFFSET(raw!$A$1,2,MATCH(回答数!$A16,raw!$2:$2,0)-1,COUNTA(raw!$A:$A)-1,1),回答数!$B16, OFFSET(raw!$A$1,2,MATCH($D$1,raw!$2:$2,0)-1,COUNTA(raw!$A:$A)-1,1),E$2) -> 27 | F16: =COUNTIFS( OFFSET(raw!$A$1,2,MATCH(回答数!$A16,raw!$2:$2,0)-1,COUNTA(raw!$A:$A)-1,1),回答数!$B16, OFFSET(raw!$A$1,2,MATCH($D$1,raw!$2:$2,0)-1,COUNTA(raw!$A:$A)-1,1),F$2) -> 26 | G16: =COUNTIFS( OFFSET(raw!$A$1,2,MATCH(回答数!$A16,raw!$2:$2,0)-1,COUNTA(raw!$A:$A)-1,1),回答数!$B16, OFFSET(raw!$A$1,2,MATCH($D$1,raw!$2:$2,0)-1,COUNTA(raw!$A:$A)-1,1),G$2) -> 23 | H16: =COUNTIFS( OFFSET(raw!$A$1,2,MATCH(回答数!$A16,raw!$2:$2,0)-1,COUNTA(raw!$A:$A)-1,1),回答数!$B16, OFFSET(raw!$A$1,2,MATCH($D$1,raw!$2:$2,0)-1,COUNTA(raw!$A:$A)-1,1),H$2) -> 0 | I16: =COUNTIFS( OFFSET(raw!$A$1,2,MATCH(回答数!$A16,raw!$2:$2,0)-1,COUNTA(raw!$A:$A)-1,1),回答数!$B16, OFFSET(raw!$A$1,2,MATCH($D$1,raw!$2:$2,0)-1,COUNTA(raw!$A:$A)-1,1),I$2) -> 0 | J16: =COUNTIFS( OFFSET(raw!$A$1,2,MATCH(回答数!$A16,raw!$2:$2,0)-1,COUNTA(raw!$A:$A)-1,1),回答数!$B16, OFFSET(raw!$A$1,2,MATCH($D$1,raw!$2:$2,0)-1,COUNTA(raw!$A:$A)-1,1),J$2) -> 0 | K16: =COUNTIFS( OFFSET(raw!$A$1,2,MATCH(回答数!$A16,raw!$2:$2,0)-1,COUNTA(raw!$A:$A)-1,1),回答数!$B16, OFFSET(raw!$A$1,2,MATCH($D$1,raw!$2:$2,0)-1,COUNTA(raw!$A:$A)-1,1),K$2) -> 0 | L16: =COUNTIFS( OFFSET(raw!$A$1,2,MATCH(回答数!$A16,raw!$2:$2,0)-1,COUNTA(raw!$A:$A)-1,1),回答数!$B16, OFFSET(raw!$A$1,2,MATCH($D$1,raw!$2:$2,0)-1,COUNTA(raw!$A:$A)-1,1),L$2) -> 0 | M16: =COUNTIFS( OFFSET(raw!$A$1,2,MATCH(回答数!$A16,raw!$2:$2,0)-1,COUNTA(raw!$A:$A)-1,1),回答数!$B16, OFFSET(raw!$A$1,2,MATCH($D$1,raw!$2:$2,0)-1,COUNTA(raw!$A:$A)-1,1),M$2) -> 0 | N16: =COUNTIFS( OFFSET(raw!$A$1,2,MATCH(回答数!$A16,raw!$2:$2,0)-1,COUNTA(raw!$A:$A)-1,1),回答数!$B16, OFFSET(raw!$A$1,2,MATCH($D$1,raw!$2:$2,0)-1,COUNTA(raw!$A:$A)-1,1),N$2) -> 0 | O16: =COUNTIFS( OFFSET(raw!$A$1,2,MATCH(回答数!$A16,raw!$2:$2,0)-1,COUNTA(raw!$A:$A)-1,1),回答数!$B16, OFFSET(raw!$A$1,2,MATCH($D$1,raw!$2:$2,0)-1,COUNTA(raw!$A:$A)-1,1),O$2) -> 0 | P16: 105
A17: 回答エリア | B17: 芝政ワールド エリア | D17: =COUNTIFS( OFFSET(raw!$A$1,2,MATCH(回答数!$A17,raw!$2:$2,0)-1,COUNTA(raw!$A:$A)-1,1),回答数!$B17, OFFSET(raw!$A$1,2,MATCH($D$1,raw!$2:$2,0)-1,COUNTA(raw!$A:$A)-1,1),D$2) -> 12 | E17: =COUNTIFS( OFFSET(raw!$A$1,2,MATCH(回答数!$A17,raw!$2:$2,0)-1,COUNTA(raw!$A:$A)-1,1),回答数!$B17, OFFSET(raw!$A$1,2,MATCH($D$1,raw!$2:$2,0)-1,COUNTA(raw!$A:$A)-1,1),E$2) -> 17 | F17: =COUNTIFS( OFFSET(raw!$A$1,2,MATCH(回答数!$A17,raw!$2:$2,0)-1,COUNTA(raw!$A:$A)-1,1),回答数!$B17, OFFSET(raw!$A$1,2,MATCH($D$1,raw!$2:$2,0)-1,COUNTA(raw!$A:$A)-1,1),F$2) -> 9 | G17: =COUNTIFS( OFFSET(raw!$A$1,2,MATCH(回答数!$A17,raw!$2:$2,0)-1,COUNTA(raw!$A:$A)-1,1),回答数!$B17, OFFSET(raw!$A$1,2,MATCH($D$1,raw!$2:$2,0)-1,COUNTA(raw!$A:$A)-1,1),G$2) -> 9 | H17: =COUNTIFS( OFFSET(raw!$A$1,2,MATCH(回答数!$A17,raw!$2:$2,0)-1,COUNTA(raw!$A:$A)-1,1),回答数!$B17, OFFSET(raw!$A$1,2,MATCH($D$1,raw!$2:$2,0)-1,COUNTA(raw!$A:$A)-1,1),H$2) -> 0 | I17: =COUNTIFS( OFFSET(raw!$A$1,2,MATCH(回答数!$A17,raw!$2:$2,0)-1,COUNTA(raw!$A:$A)-1,1),回答数!$B17, OFFSET(raw!$A$1,2,MATCH($D$1,raw!$2:$2,0)-1,COUNTA(raw!$A:$A)-1,1),I$2) -> 0 | J17: =COUNTIFS( OFFSET(raw!$A$1,2,MATCH(回答数!$A17,raw!$2:$2,0)-1,COUNTA(raw!$A:$A)-1,1),回答数!$B17, OFFSET(raw!$A$1,2,MATCH($D$1,raw!$2:$2,0)-1,COUNTA(raw!$A:$A)-1,1),J$2) -> 0 | K17: =COUNTIFS( OFFSET(raw!$A$1,2,MATCH(回答数!$A17,raw!$2:$2,0)-1,COUNTA(raw!$A:$A)-1,1),回答数!$B17, OFFSET(raw!$A$1,2,MATCH($D$1,raw!$2:$2,0)-1,COUNTA(raw!$A:$A)-1,1),K$2) -> 0 | L17: =COUNTIFS( OFFSET(raw!$A$1,2,MATCH(回答数!$A17,raw!$2:$2,0)-1,COUNTA(raw!$A:$A)-1,1),回答数!$B17, OFFSET(raw!$A$1,2,MATCH($D$1,raw!$2:$2,0)-1,COUNTA(raw!$A:$A)-1,1),L$2) -> 0 | M17: =COUNTIFS( OFFSET(raw!$A$1,2,MATCH(回答数!$A17,raw!$2:$2,0)-1,COUNTA(raw!$A:$A)-1,1),回答数!$B17, OFFSET(raw!$A$1,2,MATCH($D$1,raw!$2:$2,0)-1,COUNTA(raw!$A:$A)-1,1),M$2) -> 0 | N17: =COUNTIFS( OFFSET(raw!$A$1,2,MATCH(回答数!$A17,raw!$2:$2,0)-1,COUNTA(raw!$A:$A)-1,1),回答数!$B17, OFFSET(raw!$A$1,2,MATCH($D$1,raw!$2:$2,0)-1,COUNTA(raw!$A:$A)-1,1),N$2) -> 0 | O17: =COUNTIFS( OFFSET(raw!$A$1,2,MATCH(回答数!$A17,raw!$2:$2,0)-1,COUNTA(raw!$A:$A)-1,1),回答数!$B17, OFFSET(raw!$A$1,2,MATCH($D$1,raw!$2:$2,0)-1,COUNTA(raw!$A:$A)-1,1),O$2) -> 0 | P17: 47
A18: 回答エリア | B18: 丸岡城 エリア | D18: =COUNTIFS( OFFSET(raw!$A$1,2,MATCH(回答数!$A18,raw!$2:$2,0)-1,COUNTA(raw!$A:$A)-1,1),回答数!$B18, OFFSET(raw!$A$1,2,MATCH($D$1,raw!$2:$2,0)-1,COUNTA(raw!$A:$A)-1,1),D$2) -> 94 | E18: =COUNTIFS( OFFSET(raw!$A$1,2,MATCH(回答数!$A18,raw!$2:$2,0)-1,COUNTA(raw!$A:$A)-1,1),回答数!$B18, OFFSET(raw!$A$1,2,MATCH($D$1,raw!$2:$2,0)-1,COUNTA(raw!$A:$A)-1,1),E$2) -> 44 | F18: =COUNTIFS( OFFSET(raw!$A$1,2,MATCH(回答数!$A18,raw!$2:$2,0)-1,COUNTA(raw!$A:$A)-1,1),回答数!$B18, OFFSET(raw!$A$1,2,MATCH($D$1,raw!$2:$2,0)-1,COUNTA(raw!$A:$A)-1,1),F$2) -> 54 | G18: =COUNTIFS( OFFSET(raw!$A$1,2,MATCH(回答数!$A18,raw!$2:$2,0)-1,COUNTA(raw!$A:$A)-1,1),回答数!$B18, OFFSET(raw!$A$1,2,MATCH($D$1,raw!$2:$2,0)-1,COUNTA(raw!$A:$A)-1,1),G$2) -> 31 | H18: =COUNTIFS( OFFSET(raw!$A$1,2,MATCH(回答数!$A18,raw!$2:$2,0)-1,COUNTA(raw!$A:$A)-1,1),回答数!$B18, OFFSET(raw!$A$1,2,MATCH($D$1,raw!$2:$2,0)-1,COUNTA(raw!$A:$A)-1,1),H$2) -> 0 | I18: =COUNTIFS( OFFSET(raw!$A$1,2,MATCH(回答数!$A18,raw!$2:$2,0)-1,COUNTA(raw!$A:$A)-1,1),回答数!$B18, OFFSET(raw!$A$1,2,MATCH($D$1,raw!$2:$2,0)-1,COUNTA(raw!$A:$A)-1,1),I$2) -> 0 | J18: =COUNTIFS( OFFSET(raw!$A$1,2,MATCH(回答数!$A18,raw!$2:$2,0)-1,COUNTA(raw!$A:$A)-1,1),回答数!$B18, OFFSET(raw!$A$1,2,MATCH($D$1,raw!$2:$2,0)-1,COUNTA(raw!$A:$A)-1,1),J$2) -> 0 | K18: =COUNTIFS( OFFSET(raw!$A$1,2,MATCH(回答数!$A18,raw!$2:$2,0)-1,COUNTA(raw!$A:$A)-1,1),回答数!$B18, OFFSET(raw!$A$1,2,MATCH($D$1,raw!$2:$2,0)-1,COUNTA(raw!$A:$A)-1,1),K$2) -> 0 | L18: =COUNTIFS( OFFSET(raw!$A$1,2,MATCH(回答数!$A18,raw!$2:$2,0)-1,COUNTA(raw!$A:$A)-1,1),回答数!$B18, OFFSET(raw!$A$1,2,MATCH($D$1,raw!$2:$2,0)-1,COUNTA(raw!$A:$A)-1,1),L$2) -> 0 | M18: =COUNTIFS( OFFSET(raw!$A$1,2,MATCH(回答数!$A18,raw!$2:$2,0)-1,COUNTA(raw!$A:$A)-1,1),回答数!$B18, OFFSET(raw!$A$1,2,MATCH($D$1,raw!$2:$2,0)-1,COUNTA(raw!$A:$A)-1,1),M$2) -> 0 | N18: =COUNTIFS( OFFSET(raw!$A$1,2,MATCH(回答数!$A18,raw!$2:$2,0)-1,COUNTA(raw!$A:$A)-1,1),回答数!$B18, OFFSET(raw!$A$1,2,MATCH($D$1,raw!$2:$2,0)-1,COUNTA(raw!$A:$A)-1,1),N$2) -> 0 | O18: =COUNTIFS( OFFSET(raw!$A$1,2,MATCH(回答数!$A18,raw!$2:$2,0)-1,COUNTA(raw!$A:$A)-1,1),回答数!$B18, OFFSET(raw!$A$1,2,MATCH($D$1,raw!$2:$2,0)-1,COUNTA(raw!$A:$A)-1,1),O$2) -> 0 | P18: 223
A19: 回答エリア | B19: 花の駅 ゆりの里公園 エリア | D19: =COUNTIFS( OFFSET(raw!$A$1,2,MATCH(回答数!$A19,raw!$2:$2,0)-1,COUNTA(raw!$A:$A)-1,1),回答数!$B19, OFFSET(raw!$A$1,2,MATCH($D$1,raw!$2:$2,0)-1,COUNTA(raw!$A:$A)-1,1),D$2) -> 26 | E19: =COUNTIFS( OFFSET(raw!$A$1,2,MATCH(回答数!$A19,raw!$2:$2,0)-1,COUNTA(raw!$A:$A)-1,1),回答数!$B19, OFFSET(raw!$A$1,2,MATCH($D$1,raw!$2:$2,0)-1,COUNTA(raw!$A:$A)-1,1),E$2) -> 29 | F19: =COUNTIFS( OFFSET(raw!$A$1,2,MATCH(回答数!$A19,raw!$2:$2,0)-1,COUNTA(raw!$A:$A)-1,1),回答数!$B19, OFFSET(raw!$A$1,2,MATCH($D$1,raw!$2:$2,0)-1,COUNTA(raw!$A:$A)-1,1),F$2) -> 37 | G19: =COUNTIFS( OFFSET(raw!$A$1,2,MATCH(回答数!$A19,raw!$2:$2,0)-1,COUNTA(raw!$A:$A)-1,1),回答数!$B19, OFFSET(raw!$A$1,2,MATCH($D$1,raw!$2:$2,0)-1,COUNTA(raw!$A:$A)-1,1),G$2) -> 15 | H19: =COUNTIFS( OFFSET(raw!$A$1,2,MATCH(回答数!$A19,raw!$2:$2,0)-1,COUNTA(raw!$A:$A)-1,1),回答数!$B19, OFFSET(raw!$A$1,2,MATCH($D$1,raw!$2:$2,0)-1,COUNTA(raw!$A:$A)-1,1),H$2) -> 0 | I19: =COUNTIFS( OFFSET(raw!$A$1,2,MATCH(回答数!$A19,raw!$2:$2,0)-1,COUNTA(raw!$A:$A)-1,1),回答数!$B19, OFFSET(raw!$A$1,2,MATCH($D$1,raw!$2:$2,0)-1,COUNTA(raw!$A:$A)-1,1),I$2) -> 0 | J19: =COUNTIFS( OFFSET(raw!$A$1,2,MATCH(回答数!$A19,raw!$2:$2,0)-1,COUNTA(raw!$A:$A)-1,1),回答数!$B19, OFFSET(raw!$A$1,2,MATCH($D$1,raw!$2:$2,0)-1,COUNTA(raw!$A:$A)-1,1),J$2) -> 0 | K19: =COUNTIFS( OFFSET(raw!$A$1,2,MATCH(回答数!$A19,raw!$2:$2,0)-1,COUNTA(raw!$A:$A)-1,1),回答数!$B19, OFFSET(raw!$A$1,2,MATCH($D$1,raw!$2:$2,0)-1,COUNTA(raw!$A:$A)-1,1),K$2) -> 0 | L19: =COUNTIFS( OFFSET(raw!$A$1,2,MATCH(回答数!$A19,raw!$2:$2,0)-1,COUNTA(raw!$A:$A)-1,1),回答数!$B19, OFFSET(raw!$A$1,2,MATCH($D$1,raw!$2:$2,0)-1,COUNTA(raw!$A:$A)-1,1),L$2) -> 0 | M19: =COUNTIFS( OFFSET(raw!$A$1,2,MATCH(回答数!$A19,raw!$2:$2,0)-1,COUNTA(raw!$A:$A)-1,1),回答数!$B19, OFFSET(raw!$A$1,2,MATCH($D$1,raw!$2:$2,0)-1,COUNTA(raw!$A:$A)-1,1),M$2) -> 0 | N19: =COUNTIFS( OFFSET(raw!$A$1,2,MATCH(回答数!$A19,raw!$2:$2,0)-1,COUNTA(raw!$A:$A)-1,1),回答数!$B19, OFFSET(raw!$A$1,2,MATCH($D$1,raw!$2:$2,0)-1,COUNTA(raw!$A:$A)-1,1),N$2) -> 0 | O19: =COUNTIFS( OFFSET(raw!$A$1,2,MATCH(回答数!$A19,raw!$2:$2,0)-1,COUNTA(raw!$A:$A)-1,1),回答数!$B19, OFFSET(raw!$A$1,2,MATCH($D$1,raw!$2:$2,0)-1,COUNTA(raw!$A:$A)-1,1),O$2) -> 0 | P19: 107
A20: 回答エリア | B20: 道の駅みくに ふれあいパーク三里浜 エリア | D20: =COUNTIFS( OFFSET(raw!$A$1,2,MATCH(回答数!$A20,raw!$2:$2,0)-1,COUNTA(raw!$A:$A)-1,1),回答数!$B20, OFFSET(raw!$A$1,2,MATCH($D$1,raw!$2:$2,0)-1,COUNTA(raw!$A:$A)-1,1),D$2) -> 55 | E20: =COUNTIFS( OFFSET(raw!$A$1,2,MATCH(回答数!$A20,raw!$2:$2,0)-1,COUNTA(raw!$A:$A)-1,1),回答数!$B20, OFFSET(raw!$A$1,2,MATCH($D$1,raw!$2:$2,0)-1,COUNTA(raw!$A:$A)-1,1),E$2) -> 47 | F20: =COUNTIFS( OFFSET(raw!$A$1,2,MATCH(回答数!$A20,raw!$2:$2,0)-1,COUNTA(raw!$A:$A)-1,1),回答数!$B20, OFFSET(raw!$A$1,2,MATCH($D$1,raw!$2:$2,0)-1,COUNTA(raw!$A:$A)-1,1),F$2) -> 50 | G20: =COUNTIFS( OFFSET(raw!$A$1,2,MATCH(回答数!$A20,raw!$2:$2,0)-1,COUNTA(raw!$A:$A)-1,1),回答数!$B20, OFFSET(raw!$A$1,2,MATCH($D$1,raw!$2:$2,0)-1,COUNTA(raw!$A:$A)-1,1),G$2) -> 28 | H20: =COUNTIFS( OFFSET(raw!$A$1,2,MATCH(回答数!$A20,raw!$2:$2,0)-1,COUNTA(raw!$A:$A)-1,1),回答数!$B20, OFFSET(raw!$A$1,2,MATCH($D$1,raw!$2:$2,0)-1,COUNTA(raw!$A:$A)-1,1),H$2) -> 0 | I20: =COUNTIFS( OFFSET(raw!$A$1,2,MATCH(回答数!$A20,raw!$2:$2,0)-1,COUNTA(raw!$A:$A)-1,1),回答数!$B20, OFFSET(raw!$A$1,2,MATCH($D$1,raw!$2:$2,0)-1,COUNTA(raw!$A:$A)-1,1),I$2) -> 0 | J20: =COUNTIFS( OFFSET(raw!$A$1,2,MATCH(回答数!$A20,raw!$2:$2,0)-1,COUNTA(raw!$A:$A)-1,1),回答数!$B20, OFFSET(raw!$A$1,2,MATCH($D$1,raw!$2:$2,0)-1,COUNTA(raw!$A:$A)-1,1),J$2) -> 0 | K20: =COUNTIFS( OFFSET(raw!$A$1,2,MATCH(回答数!$A20,raw!$2:$2,0)-1,COUNTA(raw!$A:$A)-1,1),回答数!$B20, OFFSET(raw!$A$1,2,MATCH($D$1,raw!$2:$2,0)-1,COUNTA(raw!$A:$A)-1,1),K$2) -> 0 | L20: =COUNTIFS( OFFSET(raw!$A$1,2,MATCH(回答数!$A20,raw!$2:$2,0)-1,COUNTA(raw!$A:$A)-1,1),回答数!$B20, OFFSET(raw!$A$1,2,MATCH($D$1,raw!$2:$2,0)-1,COUNTA(raw!$A:$A)-1,1),L$2) -> 0 | M20: =COUNTIFS( OFFSET(raw!$A$1,2,MATCH(回答数!$A20,raw!$2:$2,0)-1,COUNTA(raw!$A:$A)-1,1),回答数!$B20, OFFSET(raw!$A$1,2,MATCH($D$1,raw!$2:$2,0)-1,COUNTA(raw!$A:$A)-1,1),M$2) -> 0 | N20: =COUNTIFS( OFFSET(raw!$A$1,2,MATCH(回答数!$A20,raw!$2:$2,0)-1,COUNTA(raw!$A:$A)-1,1),回答数!$B20, OFFSET(raw!$A$1,2,MATCH($D$1,raw!$2:$2,0)-1,COUNTA(raw!$A:$A)-1,1),N$2) -> 0 | O20: =COUNTIFS( OFFSET(raw!$A$1,2,MATCH(回答数!$A20,raw!$2:$2,0)-1,COUNTA(raw!$A:$A)-1,1),回答数!$B20, OFFSET(raw!$A$1,2,MATCH($D$1,raw!$2:$2,0)-1,COUNTA(raw!$A:$A)-1,1),O$2) -> 0 | P20: 180
A21: 回答エリア | B21: JR芦原温泉駅 エリア | D21: =COUNTIFS( OFFSET(raw!$A$1,2,MATCH(回答数!$A21,raw!$2:$2,0)-1,COUNTA(raw!$A:$A)-1,1),回答数!$B21, OFFSET(raw!$A$1,2,MATCH($D$1,raw!$2:$2,0)-1,COUNTA(raw!$A:$A)-1,1),D$2) -> 57 | E21: =COUNTIFS( OFFSET(raw!$A$1,2,MATCH(回答数!$A21,raw!$2:$2,0)-1,COUNTA(raw!$A:$A)-1,1),回答数!$B21, OFFSET(raw!$A$1,2,MATCH($D$1,raw!$2:$2,0)-1,COUNTA(raw!$A:$A)-1,1),E$2) -> 26 | F21: =COUNTIFS( OFFSET(raw!$A$1,2,MATCH(回答数!$A21,raw!$2:$2,0)-1,COUNTA(raw!$A:$A)-1,1),回答数!$B21, OFFSET(raw!$A$1,2,MATCH($D$1,raw!$2:$2,0)-1,COUNTA(raw!$A:$A)-1,1),F$2) -> 25 | G21: =COUNTIFS( OFFSET(raw!$A$1,2,MATCH(回答数!$A21,raw!$2:$2,0)-1,COUNTA(raw!$A:$A)-1,1),回答数!$B21, OFFSET(raw!$A$1,2,MATCH($D$1,raw!$2:$2,0)-1,COUNTA(raw!$A:$A)-1,1),G$2) -> 22 | H21: =COUNTIFS( OFFSET(raw!$A$1,2,MATCH(回答数!$A21,raw!$2:$2,0)-1,COUNTA(raw!$A:$A)-1,1),回答数!$B21, OFFSET(raw!$A$1,2,MATCH($D$1,raw!$2:$2,0)-1,COUNTA(raw!$A:$A)-1,1),H$2) -> 0 | I21: =COUNTIFS( OFFSET(raw!$A$1,2,MATCH(回答数!$A21,raw!$2:$2,0)-1,COUNTA(raw!$A:$A)-1,1),回答数!$B21, OFFSET(raw!$A$1,2,MATCH($D$1,raw!$2:$2,0)-1,COUNTA(raw!$A:$A)-1,1),I$2) -> 0 | J21: =COUNTIFS( OFFSET(raw!$A$1,2,MATCH(回答数!$A21,raw!$2:$2,0)-1,COUNTA(raw!$A:$A)-1,1),回答数!$B21, OFFSET(raw!$A$1,2,MATCH($D$1,raw!$2:$2,0)-1,COUNTA(raw!$A:$A)-1,1),J$2) -> 0 | K21: =COUNTIFS( OFFSET(raw!$A$1,2,MATCH(回答数!$A21,raw!$2:$2,0)-1,COUNTA(raw!$A:$A)-1,1),回答数!$B21, OFFSET(raw!$A$1,2,MATCH($D$1,raw!$2:$2,0)-1,COUNTA(raw!$A:$A)-1,1),K$2) -> 0 | L21: =COUNTIFS( OFFSET(raw!$A$1,2,MATCH(回答数!$A21,raw!$2:$2,0)-1,COUNTA(raw!$A:$A)-1,1),回答数!$B21, OFFSET(raw!$A$1,2,MATCH($D$1,raw!$2:$2,0)-1,COUNTA(raw!$A:$A)-1,1),L$2) -> 0 | M21: =COUNTIFS( OFFSET(raw!$A$1,2,MATCH(回答数!$A21,raw!$2:$2,0)-1,COUNTA(raw!$A:$A)-1,1),回答数!$B21, OFFSET(raw!$A$1,2,MATCH($D$1,raw!$2:$2,0)-1,COUNTA(raw!$A:$A)-1,1),M$2) -> 0 | N21: =COUNTIFS( OFFSET(raw!$A$1,2,MATCH(回答数!$A21,raw!$2:$2,0)-1,COUNTA(raw!$A:$A)-1,1),回答数!$B21, OFFSET(raw!$A$1,2,MATCH($D$1,raw!$2:$2,0)-1,COUNTA(raw!$A:$A)-1,1),N$2) -> 0 | O21: =COUNTIFS( OFFSET(raw!$A$1,2,MATCH(回答数!$A21,raw!$2:$2,0)-1,COUNTA(raw!$A:$A)-1,1),回答数!$B21, OFFSET(raw!$A$1,2,MATCH($D$1,raw!$2:$2,0)-1,COUNTA(raw!$A:$A)-1,1),O$2) -> 0 | P21: 130
A22: 回答エリア | B22: あわら湯のまち エリア | D22: =COUNTIFS( OFFSET(raw!$A$1,2,MATCH(回答数!$A22,raw!$2:$2,0)-1,COUNTA(raw!$A:$A)-1,1),回答数!$B22, OFFSET(raw!$A$1,2,MATCH($D$1,raw!$2:$2,0)-1,COUNTA(raw!$A:$A)-1,1),D$2) -> 289 | E22: =COUNTIFS( OFFSET(raw!$A$1,2,MATCH(回答数!$A22,raw!$2:$2,0)-1,COUNTA(raw!$A:$A)-1,1),回答数!$B22, OFFSET(raw!$A$1,2,MATCH($D$1,raw!$2:$2,0)-1,COUNTA(raw!$A:$A)-1,1),E$2) -> 183 | F22: =COUNTIFS( OFFSET(raw!$A$1,2,MATCH(回答数!$A22,raw!$2:$2,0)-1,COUNTA(raw!$A:$A)-1,1),回答数!$B22, OFFSET(raw!$A$1,2,MATCH($D$1,raw!$2:$2,0)-1,COUNTA(raw!$A:$A)-1,1),F$2) -> 183 | G22: =COUNTIFS( OFFSET(raw!$A$1,2,MATCH(回答数!$A22,raw!$2:$2,0)-1,COUNTA(raw!$A:$A)-1,1),回答数!$B22, OFFSET(raw!$A$1,2,MATCH($D$1,raw!$2:$2,0)-1,COUNTA(raw!$A:$A)-1,1),G$2) -> 171 | H22: =COUNTIFS( OFFSET(raw!$A$1,2,MATCH(回答数!$A22,raw!$2:$2,0)-1,COUNTA(raw!$A:$A)-1,1),回答数!$B22, OFFSET(raw!$A$1,2,MATCH($D$1,raw!$2:$2,0)-1,COUNTA(raw!$A:$A)-1,1),H$2) -> 0 | I22: =COUNTIFS( OFFSET(raw!$A$1,2,MATCH(回答数!$A22,raw!$2:$2,0)-1,COUNTA(raw!$A:$A)-1,1),回答数!$B22, OFFSET(raw!$A$1,2,MATCH($D$1,raw!$2:$2,0)-1,COUNTA(raw!$A:$A)-1,1),I$2) -> 0 | J22: =COUNTIFS( OFFSET(raw!$A$1,2,MATCH(回答数!$A22,raw!$2:$2,0)-1,COUNTA(raw!$A:$A)-1,1),回答数!$B22, OFFSET(raw!$A$1,2,MATCH($D$1,raw!$2:$2,0)-1,COUNTA(raw!$A:$A)-1,1),J$2) -> 0 | K22: =COUNTIFS( OFFSET(raw!$A$1,2,MATCH(回答数!$A22,raw!$2:$2,0)-1,COUNTA(raw!$A:$A)-1,1),回答数!$B22, OFFSET(raw!$A$1,2,MATCH($D$1,raw!$2:$2,0)-1,COUNTA(raw!$A:$A)-1,1),K$2) -> 0 | L22: =COUNTIFS( OFFSET(raw!$A$1,2,MATCH(回答数!$A22,raw!$2:$2,0)-1,COUNTA(raw!$A:$A)-1,1),回答数!$B22, OFFSET(raw!$A$1,2,MATCH($D$1,raw!$2:$2,0)-1,COUNTA(raw!$A:$A)-1,1),L$2) -> 0 | M22: =COUNTIFS( OFFSET(raw!$A$1,2,MATCH(回答数!$A22,raw!$2:$2,0)-1,COUNTA(raw!$A:$A)-1,1),回答数!$B22, OFFSET(raw!$A$1,2,MATCH($D$1,raw!$2:$2,0)-1,COUNTA(raw!$A:$A)-1,1),M$2) -> 0 | N22: =COUNTIFS( OFFSET(raw!$A$1,2,MATCH(回答数!$A22,raw!$2:$2,0)-1,COUNTA(raw!$A:$A)-1,1),回答数!$B22, OFFSET(raw!$A$1,2,MATCH($D$1,raw!$2:$2,0)-1,COUNTA(raw!$A:$A)-1,1),N$2) -> 0 | O22: =COUNTIFS( OFFSET(raw!$A$1,2,MATCH(回答数!$A22,raw!$2:$2,0)-1,COUNTA(raw!$A:$A)-1,1),回答数!$B22, OFFSET(raw!$A$1,2,MATCH($D$1,raw!$2:$2,0)-1,COUNTA(raw!$A:$A)-1,1),O$2) -> 0 | P22: 826
A23: 回答エリア | B23: フルーツライン エリア | D23: =COUNTIFS( OFFSET(raw!$A$1,2,MATCH(回答数!$A23,raw!$2:$2,0)-1,COUNTA(raw!$A:$A)-1,1),回答数!$B23, OFFSET(raw!$A$1,2,MATCH($D$1,raw!$2:$2,0)-1,COUNTA(raw!$A:$A)-1,1),D$2) -> 17 | E23: =COUNTIFS( OFFSET(raw!$A$1,2,MATCH(回答数!$A23,raw!$2:$2,0)-1,COUNTA(raw!$A:$A)-1,1),回答数!$B23, OFFSET(raw!$A$1,2,MATCH($D$1,raw!$2:$2,0)-1,COUNTA(raw!$A:$A)-1,1),E$2) -> 24 | F23: =COUNTIFS( OFFSET(raw!$A$1,2,MATCH(回答数!$A23,raw!$2:$2,0)-1,COUNTA(raw!$A:$A)-1,1),回答数!$B23, OFFSET(raw!$A$1,2,MATCH($D$1,raw!$2:$2,0)-1,COUNTA(raw!$A:$A)-1,1),F$2) -> 45 | G23: =COUNTIFS( OFFSET(raw!$A$1,2,MATCH(回答数!$A23,raw!$2:$2,0)-1,COUNTA(raw!$A:$A)-1,1),回答数!$B23, OFFSET(raw!$A$1,2,MATCH($D$1,raw!$2:$2,0)-1,COUNTA(raw!$A:$A)-1,1),G$2) -> 19 | H23: =COUNTIFS( OFFSET(raw!$A$1,2,MATCH(回答数!$A23,raw!$2:$2,0)-1,COUNTA(raw!$A:$A)-1,1),回答数!$B23, OFFSET(raw!$A$1,2,MATCH($D$1,raw!$2:$2,0)-1,COUNTA(raw!$A:$A)-1,1),H$2) -> 0 | I23: =COUNTIFS( OFFSET(raw!$A$1,2,MATCH(回答数!$A23,raw!$2:$2,0)-1,COUNTA(raw!$A:$A)-1,1),回答数!$B23, OFFSET(raw!$A$1,2,MATCH($D$1,raw!$2:$2,0)-1,COUNTA(raw!$A:$A)-1,1),I$2) -> 0 | J23: =COUNTIFS( OFFSET(raw!$A$1,2,MATCH(回答数!$A23,raw!$2:$2,0)-1,COUNTA(raw!$A:$A)-1,1),回答数!$B23, OFFSET(raw!$A$1,2,MATCH($D$1,raw!$2:$2,0)-1,COUNTA(raw!$A:$A)-1,1),J$2) -> 0 | K23: =COUNTIFS( OFFSET(raw!$A$1,2,MATCH(回答数!$A23,raw!$2:$2,0)-1,COUNTA(raw!$A:$A)-1,1),回答数!$B23, OFFSET(raw!$A$1,2,MATCH($D$1,raw!$2:$2,0)-1,COUNTA(raw!$A:$A)-1,1),K$2) -> 0 | L23: =COUNTIFS( OFFSET(raw!$A$1,2,MATCH(回答数!$A23,raw!$2:$2,0)-1,COUNTA(raw!$A:$A)-1,1),回答数!$B23, OFFSET(raw!$A$1,2,MATCH($D$1,raw!$2:$2,0)-1,COUNTA(raw!$A:$A)-1,1),L$2) -> 0 | M23: =COUNTIFS( OFFSET(raw!$A$1,2,MATCH(回答数!$A23,raw!$2:$2,0)-1,COUNTA(raw!$A:$A)-1,1),回答数!$B23, OFFSET(raw!$A$1,2,MATCH($D$1,raw!$2:$2,0)-1,COUNTA(raw!$A:$A)-1,1),M$2) -> 0 | N23: =COUNTIFS( OFFSET(raw!$A$1,2,MATCH(回答数!$A23,raw!$2:$2,0)-1,COUNTA(raw!$A:$A)-1,1),回答数!$B23, OFFSET(raw!$A$1,2,MATCH($D$1,raw!$2:$2,0)-1,COUNTA(raw!$A:$A)-1,1),N$2) -> 0 | O23: =COUNTIFS( OFFSET(raw!$A$1,2,MATCH(回答数!$A23,raw!$2:$2,0)-1,COUNTA(raw!$A:$A)-1,1),回答数!$B23, OFFSET(raw!$A$1,2,MATCH($D$1,raw!$2:$2,0)-1,COUNTA(raw!$A:$A)-1,1),O$2) -> 0 | P23: 105
A24: 回答エリア | B24: 波松 エリア | D24: =COUNTIFS( OFFSET(raw!$A$1,2,MATCH(回答数!$A24,raw!$2:$2,0)-1,COUNTA(raw!$A:$A)-1,1),回答数!$B24, OFFSET(raw!$A$1,2,MATCH($D$1,raw!$2:$2,0)-1,COUNTA(raw!$A:$A)-1,1),D$2) -> 1 | E24: =COUNTIFS( OFFSET(raw!$A$1,2,MATCH(回答数!$A24,raw!$2:$2,0)-1,COUNTA(raw!$A:$A)-1,1),回答数!$B24, OFFSET(raw!$A$1,2,MATCH($D$1,raw!$2:$2,0)-1,COUNTA(raw!$A:$A)-1,1),E$2) -> 0 | F24: =COUNTIFS( OFFSET(raw!$A$1,2,MATCH(回答数!$A24,raw!$2:$2,0)-1,COUNTA(raw!$A:$A)-1,1),回答数!$B24, OFFSET(raw!$A$1,2,MATCH($D$1,raw!$2:$2,0)-1,COUNTA(raw!$A:$A)-1,1),F$2) -> 1 | G24: =COUNTIFS( OFFSET(raw!$A$1,2,MATCH(回答数!$A24,raw!$2:$2,0)-1,COUNTA(raw!$A:$A)-1,1),回答数!$B24, OFFSET(raw!$A$1,2,MATCH($D$1,raw!$2:$2,0)-1,COUNTA(raw!$A:$A)-1,1),G$2) -> 3 | H24: =COUNTIFS( OFFSET(raw!$A$1,2,MATCH(回答数!$A24,raw!$2:$2,0)-1,COUNTA(raw!$A:$A)-1,1),回答数!$B24, OFFSET(raw!$A$1,2,MATCH($D$1,raw!$2:$2,0)-1,COUNTA(raw!$A:$A)-1,1),H$2) -> 0 | I24: =COUNTIFS( OFFSET(raw!$A$1,2,MATCH(回答数!$A24,raw!$2:$2,0)-1,COUNTA(raw!$A:$A)-1,1),回答数!$B24, OFFSET(raw!$A$1,2,MATCH($D$1,raw!$2:$2,0)-1,COUNTA(raw!$A:$A)-1,1),I$2) -> 0 | J24: =COUNTIFS( OFFSET(raw!$A$1,2,MATCH(回答数!$A24,raw!$2:$2,0)-1,COUNTA(raw!$A:$A)-1,1),回答数!$B24, OFFSET(raw!$A$1,2,MATCH($D$1,raw!$2:$2,0)-1,COUNTA(raw!$A:$A)-1,1),J$2) -> 0 | K24: =COUNTIFS( OFFSET(raw!$A$1,2,MATCH(回答数!$A24,raw!$2:$2,0)-1,COUNTA(raw!$A:$A)-1,1),回答数!$B24, OFFSET(raw!$A$1,2,MATCH($D$1,raw!$2:$2,0)-1,COUNTA(raw!$A:$A)-1,1),K$2) -> 0 | L24: =COUNTIFS( OFFSET(raw!$A$1,2,MATCH(回答数!$A24,raw!$2:$2,0)-1,COUNTA(raw!$A:$A)-1,1),回答数!$B24, OFFSET(raw!$A$1,2,MATCH($D$1,raw!$2:$2,0)-1,COUNTA(raw!$A:$A)-1,1),L$2) -> 0 | M24: =COUNTIFS( OFFSET(raw!$A$1,2,MATCH(回答数!$A24,raw!$2:$2,0)-1,COUNTA(raw!$A:$A)-1,1),回答数!$B24, OFFSET(raw!$A$1,2,MATCH($D$1,raw!$2:$2,0)-1,COUNTA(raw!$A:$A)-1,1),M$2) -> 0 | N24: =COUNTIFS( OFFSET(raw!$A$1,2,MATCH(回答数!$A24,raw!$2:$2,0)-1,COUNTA(raw!$A:$A)-1,1),回答数!$B24, OFFSET(raw!$A$1,2,MATCH($D$1,raw!$2:$2,0)-1,COUNTA(raw!$A:$A)-1,1),N$2) -> 0 | O24: =COUNTIFS( OFFSET(raw!$A$1,2,MATCH(回答数!$A24,raw!$2:$2,0)-1,COUNTA(raw!$A:$A)-1,1),回答数!$B24, OFFSET(raw!$A$1,2,MATCH($D$1,raw!$2:$2,0)-1,COUNTA(raw!$A:$A)-1,1),O$2) -> 0 | P24: =D24+E24+F24+G24+H24+I24+J24+K24+L24+M24+N24+O24 -> 5
A25: 回答エリア | B25: 北潟湖 エリア | D25: =COUNTIFS( OFFSET(raw!$A$1,2,MATCH(回答数!$A25,raw!$2:$2,0)-1,COUNTA(raw!$A:$A)-1,1),回答数!$B25, OFFSET(raw!$A$1,2,MATCH($D$1,raw!$2:$2,0)-1,COUNTA(raw!$A:$A)-1,1),D$2) -> 33 | E25: =COUNTIFS( OFFSET(raw!$A$1,2,MATCH(回答数!$A25,raw!$2:$2,0)-1,COUNTA(raw!$A:$A)-1,1),回答数!$B25, OFFSET(raw!$A$1,2,MATCH($D$1,raw!$2:$2,0)-1,COUNTA(raw!$A:$A)-1,1),E$2) -> 27 | F25: =COUNTIFS( OFFSET(raw!$A$1,2,MATCH(回答数!$A25,raw!$2:$2,0)-1,COUNTA(raw!$A:$A)-1,1),回答数!$B25, OFFSET(raw!$A$1,2,MATCH($D$1,raw!$2:$2,0)-1,COUNTA(raw!$A:$A)-1,1),F$2) -> 44 | G25: =COUNTIFS( OFFSET(raw!$A$1,2,MATCH(回答数!$A25,raw!$2:$2,0)-1,COUNTA(raw!$A:$A)-1,1),回答数!$B25, OFFSET(raw!$A$1,2,MATCH($D$1,raw!$2:$2,0)-1,COUNTA(raw!$A:$A)-1,1),G$2) -> 23 | H25: =COUNTIFS( OFFSET(raw!$A$1,2,MATCH(回答数!$A25,raw!$2:$2,0)-1,COUNTA(raw!$A:$A)-1,1),回答数!$B25, OFFSET(raw!$A$1,2,MATCH($D$1,raw!$2:$2,0)-1,COUNTA(raw!$A:$A)-1,1),H$2) -> 0 | I25: =COUNTIFS( OFFSET(raw!$A$1,2,MATCH(回答数!$A25,raw!$2:$2,0)-1,COUNTA(raw!$A:$A)-1,1),回答数!$B25, OFFSET(raw!$A$1,2,MATCH($D$1,raw!$2:$2,0)-1,COUNTA(raw!$A:$A)-1,1),I$2) -> 0 | J25: =COUNTIFS( OFFSET(raw!$A$1,2,MATCH(回答数!$A25,raw!$2:$2,0)-1,COUNTA(raw!$A:$A)-1,1),回答数!$B25, OFFSET(raw!$A$1,2,MATCH($D$1,raw!$2:$2,0)-1,COUNTA(raw!$A:$A)-1,1),J$2) -> 0 | K25: =COUNTIFS( OFFSET(raw!$A$1,2,MATCH(回答数!$A25,raw!$2:$2,0)-1,COUNTA(raw!$A:$A)-1,1),回答数!$B25, OFFSET(raw!$A$1,2,MATCH($D$1,raw!$2:$2,0)-1,COUNTA(raw!$A:$A)-1,1),K$2) -> 0 | L25: =COUNTIFS( OFFSET(raw!$A$1,2,MATCH(回答数!$A25,raw!$2:$2,0)-1,COUNTA(raw!$A:$A)-1,1),回答数!$B25, OFFSET(raw!$A$1,2,MATCH($D$1,raw!$2:$2,0)-1,COUNTA(raw!$A:$A)-1,1),L$2) -> 0 | M25: =COUNTIFS( OFFSET(raw!$A$1,2,MATCH(回答数!$A25,raw!$2:$2,0)-1,COUNTA(raw!$A:$A)-1,1),回答数!$B25, OFFSET(raw!$A$1,2,MATCH($D$1,raw!$2:$2,0)-1,COUNTA(raw!$A:$A)-1,1),M$2) -> 0 | N25: =COUNTIFS( OFFSET(raw!$A$1,2,MATCH(回答数!$A25,raw!$2:$2,0)-1,COUNTA(raw!$A:$A)-1,1),回答数!$B25, OFFSET(raw!$A$1,2,MATCH($D$1,raw!$2:$2,0)-1,COUNTA(raw!$A:$A)-1,1),N$2) -> 0 | O25: =COUNTIFS( OFFSET(raw!$A$1,2,MATCH(回答数!$A25,raw!$2:$2,0)-1,COUNTA(raw!$A:$A)-1,1),回答数!$B25, OFFSET(raw!$A$1,2,MATCH($D$1,raw!$2:$2,0)-1,COUNTA(raw!$A:$A)-1,1),O$2) -> 0 | P25: 127
A26: 回答エリア | B26: 越前大野城・城下町 エリア | D26: =COUNTIFS( OFFSET(raw!$A$1,2,MATCH(回答数!$A26,raw!$2:$2,0)-1,COUNTA(raw!$A:$A)-1,1),回答数!$B26, OFFSET(raw!$A$1,2,MATCH($D$1,raw!$2:$2,0)-1,COUNTA(raw!$A:$A)-1,1),D$2) -> 104 | E26: =COUNTIFS( OFFSET(raw!$A$1,2,MATCH(回答数!$A26,raw!$2:$2,0)-1,COUNTA(raw!$A:$A)-1,1),回答数!$B26, OFFSET(raw!$A$1,2,MATCH($D$1,raw!$2:$2,0)-1,COUNTA(raw!$A:$A)-1,1),E$2) -> 87 | F26: =COUNTIFS( OFFSET(raw!$A$1,2,MATCH(回答数!$A26,raw!$2:$2,0)-1,COUNTA(raw!$A:$A)-1,1),回答数!$B26, OFFSET(raw!$A$1,2,MATCH($D$1,raw!$2:$2,0)-1,COUNTA(raw!$A:$A)-1,1),F$2) -> 59 | G26: =COUNTIFS( OFFSET(raw!$A$1,2,MATCH(回答数!$A26,raw!$2:$2,0)-1,COUNTA(raw!$A:$A)-1,1),回答数!$B26, OFFSET(raw!$A$1,2,MATCH($D$1,raw!$2:$2,0)-1,COUNTA(raw!$A:$A)-1,1),G$2) -> 56 | H26: =COUNTIFS( OFFSET(raw!$A$1,2,MATCH(回答数!$A26,raw!$2:$2,0)-1,COUNTA(raw!$A:$A)-1,1),回答数!$B26, OFFSET(raw!$A$1,2,MATCH($D$1,raw!$2:$2,0)-1,COUNTA(raw!$A:$A)-1,1),H$2) -> 0 | I26: =COUNTIFS( OFFSET(raw!$A$1,2,MATCH(回答数!$A26,raw!$2:$2,0)-1,COUNTA(raw!$A:$A)-1,1),回答数!$B26, OFFSET(raw!$A$1,2,MATCH($D$1,raw!$2:$2,0)-1,COUNTA(raw!$A:$A)-1,1),I$2) -> 0 | J26: =COUNTIFS( OFFSET(raw!$A$1,2,MATCH(回答数!$A26,raw!$2:$2,0)-1,COUNTA(raw!$A:$A)-1,1),回答数!$B26, OFFSET(raw!$A$1,2,MATCH($D$1,raw!$2:$2,0)-1,COUNTA(raw!$A:$A)-1,1),J$2) -> 0 | K26: =COUNTIFS( OFFSET(raw!$A$1,2,MATCH(回答数!$A26,raw!$2:$2,0)-1,COUNTA(raw!$A:$A)-1,1),回答数!$B26, OFFSET(raw!$A$1,2,MATCH($D$1,raw!$2:$2,0)-1,COUNTA(raw!$A:$A)-1,1),K$2) -> 0 | L26: =COUNTIFS( OFFSET(raw!$A$1,2,MATCH(回答数!$A26,raw!$2:$2,0)-1,COUNTA(raw!$A:$A)-1,1),回答数!$B26, OFFSET(raw!$A$1,2,MATCH($D$1,raw!$2:$2,0)-1,COUNTA(raw!$A:$A)-1,1),L$2) -> 0 | M26: =COUNTIFS( OFFSET(raw!$A$1,2,MATCH(回答数!$A26,raw!$2:$2,0)-1,COUNTA(raw!$A:$A)-1,1),回答数!$B26, OFFSET(raw!$A$1,2,MATCH($D$1,raw!$2:$2,0)-1,COUNTA(raw!$A:$A)-1,1),M$2) -> 0 | N26: =COUNTIFS( OFFSET(raw!$A$1,2,MATCH(回答数!$A26,raw!$2:$2,0)-1,COUNTA(raw!$A:$A)-1,1),回答数!$B26, OFFSET(raw!$A$1,2,MATCH($D$1,raw!$2:$2,0)-1,COUNTA(raw!$A:$A)-1,1),N$2) -> 0 | O26: =COUNTIFS( OFFSET(raw!$A$1,2,MATCH(回答数!$A26,raw!$2:$2,0)-1,COUNTA(raw!$A:$A)-1,1),回答数!$B26, OFFSET(raw!$A$1,2,MATCH($D$1,raw!$2:$2,0)-1,COUNTA(raw!$A:$A)-1,1),O$2) -> 0 | P26: 306
A27: 回答エリア | B27: 道の駅「越前おおの荒島の郷」 エリア | D27: =COUNTIFS( OFFSET(raw!$A$1,2,MATCH(回答数!$A27,raw!$2:$2,0)-1,COUNTA(raw!$A:$A)-1,1),回答数!$B27, OFFSET(raw!$A$1,2,MATCH($D$1,raw!$2:$2,0)-1,COUNTA(raw!$A:$A)-1,1),D$2) -> 61 | E27: =COUNTIFS( OFFSET(raw!$A$1,2,MATCH(回答数!$A27,raw!$2:$2,0)-1,COUNTA(raw!$A:$A)-1,1),回答数!$B27, OFFSET(raw!$A$1,2,MATCH($D$1,raw!$2:$2,0)-1,COUNTA(raw!$A:$A)-1,1),E$2) -> 68 | F27: =COUNTIFS( OFFSET(raw!$A$1,2,MATCH(回答数!$A27,raw!$2:$2,0)-1,COUNTA(raw!$A:$A)-1,1),回答数!$B27, OFFSET(raw!$A$1,2,MATCH($D$1,raw!$2:$2,0)-1,COUNTA(raw!$A:$A)-1,1),F$2) -> 47 | G27: =COUNTIFS( OFFSET(raw!$A$1,2,MATCH(回答数!$A27,raw!$2:$2,0)-1,COUNTA(raw!$A:$A)-1,1),回答数!$B27, OFFSET(raw!$A$1,2,MATCH($D$1,raw!$2:$2,0)-1,COUNTA(raw!$A:$A)-1,1),G$2) -> 47 | H27: =COUNTIFS( OFFSET(raw!$A$1,2,MATCH(回答数!$A27,raw!$2:$2,0)-1,COUNTA(raw!$A:$A)-1,1),回答数!$B27, OFFSET(raw!$A$1,2,MATCH($D$1,raw!$2:$2,0)-1,COUNTA(raw!$A:$A)-1,1),H$2) -> 0 | I27: =COUNTIFS( OFFSET(raw!$A$1,2,MATCH(回答数!$A27,raw!$2:$2,0)-1,COUNTA(raw!$A:$A)-1,1),回答数!$B27, OFFSET(raw!$A$1,2,MATCH($D$1,raw!$2:$2,0)-1,COUNTA(raw!$A:$A)-1,1),I$2) -> 0 | J27: =COUNTIFS( OFFSET(raw!$A$1,2,MATCH(回答数!$A27,raw!$2:$2,0)-1,COUNTA(raw!$A:$A)-1,1),回答数!$B27, OFFSET(raw!$A$1,2,MATCH($D$1,raw!$2:$2,0)-1,COUNTA(raw!$A:$A)-1,1),J$2) -> 0 | K27: =COUNTIFS( OFFSET(raw!$A$1,2,MATCH(回答数!$A27,raw!$2:$2,0)-1,COUNTA(raw!$A:$A)-1,1),回答数!$B27, OFFSET(raw!$A$1,2,MATCH($D$1,raw!$2:$2,0)-1,COUNTA(raw!$A:$A)-1,1),K$2) -> 0 | L27: =COUNTIFS( OFFSET(raw!$A$1,2,MATCH(回答数!$A27,raw!$2:$2,0)-1,COUNTA(raw!$A:$A)-1,1),回答数!$B27, OFFSET(raw!$A$1,2,MATCH($D$1,raw!$2:$2,0)-1,COUNTA(raw!$A:$A)-1,1),L$2) -> 0 | M27: =COUNTIFS( OFFSET(raw!$A$1,2,MATCH(回答数!$A27,raw!$2:$2,0)-1,COUNTA(raw!$A:$A)-1,1),回答数!$B27, OFFSET(raw!$A$1,2,MATCH($D$1,raw!$2:$2,0)-1,COUNTA(raw!$A:$A)-1,1),M$2) -> 0 | N27: =COUNTIFS( OFFSET(raw!$A$1,2,MATCH(回答数!$A27,raw!$2:$2,0)-1,COUNTA(raw!$A:$A)-1,1),回答数!$B27, OFFSET(raw!$A$1,2,MATCH($D$1,raw!$2:$2,0)-1,COUNTA(raw!$A:$A)-1,1),N$2) -> 0 | O27: =COUNTIFS( OFFSET(raw!$A$1,2,MATCH(回答数!$A27,raw!$2:$2,0)-1,COUNTA(raw!$A:$A)-1,1),回答数!$B27, OFFSET(raw!$A$1,2,MATCH($D$1,raw!$2:$2,0)-1,COUNTA(raw!$A:$A)-1,1),O$2) -> 0 | P27: 223
A28: 回答エリア | B28: JR九頭竜湖駅 エリア | D28: =COUNTIFS( OFFSET(raw!$A$1,2,MATCH(回答数!$A28,raw!$2:$2,0)-1,COUNTA(raw!$A:$A)-1,1),回答数!$B28, OFFSET(raw!$A$1,2,MATCH($D$1,raw!$2:$2,0)-1,COUNTA(raw!$A:$A)-1,1),D$2) -> 26 | E28: =COUNTIFS( OFFSET(raw!$A$1,2,MATCH(回答数!$A28,raw!$2:$2,0)-1,COUNTA(raw!$A:$A)-1,1),回答数!$B28, OFFSET(raw!$A$1,2,MATCH($D$1,raw!$2:$2,0)-1,COUNTA(raw!$A:$A)-1,1),E$2) -> 31 | F28: =COUNTIFS( OFFSET(raw!$A$1,2,MATCH(回答数!$A28,raw!$2:$2,0)-1,COUNTA(raw!$A:$A)-1,1),回答数!$B28, OFFSET(raw!$A$1,2,MATCH($D$1,raw!$2:$2,0)-1,COUNTA(raw!$A:$A)-1,1),F$2) -> 21 | G28: =COUNTIFS( OFFSET(raw!$A$1,2,MATCH(回答数!$A28,raw!$2:$2,0)-1,COUNTA(raw!$A:$A)-1,1),回答数!$B28, OFFSET(raw!$A$1,2,MATCH($D$1,raw!$2:$2,0)-1,COUNTA(raw!$A:$A)-1,1),G$2) -> 14 | H28: =COUNTIFS( OFFSET(raw!$A$1,2,MATCH(回答数!$A28,raw!$2:$2,0)-1,COUNTA(raw!$A:$A)-1,1),回答数!$B28, OFFSET(raw!$A$1,2,MATCH($D$1,raw!$2:$2,0)-1,COUNTA(raw!$A:$A)-1,1),H$2) -> 0 | I28: =COUNTIFS( OFFSET(raw!$A$1,2,MATCH(回答数!$A28,raw!$2:$2,0)-1,COUNTA(raw!$A:$A)-1,1),回答数!$B28, OFFSET(raw!$A$1,2,MATCH($D$1,raw!$2:$2,0)-1,COUNTA(raw!$A:$A)-1,1),I$2) -> 0 | J28: =COUNTIFS( OFFSET(raw!$A$1,2,MATCH(回答数!$A28,raw!$2:$2,0)-1,COUNTA(raw!$A:$A)-1,1),回答数!$B28, OFFSET(raw!$A$1,2,MATCH($D$1,raw!$2:$2,0)-1,COUNTA(raw!$A:$A)-1,1),J$2) -> 0 | K28: =COUNTIFS( OFFSET(raw!$A$1,2,MATCH(回答数!$A28,raw!$2:$2,0)-1,COUNTA(raw!$A:$A)-1,1),回答数!$B28, OFFSET(raw!$A$1,2,MATCH($D$1,raw!$2:$2,0)-1,COUNTA(raw!$A:$A)-1,1),K$2) -> 0 | L28: =COUNTIFS( OFFSET(raw!$A$1,2,MATCH(回答数!$A28,raw!$2:$2,0)-1,COUNTA(raw!$A:$A)-1,1),回答数!$B28, OFFSET(raw!$A$1,2,MATCH($D$1,raw!$2:$2,0)-1,COUNTA(raw!$A:$A)-1,1),L$2) -> 0 | M28: =COUNTIFS( OFFSET(raw!$A$1,2,MATCH(回答数!$A28,raw!$2:$2,0)-1,COUNTA(raw!$A:$A)-1,1),回答数!$B28, OFFSET(raw!$A$1,2,MATCH($D$1,raw!$2:$2,0)-1,COUNTA(raw!$A:$A)-1,1),M$2) -> 0 | N28: =COUNTIFS( OFFSET(raw!$A$1,2,MATCH(回答数!$A28,raw!$2:$2,0)-1,COUNTA(raw!$A:$A)-1,1),回答数!$B28, OFFSET(raw!$A$1,2,MATCH($D$1,raw!$2:$2,0)-1,COUNTA(raw!$A:$A)-1,1),N$2) -> 0 | O28: =COUNTIFS( OFFSET(raw!$A$1,2,MATCH(回答数!$A28,raw!$2:$2,0)-1,COUNTA(raw!$A:$A)-1,1),回答数!$B28, OFFSET(raw!$A$1,2,MATCH($D$1,raw!$2:$2,0)-1,COUNTA(raw!$A:$A)-1,1),O$2) -> 0 | P28: 92
A29: 回答エリア | B29: 六呂師高原 エリア | D29: =COUNTIFS( OFFSET(raw!$A$1,2,MATCH(回答数!$A29,raw!$2:$2,0)-1,COUNTA(raw!$A:$A)-1,1),回答数!$B29, OFFSET(raw!$A$1,2,MATCH($D$1,raw!$2:$2,0)-1,COUNTA(raw!$A:$A)-1,1),D$2) -> 3 | E29: =COUNTIFS( OFFSET(raw!$A$1,2,MATCH(回答数!$A29,raw!$2:$2,0)-1,COUNTA(raw!$A:$A)-1,1),回答数!$B29, OFFSET(raw!$A$1,2,MATCH($D$1,raw!$2:$2,0)-1,COUNTA(raw!$A:$A)-1,1),E$2) -> 16 | F29: =COUNTIFS( OFFSET(raw!$A$1,2,MATCH(回答数!$A29,raw!$2:$2,0)-1,COUNTA(raw!$A:$A)-1,1),回答数!$B29, OFFSET(raw!$A$1,2,MATCH($D$1,raw!$2:$2,0)-1,COUNTA(raw!$A:$A)-1,1),F$2) -> 1 | G29: =COUNTIFS( OFFSET(raw!$A$1,2,MATCH(回答数!$A29,raw!$2:$2,0)-1,COUNTA(raw!$A:$A)-1,1),回答数!$B29, OFFSET(raw!$A$1,2,MATCH($D$1,raw!$2:$2,0)-1,COUNTA(raw!$A:$A)-1,1),G$2) -> 6 | H29: =COUNTIFS( OFFSET(raw!$A$1,2,MATCH(回答数!$A29,raw!$2:$2,0)-1,COUNTA(raw!$A:$A)-1,1),回答数!$B29, OFFSET(raw!$A$1,2,MATCH($D$1,raw!$2:$2,0)-1,COUNTA(raw!$A:$A)-1,1),H$2) -> 0 | I29: =COUNTIFS( OFFSET(raw!$A$1,2,MATCH(回答数!$A29,raw!$2:$2,0)-1,COUNTA(raw!$A:$A)-1,1),回答数!$B29, OFFSET(raw!$A$1,2,MATCH($D$1,raw!$2:$2,0)-1,COUNTA(raw!$A:$A)-1,1),I$2) -> 0 | J29: =COUNTIFS( OFFSET(raw!$A$1,2,MATCH(回答数!$A29,raw!$2:$2,0)-1,COUNTA(raw!$A:$A)-1,1),回答数!$B29, OFFSET(raw!$A$1,2,MATCH($D$1,raw!$2:$2,0)-1,COUNTA(raw!$A:$A)-1,1),J$2) -> 0 | K29: =COUNTIFS( OFFSET(raw!$A$1,2,MATCH(回答数!$A29,raw!$2:$2,0)-1,COUNTA(raw!$A:$A)-1,1),回答数!$B29, OFFSET(raw!$A$1,2,MATCH($D$1,raw!$2:$2,0)-1,COUNTA(raw!$A:$A)-1,1),K$2) -> 0 | L29: =COUNTIFS( OFFSET(raw!$A$1,2,MATCH(回答数!$A29,raw!$2:$2,0)-1,COUNTA(raw!$A:$A)-1,1),回答数!$B29, OFFSET(raw!$A$1,2,MATCH($D$1,raw!$2:$2,0)-1,COUNTA(raw!$A:$A)-1,1),L$2) -> 0 | M29: =COUNTIFS( OFFSET(raw!$A$1,2,MATCH(回答数!$A29,raw!$2:$2,0)-1,COUNTA(raw!$A:$A)-1,1),回答数!$B29, OFFSET(raw!$A$1,2,MATCH($D$1,raw!$2:$2,0)-1,COUNTA(raw!$A:$A)-1,1),M$2) -> 0 | N29: =COUNTIFS( OFFSET(raw!$A$1,2,MATCH(回答数!$A29,raw!$2:$2,0)-1,COUNTA(raw!$A:$A)-1,1),回答数!$B29, OFFSET(raw!$A$1,2,MATCH($D$1,raw!$2:$2,0)-1,COUNTA(raw!$A:$A)-1,1),N$2) -> 0 | O29: =COUNTIFS( OFFSET(raw!$A$1,2,MATCH(回答数!$A29,raw!$2:$2,0)-1,COUNTA(raw!$A:$A)-1,1),回答数!$B29, OFFSET(raw!$A$1,2,MATCH($D$1,raw!$2:$2,0)-1,COUNTA(raw!$A:$A)-1,1),O$2) -> 0 | P29: 26
A30: 回答エリア | B30: スーベニアショップ ラプトル エリア | D30: =COUNTIFS( OFFSET(raw!$A$1,2,MATCH(回答数!$A30,raw!$2:$2,0)-1,COUNTA(raw!$A:$A)-1,1),回答数!$B30, OFFSET(raw!$A$1,2,MATCH($D$1,raw!$2:$2,0)-1,COUNTA(raw!$A:$A)-1,1),D$2) -> 0 | E30: =COUNTIFS( OFFSET(raw!$A$1,2,MATCH(回答数!$A30,raw!$2:$2,0)-1,COUNTA(raw!$A:$A)-1,1),回答数!$B30, OFFSET(raw!$A$1,2,MATCH($D$1,raw!$2:$2,0)-1,COUNTA(raw!$A:$A)-1,1),E$2) -> 0 | F30: =COUNTIFS( OFFSET(raw!$A$1,2,MATCH(回答数!$A30,raw!$2:$2,0)-1,COUNTA(raw!$A:$A)-1,1),回答数!$B30, OFFSET(raw!$A$1,2,MATCH($D$1,raw!$2:$2,0)-1,COUNTA(raw!$A:$A)-1,1),F$2) -> 0 | G30: =COUNTIFS( OFFSET(raw!$A$1,2,MATCH(回答数!$A30,raw!$2:$2,0)-1,COUNTA(raw!$A:$A)-1,1),回答数!$B30, OFFSET(raw!$A$1,2,MATCH($D$1,raw!$2:$2,0)-1,COUNTA(raw!$A:$A)-1,1),G$2) -> 0 | H30: =COUNTIFS( OFFSET(raw!$A$1,2,MATCH(回答数!$A30,raw!$2:$2,0)-1,COUNTA(raw!$A:$A)-1,1),回答数!$B30, OFFSET(raw!$A$1,2,MATCH($D$1,raw!$2:$2,0)-1,COUNTA(raw!$A:$A)-1,1),H$2) -> 0 | I30: =COUNTIFS( OFFSET(raw!$A$1,2,MATCH(回答数!$A30,raw!$2:$2,0)-1,COUNTA(raw!$A:$A)-1,1),回答数!$B30, OFFSET(raw!$A$1,2,MATCH($D$1,raw!$2:$2,0)-1,COUNTA(raw!$A:$A)-1,1),I$2) -> 0 | J30: =COUNTIFS( OFFSET(raw!$A$1,2,MATCH(回答数!$A30,raw!$2:$2,0)-1,COUNTA(raw!$A:$A)-1,1),回答数!$B30, OFFSET(raw!$A$1,2,MATCH($D$1,raw!$2:$2,0)-1,COUNTA(raw!$A:$A)-1,1),J$2) -> 0 | K30: =COUNTIFS( OFFSET(raw!$A$1,2,MATCH(回答数!$A30,raw!$2:$2,0)-1,COUNTA(raw!$A:$A)-1,1),回答数!$B30, OFFSET(raw!$A$1,2,MATCH($D$1,raw!$2:$2,0)-1,COUNTA(raw!$A:$A)-1,1),K$2) -> 0 | L30: =COUNTIFS( OFFSET(raw!$A$1,2,MATCH(回答数!$A30,raw!$2:$2,0)-1,COUNTA(raw!$A:$A)-1,1),回答数!$B30, OFFSET(raw!$A$1,2,MATCH($D$1,raw!$2:$2,0)-1,COUNTA(raw!$A:$A)-1,1),L$2) -> 0 | M30: =COUNTIFS( OFFSET(raw!$A$1,2,MATCH(回答数!$A30,raw!$2:$2,0)-1,COUNTA(raw!$A:$A)-1,1),回答数!$B30, OFFSET(raw!$A$1,2,MATCH($D$1,raw!$2:$2,0)-1,COUNTA(raw!$A:$A)-1,1),M$2) -> 0 | N30: =COUNTIFS( OFFSET(raw!$A$1,2,MATCH(回答数!$A30,raw!$2:$2,0)-1,COUNTA(raw!$A:$A)-1,1),回答数!$B30, OFFSET(raw!$A$1,2,MATCH($D$1,raw!$2:$2,0)-1,COUNTA(raw!$A:$A)-1,1),N$2) -> 0 | O30: =COUNTIFS( OFFSET(raw!$A$1,2,MATCH(回答数!$A30,raw!$2:$2,0)-1,COUNTA(raw!$A:$A)-1,1),回答数!$B30, OFFSET(raw!$A$1,2,MATCH($D$1,raw!$2:$2,0)-1,COUNTA(raw!$A:$A)-1,1),O$2) -> 0 | P30: 0
A31: 回答エリア | B31: 道の駅「恐竜渓谷かつやま」 エリア | D31: =COUNTIFS( OFFSET(raw!$A$1,2,MATCH(回答数!$A31,raw!$2:$2,0)-1,COUNTA(raw!$A:$A)-1,1),回答数!$B31, OFFSET(raw!$A$1,2,MATCH($D$1,raw!$2:$2,0)-1,COUNTA(raw!$A:$A)-1,1),D$2) -> 65 | E31: =COUNTIFS( OFFSET(raw!$A$1,2,MATCH(回答数!$A31,raw!$2:$2,0)-1,COUNTA(raw!$A:$A)-1,1),回答数!$B31, OFFSET(raw!$A$1,2,MATCH($D$1,raw!$2:$2,0)-1,COUNTA(raw!$A:$A)-1,1),E$2) -> 53 | F31: =COUNTIFS( OFFSET(raw!$A$1,2,MATCH(回答数!$A31,raw!$2:$2,0)-1,COUNTA(raw!$A:$A)-1,1),回答数!$B31, OFFSET(raw!$A$1,2,MATCH($D$1,raw!$2:$2,0)-1,COUNTA(raw!$A:$A)-1,1),F$2) -> 40 | G31: =COUNTIFS( OFFSET(raw!$A$1,2,MATCH(回答数!$A31,raw!$2:$2,0)-1,COUNTA(raw!$A:$A)-1,1),回答数!$B31, OFFSET(raw!$A$1,2,MATCH($D$1,raw!$2:$2,0)-1,COUNTA(raw!$A:$A)-1,1),G$2) -> 22 | H31: =COUNTIFS( OFFSET(raw!$A$1,2,MATCH(回答数!$A31,raw!$2:$2,0)-1,COUNTA(raw!$A:$A)-1,1),回答数!$B31, OFFSET(raw!$A$1,2,MATCH($D$1,raw!$2:$2,0)-1,COUNTA(raw!$A:$A)-1,1),H$2) -> 0 | I31: =COUNTIFS( OFFSET(raw!$A$1,2,MATCH(回答数!$A31,raw!$2:$2,0)-1,COUNTA(raw!$A:$A)-1,1),回答数!$B31, OFFSET(raw!$A$1,2,MATCH($D$1,raw!$2:$2,0)-1,COUNTA(raw!$A:$A)-1,1),I$2) -> 0 | J31: =COUNTIFS( OFFSET(raw!$A$1,2,MATCH(回答数!$A31,raw!$2:$2,0)-1,COUNTA(raw!$A:$A)-1,1),回答数!$B31, OFFSET(raw!$A$1,2,MATCH($D$1,raw!$2:$2,0)-1,COUNTA(raw!$A:$A)-1,1),J$2) -> 0 | K31: =COUNTIFS( OFFSET(raw!$A$1,2,MATCH(回答数!$A31,raw!$2:$2,0)-1,COUNTA(raw!$A:$A)-1,1),回答数!$B31, OFFSET(raw!$A$1,2,MATCH($D$1,raw!$2:$2,0)-1,COUNTA(raw!$A:$A)-1,1),K$2) -> 0 | L31: =COUNTIFS( OFFSET(raw!$A$1,2,MATCH(回答数!$A31,raw!$2:$2,0)-1,COUNTA(raw!$A:$A)-1,1),回答数!$B31, OFFSET(raw!$A$1,2,MATCH($D$1,raw!$2:$2,0)-1,COUNTA(raw!$A:$A)-1,1),L$2) -> 0 | M31: =COUNTIFS( OFFSET(raw!$A$1,2,MATCH(回答数!$A31,raw!$2:$2,0)-1,COUNTA(raw!$A:$A)-1,1),回答数!$B31, OFFSET(raw!$A$1,2,MATCH($D$1,raw!$2:$2,0)-1,COUNTA(raw!$A:$A)-1,1),M$2) -> 0 | N31: =COUNTIFS( OFFSET(raw!$A$1,2,MATCH(回答数!$A31,raw!$2:$2,0)-1,COUNTA(raw!$A:$A)-1,1),回答数!$B31, OFFSET(raw!$A$1,2,MATCH($D$1,raw!$2:$2,0)-1,COUNTA(raw!$A:$A)-1,1),N$2) -> 0 | O31: =COUNTIFS( OFFSET(raw!$A$1,2,MATCH(回答数!$A31,raw!$2:$2,0)-1,COUNTA(raw!$A:$A)-1,1),回答数!$B31, OFFSET(raw!$A$1,2,MATCH($D$1,raw!$2:$2,0)-1,COUNTA(raw!$A:$A)-1,1),O$2) -> 0 | P31: 180
A32: 回答エリア | B32: スキージャム勝山 エリア | D32: =COUNTIFS( OFFSET(raw!$A$1,2,MATCH(回答数!$A32,raw!$2:$2,0)-1,COUNTA(raw!$A:$A)-1,1),回答数!$B32, OFFSET(raw!$A$1,2,MATCH($D$1,raw!$2:$2,0)-1,COUNTA(raw!$A:$A)-1,1),D$2) -> 11 | E32: =COUNTIFS( OFFSET(raw!$A$1,2,MATCH(回答数!$A32,raw!$2:$2,0)-1,COUNTA(raw!$A:$A)-1,1),回答数!$B32, OFFSET(raw!$A$1,2,MATCH($D$1,raw!$2:$2,0)-1,COUNTA(raw!$A:$A)-1,1),E$2) -> 8 | F32: =COUNTIFS( OFFSET(raw!$A$1,2,MATCH(回答数!$A32,raw!$2:$2,0)-1,COUNTA(raw!$A:$A)-1,1),回答数!$B32, OFFSET(raw!$A$1,2,MATCH($D$1,raw!$2:$2,0)-1,COUNTA(raw!$A:$A)-1,1),F$2) -> 2 | G32: =COUNTIFS( OFFSET(raw!$A$1,2,MATCH(回答数!$A32,raw!$2:$2,0)-1,COUNTA(raw!$A:$A)-1,1),回答数!$B32, OFFSET(raw!$A$1,2,MATCH($D$1,raw!$2:$2,0)-1,COUNTA(raw!$A:$A)-1,1),G$2) -> 3 | H32: =COUNTIFS( OFFSET(raw!$A$1,2,MATCH(回答数!$A32,raw!$2:$2,0)-1,COUNTA(raw!$A:$A)-1,1),回答数!$B32, OFFSET(raw!$A$1,2,MATCH($D$1,raw!$2:$2,0)-1,COUNTA(raw!$A:$A)-1,1),H$2) -> 0 | I32: =COUNTIFS( OFFSET(raw!$A$1,2,MATCH(回答数!$A32,raw!$2:$2,0)-1,COUNTA(raw!$A:$A)-1,1),回答数!$B32, OFFSET(raw!$A$1,2,MATCH($D$1,raw!$2:$2,0)-1,COUNTA(raw!$A:$A)-1,1),I$2) -> 0 | J32: =COUNTIFS( OFFSET(raw!$A$1,2,MATCH(回答数!$A32,raw!$2:$2,0)-1,COUNTA(raw!$A:$A)-1,1),回答数!$B32, OFFSET(raw!$A$1,2,MATCH($D$1,raw!$2:$2,0)-1,COUNTA(raw!$A:$A)-1,1),J$2) -> 0 | K32: =COUNTIFS( OFFSET(raw!$A$1,2,MATCH(回答数!$A32,raw!$2:$2,0)-1,COUNTA(raw!$A:$A)-1,1),回答数!$B32, OFFSET(raw!$A$1,2,MATCH($D$1,raw!$2:$2,0)-1,COUNTA(raw!$A:$A)-1,1),K$2) -> 0 | L32: =COUNTIFS( OFFSET(raw!$A$1,2,MATCH(回答数!$A32,raw!$2:$2,0)-1,COUNTA(raw!$A:$A)-1,1),回答数!$B32, OFFSET(raw!$A$1,2,MATCH($D$1,raw!$2:$2,0)-1,COUNTA(raw!$A:$A)-1,1),L$2) -> 0 | M32: =COUNTIFS( OFFSET(raw!$A$1,2,MATCH(回答数!$A32,raw!$2:$2,0)-1,COUNTA(raw!$A:$A)-1,1),回答数!$B32, OFFSET(raw!$A$1,2,MATCH($D$1,raw!$2:$2,0)-1,COUNTA(raw!$A:$A)-1,1),M$2) -> 0 | N32: =COUNTIFS( OFFSET(raw!$A$1,2,MATCH(回答数!$A32,raw!$2:$2,0)-1,COUNTA(raw!$A:$A)-1,1),回答数!$B32, OFFSET(raw!$A$1,2,MATCH($D$1,raw!$2:$2,0)-1,COUNTA(raw!$A:$A)-1,1),N$2) -> 0 | O32: =COUNTIFS( OFFSET(raw!$A$1,2,MATCH(回答数!$A32,raw!$2:$2,0)-1,COUNTA(raw!$A:$A)-1,1),回答数!$B32, OFFSET(raw!$A$1,2,MATCH($D$1,raw!$2:$2,0)-1,COUNTA(raw!$A:$A)-1,1),O$2) -> 0 | P32: =D32+E32+F32+G32+H32+I32+J32+K32+L32+M32+N32+O32 -> 24
A33: 回答エリア | B33: 越前大仏 エリア | D33: =COUNTIFS( OFFSET(raw!$A$1,2,MATCH(回答数!$A33,raw!$2:$2,0)-1,COUNTA(raw!$A:$A)-1,1),回答数!$B33, OFFSET(raw!$A$1,2,MATCH($D$1,raw!$2:$2,0)-1,COUNTA(raw!$A:$A)-1,1),D$2) -> 5 | E33: =COUNTIFS( OFFSET(raw!$A$1,2,MATCH(回答数!$A33,raw!$2:$2,0)-1,COUNTA(raw!$A:$A)-1,1),回答数!$B33, OFFSET(raw!$A$1,2,MATCH($D$1,raw!$2:$2,0)-1,COUNTA(raw!$A:$A)-1,1),E$2) -> 13 | F33: =COUNTIFS( OFFSET(raw!$A$1,2,MATCH(回答数!$A33,raw!$2:$2,0)-1,COUNTA(raw!$A:$A)-1,1),回答数!$B33, OFFSET(raw!$A$1,2,MATCH($D$1,raw!$2:$2,0)-1,COUNTA(raw!$A:$A)-1,1),F$2) -> 9 | G33: =COUNTIFS( OFFSET(raw!$A$1,2,MATCH(回答数!$A33,raw!$2:$2,0)-1,COUNTA(raw!$A:$A)-1,1),回答数!$B33, OFFSET(raw!$A$1,2,MATCH($D$1,raw!$2:$2,0)-1,COUNTA(raw!$A:$A)-1,1),G$2) -> 11 | H33: =COUNTIFS( OFFSET(raw!$A$1,2,MATCH(回答数!$A33,raw!$2:$2,0)-1,COUNTA(raw!$A:$A)-1,1),回答数!$B33, OFFSET(raw!$A$1,2,MATCH($D$1,raw!$2:$2,0)-1,COUNTA(raw!$A:$A)-1,1),H$2) -> 0 | I33: =COUNTIFS( OFFSET(raw!$A$1,2,MATCH(回答数!$A33,raw!$2:$2,0)-1,COUNTA(raw!$A:$A)-1,1),回答数!$B33, OFFSET(raw!$A$1,2,MATCH($D$1,raw!$2:$2,0)-1,COUNTA(raw!$A:$A)-1,1),I$2) -> 0 | J33: =COUNTIFS( OFFSET(raw!$A$1,2,MATCH(回答数!$A33,raw!$2:$2,0)-1,COUNTA(raw!$A:$A)-1,1),回答数!$B33, OFFSET(raw!$A$1,2,MATCH($D$1,raw!$2:$2,0)-1,COUNTA(raw!$A:$A)-1,1),J$2) -> 0 | K33: =COUNTIFS( OFFSET(raw!$A$1,2,MATCH(回答数!$A33,raw!$2:$2,0)-1,COUNTA(raw!$A:$A)-1,1),回答数!$B33, OFFSET(raw!$A$1,2,MATCH($D$1,raw!$2:$2,0)-1,COUNTA(raw!$A:$A)-1,1),K$2) -> 0 | L33: =COUNTIFS( OFFSET(raw!$A$1,2,MATCH(回答数!$A33,raw!$2:$2,0)-1,COUNTA(raw!$A:$A)-1,1),回答数!$B33, OFFSET(raw!$A$1,2,MATCH($D$1,raw!$2:$2,0)-1,COUNTA(raw!$A:$A)-1,1),L$2) -> 0 | M33: =COUNTIFS( OFFSET(raw!$A$1,2,MATCH(回答数!$A33,raw!$2:$2,0)-1,COUNTA(raw!$A:$A)-1,1),回答数!$B33, OFFSET(raw!$A$1,2,MATCH($D$1,raw!$2:$2,0)-1,COUNTA(raw!$A:$A)-1,1),M$2) -> 0 | N33: =COUNTIFS( OFFSET(raw!$A$1,2,MATCH(回答数!$A33,raw!$2:$2,0)-1,COUNTA(raw!$A:$A)-1,1),回答数!$B33, OFFSET(raw!$A$1,2,MATCH($D$1,raw!$2:$2,0)-1,COUNTA(raw!$A:$A)-1,1),N$2) -> 0 | O33: =COUNTIFS( OFFSET(raw!$A$1,2,MATCH(回答数!$A33,raw!$2:$2,0)-1,COUNTA(raw!$A:$A)-1,1),回答数!$B33, OFFSET(raw!$A$1,2,MATCH($D$1,raw!$2:$2,0)-1,COUNTA(raw!$A:$A)-1,1),O$2) -> 0 | P33: 38
A34: 回答エリア | B34: 平泉寺白山神社 エリア | D34: =COUNTIFS( OFFSET(raw!$A$1,2,MATCH(回答数!$A34,raw!$2:$2,0)-1,COUNTA(raw!$A:$A)-1,1),回答数!$B34, OFFSET(raw!$A$1,2,MATCH($D$1,raw!$2:$2,0)-1,COUNTA(raw!$A:$A)-1,1),D$2) -> 20 | E34: =COUNTIFS( OFFSET(raw!$A$1,2,MATCH(回答数!$A34,raw!$2:$2,0)-1,COUNTA(raw!$A:$A)-1,1),回答数!$B34, OFFSET(raw!$A$1,2,MATCH($D$1,raw!$2:$2,0)-1,COUNTA(raw!$A:$A)-1,1),E$2) -> 27 | F34: =COUNTIFS( OFFSET(raw!$A$1,2,MATCH(回答数!$A34,raw!$2:$2,0)-1,COUNTA(raw!$A:$A)-1,1),回答数!$B34, OFFSET(raw!$A$1,2,MATCH($D$1,raw!$2:$2,0)-1,COUNTA(raw!$A:$A)-1,1),F$2) -> 17 | G34: =COUNTIFS( OFFSET(raw!$A$1,2,MATCH(回答数!$A34,raw!$2:$2,0)-1,COUNTA(raw!$A:$A)-1,1),回答数!$B34, OFFSET(raw!$A$1,2,MATCH($D$1,raw!$2:$2,0)-1,COUNTA(raw!$A:$A)-1,1),G$2) -> 21 | H34: =COUNTIFS( OFFSET(raw!$A$1,2,MATCH(回答数!$A34,raw!$2:$2,0)-1,COUNTA(raw!$A:$A)-1,1),回答数!$B34, OFFSET(raw!$A$1,2,MATCH($D$1,raw!$2:$2,0)-1,COUNTA(raw!$A:$A)-1,1),H$2) -> 0 | I34: =COUNTIFS( OFFSET(raw!$A$1,2,MATCH(回答数!$A34,raw!$2:$2,0)-1,COUNTA(raw!$A:$A)-1,1),回答数!$B34, OFFSET(raw!$A$1,2,MATCH($D$1,raw!$2:$2,0)-1,COUNTA(raw!$A:$A)-1,1),I$2) -> 0 | J34: =COUNTIFS( OFFSET(raw!$A$1,2,MATCH(回答数!$A34,raw!$2:$2,0)-1,COUNTA(raw!$A:$A)-1,1),回答数!$B34, OFFSET(raw!$A$1,2,MATCH($D$1,raw!$2:$2,0)-1,COUNTA(raw!$A:$A)-1,1),J$2) -> 0 | K34: =COUNTIFS( OFFSET(raw!$A$1,2,MATCH(回答数!$A34,raw!$2:$2,0)-1,COUNTA(raw!$A:$A)-1,1),回答数!$B34, OFFSET(raw!$A$1,2,MATCH($D$1,raw!$2:$2,0)-1,COUNTA(raw!$A:$A)-1,1),K$2) -> 0 | L34: =COUNTIFS( OFFSET(raw!$A$1,2,MATCH(回答数!$A34,raw!$2:$2,0)-1,COUNTA(raw!$A:$A)-1,1),回答数!$B34, OFFSET(raw!$A$1,2,MATCH($D$1,raw!$2:$2,0)-1,COUNTA(raw!$A:$A)-1,1),L$2) -> 0 | M34: =COUNTIFS( OFFSET(raw!$A$1,2,MATCH(回答数!$A34,raw!$2:$2,0)-1,COUNTA(raw!$A:$A)-1,1),回答数!$B34, OFFSET(raw!$A$1,2,MATCH($D$1,raw!$2:$2,0)-1,COUNTA(raw!$A:$A)-1,1),M$2) -> 0 | N34: =COUNTIFS( OFFSET(raw!$A$1,2,MATCH(回答数!$A34,raw!$2:$2,0)-1,COUNTA(raw!$A:$A)-1,1),回答数!$B34, OFFSET(raw!$A$1,2,MATCH($D$1,raw!$2:$2,0)-1,COUNTA(raw!$A:$A)-1,1),N$2) -> 0 | O34: =COUNTIFS( OFFSET(raw!$A$1,2,MATCH(回答数!$A34,raw!$2:$2,0)-1,COUNTA(raw!$A:$A)-1,1),回答数!$B34, OFFSET(raw!$A$1,2,MATCH($D$1,raw!$2:$2,0)-1,COUNTA(raw!$A:$A)-1,1),O$2) -> 0 | P34: 85
A35: 回答エリア | B35: はたや記念館 ゆめおーれ勝山 エリア | D35: =COUNTIFS( OFFSET(raw!$A$1,2,MATCH(回答数!$A35,raw!$2:$2,0)-1,COUNTA(raw!$A:$A)-1,1),回答数!$B35, OFFSET(raw!$A$1,2,MATCH($D$1,raw!$2:$2,0)-1,COUNTA(raw!$A:$A)-1,1),D$2) -> 14 | E35: =COUNTIFS( OFFSET(raw!$A$1,2,MATCH(回答数!$A35,raw!$2:$2,0)-1,COUNTA(raw!$A:$A)-1,1),回答数!$B35, OFFSET(raw!$A$1,2,MATCH($D$1,raw!$2:$2,0)-1,COUNTA(raw!$A:$A)-1,1),E$2) -> 23 | F35: =COUNTIFS( OFFSET(raw!$A$1,2,MATCH(回答数!$A35,raw!$2:$2,0)-1,COUNTA(raw!$A:$A)-1,1),回答数!$B35, OFFSET(raw!$A$1,2,MATCH($D$1,raw!$2:$2,0)-1,COUNTA(raw!$A:$A)-1,1),F$2) -> 21 | G35: =COUNTIFS( OFFSET(raw!$A$1,2,MATCH(回答数!$A35,raw!$2:$2,0)-1,COUNTA(raw!$A:$A)-1,1),回答数!$B35, OFFSET(raw!$A$1,2,MATCH($D$1,raw!$2:$2,0)-1,COUNTA(raw!$A:$A)-1,1),G$2) -> 11 | H35: =COUNTIFS( OFFSET(raw!$A$1,2,MATCH(回答数!$A35,raw!$2:$2,0)-1,COUNTA(raw!$A:$A)-1,1),回答数!$B35, OFFSET(raw!$A$1,2,MATCH($D$1,raw!$2:$2,0)-1,COUNTA(raw!$A:$A)-1,1),H$2) -> 0 | I35: =COUNTIFS( OFFSET(raw!$A$1,2,MATCH(回答数!$A35,raw!$2:$2,0)-1,COUNTA(raw!$A:$A)-1,1),回答数!$B35, OFFSET(raw!$A$1,2,MATCH($D$1,raw!$2:$2,0)-1,COUNTA(raw!$A:$A)-1,1),I$2) -> 0 | J35: =COUNTIFS( OFFSET(raw!$A$1,2,MATCH(回答数!$A35,raw!$2:$2,0)-1,COUNTA(raw!$A:$A)-1,1),回答数!$B35, OFFSET(raw!$A$1,2,MATCH($D$1,raw!$2:$2,0)-1,COUNTA(raw!$A:$A)-1,1),J$2) -> 0 | K35: =COUNTIFS( OFFSET(raw!$A$1,2,MATCH(回答数!$A35,raw!$2:$2,0)-1,COUNTA(raw!$A:$A)-1,1),回答数!$B35, OFFSET(raw!$A$1,2,MATCH($D$1,raw!$2:$2,0)-1,COUNTA(raw!$A:$A)-1,1),K$2) -> 0 | L35: =COUNTIFS( OFFSET(raw!$A$1,2,MATCH(回答数!$A35,raw!$2:$2,0)-1,COUNTA(raw!$A:$A)-1,1),回答数!$B35, OFFSET(raw!$A$1,2,MATCH($D$1,raw!$2:$2,0)-1,COUNTA(raw!$A:$A)-1,1),L$2) -> 0 | M35: =COUNTIFS( OFFSET(raw!$A$1,2,MATCH(回答数!$A35,raw!$2:$2,0)-1,COUNTA(raw!$A:$A)-1,1),回答数!$B35, OFFSET(raw!$A$1,2,MATCH($D$1,raw!$2:$2,0)-1,COUNTA(raw!$A:$A)-1,1),M$2) -> 0 | N35: =COUNTIFS( OFFSET(raw!$A$1,2,MATCH(回答数!$A35,raw!$2:$2,0)-1,COUNTA(raw!$A:$A)-1,1),回答数!$B35, OFFSET(raw!$A$1,2,MATCH($D$1,raw!$2:$2,0)-1,COUNTA(raw!$A:$A)-1,1),N$2) -> 0 | O35: =COUNTIFS( OFFSET(raw!$A$1,2,MATCH(回答数!$A35,raw!$2:$2,0)-1,COUNTA(raw!$A:$A)-1,1),回答数!$B35, OFFSET(raw!$A$1,2,MATCH($D$1,raw!$2:$2,0)-1,COUNTA(raw!$A:$A)-1,1),O$2) -> 0 | P35: 69
A36: 回答エリア | B36: えちぜん鉄道 永平寺口駅 エリア | D36: =COUNTIFS( OFFSET(raw!$A$1,2,MATCH(回答数!$A36,raw!$2:$2,0)-1,COUNTA(raw!$A:$A)-1,1),回答数!$B36, OFFSET(raw!$A$1,2,MATCH($D$1,raw!$2:$2,0)-1,COUNTA(raw!$A:$A)-1,1),D$2) -> 20 | E36: =COUNTIFS( OFFSET(raw!$A$1,2,MATCH(回答数!$A36,raw!$2:$2,0)-1,COUNTA(raw!$A:$A)-1,1),回答数!$B36, OFFSET(raw!$A$1,2,MATCH($D$1,raw!$2:$2,0)-1,COUNTA(raw!$A:$A)-1,1),E$2) -> 8 | F36: =COUNTIFS( OFFSET(raw!$A$1,2,MATCH(回答数!$A36,raw!$2:$2,0)-1,COUNTA(raw!$A:$A)-1,1),回答数!$B36, OFFSET(raw!$A$1,2,MATCH($D$1,raw!$2:$2,0)-1,COUNTA(raw!$A:$A)-1,1),F$2) -> 18 | G36: =COUNTIFS( OFFSET(raw!$A$1,2,MATCH(回答数!$A36,raw!$2:$2,0)-1,COUNTA(raw!$A:$A)-1,1),回答数!$B36, OFFSET(raw!$A$1,2,MATCH($D$1,raw!$2:$2,0)-1,COUNTA(raw!$A:$A)-1,1),G$2) -> 12 | H36: =COUNTIFS( OFFSET(raw!$A$1,2,MATCH(回答数!$A36,raw!$2:$2,0)-1,COUNTA(raw!$A:$A)-1,1),回答数!$B36, OFFSET(raw!$A$1,2,MATCH($D$1,raw!$2:$2,0)-1,COUNTA(raw!$A:$A)-1,1),H$2) -> 0 | I36: =COUNTIFS( OFFSET(raw!$A$1,2,MATCH(回答数!$A36,raw!$2:$2,0)-1,COUNTA(raw!$A:$A)-1,1),回答数!$B36, OFFSET(raw!$A$1,2,MATCH($D$1,raw!$2:$2,0)-1,COUNTA(raw!$A:$A)-1,1),I$2) -> 0 | J36: =COUNTIFS( OFFSET(raw!$A$1,2,MATCH(回答数!$A36,raw!$2:$2,0)-1,COUNTA(raw!$A:$A)-1,1),回答数!$B36, OFFSET(raw!$A$1,2,MATCH($D$1,raw!$2:$2,0)-1,COUNTA(raw!$A:$A)-1,1),J$2) -> 0 | K36: =COUNTIFS( OFFSET(raw!$A$1,2,MATCH(回答数!$A36,raw!$2:$2,0)-1,COUNTA(raw!$A:$A)-1,1),回答数!$B36, OFFSET(raw!$A$1,2,MATCH($D$1,raw!$2:$2,0)-1,COUNTA(raw!$A:$A)-1,1),K$2) -> 0 | L36: =COUNTIFS( OFFSET(raw!$A$1,2,MATCH(回答数!$A36,raw!$2:$2,0)-1,COUNTA(raw!$A:$A)-1,1),回答数!$B36, OFFSET(raw!$A$1,2,MATCH($D$1,raw!$2:$2,0)-1,COUNTA(raw!$A:$A)-1,1),L$2) -> 0 | M36: =COUNTIFS( OFFSET(raw!$A$1,2,MATCH(回答数!$A36,raw!$2:$2,0)-1,COUNTA(raw!$A:$A)-1,1),回答数!$B36, OFFSET(raw!$A$1,2,MATCH($D$1,raw!$2:$2,0)-1,COUNTA(raw!$A:$A)-1,1),M$2) -> 0 | N36: =COUNTIFS( OFFSET(raw!$A$1,2,MATCH(回答数!$A36,raw!$2:$2,0)-1,COUNTA(raw!$A:$A)-1,1),回答数!$B36, OFFSET(raw!$A$1,2,MATCH($D$1,raw!$2:$2,0)-1,COUNTA(raw!$A:$A)-1,1),N$2) -> 0 | O36: =COUNTIFS( OFFSET(raw!$A$1,2,MATCH(回答数!$A36,raw!$2:$2,0)-1,COUNTA(raw!$A:$A)-1,1),回答数!$B36, OFFSET(raw!$A$1,2,MATCH($D$1,raw!$2:$2,0)-1,COUNTA(raw!$A:$A)-1,1),O$2) -> 0 | P36: 58
A37: 回答エリア | B37: 九頭竜川 エリア（鮎・釣り） | D37: =COUNTIFS( OFFSET(raw!$A$1,2,MATCH(回答数!$A37,raw!$2:$2,0)-1,COUNTA(raw!$A:$A)-1,1),回答数!$B37, OFFSET(raw!$A$1,2,MATCH($D$1,raw!$2:$2,0)-1,COUNTA(raw!$A:$A)-1,1),D$2) -> 0 | E37: =COUNTIFS( OFFSET(raw!$A$1,2,MATCH(回答数!$A37,raw!$2:$2,0)-1,COUNTA(raw!$A:$A)-1,1),回答数!$B37, OFFSET(raw!$A$1,2,MATCH($D$1,raw!$2:$2,0)-1,COUNTA(raw!$A:$A)-1,1),E$2) -> 0 | F37: =COUNTIFS( OFFSET(raw!$A$1,2,MATCH(回答数!$A37,raw!$2:$2,0)-1,COUNTA(raw!$A:$A)-1,1),回答数!$B37, OFFSET(raw!$A$1,2,MATCH($D$1,raw!$2:$2,0)-1,COUNTA(raw!$A:$A)-1,1),F$2) -> 0 | G37: =COUNTIFS( OFFSET(raw!$A$1,2,MATCH(回答数!$A37,raw!$2:$2,0)-1,COUNTA(raw!$A:$A)-1,1),回答数!$B37, OFFSET(raw!$A$1,2,MATCH($D$1,raw!$2:$2,0)-1,COUNTA(raw!$A:$A)-1,1),G$2) -> 0 | H37: =COUNTIFS( OFFSET(raw!$A$1,2,MATCH(回答数!$A37,raw!$2:$2,0)-1,COUNTA(raw!$A:$A)-1,1),回答数!$B37, OFFSET(raw!$A$1,2,MATCH($D$1,raw!$2:$2,0)-1,COUNTA(raw!$A:$A)-1,1),H$2) -> 0 | I37: =COUNTIFS( OFFSET(raw!$A$1,2,MATCH(回答数!$A37,raw!$2:$2,0)-1,COUNTA(raw!$A:$A)-1,1),回答数!$B37, OFFSET(raw!$A$1,2,MATCH($D$1,raw!$2:$2,0)-1,COUNTA(raw!$A:$A)-1,1),I$2) -> 0 | J37: =COUNTIFS( OFFSET(raw!$A$1,2,MATCH(回答数!$A37,raw!$2:$2,0)-1,COUNTA(raw!$A:$A)-1,1),回答数!$B37, OFFSET(raw!$A$1,2,MATCH($D$1,raw!$2:$2,0)-1,COUNTA(raw!$A:$A)-1,1),J$2) -> 0 | K37: =COUNTIFS( OFFSET(raw!$A$1,2,MATCH(回答数!$A37,raw!$2:$2,0)-1,COUNTA(raw!$A:$A)-1,1),回答数!$B37, OFFSET(raw!$A$1,2,MATCH($D$1,raw!$2:$2,0)-1,COUNTA(raw!$A:$A)-1,1),K$2) -> 0 | L37: =COUNTIFS( OFFSET(raw!$A$1,2,MATCH(回答数!$A37,raw!$2:$2,0)-1,COUNTA(raw!$A:$A)-1,1),回答数!$B37, OFFSET(raw!$A$1,2,MATCH($D$1,raw!$2:$2,0)-1,COUNTA(raw!$A:$A)-1,1),L$2) -> 0 | M37: =COUNTIFS( OFFSET(raw!$A$1,2,MATCH(回答数!$A37,raw!$2:$2,0)-1,COUNTA(raw!$A:$A)-1,1),回答数!$B37, OFFSET(raw!$A$1,2,MATCH($D$1,raw!$2:$2,0)-1,COUNTA(raw!$A:$A)-1,1),M$2) -> 0 | N37: =COUNTIFS( OFFSET(raw!$A$1,2,MATCH(回答数!$A37,raw!$2:$2,0)-1,COUNTA(raw!$A:$A)-1,1),回答数!$B37, OFFSET(raw!$A$1,2,MATCH($D$1,raw!$2:$2,0)-1,COUNTA(raw!$A:$A)-1,1),N$2) -> 0 | O37: =COUNTIFS( OFFSET(raw!$A$1,2,MATCH(回答数!$A37,raw!$2:$2,0)-1,COUNTA(raw!$A:$A)-1,1),回答数!$B37, OFFSET(raw!$A$1,2,MATCH($D$1,raw!$2:$2,0)-1,COUNTA(raw!$A:$A)-1,1),O$2) -> 0 | P37: 0
A38: 回答エリア | B38: えちぜん鉄道 松岡駅 エリア | D38: =COUNTIFS( OFFSET(raw!$A$1,2,MATCH(回答数!$A38,raw!$2:$2,0)-1,COUNTA(raw!$A:$A)-1,1),回答数!$B38, OFFSET(raw!$A$1,2,MATCH($D$1,raw!$2:$2,0)-1,COUNTA(raw!$A:$A)-1,1),D$2) -> 22 | E38: =COUNTIFS( OFFSET(raw!$A$1,2,MATCH(回答数!$A38,raw!$2:$2,0)-1,COUNTA(raw!$A:$A)-1,1),回答数!$B38, OFFSET(raw!$A$1,2,MATCH($D$1,raw!$2:$2,0)-1,COUNTA(raw!$A:$A)-1,1),E$2) -> 20 | F38: =COUNTIFS( OFFSET(raw!$A$1,2,MATCH(回答数!$A38,raw!$2:$2,0)-1,COUNTA(raw!$A:$A)-1,1),回答数!$B38, OFFSET(raw!$A$1,2,MATCH($D$1,raw!$2:$2,0)-1,COUNTA(raw!$A:$A)-1,1),F$2) -> 25 | G38: =COUNTIFS( OFFSET(raw!$A$1,2,MATCH(回答数!$A38,raw!$2:$2,0)-1,COUNTA(raw!$A:$A)-1,1),回答数!$B38, OFFSET(raw!$A$1,2,MATCH($D$1,raw!$2:$2,0)-1,COUNTA(raw!$A:$A)-1,1),G$2) -> 14 | H38: =COUNTIFS( OFFSET(raw!$A$1,2,MATCH(回答数!$A38,raw!$2:$2,0)-1,COUNTA(raw!$A:$A)-1,1),回答数!$B38, OFFSET(raw!$A$1,2,MATCH($D$1,raw!$2:$2,0)-1,COUNTA(raw!$A:$A)-1,1),H$2) -> 0 | I38: =COUNTIFS( OFFSET(raw!$A$1,2,MATCH(回答数!$A38,raw!$2:$2,0)-1,COUNTA(raw!$A:$A)-1,1),回答数!$B38, OFFSET(raw!$A$1,2,MATCH($D$1,raw!$2:$2,0)-1,COUNTA(raw!$A:$A)-1,1),I$2) -> 0 | J38: =COUNTIFS( OFFSET(raw!$A$1,2,MATCH(回答数!$A38,raw!$2:$2,0)-1,COUNTA(raw!$A:$A)-1,1),回答数!$B38, OFFSET(raw!$A$1,2,MATCH($D$1,raw!$2:$2,0)-1,COUNTA(raw!$A:$A)-1,1),J$2) -> 0 | K38: =COUNTIFS( OFFSET(raw!$A$1,2,MATCH(回答数!$A38,raw!$2:$2,0)-1,COUNTA(raw!$A:$A)-1,1),回答数!$B38, OFFSET(raw!$A$1,2,MATCH($D$1,raw!$2:$2,0)-1,COUNTA(raw!$A:$A)-1,1),K$2) -> 0 | L38: =COUNTIFS( OFFSET(raw!$A$1,2,MATCH(回答数!$A38,raw!$2:$2,0)-1,COUNTA(raw!$A:$A)-1,1),回答数!$B38, OFFSET(raw!$A$1,2,MATCH($D$1,raw!$2:$2,0)-1,COUNTA(raw!$A:$A)-1,1),L$2) -> 0 | M38: =COUNTIFS( OFFSET(raw!$A$1,2,MATCH(回答数!$A38,raw!$2:$2,0)-1,COUNTA(raw!$A:$A)-1,1),回答数!$B38, OFFSET(raw!$A$1,2,MATCH($D$1,raw!$2:$2,0)-1,COUNTA(raw!$A:$A)-1,1),M$2) -> 0 | N38: =COUNTIFS( OFFSET(raw!$A$1,2,MATCH(回答数!$A38,raw!$2:$2,0)-1,COUNTA(raw!$A:$A)-1,1),回答数!$B38, OFFSET(raw!$A$1,2,MATCH($D$1,raw!$2:$2,0)-1,COUNTA(raw!$A:$A)-1,1),N$2) -> 0 | O38: =COUNTIFS( OFFSET(raw!$A$1,2,MATCH(回答数!$A38,raw!$2:$2,0)-1,COUNTA(raw!$A:$A)-1,1),回答数!$B38, OFFSET(raw!$A$1,2,MATCH($D$1,raw!$2:$2,0)-1,COUNTA(raw!$A:$A)-1,1),O$2) -> 0 | P38: 81
A39: 回答エリア | B39: 大本山 永平寺 エリア | D39: =COUNTIFS( OFFSET(raw!$A$1,2,MATCH(回答数!$A39,raw!$2:$2,0)-1,COUNTA(raw!$A:$A)-1,1),回答数!$B39, OFFSET(raw!$A$1,2,MATCH($D$1,raw!$2:$2,0)-1,COUNTA(raw!$A:$A)-1,1),D$2) -> 55 | E39: =COUNTIFS( OFFSET(raw!$A$1,2,MATCH(回答数!$A39,raw!$2:$2,0)-1,COUNTA(raw!$A:$A)-1,1),回答数!$B39, OFFSET(raw!$A$1,2,MATCH($D$1,raw!$2:$2,0)-1,COUNTA(raw!$A:$A)-1,1),E$2) -> 211 | F39: =COUNTIFS( OFFSET(raw!$A$1,2,MATCH(回答数!$A39,raw!$2:$2,0)-1,COUNTA(raw!$A:$A)-1,1),回答数!$B39, OFFSET(raw!$A$1,2,MATCH($D$1,raw!$2:$2,0)-1,COUNTA(raw!$A:$A)-1,1),F$2) -> 171 | G39: =COUNTIFS( OFFSET(raw!$A$1,2,MATCH(回答数!$A39,raw!$2:$2,0)-1,COUNTA(raw!$A:$A)-1,1),回答数!$B39, OFFSET(raw!$A$1,2,MATCH($D$1,raw!$2:$2,0)-1,COUNTA(raw!$A:$A)-1,1),G$2) -> 139 | H39: =COUNTIFS( OFFSET(raw!$A$1,2,MATCH(回答数!$A39,raw!$2:$2,0)-1,COUNTA(raw!$A:$A)-1,1),回答数!$B39, OFFSET(raw!$A$1,2,MATCH($D$1,raw!$2:$2,0)-1,COUNTA(raw!$A:$A)-1,1),H$2) -> 0 | I39: =COUNTIFS( OFFSET(raw!$A$1,2,MATCH(回答数!$A39,raw!$2:$2,0)-1,COUNTA(raw!$A:$A)-1,1),回答数!$B39, OFFSET(raw!$A$1,2,MATCH($D$1,raw!$2:$2,0)-1,COUNTA(raw!$A:$A)-1,1),I$2) -> 0 | J39: =COUNTIFS( OFFSET(raw!$A$1,2,MATCH(回答数!$A39,raw!$2:$2,0)-1,COUNTA(raw!$A:$A)-1,1),回答数!$B39, OFFSET(raw!$A$1,2,MATCH($D$1,raw!$2:$2,0)-1,COUNTA(raw!$A:$A)-1,1),J$2) -> 0 | K39: =COUNTIFS( OFFSET(raw!$A$1,2,MATCH(回答数!$A39,raw!$2:$2,0)-1,COUNTA(raw!$A:$A)-1,1),回答数!$B39, OFFSET(raw!$A$1,2,MATCH($D$1,raw!$2:$2,0)-1,COUNTA(raw!$A:$A)-1,1),K$2) -> 0 | L39: =COUNTIFS( OFFSET(raw!$A$1,2,MATCH(回答数!$A39,raw!$2:$2,0)-1,COUNTA(raw!$A:$A)-1,1),回答数!$B39, OFFSET(raw!$A$1,2,MATCH($D$1,raw!$2:$2,0)-1,COUNTA(raw!$A:$A)-1,1),L$2) -> 0 | M39: =COUNTIFS( OFFSET(raw!$A$1,2,MATCH(回答数!$A39,raw!$2:$2,0)-1,COUNTA(raw!$A:$A)-1,1),回答数!$B39, OFFSET(raw!$A$1,2,MATCH($D$1,raw!$2:$2,0)-1,COUNTA(raw!$A:$A)-1,1),M$2) -> 0 | N39: =COUNTIFS( OFFSET(raw!$A$1,2,MATCH(回答数!$A39,raw!$2:$2,0)-1,COUNTA(raw!$A:$A)-1,1),回答数!$B39, OFFSET(raw!$A$1,2,MATCH($D$1,raw!$2:$2,0)-1,COUNTA(raw!$A:$A)-1,1),N$2) -> 0 | O39: =COUNTIFS( OFFSET(raw!$A$1,2,MATCH(回答数!$A39,raw!$2:$2,0)-1,COUNTA(raw!$A:$A)-1,1),回答数!$B39, OFFSET(raw!$A$1,2,MATCH($D$1,raw!$2:$2,0)-1,COUNTA(raw!$A:$A)-1,1),O$2) -> 0 | P39: 576
A40: 回答エリア | B40: 道の駅「禅の里」 エリア | D40: =COUNTIFS( OFFSET(raw!$A$1,2,MATCH(回答数!$A40,raw!$2:$2,0)-1,COUNTA(raw!$A:$A)-1,1),回答数!$B40, OFFSET(raw!$A$1,2,MATCH($D$1,raw!$2:$2,0)-1,COUNTA(raw!$A:$A)-1,1),D$2) -> 16 | E40: =COUNTIFS( OFFSET(raw!$A$1,2,MATCH(回答数!$A40,raw!$2:$2,0)-1,COUNTA(raw!$A:$A)-1,1),回答数!$B40, OFFSET(raw!$A$1,2,MATCH($D$1,raw!$2:$2,0)-1,COUNTA(raw!$A:$A)-1,1),E$2) -> 14 | F40: =COUNTIFS( OFFSET(raw!$A$1,2,MATCH(回答数!$A40,raw!$2:$2,0)-1,COUNTA(raw!$A:$A)-1,1),回答数!$B40, OFFSET(raw!$A$1,2,MATCH($D$1,raw!$2:$2,0)-1,COUNTA(raw!$A:$A)-1,1),F$2) -> 13 | G40: =COUNTIFS( OFFSET(raw!$A$1,2,MATCH(回答数!$A40,raw!$2:$2,0)-1,COUNTA(raw!$A:$A)-1,1),回答数!$B40, OFFSET(raw!$A$1,2,MATCH($D$1,raw!$2:$2,0)-1,COUNTA(raw!$A:$A)-1,1),G$2) -> 7 | H40: =COUNTIFS( OFFSET(raw!$A$1,2,MATCH(回答数!$A40,raw!$2:$2,0)-1,COUNTA(raw!$A:$A)-1,1),回答数!$B40, OFFSET(raw!$A$1,2,MATCH($D$1,raw!$2:$2,0)-1,COUNTA(raw!$A:$A)-1,1),H$2) -> 0 | I40: =COUNTIFS( OFFSET(raw!$A$1,2,MATCH(回答数!$A40,raw!$2:$2,0)-1,COUNTA(raw!$A:$A)-1,1),回答数!$B40, OFFSET(raw!$A$1,2,MATCH($D$1,raw!$2:$2,0)-1,COUNTA(raw!$A:$A)-1,1),I$2) -> 0 | J40: =COUNTIFS( OFFSET(raw!$A$1,2,MATCH(回答数!$A40,raw!$2:$2,0)-1,COUNTA(raw!$A:$A)-1,1),回答数!$B40, OFFSET(raw!$A$1,2,MATCH($D$1,raw!$2:$2,0)-1,COUNTA(raw!$A:$A)-1,1),J$2) -> 0 | K40: =COUNTIFS( OFFSET(raw!$A$1,2,MATCH(回答数!$A40,raw!$2:$2,0)-1,COUNTA(raw!$A:$A)-1,1),回答数!$B40, OFFSET(raw!$A$1,2,MATCH($D$1,raw!$2:$2,0)-1,COUNTA(raw!$A:$A)-1,1),K$2) -> 0 | L40: =COUNTIFS( OFFSET(raw!$A$1,2,MATCH(回答数!$A40,raw!$2:$2,0)-1,COUNTA(raw!$A:$A)-1,1),回答数!$B40, OFFSET(raw!$A$1,2,MATCH($D$1,raw!$2:$2,0)-1,COUNTA(raw!$A:$A)-1,1),L$2) -> 0 | M40: =COUNTIFS( OFFSET(raw!$A$1,2,MATCH(回答数!$A40,raw!$2:$2,0)-1,COUNTA(raw!$A:$A)-1,1),回答数!$B40, OFFSET(raw!$A$1,2,MATCH($D$1,raw!$2:$2,0)-1,COUNTA(raw!$A:$A)-1,1),M$2) -> 0 | N40: =COUNTIFS( OFFSET(raw!$A$1,2,MATCH(回答数!$A40,raw!$2:$2,0)-1,COUNTA(raw!$A:$A)-1,1),回答数!$B40, OFFSET(raw!$A$1,2,MATCH($D$1,raw!$2:$2,0)-1,COUNTA(raw!$A:$A)-1,1),N$2) -> 0 | O40: =COUNTIFS( OFFSET(raw!$A$1,2,MATCH(回答数!$A40,raw!$2:$2,0)-1,COUNTA(raw!$A:$A)-1,1),回答数!$B40, OFFSET(raw!$A$1,2,MATCH($D$1,raw!$2:$2,0)-1,COUNTA(raw!$A:$A)-1,1),O$2) -> 0 | P40: 50
A41: 回答エリア | B41: 越前和紙の里 エリア | D41: =COUNTIFS( OFFSET(raw!$A$1,2,MATCH(回答数!$A41,raw!$2:$2,0)-1,COUNTA(raw!$A:$A)-1,1),回答数!$B41, OFFSET(raw!$A$1,2,MATCH($D$1,raw!$2:$2,0)-1,COUNTA(raw!$A:$A)-1,1),D$2) -> 13 | E41: =COUNTIFS( OFFSET(raw!$A$1,2,MATCH(回答数!$A41,raw!$2:$2,0)-1,COUNTA(raw!$A:$A)-1,1),回答数!$B41, OFFSET(raw!$A$1,2,MATCH($D$1,raw!$2:$2,0)-1,COUNTA(raw!$A:$A)-1,1),E$2) -> 8 | F41: =COUNTIFS( OFFSET(raw!$A$1,2,MATCH(回答数!$A41,raw!$2:$2,0)-1,COUNTA(raw!$A:$A)-1,1),回答数!$B41, OFFSET(raw!$A$1,2,MATCH($D$1,raw!$2:$2,0)-1,COUNTA(raw!$A:$A)-1,1),F$2) -> 8 | G41: =COUNTIFS( OFFSET(raw!$A$1,2,MATCH(回答数!$A41,raw!$2:$2,0)-1,COUNTA(raw!$A:$A)-1,1),回答数!$B41, OFFSET(raw!$A$1,2,MATCH($D$1,raw!$2:$2,0)-1,COUNTA(raw!$A:$A)-1,1),G$2) -> 5 | H41: =COUNTIFS( OFFSET(raw!$A$1,2,MATCH(回答数!$A41,raw!$2:$2,0)-1,COUNTA(raw!$A:$A)-1,1),回答数!$B41, OFFSET(raw!$A$1,2,MATCH($D$1,raw!$2:$2,0)-1,COUNTA(raw!$A:$A)-1,1),H$2) -> 0 | I41: =COUNTIFS( OFFSET(raw!$A$1,2,MATCH(回答数!$A41,raw!$2:$2,0)-1,COUNTA(raw!$A:$A)-1,1),回答数!$B41, OFFSET(raw!$A$1,2,MATCH($D$1,raw!$2:$2,0)-1,COUNTA(raw!$A:$A)-1,1),I$2) -> 0 | J41: =COUNTIFS( OFFSET(raw!$A$1,2,MATCH(回答数!$A41,raw!$2:$2,0)-1,COUNTA(raw!$A:$A)-1,1),回答数!$B41, OFFSET(raw!$A$1,2,MATCH($D$1,raw!$2:$2,0)-1,COUNTA(raw!$A:$A)-1,1),J$2) -> 0 | K41: =COUNTIFS( OFFSET(raw!$A$1,2,MATCH(回答数!$A41,raw!$2:$2,0)-1,COUNTA(raw!$A:$A)-1,1),回答数!$B41, OFFSET(raw!$A$1,2,MATCH($D$1,raw!$2:$2,0)-1,COUNTA(raw!$A:$A)-1,1),K$2) -> 0 | L41: =COUNTIFS( OFFSET(raw!$A$1,2,MATCH(回答数!$A41,raw!$2:$2,0)-1,COUNTA(raw!$A:$A)-1,1),回答数!$B41, OFFSET(raw!$A$1,2,MATCH($D$1,raw!$2:$2,0)-1,COUNTA(raw!$A:$A)-1,1),L$2) -> 0 | M41: =COUNTIFS( OFFSET(raw!$A$1,2,MATCH(回答数!$A41,raw!$2:$2,0)-1,COUNTA(raw!$A:$A)-1,1),回答数!$B41, OFFSET(raw!$A$1,2,MATCH($D$1,raw!$2:$2,0)-1,COUNTA(raw!$A:$A)-1,1),M$2) -> 0 | N41: =COUNTIFS( OFFSET(raw!$A$1,2,MATCH(回答数!$A41,raw!$2:$2,0)-1,COUNTA(raw!$A:$A)-1,1),回答数!$B41, OFFSET(raw!$A$1,2,MATCH($D$1,raw!$2:$2,0)-1,COUNTA(raw!$A:$A)-1,1),N$2) -> 0 | O41: =COUNTIFS( OFFSET(raw!$A$1,2,MATCH(回答数!$A41,raw!$2:$2,0)-1,COUNTA(raw!$A:$A)-1,1),回答数!$B41, OFFSET(raw!$A$1,2,MATCH($D$1,raw!$2:$2,0)-1,COUNTA(raw!$A:$A)-1,1),O$2) -> 0 | P41: 34
A42: 回答エリア | B42: 越前そばの里 エリア | D42: =COUNTIFS( OFFSET(raw!$A$1,2,MATCH(回答数!$A42,raw!$2:$2,0)-1,COUNTA(raw!$A:$A)-1,1),回答数!$B42, OFFSET(raw!$A$1,2,MATCH($D$1,raw!$2:$2,0)-1,COUNTA(raw!$A:$A)-1,1),D$2) -> 100 | E42: =COUNTIFS( OFFSET(raw!$A$1,2,MATCH(回答数!$A42,raw!$2:$2,0)-1,COUNTA(raw!$A:$A)-1,1),回答数!$B42, OFFSET(raw!$A$1,2,MATCH($D$1,raw!$2:$2,0)-1,COUNTA(raw!$A:$A)-1,1),E$2) -> 67 | F42: =COUNTIFS( OFFSET(raw!$A$1,2,MATCH(回答数!$A42,raw!$2:$2,0)-1,COUNTA(raw!$A:$A)-1,1),回答数!$B42, OFFSET(raw!$A$1,2,MATCH($D$1,raw!$2:$2,0)-1,COUNTA(raw!$A:$A)-1,1),F$2) -> 36 | G42: =COUNTIFS( OFFSET(raw!$A$1,2,MATCH(回答数!$A42,raw!$2:$2,0)-1,COUNTA(raw!$A:$A)-1,1),回答数!$B42, OFFSET(raw!$A$1,2,MATCH($D$1,raw!$2:$2,0)-1,COUNTA(raw!$A:$A)-1,1),G$2) -> 32 | H42: =COUNTIFS( OFFSET(raw!$A$1,2,MATCH(回答数!$A42,raw!$2:$2,0)-1,COUNTA(raw!$A:$A)-1,1),回答数!$B42, OFFSET(raw!$A$1,2,MATCH($D$1,raw!$2:$2,0)-1,COUNTA(raw!$A:$A)-1,1),H$2) -> 0 | I42: =COUNTIFS( OFFSET(raw!$A$1,2,MATCH(回答数!$A42,raw!$2:$2,0)-1,COUNTA(raw!$A:$A)-1,1),回答数!$B42, OFFSET(raw!$A$1,2,MATCH($D$1,raw!$2:$2,0)-1,COUNTA(raw!$A:$A)-1,1),I$2) -> 0 | J42: =COUNTIFS( OFFSET(raw!$A$1,2,MATCH(回答数!$A42,raw!$2:$2,0)-1,COUNTA(raw!$A:$A)-1,1),回答数!$B42, OFFSET(raw!$A$1,2,MATCH($D$1,raw!$2:$2,0)-1,COUNTA(raw!$A:$A)-1,1),J$2) -> 0 | K42: =COUNTIFS( OFFSET(raw!$A$1,2,MATCH(回答数!$A42,raw!$2:$2,0)-1,COUNTA(raw!$A:$A)-1,1),回答数!$B42, OFFSET(raw!$A$1,2,MATCH($D$1,raw!$2:$2,0)-1,COUNTA(raw!$A:$A)-1,1),K$2) -> 0 | L42: =COUNTIFS( OFFSET(raw!$A$1,2,MATCH(回答数!$A42,raw!$2:$2,0)-1,COUNTA(raw!$A:$A)-1,1),回答数!$B42, OFFSET(raw!$A$1,2,MATCH($D$1,raw!$2:$2,0)-1,COUNTA(raw!$A:$A)-1,1),L$2) -> 0 | M42: =COUNTIFS( OFFSET(raw!$A$1,2,MATCH(回答数!$A42,raw!$2:$2,0)-1,COUNTA(raw!$A:$A)-1,1),回答数!$B42, OFFSET(raw!$A$1,2,MATCH($D$1,raw!$2:$2,0)-1,COUNTA(raw!$A:$A)-1,1),M$2) -> 0 | N42: =COUNTIFS( OFFSET(raw!$A$1,2,MATCH(回答数!$A42,raw!$2:$2,0)-1,COUNTA(raw!$A:$A)-1,1),回答数!$B42, OFFSET(raw!$A$1,2,MATCH($D$1,raw!$2:$2,0)-1,COUNTA(raw!$A:$A)-1,1),N$2) -> 0 | O42: =COUNTIFS( OFFSET(raw!$A$1,2,MATCH(回答数!$A42,raw!$2:$2,0)-1,COUNTA(raw!$A:$A)-1,1),回答数!$B42, OFFSET(raw!$A$1,2,MATCH($D$1,raw!$2:$2,0)-1,COUNTA(raw!$A:$A)-1,1),O$2) -> 0 | P42: 235
A43: 回答エリア | B43: 北陸新幹線 越前たけふ駅 エリア | D43: =COUNTIFS( OFFSET(raw!$A$1,2,MATCH(回答数!$A43,raw!$2:$2,0)-1,COUNTA(raw!$A:$A)-1,1),回答数!$B43, OFFSET(raw!$A$1,2,MATCH($D$1,raw!$2:$2,0)-1,COUNTA(raw!$A:$A)-1,1),D$2) -> 57 | E43: =COUNTIFS( OFFSET(raw!$A$1,2,MATCH(回答数!$A43,raw!$2:$2,0)-1,COUNTA(raw!$A:$A)-1,1),回答数!$B43, OFFSET(raw!$A$1,2,MATCH($D$1,raw!$2:$2,0)-1,COUNTA(raw!$A:$A)-1,1),E$2) -> 46 | F43: =COUNTIFS( OFFSET(raw!$A$1,2,MATCH(回答数!$A43,raw!$2:$2,0)-1,COUNTA(raw!$A:$A)-1,1),回答数!$B43, OFFSET(raw!$A$1,2,MATCH($D$1,raw!$2:$2,0)-1,COUNTA(raw!$A:$A)-1,1),F$2) -> 46 | G43: =COUNTIFS( OFFSET(raw!$A$1,2,MATCH(回答数!$A43,raw!$2:$2,0)-1,COUNTA(raw!$A:$A)-1,1),回答数!$B43, OFFSET(raw!$A$1,2,MATCH($D$1,raw!$2:$2,0)-1,COUNTA(raw!$A:$A)-1,1),G$2) -> 24 | H43: =COUNTIFS( OFFSET(raw!$A$1,2,MATCH(回答数!$A43,raw!$2:$2,0)-1,COUNTA(raw!$A:$A)-1,1),回答数!$B43, OFFSET(raw!$A$1,2,MATCH($D$1,raw!$2:$2,0)-1,COUNTA(raw!$A:$A)-1,1),H$2) -> 0 | I43: =COUNTIFS( OFFSET(raw!$A$1,2,MATCH(回答数!$A43,raw!$2:$2,0)-1,COUNTA(raw!$A:$A)-1,1),回答数!$B43, OFFSET(raw!$A$1,2,MATCH($D$1,raw!$2:$2,0)-1,COUNTA(raw!$A:$A)-1,1),I$2) -> 0 | J43: =COUNTIFS( OFFSET(raw!$A$1,2,MATCH(回答数!$A43,raw!$2:$2,0)-1,COUNTA(raw!$A:$A)-1,1),回答数!$B43, OFFSET(raw!$A$1,2,MATCH($D$1,raw!$2:$2,0)-1,COUNTA(raw!$A:$A)-1,1),J$2) -> 0 | K43: =COUNTIFS( OFFSET(raw!$A$1,2,MATCH(回答数!$A43,raw!$2:$2,0)-1,COUNTA(raw!$A:$A)-1,1),回答数!$B43, OFFSET(raw!$A$1,2,MATCH($D$1,raw!$2:$2,0)-1,COUNTA(raw!$A:$A)-1,1),K$2) -> 0 | L43: =COUNTIFS( OFFSET(raw!$A$1,2,MATCH(回答数!$A43,raw!$2:$2,0)-1,COUNTA(raw!$A:$A)-1,1),回答数!$B43, OFFSET(raw!$A$1,2,MATCH($D$1,raw!$2:$2,0)-1,COUNTA(raw!$A:$A)-1,1),L$2) -> 0 | M43: =COUNTIFS( OFFSET(raw!$A$1,2,MATCH(回答数!$A43,raw!$2:$2,0)-1,COUNTA(raw!$A:$A)-1,1),回答数!$B43, OFFSET(raw!$A$1,2,MATCH($D$1,raw!$2:$2,0)-1,COUNTA(raw!$A:$A)-1,1),M$2) -> 0 | N43: =COUNTIFS( OFFSET(raw!$A$1,2,MATCH(回答数!$A43,raw!$2:$2,0)-1,COUNTA(raw!$A:$A)-1,1),回答数!$B43, OFFSET(raw!$A$1,2,MATCH($D$1,raw!$2:$2,0)-1,COUNTA(raw!$A:$A)-1,1),N$2) -> 0 | O43: =COUNTIFS( OFFSET(raw!$A$1,2,MATCH(回答数!$A43,raw!$2:$2,0)-1,COUNTA(raw!$A:$A)-1,1),回答数!$B43, OFFSET(raw!$A$1,2,MATCH($D$1,raw!$2:$2,0)-1,COUNTA(raw!$A:$A)-1,1),O$2) -> 0 | P43: 173
A44: 回答エリア | B44: タケフナイフビレッジ エリア | D44: =COUNTIFS( OFFSET(raw!$A$1,2,MATCH(回答数!$A44,raw!$2:$2,0)-1,COUNTA(raw!$A:$A)-1,1),回答数!$B44, OFFSET(raw!$A$1,2,MATCH($D$1,raw!$2:$2,0)-1,COUNTA(raw!$A:$A)-1,1),D$2) -> 13 | E44: =COUNTIFS( OFFSET(raw!$A$1,2,MATCH(回答数!$A44,raw!$2:$2,0)-1,COUNTA(raw!$A:$A)-1,1),回答数!$B44, OFFSET(raw!$A$1,2,MATCH($D$1,raw!$2:$2,0)-1,COUNTA(raw!$A:$A)-1,1),E$2) -> 7 | F44: =COUNTIFS( OFFSET(raw!$A$1,2,MATCH(回答数!$A44,raw!$2:$2,0)-1,COUNTA(raw!$A:$A)-1,1),回答数!$B44, OFFSET(raw!$A$1,2,MATCH($D$1,raw!$2:$2,0)-1,COUNTA(raw!$A:$A)-1,1),F$2) -> 12 | G44: =COUNTIFS( OFFSET(raw!$A$1,2,MATCH(回答数!$A44,raw!$2:$2,0)-1,COUNTA(raw!$A:$A)-1,1),回答数!$B44, OFFSET(raw!$A$1,2,MATCH($D$1,raw!$2:$2,0)-1,COUNTA(raw!$A:$A)-1,1),G$2) -> 1 | H44: =COUNTIFS( OFFSET(raw!$A$1,2,MATCH(回答数!$A44,raw!$2:$2,0)-1,COUNTA(raw!$A:$A)-1,1),回答数!$B44, OFFSET(raw!$A$1,2,MATCH($D$1,raw!$2:$2,0)-1,COUNTA(raw!$A:$A)-1,1),H$2) -> 0 | I44: =COUNTIFS( OFFSET(raw!$A$1,2,MATCH(回答数!$A44,raw!$2:$2,0)-1,COUNTA(raw!$A:$A)-1,1),回答数!$B44, OFFSET(raw!$A$1,2,MATCH($D$1,raw!$2:$2,0)-1,COUNTA(raw!$A:$A)-1,1),I$2) -> 0 | J44: =COUNTIFS( OFFSET(raw!$A$1,2,MATCH(回答数!$A44,raw!$2:$2,0)-1,COUNTA(raw!$A:$A)-1,1),回答数!$B44, OFFSET(raw!$A$1,2,MATCH($D$1,raw!$2:$2,0)-1,COUNTA(raw!$A:$A)-1,1),J$2) -> 0 | K44: =COUNTIFS( OFFSET(raw!$A$1,2,MATCH(回答数!$A44,raw!$2:$2,0)-1,COUNTA(raw!$A:$A)-1,1),回答数!$B44, OFFSET(raw!$A$1,2,MATCH($D$1,raw!$2:$2,0)-1,COUNTA(raw!$A:$A)-1,1),K$2) -> 0 | L44: =COUNTIFS( OFFSET(raw!$A$1,2,MATCH(回答数!$A44,raw!$2:$2,0)-1,COUNTA(raw!$A:$A)-1,1),回答数!$B44, OFFSET(raw!$A$1,2,MATCH($D$1,raw!$2:$2,0)-1,COUNTA(raw!$A:$A)-1,1),L$2) -> 0 | M44: =COUNTIFS( OFFSET(raw!$A$1,2,MATCH(回答数!$A44,raw!$2:$2,0)-1,COUNTA(raw!$A:$A)-1,1),回答数!$B44, OFFSET(raw!$A$1,2,MATCH($D$1,raw!$2:$2,0)-1,COUNTA(raw!$A:$A)-1,1),M$2) -> 0 | N44: =COUNTIFS( OFFSET(raw!$A$1,2,MATCH(回答数!$A44,raw!$2:$2,0)-1,COUNTA(raw!$A:$A)-1,1),回答数!$B44, OFFSET(raw!$A$1,2,MATCH($D$1,raw!$2:$2,0)-1,COUNTA(raw!$A:$A)-1,1),N$2) -> 0 | O44: =COUNTIFS( OFFSET(raw!$A$1,2,MATCH(回答数!$A44,raw!$2:$2,0)-1,COUNTA(raw!$A:$A)-1,1),回答数!$B44, OFFSET(raw!$A$1,2,MATCH($D$1,raw!$2:$2,0)-1,COUNTA(raw!$A:$A)-1,1),O$2) -> 0 | P44: 33
A45: 回答エリア | B45: 武生駅 エリア | D45: =COUNTIFS( OFFSET(raw!$A$1,2,MATCH(回答数!$A45,raw!$2:$2,0)-1,COUNTA(raw!$A:$A)-1,1),回答数!$B45, OFFSET(raw!$A$1,2,MATCH($D$1,raw!$2:$2,0)-1,COUNTA(raw!$A:$A)-1,1),D$2) -> 14 | E45: =COUNTIFS( OFFSET(raw!$A$1,2,MATCH(回答数!$A45,raw!$2:$2,0)-1,COUNTA(raw!$A:$A)-1,1),回答数!$B45, OFFSET(raw!$A$1,2,MATCH($D$1,raw!$2:$2,0)-1,COUNTA(raw!$A:$A)-1,1),E$2) -> 8 | F45: =COUNTIFS( OFFSET(raw!$A$1,2,MATCH(回答数!$A45,raw!$2:$2,0)-1,COUNTA(raw!$A:$A)-1,1),回答数!$B45, OFFSET(raw!$A$1,2,MATCH($D$1,raw!$2:$2,0)-1,COUNTA(raw!$A:$A)-1,1),F$2) -> 7 | G45: =COUNTIFS( OFFSET(raw!$A$1,2,MATCH(回答数!$A45,raw!$2:$2,0)-1,COUNTA(raw!$A:$A)-1,1),回答数!$B45, OFFSET(raw!$A$1,2,MATCH($D$1,raw!$2:$2,0)-1,COUNTA(raw!$A:$A)-1,1),G$2) -> 6 | H45: =COUNTIFS( OFFSET(raw!$A$1,2,MATCH(回答数!$A45,raw!$2:$2,0)-1,COUNTA(raw!$A:$A)-1,1),回答数!$B45, OFFSET(raw!$A$1,2,MATCH($D$1,raw!$2:$2,0)-1,COUNTA(raw!$A:$A)-1,1),H$2) -> 0 | I45: =COUNTIFS( OFFSET(raw!$A$1,2,MATCH(回答数!$A45,raw!$2:$2,0)-1,COUNTA(raw!$A:$A)-1,1),回答数!$B45, OFFSET(raw!$A$1,2,MATCH($D$1,raw!$2:$2,0)-1,COUNTA(raw!$A:$A)-1,1),I$2) -> 0 | J45: =COUNTIFS( OFFSET(raw!$A$1,2,MATCH(回答数!$A45,raw!$2:$2,0)-1,COUNTA(raw!$A:$A)-1,1),回答数!$B45, OFFSET(raw!$A$1,2,MATCH($D$1,raw!$2:$2,0)-1,COUNTA(raw!$A:$A)-1,1),J$2) -> 0 | K45: =COUNTIFS( OFFSET(raw!$A$1,2,MATCH(回答数!$A45,raw!$2:$2,0)-1,COUNTA(raw!$A:$A)-1,1),回答数!$B45, OFFSET(raw!$A$1,2,MATCH($D$1,raw!$2:$2,0)-1,COUNTA(raw!$A:$A)-1,1),K$2) -> 0 | L45: =COUNTIFS( OFFSET(raw!$A$1,2,MATCH(回答数!$A45,raw!$2:$2,0)-1,COUNTA(raw!$A:$A)-1,1),回答数!$B45, OFFSET(raw!$A$1,2,MATCH($D$1,raw!$2:$2,0)-1,COUNTA(raw!$A:$A)-1,1),L$2) -> 0 | M45: =COUNTIFS( OFFSET(raw!$A$1,2,MATCH(回答数!$A45,raw!$2:$2,0)-1,COUNTA(raw!$A:$A)-1,1),回答数!$B45, OFFSET(raw!$A$1,2,MATCH($D$1,raw!$2:$2,0)-1,COUNTA(raw!$A:$A)-1,1),M$2) -> 0 | N45: =COUNTIFS( OFFSET(raw!$A$1,2,MATCH(回答数!$A45,raw!$2:$2,0)-1,COUNTA(raw!$A:$A)-1,1),回答数!$B45, OFFSET(raw!$A$1,2,MATCH($D$1,raw!$2:$2,0)-1,COUNTA(raw!$A:$A)-1,1),N$2) -> 0 | O45: =COUNTIFS( OFFSET(raw!$A$1,2,MATCH(回答数!$A45,raw!$2:$2,0)-1,COUNTA(raw!$A:$A)-1,1),回答数!$B45, OFFSET(raw!$A$1,2,MATCH($D$1,raw!$2:$2,0)-1,COUNTA(raw!$A:$A)-1,1),O$2) -> 0 | P45: 35
A46: 回答エリア | B46: 紫式部公園 エリア | D46: =COUNTIFS( OFFSET(raw!$A$1,2,MATCH(回答数!$A46,raw!$2:$2,0)-1,COUNTA(raw!$A:$A)-1,1),回答数!$B46, OFFSET(raw!$A$1,2,MATCH($D$1,raw!$2:$2,0)-1,COUNTA(raw!$A:$A)-1,1),D$2) -> 89 | E46: =COUNTIFS( OFFSET(raw!$A$1,2,MATCH(回答数!$A46,raw!$2:$2,0)-1,COUNTA(raw!$A:$A)-1,1),回答数!$B46, OFFSET(raw!$A$1,2,MATCH($D$1,raw!$2:$2,0)-1,COUNTA(raw!$A:$A)-1,1),E$2) -> 76 | F46: =COUNTIFS( OFFSET(raw!$A$1,2,MATCH(回答数!$A46,raw!$2:$2,0)-1,COUNTA(raw!$A:$A)-1,1),回答数!$B46, OFFSET(raw!$A$1,2,MATCH($D$1,raw!$2:$2,0)-1,COUNTA(raw!$A:$A)-1,1),F$2) -> 65 | G46: =COUNTIFS( OFFSET(raw!$A$1,2,MATCH(回答数!$A46,raw!$2:$2,0)-1,COUNTA(raw!$A:$A)-1,1),回答数!$B46, OFFSET(raw!$A$1,2,MATCH($D$1,raw!$2:$2,0)-1,COUNTA(raw!$A:$A)-1,1),G$2) -> 29 | H46: =COUNTIFS( OFFSET(raw!$A$1,2,MATCH(回答数!$A46,raw!$2:$2,0)-1,COUNTA(raw!$A:$A)-1,1),回答数!$B46, OFFSET(raw!$A$1,2,MATCH($D$1,raw!$2:$2,0)-1,COUNTA(raw!$A:$A)-1,1),H$2) -> 0 | I46: =COUNTIFS( OFFSET(raw!$A$1,2,MATCH(回答数!$A46,raw!$2:$2,0)-1,COUNTA(raw!$A:$A)-1,1),回答数!$B46, OFFSET(raw!$A$1,2,MATCH($D$1,raw!$2:$2,0)-1,COUNTA(raw!$A:$A)-1,1),I$2) -> 0 | J46: =COUNTIFS( OFFSET(raw!$A$1,2,MATCH(回答数!$A46,raw!$2:$2,0)-1,COUNTA(raw!$A:$A)-1,1),回答数!$B46, OFFSET(raw!$A$1,2,MATCH($D$1,raw!$2:$2,0)-1,COUNTA(raw!$A:$A)-1,1),J$2) -> 0 | K46: =COUNTIFS( OFFSET(raw!$A$1,2,MATCH(回答数!$A46,raw!$2:$2,0)-1,COUNTA(raw!$A:$A)-1,1),回答数!$B46, OFFSET(raw!$A$1,2,MATCH($D$1,raw!$2:$2,0)-1,COUNTA(raw!$A:$A)-1,1),K$2) -> 0 | L46: =COUNTIFS( OFFSET(raw!$A$1,2,MATCH(回答数!$A46,raw!$2:$2,0)-1,COUNTA(raw!$A:$A)-1,1),回答数!$B46, OFFSET(raw!$A$1,2,MATCH($D$1,raw!$2:$2,0)-1,COUNTA(raw!$A:$A)-1,1),L$2) -> 0 | M46: =COUNTIFS( OFFSET(raw!$A$1,2,MATCH(回答数!$A46,raw!$2:$2,0)-1,COUNTA(raw!$A:$A)-1,1),回答数!$B46, OFFSET(raw!$A$1,2,MATCH($D$1,raw!$2:$2,0)-1,COUNTA(raw!$A:$A)-1,1),M$2) -> 0 | N46: =COUNTIFS( OFFSET(raw!$A$1,2,MATCH(回答数!$A46,raw!$2:$2,0)-1,COUNTA(raw!$A:$A)-1,1),回答数!$B46, OFFSET(raw!$A$1,2,MATCH($D$1,raw!$2:$2,0)-1,COUNTA(raw!$A:$A)-1,1),N$2) -> 0 | O46: =COUNTIFS( OFFSET(raw!$A$1,2,MATCH(回答数!$A46,raw!$2:$2,0)-1,COUNTA(raw!$A:$A)-1,1),回答数!$B46, OFFSET(raw!$A$1,2,MATCH($D$1,raw!$2:$2,0)-1,COUNTA(raw!$A:$A)-1,1),O$2) -> 0 | P46: 259
A47: 回答エリア | B47: だるまちゃん広場 エリア | D47: =COUNTIFS( OFFSET(raw!$A$1,2,MATCH(回答数!$A47,raw!$2:$2,0)-1,COUNTA(raw!$A:$A)-1,1),回答数!$B47, OFFSET(raw!$A$1,2,MATCH($D$1,raw!$2:$2,0)-1,COUNTA(raw!$A:$A)-1,1),D$2) -> 15 | E47: =COUNTIFS( OFFSET(raw!$A$1,2,MATCH(回答数!$A47,raw!$2:$2,0)-1,COUNTA(raw!$A:$A)-1,1),回答数!$B47, OFFSET(raw!$A$1,2,MATCH($D$1,raw!$2:$2,0)-1,COUNTA(raw!$A:$A)-1,1),E$2) -> 11 | F47: =COUNTIFS( OFFSET(raw!$A$1,2,MATCH(回答数!$A47,raw!$2:$2,0)-1,COUNTA(raw!$A:$A)-1,1),回答数!$B47, OFFSET(raw!$A$1,2,MATCH($D$1,raw!$2:$2,0)-1,COUNTA(raw!$A:$A)-1,1),F$2) -> 7 | G47: =COUNTIFS( OFFSET(raw!$A$1,2,MATCH(回答数!$A47,raw!$2:$2,0)-1,COUNTA(raw!$A:$A)-1,1),回答数!$B47, OFFSET(raw!$A$1,2,MATCH($D$1,raw!$2:$2,0)-1,COUNTA(raw!$A:$A)-1,1),G$2) -> 3 | H47: =COUNTIFS( OFFSET(raw!$A$1,2,MATCH(回答数!$A47,raw!$2:$2,0)-1,COUNTA(raw!$A:$A)-1,1),回答数!$B47, OFFSET(raw!$A$1,2,MATCH($D$1,raw!$2:$2,0)-1,COUNTA(raw!$A:$A)-1,1),H$2) -> 0 | I47: =COUNTIFS( OFFSET(raw!$A$1,2,MATCH(回答数!$A47,raw!$2:$2,0)-1,COUNTA(raw!$A:$A)-1,1),回答数!$B47, OFFSET(raw!$A$1,2,MATCH($D$1,raw!$2:$2,0)-1,COUNTA(raw!$A:$A)-1,1),I$2) -> 0 | J47: =COUNTIFS( OFFSET(raw!$A$1,2,MATCH(回答数!$A47,raw!$2:$2,0)-1,COUNTA(raw!$A:$A)-1,1),回答数!$B47, OFFSET(raw!$A$1,2,MATCH($D$1,raw!$2:$2,0)-1,COUNTA(raw!$A:$A)-1,1),J$2) -> 0 | K47: =COUNTIFS( OFFSET(raw!$A$1,2,MATCH(回答数!$A47,raw!$2:$2,0)-1,COUNTA(raw!$A:$A)-1,1),回答数!$B47, OFFSET(raw!$A$1,2,MATCH($D$1,raw!$2:$2,0)-1,COUNTA(raw!$A:$A)-1,1),K$2) -> 0 | L47: =COUNTIFS( OFFSET(raw!$A$1,2,MATCH(回答数!$A47,raw!$2:$2,0)-1,COUNTA(raw!$A:$A)-1,1),回答数!$B47, OFFSET(raw!$A$1,2,MATCH($D$1,raw!$2:$2,0)-1,COUNTA(raw!$A:$A)-1,1),L$2) -> 0 | M47: =COUNTIFS( OFFSET(raw!$A$1,2,MATCH(回答数!$A47,raw!$2:$2,0)-1,COUNTA(raw!$A:$A)-1,1),回答数!$B47, OFFSET(raw!$A$1,2,MATCH($D$1,raw!$2:$2,0)-1,COUNTA(raw!$A:$A)-1,1),M$2) -> 0 | N47: =COUNTIFS( OFFSET(raw!$A$1,2,MATCH(回答数!$A47,raw!$2:$2,0)-1,COUNTA(raw!$A:$A)-1,1),回答数!$B47, OFFSET(raw!$A$1,2,MATCH($D$1,raw!$2:$2,0)-1,COUNTA(raw!$A:$A)-1,1),N$2) -> 0 | O47: =COUNTIFS( OFFSET(raw!$A$1,2,MATCH(回答数!$A47,raw!$2:$2,0)-1,COUNTA(raw!$A:$A)-1,1),回答数!$B47, OFFSET(raw!$A$1,2,MATCH($D$1,raw!$2:$2,0)-1,COUNTA(raw!$A:$A)-1,1),O$2) -> 0 | P47: 36
A48: 回答エリア | B48: 刃物の里 エリア | D48: =COUNTIFS( OFFSET(raw!$A$1,2,MATCH(回答数!$A48,raw!$2:$2,0)-1,COUNTA(raw!$A:$A)-1,1),回答数!$B48, OFFSET(raw!$A$1,2,MATCH($D$1,raw!$2:$2,0)-1,COUNTA(raw!$A:$A)-1,1),D$2) -> 5 | E48: =COUNTIFS( OFFSET(raw!$A$1,2,MATCH(回答数!$A48,raw!$2:$2,0)-1,COUNTA(raw!$A:$A)-1,1),回答数!$B48, OFFSET(raw!$A$1,2,MATCH($D$1,raw!$2:$2,0)-1,COUNTA(raw!$A:$A)-1,1),E$2) -> 4 | F48: =COUNTIFS( OFFSET(raw!$A$1,2,MATCH(回答数!$A48,raw!$2:$2,0)-1,COUNTA(raw!$A:$A)-1,1),回答数!$B48, OFFSET(raw!$A$1,2,MATCH($D$1,raw!$2:$2,0)-1,COUNTA(raw!$A:$A)-1,1),F$2) -> 2 | G48: =COUNTIFS( OFFSET(raw!$A$1,2,MATCH(回答数!$A48,raw!$2:$2,0)-1,COUNTA(raw!$A:$A)-1,1),回答数!$B48, OFFSET(raw!$A$1,2,MATCH($D$1,raw!$2:$2,0)-1,COUNTA(raw!$A:$A)-1,1),G$2) -> 1 | H48: =COUNTIFS( OFFSET(raw!$A$1,2,MATCH(回答数!$A48,raw!$2:$2,0)-1,COUNTA(raw!$A:$A)-1,1),回答数!$B48, OFFSET(raw!$A$1,2,MATCH($D$1,raw!$2:$2,0)-1,COUNTA(raw!$A:$A)-1,1),H$2) -> 0 | I48: =COUNTIFS( OFFSET(raw!$A$1,2,MATCH(回答数!$A48,raw!$2:$2,0)-1,COUNTA(raw!$A:$A)-1,1),回答数!$B48, OFFSET(raw!$A$1,2,MATCH($D$1,raw!$2:$2,0)-1,COUNTA(raw!$A:$A)-1,1),I$2) -> 0 | J48: =COUNTIFS( OFFSET(raw!$A$1,2,MATCH(回答数!$A48,raw!$2:$2,0)-1,COUNTA(raw!$A:$A)-1,1),回答数!$B48, OFFSET(raw!$A$1,2,MATCH($D$1,raw!$2:$2,0)-1,COUNTA(raw!$A:$A)-1,1),J$2) -> 0 | K48: =COUNTIFS( OFFSET(raw!$A$1,2,MATCH(回答数!$A48,raw!$2:$2,0)-1,COUNTA(raw!$A:$A)-1,1),回答数!$B48, OFFSET(raw!$A$1,2,MATCH($D$1,raw!$2:$2,0)-1,COUNTA(raw!$A:$A)-1,1),K$2) -> 0 | L48: =COUNTIFS( OFFSET(raw!$A$1,2,MATCH(回答数!$A48,raw!$2:$2,0)-1,COUNTA(raw!$A:$A)-1,1),回答数!$B48, OFFSET(raw!$A$1,2,MATCH($D$1,raw!$2:$2,0)-1,COUNTA(raw!$A:$A)-1,1),L$2) -> 0 | M48: =COUNTIFS( OFFSET(raw!$A$1,2,MATCH(回答数!$A48,raw!$2:$2,0)-1,COUNTA(raw!$A:$A)-1,1),回答数!$B48, OFFSET(raw!$A$1,2,MATCH($D$1,raw!$2:$2,0)-1,COUNTA(raw!$A:$A)-1,1),M$2) -> 0 | N48: =COUNTIFS( OFFSET(raw!$A$1,2,MATCH(回答数!$A48,raw!$2:$2,0)-1,COUNTA(raw!$A:$A)-1,1),回答数!$B48, OFFSET(raw!$A$1,2,MATCH($D$1,raw!$2:$2,0)-1,COUNTA(raw!$A:$A)-1,1),N$2) -> 0 | O48: =COUNTIFS( OFFSET(raw!$A$1,2,MATCH(回答数!$A48,raw!$2:$2,0)-1,COUNTA(raw!$A:$A)-1,1),回答数!$B48, OFFSET(raw!$A$1,2,MATCH($D$1,raw!$2:$2,0)-1,COUNTA(raw!$A:$A)-1,1),O$2) -> 0 | P48: 12
A49: 回答エリア | B49: 道の駅「西山公園」 エリア | D49: =COUNTIFS( OFFSET(raw!$A$1,2,MATCH(回答数!$A49,raw!$2:$2,0)-1,COUNTA(raw!$A:$A)-1,1),回答数!$B49, OFFSET(raw!$A$1,2,MATCH($D$1,raw!$2:$2,0)-1,COUNTA(raw!$A:$A)-1,1),D$2) -> 46 | E49: =COUNTIFS( OFFSET(raw!$A$1,2,MATCH(回答数!$A49,raw!$2:$2,0)-1,COUNTA(raw!$A:$A)-1,1),回答数!$B49, OFFSET(raw!$A$1,2,MATCH($D$1,raw!$2:$2,0)-1,COUNTA(raw!$A:$A)-1,1),E$2) -> 43 | F49: =COUNTIFS( OFFSET(raw!$A$1,2,MATCH(回答数!$A49,raw!$2:$2,0)-1,COUNTA(raw!$A:$A)-1,1),回答数!$B49, OFFSET(raw!$A$1,2,MATCH($D$1,raw!$2:$2,0)-1,COUNTA(raw!$A:$A)-1,1),F$2) -> 22 | G49: =COUNTIFS( OFFSET(raw!$A$1,2,MATCH(回答数!$A49,raw!$2:$2,0)-1,COUNTA(raw!$A:$A)-1,1),回答数!$B49, OFFSET(raw!$A$1,2,MATCH($D$1,raw!$2:$2,0)-1,COUNTA(raw!$A:$A)-1,1),G$2) -> 18 | H49: =COUNTIFS( OFFSET(raw!$A$1,2,MATCH(回答数!$A49,raw!$2:$2,0)-1,COUNTA(raw!$A:$A)-1,1),回答数!$B49, OFFSET(raw!$A$1,2,MATCH($D$1,raw!$2:$2,0)-1,COUNTA(raw!$A:$A)-1,1),H$2) -> 0 | I49: =COUNTIFS( OFFSET(raw!$A$1,2,MATCH(回答数!$A49,raw!$2:$2,0)-1,COUNTA(raw!$A:$A)-1,1),回答数!$B49, OFFSET(raw!$A$1,2,MATCH($D$1,raw!$2:$2,0)-1,COUNTA(raw!$A:$A)-1,1),I$2) -> 0 | J49: =COUNTIFS( OFFSET(raw!$A$1,2,MATCH(回答数!$A49,raw!$2:$2,0)-1,COUNTA(raw!$A:$A)-1,1),回答数!$B49, OFFSET(raw!$A$1,2,MATCH($D$1,raw!$2:$2,0)-1,COUNTA(raw!$A:$A)-1,1),J$2) -> 0 | K49: =COUNTIFS( OFFSET(raw!$A$1,2,MATCH(回答数!$A49,raw!$2:$2,0)-1,COUNTA(raw!$A:$A)-1,1),回答数!$B49, OFFSET(raw!$A$1,2,MATCH($D$1,raw!$2:$2,0)-1,COUNTA(raw!$A:$A)-1,1),K$2) -> 0 | L49: =COUNTIFS( OFFSET(raw!$A$1,2,MATCH(回答数!$A49,raw!$2:$2,0)-1,COUNTA(raw!$A:$A)-1,1),回答数!$B49, OFFSET(raw!$A$1,2,MATCH($D$1,raw!$2:$2,0)-1,COUNTA(raw!$A:$A)-1,1),L$2) -> 0 | M49: =COUNTIFS( OFFSET(raw!$A$1,2,MATCH(回答数!$A49,raw!$2:$2,0)-1,COUNTA(raw!$A:$A)-1,1),回答数!$B49, OFFSET(raw!$A$1,2,MATCH($D$1,raw!$2:$2,0)-1,COUNTA(raw!$A:$A)-1,1),M$2) -> 0 | N49: =COUNTIFS( OFFSET(raw!$A$1,2,MATCH(回答数!$A49,raw!$2:$2,0)-1,COUNTA(raw!$A:$A)-1,1),回答数!$B49, OFFSET(raw!$A$1,2,MATCH($D$1,raw!$2:$2,0)-1,COUNTA(raw!$A:$A)-1,1),N$2) -> 0 | O49: =COUNTIFS( OFFSET(raw!$A$1,2,MATCH(回答数!$A49,raw!$2:$2,0)-1,COUNTA(raw!$A:$A)-1,1),回答数!$B49, OFFSET(raw!$A$1,2,MATCH($D$1,raw!$2:$2,0)-1,COUNTA(raw!$A:$A)-1,1),O$2) -> 0 | P49: 129
A50: 回答エリア | B50: メガネストリート エリア | D50: =COUNTIFS( OFFSET(raw!$A$1,2,MATCH(回答数!$A50,raw!$2:$2,0)-1,COUNTA(raw!$A:$A)-1,1),回答数!$B50, OFFSET(raw!$A$1,2,MATCH($D$1,raw!$2:$2,0)-1,COUNTA(raw!$A:$A)-1,1),D$2) -> 15 | E50: =COUNTIFS( OFFSET(raw!$A$1,2,MATCH(回答数!$A50,raw!$2:$2,0)-1,COUNTA(raw!$A:$A)-1,1),回答数!$B50, OFFSET(raw!$A$1,2,MATCH($D$1,raw!$2:$2,0)-1,COUNTA(raw!$A:$A)-1,1),E$2) -> 6 | F50: =COUNTIFS( OFFSET(raw!$A$1,2,MATCH(回答数!$A50,raw!$2:$2,0)-1,COUNTA(raw!$A:$A)-1,1),回答数!$B50, OFFSET(raw!$A$1,2,MATCH($D$1,raw!$2:$2,0)-1,COUNTA(raw!$A:$A)-1,1),F$2) -> 17 | G50: =COUNTIFS( OFFSET(raw!$A$1,2,MATCH(回答数!$A50,raw!$2:$2,0)-1,COUNTA(raw!$A:$A)-1,1),回答数!$B50, OFFSET(raw!$A$1,2,MATCH($D$1,raw!$2:$2,0)-1,COUNTA(raw!$A:$A)-1,1),G$2) -> 15 | H50: =COUNTIFS( OFFSET(raw!$A$1,2,MATCH(回答数!$A50,raw!$2:$2,0)-1,COUNTA(raw!$A:$A)-1,1),回答数!$B50, OFFSET(raw!$A$1,2,MATCH($D$1,raw!$2:$2,0)-1,COUNTA(raw!$A:$A)-1,1),H$2) -> 0 | I50: =COUNTIFS( OFFSET(raw!$A$1,2,MATCH(回答数!$A50,raw!$2:$2,0)-1,COUNTA(raw!$A:$A)-1,1),回答数!$B50, OFFSET(raw!$A$1,2,MATCH($D$1,raw!$2:$2,0)-1,COUNTA(raw!$A:$A)-1,1),I$2) -> 0 | J50: =COUNTIFS( OFFSET(raw!$A$1,2,MATCH(回答数!$A50,raw!$2:$2,0)-1,COUNTA(raw!$A:$A)-1,1),回答数!$B50, OFFSET(raw!$A$1,2,MATCH($D$1,raw!$2:$2,0)-1,COUNTA(raw!$A:$A)-1,1),J$2) -> 0 | K50: =COUNTIFS( OFFSET(raw!$A$1,2,MATCH(回答数!$A50,raw!$2:$2,0)-1,COUNTA(raw!$A:$A)-1,1),回答数!$B50, OFFSET(raw!$A$1,2,MATCH($D$1,raw!$2:$2,0)-1,COUNTA(raw!$A:$A)-1,1),K$2) -> 0 | L50: =COUNTIFS( OFFSET(raw!$A$1,2,MATCH(回答数!$A50,raw!$2:$2,0)-1,COUNTA(raw!$A:$A)-1,1),回答数!$B50, OFFSET(raw!$A$1,2,MATCH($D$1,raw!$2:$2,0)-1,COUNTA(raw!$A:$A)-1,1),L$2) -> 0 | M50: =COUNTIFS( OFFSET(raw!$A$1,2,MATCH(回答数!$A50,raw!$2:$2,0)-1,COUNTA(raw!$A:$A)-1,1),回答数!$B50, OFFSET(raw!$A$1,2,MATCH($D$1,raw!$2:$2,0)-1,COUNTA(raw!$A:$A)-1,1),M$2) -> 0 | N50: =COUNTIFS( OFFSET(raw!$A$1,2,MATCH(回答数!$A50,raw!$2:$2,0)-1,COUNTA(raw!$A:$A)-1,1),回答数!$B50, OFFSET(raw!$A$1,2,MATCH($D$1,raw!$2:$2,0)-1,COUNTA(raw!$A:$A)-1,1),N$2) -> 0 | O50: =COUNTIFS( OFFSET(raw!$A$1,2,MATCH(回答数!$A50,raw!$2:$2,0)-1,COUNTA(raw!$A:$A)-1,1),回答数!$B50, OFFSET(raw!$A$1,2,MATCH($D$1,raw!$2:$2,0)-1,COUNTA(raw!$A:$A)-1,1),O$2) -> 0 | P50: 53
A51: 回答エリア | B51: うるしの里 エリア | D51: =COUNTIFS( OFFSET(raw!$A$1,2,MATCH(回答数!$A51,raw!$2:$2,0)-1,COUNTA(raw!$A:$A)-1,1),回答数!$B51, OFFSET(raw!$A$1,2,MATCH($D$1,raw!$2:$2,0)-1,COUNTA(raw!$A:$A)-1,1),D$2) -> 7 | E51: =COUNTIFS( OFFSET(raw!$A$1,2,MATCH(回答数!$A51,raw!$2:$2,0)-1,COUNTA(raw!$A:$A)-1,1),回答数!$B51, OFFSET(raw!$A$1,2,MATCH($D$1,raw!$2:$2,0)-1,COUNTA(raw!$A:$A)-1,1),E$2) -> 13 | F51: =COUNTIFS( OFFSET(raw!$A$1,2,MATCH(回答数!$A51,raw!$2:$2,0)-1,COUNTA(raw!$A:$A)-1,1),回答数!$B51, OFFSET(raw!$A$1,2,MATCH($D$1,raw!$2:$2,0)-1,COUNTA(raw!$A:$A)-1,1),F$2) -> 6 | G51: =COUNTIFS( OFFSET(raw!$A$1,2,MATCH(回答数!$A51,raw!$2:$2,0)-1,COUNTA(raw!$A:$A)-1,1),回答数!$B51, OFFSET(raw!$A$1,2,MATCH($D$1,raw!$2:$2,0)-1,COUNTA(raw!$A:$A)-1,1),G$2) -> 3 | H51: =COUNTIFS( OFFSET(raw!$A$1,2,MATCH(回答数!$A51,raw!$2:$2,0)-1,COUNTA(raw!$A:$A)-1,1),回答数!$B51, OFFSET(raw!$A$1,2,MATCH($D$1,raw!$2:$2,0)-1,COUNTA(raw!$A:$A)-1,1),H$2) -> 0 | I51: =COUNTIFS( OFFSET(raw!$A$1,2,MATCH(回答数!$A51,raw!$2:$2,0)-1,COUNTA(raw!$A:$A)-1,1),回答数!$B51, OFFSET(raw!$A$1,2,MATCH($D$1,raw!$2:$2,0)-1,COUNTA(raw!$A:$A)-1,1),I$2) -> 0 | J51: =COUNTIFS( OFFSET(raw!$A$1,2,MATCH(回答数!$A51,raw!$2:$2,0)-1,COUNTA(raw!$A:$A)-1,1),回答数!$B51, OFFSET(raw!$A$1,2,MATCH($D$1,raw!$2:$2,0)-1,COUNTA(raw!$A:$A)-1,1),J$2) -> 0 | K51: =COUNTIFS( OFFSET(raw!$A$1,2,MATCH(回答数!$A51,raw!$2:$2,0)-1,COUNTA(raw!$A:$A)-1,1),回答数!$B51, OFFSET(raw!$A$1,2,MATCH($D$1,raw!$2:$2,0)-1,COUNTA(raw!$A:$A)-1,1),K$2) -> 0 | L51: =COUNTIFS( OFFSET(raw!$A$1,2,MATCH(回答数!$A51,raw!$2:$2,0)-1,COUNTA(raw!$A:$A)-1,1),回答数!$B51, OFFSET(raw!$A$1,2,MATCH($D$1,raw!$2:$2,0)-1,COUNTA(raw!$A:$A)-1,1),L$2) -> 0 | M51: =COUNTIFS( OFFSET(raw!$A$1,2,MATCH(回答数!$A51,raw!$2:$2,0)-1,COUNTA(raw!$A:$A)-1,1),回答数!$B51, OFFSET(raw!$A$1,2,MATCH($D$1,raw!$2:$2,0)-1,COUNTA(raw!$A:$A)-1,1),M$2) -> 0 | N51: =COUNTIFS( OFFSET(raw!$A$1,2,MATCH(回答数!$A51,raw!$2:$2,0)-1,COUNTA(raw!$A:$A)-1,1),回答数!$B51, OFFSET(raw!$A$1,2,MATCH($D$1,raw!$2:$2,0)-1,COUNTA(raw!$A:$A)-1,1),N$2) -> 0 | O51: =COUNTIFS( OFFSET(raw!$A$1,2,MATCH(回答数!$A51,raw!$2:$2,0)-1,COUNTA(raw!$A:$A)-1,1),回答数!$B51, OFFSET(raw!$A$1,2,MATCH($D$1,raw!$2:$2,0)-1,COUNTA(raw!$A:$A)-1,1),O$2) -> 0 | P51: 29
A52: 回答エリア | B52: まちの市場 こってコテいけだ エリア | D52: =COUNTIFS( OFFSET(raw!$A$1,2,MATCH(回答数!$A52,raw!$2:$2,0)-1,COUNTA(raw!$A:$A)-1,1),回答数!$B52, OFFSET(raw!$A$1,2,MATCH($D$1,raw!$2:$2,0)-1,COUNTA(raw!$A:$A)-1,1),D$2) -> 34 | E52: =COUNTIFS( OFFSET(raw!$A$1,2,MATCH(回答数!$A52,raw!$2:$2,0)-1,COUNTA(raw!$A:$A)-1,1),回答数!$B52, OFFSET(raw!$A$1,2,MATCH($D$1,raw!$2:$2,0)-1,COUNTA(raw!$A:$A)-1,1),E$2) -> 36 | F52: =COUNTIFS( OFFSET(raw!$A$1,2,MATCH(回答数!$A52,raw!$2:$2,0)-1,COUNTA(raw!$A:$A)-1,1),回答数!$B52, OFFSET(raw!$A$1,2,MATCH($D$1,raw!$2:$2,0)-1,COUNTA(raw!$A:$A)-1,1),F$2) -> 30 | G52: =COUNTIFS( OFFSET(raw!$A$1,2,MATCH(回答数!$A52,raw!$2:$2,0)-1,COUNTA(raw!$A:$A)-1,1),回答数!$B52, OFFSET(raw!$A$1,2,MATCH($D$1,raw!$2:$2,0)-1,COUNTA(raw!$A:$A)-1,1),G$2) -> 28 | H52: =COUNTIFS( OFFSET(raw!$A$1,2,MATCH(回答数!$A52,raw!$2:$2,0)-1,COUNTA(raw!$A:$A)-1,1),回答数!$B52, OFFSET(raw!$A$1,2,MATCH($D$1,raw!$2:$2,0)-1,COUNTA(raw!$A:$A)-1,1),H$2) -> 0 | I52: =COUNTIFS( OFFSET(raw!$A$1,2,MATCH(回答数!$A52,raw!$2:$2,0)-1,COUNTA(raw!$A:$A)-1,1),回答数!$B52, OFFSET(raw!$A$1,2,MATCH($D$1,raw!$2:$2,0)-1,COUNTA(raw!$A:$A)-1,1),I$2) -> 0 | J52: =COUNTIFS( OFFSET(raw!$A$1,2,MATCH(回答数!$A52,raw!$2:$2,0)-1,COUNTA(raw!$A:$A)-1,1),回答数!$B52, OFFSET(raw!$A$1,2,MATCH($D$1,raw!$2:$2,0)-1,COUNTA(raw!$A:$A)-1,1),J$2) -> 0 | K52: =COUNTIFS( OFFSET(raw!$A$1,2,MATCH(回答数!$A52,raw!$2:$2,0)-1,COUNTA(raw!$A:$A)-1,1),回答数!$B52, OFFSET(raw!$A$1,2,MATCH($D$1,raw!$2:$2,0)-1,COUNTA(raw!$A:$A)-1,1),K$2) -> 0 | L52: =COUNTIFS( OFFSET(raw!$A$1,2,MATCH(回答数!$A52,raw!$2:$2,0)-1,COUNTA(raw!$A:$A)-1,1),回答数!$B52, OFFSET(raw!$A$1,2,MATCH($D$1,raw!$2:$2,0)-1,COUNTA(raw!$A:$A)-1,1),L$2) -> 0 | M52: =COUNTIFS( OFFSET(raw!$A$1,2,MATCH(回答数!$A52,raw!$2:$2,0)-1,COUNTA(raw!$A:$A)-1,1),回答数!$B52, OFFSET(raw!$A$1,2,MATCH($D$1,raw!$2:$2,0)-1,COUNTA(raw!$A:$A)-1,1),M$2) -> 0 | N52: =COUNTIFS( OFFSET(raw!$A$1,2,MATCH(回答数!$A52,raw!$2:$2,0)-1,COUNTA(raw!$A:$A)-1,1),回答数!$B52, OFFSET(raw!$A$1,2,MATCH($D$1,raw!$2:$2,0)-1,COUNTA(raw!$A:$A)-1,1),N$2) -> 0 | O52: =COUNTIFS( OFFSET(raw!$A$1,2,MATCH(回答数!$A52,raw!$2:$2,0)-1,COUNTA(raw!$A:$A)-1,1),回答数!$B52, OFFSET(raw!$A$1,2,MATCH($D$1,raw!$2:$2,0)-1,COUNTA(raw!$A:$A)-1,1),O$2) -> 0 | P52: 128
A53: 回答エリア | B53: かずら橋 エリア | D53: =COUNTIFS( OFFSET(raw!$A$1,2,MATCH(回答数!$A53,raw!$2:$2,0)-1,COUNTA(raw!$A:$A)-1,1),回答数!$B53, OFFSET(raw!$A$1,2,MATCH($D$1,raw!$2:$2,0)-1,COUNTA(raw!$A:$A)-1,1),D$2) -> 43 | E53: =COUNTIFS( OFFSET(raw!$A$1,2,MATCH(回答数!$A53,raw!$2:$2,0)-1,COUNTA(raw!$A:$A)-1,1),回答数!$B53, OFFSET(raw!$A$1,2,MATCH($D$1,raw!$2:$2,0)-1,COUNTA(raw!$A:$A)-1,1),E$2) -> 87 | F53: =COUNTIFS( OFFSET(raw!$A$1,2,MATCH(回答数!$A53,raw!$2:$2,0)-1,COUNTA(raw!$A:$A)-1,1),回答数!$B53, OFFSET(raw!$A$1,2,MATCH($D$1,raw!$2:$2,0)-1,COUNTA(raw!$A:$A)-1,1),F$2) -> 79 | G53: =COUNTIFS( OFFSET(raw!$A$1,2,MATCH(回答数!$A53,raw!$2:$2,0)-1,COUNTA(raw!$A:$A)-1,1),回答数!$B53, OFFSET(raw!$A$1,2,MATCH($D$1,raw!$2:$2,0)-1,COUNTA(raw!$A:$A)-1,1),G$2) -> 72 | H53: =COUNTIFS( OFFSET(raw!$A$1,2,MATCH(回答数!$A53,raw!$2:$2,0)-1,COUNTA(raw!$A:$A)-1,1),回答数!$B53, OFFSET(raw!$A$1,2,MATCH($D$1,raw!$2:$2,0)-1,COUNTA(raw!$A:$A)-1,1),H$2) -> 0 | I53: =COUNTIFS( OFFSET(raw!$A$1,2,MATCH(回答数!$A53,raw!$2:$2,0)-1,COUNTA(raw!$A:$A)-1,1),回答数!$B53, OFFSET(raw!$A$1,2,MATCH($D$1,raw!$2:$2,0)-1,COUNTA(raw!$A:$A)-1,1),I$2) -> 0 | J53: =COUNTIFS( OFFSET(raw!$A$1,2,MATCH(回答数!$A53,raw!$2:$2,0)-1,COUNTA(raw!$A:$A)-1,1),回答数!$B53, OFFSET(raw!$A$1,2,MATCH($D$1,raw!$2:$2,0)-1,COUNTA(raw!$A:$A)-1,1),J$2) -> 0 | K53: =COUNTIFS( OFFSET(raw!$A$1,2,MATCH(回答数!$A53,raw!$2:$2,0)-1,COUNTA(raw!$A:$A)-1,1),回答数!$B53, OFFSET(raw!$A$1,2,MATCH($D$1,raw!$2:$2,0)-1,COUNTA(raw!$A:$A)-1,1),K$2) -> 0 | L53: =COUNTIFS( OFFSET(raw!$A$1,2,MATCH(回答数!$A53,raw!$2:$2,0)-1,COUNTA(raw!$A:$A)-1,1),回答数!$B53, OFFSET(raw!$A$1,2,MATCH($D$1,raw!$2:$2,0)-1,COUNTA(raw!$A:$A)-1,1),L$2) -> 0 | M53: =COUNTIFS( OFFSET(raw!$A$1,2,MATCH(回答数!$A53,raw!$2:$2,0)-1,COUNTA(raw!$A:$A)-1,1),回答数!$B53, OFFSET(raw!$A$1,2,MATCH($D$1,raw!$2:$2,0)-1,COUNTA(raw!$A:$A)-1,1),M$2) -> 0 | N53: =COUNTIFS( OFFSET(raw!$A$1,2,MATCH(回答数!$A53,raw!$2:$2,0)-1,COUNTA(raw!$A:$A)-1,1),回答数!$B53, OFFSET(raw!$A$1,2,MATCH($D$1,raw!$2:$2,0)-1,COUNTA(raw!$A:$A)-1,1),N$2) -> 0 | O53: =COUNTIFS( OFFSET(raw!$A$1,2,MATCH(回答数!$A53,raw!$2:$2,0)-1,COUNTA(raw!$A:$A)-1,1),回答数!$B53, OFFSET(raw!$A$1,2,MATCH($D$1,raw!$2:$2,0)-1,COUNTA(raw!$A:$A)-1,1),O$2) -> 0 | P53: 281
A54: 回答エリア | B54: 道の駅「越前」 エリア | D54: =COUNTIFS( OFFSET(raw!$A$1,2,MATCH(回答数!$A54,raw!$2:$2,0)-1,COUNTA(raw!$A:$A)-1,1),回答数!$B54, OFFSET(raw!$A$1,2,MATCH($D$1,raw!$2:$2,0)-1,COUNTA(raw!$A:$A)-1,1),D$2) -> 67 | E54: =COUNTIFS( OFFSET(raw!$A$1,2,MATCH(回答数!$A54,raw!$2:$2,0)-1,COUNTA(raw!$A:$A)-1,1),回答数!$B54, OFFSET(raw!$A$1,2,MATCH($D$1,raw!$2:$2,0)-1,COUNTA(raw!$A:$A)-1,1),E$2) -> 48 | F54: =COUNTIFS( OFFSET(raw!$A$1,2,MATCH(回答数!$A54,raw!$2:$2,0)-1,COUNTA(raw!$A:$A)-1,1),回答数!$B54, OFFSET(raw!$A$1,2,MATCH($D$1,raw!$2:$2,0)-1,COUNTA(raw!$A:$A)-1,1),F$2) -> 35 | G54: =COUNTIFS( OFFSET(raw!$A$1,2,MATCH(回答数!$A54,raw!$2:$2,0)-1,COUNTA(raw!$A:$A)-1,1),回答数!$B54, OFFSET(raw!$A$1,2,MATCH($D$1,raw!$2:$2,0)-1,COUNTA(raw!$A:$A)-1,1),G$2) -> 27 | H54: =COUNTIFS( OFFSET(raw!$A$1,2,MATCH(回答数!$A54,raw!$2:$2,0)-1,COUNTA(raw!$A:$A)-1,1),回答数!$B54, OFFSET(raw!$A$1,2,MATCH($D$1,raw!$2:$2,0)-1,COUNTA(raw!$A:$A)-1,1),H$2) -> 0 | I54: =COUNTIFS( OFFSET(raw!$A$1,2,MATCH(回答数!$A54,raw!$2:$2,0)-1,COUNTA(raw!$A:$A)-1,1),回答数!$B54, OFFSET(raw!$A$1,2,MATCH($D$1,raw!$2:$2,0)-1,COUNTA(raw!$A:$A)-1,1),I$2) -> 0 | J54: =COUNTIFS( OFFSET(raw!$A$1,2,MATCH(回答数!$A54,raw!$2:$2,0)-1,COUNTA(raw!$A:$A)-1,1),回答数!$B54, OFFSET(raw!$A$1,2,MATCH($D$1,raw!$2:$2,0)-1,COUNTA(raw!$A:$A)-1,1),J$2) -> 0 | K54: =COUNTIFS( OFFSET(raw!$A$1,2,MATCH(回答数!$A54,raw!$2:$2,0)-1,COUNTA(raw!$A:$A)-1,1),回答数!$B54, OFFSET(raw!$A$1,2,MATCH($D$1,raw!$2:$2,0)-1,COUNTA(raw!$A:$A)-1,1),K$2) -> 0 | L54: =COUNTIFS( OFFSET(raw!$A$1,2,MATCH(回答数!$A54,raw!$2:$2,0)-1,COUNTA(raw!$A:$A)-1,1),回答数!$B54, OFFSET(raw!$A$1,2,MATCH($D$1,raw!$2:$2,0)-1,COUNTA(raw!$A:$A)-1,1),L$2) -> 0 | M54: =COUNTIFS( OFFSET(raw!$A$1,2,MATCH(回答数!$A54,raw!$2:$2,0)-1,COUNTA(raw!$A:$A)-1,1),回答数!$B54, OFFSET(raw!$A$1,2,MATCH($D$1,raw!$2:$2,0)-1,COUNTA(raw!$A:$A)-1,1),M$2) -> 0 | N54: =COUNTIFS( OFFSET(raw!$A$1,2,MATCH(回答数!$A54,raw!$2:$2,0)-1,COUNTA(raw!$A:$A)-1,1),回答数!$B54, OFFSET(raw!$A$1,2,MATCH($D$1,raw!$2:$2,0)-1,COUNTA(raw!$A:$A)-1,1),N$2) -> 0 | O54: =COUNTIFS( OFFSET(raw!$A$1,2,MATCH(回答数!$A54,raw!$2:$2,0)-1,COUNTA(raw!$A:$A)-1,1),回答数!$B54, OFFSET(raw!$A$1,2,MATCH($D$1,raw!$2:$2,0)-1,COUNTA(raw!$A:$A)-1,1),O$2) -> 0 | P54: 177
A55: 回答エリア | B55: 道の駅「パークイン丹生ヶ丘」 エリア | D55: =COUNTIFS( OFFSET(raw!$A$1,2,MATCH(回答数!$A55,raw!$2:$2,0)-1,COUNTA(raw!$A:$A)-1,1),回答数!$B55, OFFSET(raw!$A$1,2,MATCH($D$1,raw!$2:$2,0)-1,COUNTA(raw!$A:$A)-1,1),D$2) -> 32 | E55: =COUNTIFS( OFFSET(raw!$A$1,2,MATCH(回答数!$A55,raw!$2:$2,0)-1,COUNTA(raw!$A:$A)-1,1),回答数!$B55, OFFSET(raw!$A$1,2,MATCH($D$1,raw!$2:$2,0)-1,COUNTA(raw!$A:$A)-1,1),E$2) -> 29 | F55: =COUNTIFS( OFFSET(raw!$A$1,2,MATCH(回答数!$A55,raw!$2:$2,0)-1,COUNTA(raw!$A:$A)-1,1),回答数!$B55, OFFSET(raw!$A$1,2,MATCH($D$1,raw!$2:$2,0)-1,COUNTA(raw!$A:$A)-1,1),F$2) -> 48 | G55: =COUNTIFS( OFFSET(raw!$A$1,2,MATCH(回答数!$A55,raw!$2:$2,0)-1,COUNTA(raw!$A:$A)-1,1),回答数!$B55, OFFSET(raw!$A$1,2,MATCH($D$1,raw!$2:$2,0)-1,COUNTA(raw!$A:$A)-1,1),G$2) -> 27 | H55: =COUNTIFS( OFFSET(raw!$A$1,2,MATCH(回答数!$A55,raw!$2:$2,0)-1,COUNTA(raw!$A:$A)-1,1),回答数!$B55, OFFSET(raw!$A$1,2,MATCH($D$1,raw!$2:$2,0)-1,COUNTA(raw!$A:$A)-1,1),H$2) -> 0 | I55: =COUNTIFS( OFFSET(raw!$A$1,2,MATCH(回答数!$A55,raw!$2:$2,0)-1,COUNTA(raw!$A:$A)-1,1),回答数!$B55, OFFSET(raw!$A$1,2,MATCH($D$1,raw!$2:$2,0)-1,COUNTA(raw!$A:$A)-1,1),I$2) -> 0 | J55: =COUNTIFS( OFFSET(raw!$A$1,2,MATCH(回答数!$A55,raw!$2:$2,0)-1,COUNTA(raw!$A:$A)-1,1),回答数!$B55, OFFSET(raw!$A$1,2,MATCH($D$1,raw!$2:$2,0)-1,COUNTA(raw!$A:$A)-1,1),J$2) -> 0 | K55: =COUNTIFS( OFFSET(raw!$A$1,2,MATCH(回答数!$A55,raw!$2:$2,0)-1,COUNTA(raw!$A:$A)-1,1),回答数!$B55, OFFSET(raw!$A$1,2,MATCH($D$1,raw!$2:$2,0)-1,COUNTA(raw!$A:$A)-1,1),K$2) -> 0 | L55: =COUNTIFS( OFFSET(raw!$A$1,2,MATCH(回答数!$A55,raw!$2:$2,0)-1,COUNTA(raw!$A:$A)-1,1),回答数!$B55, OFFSET(raw!$A$1,2,MATCH($D$1,raw!$2:$2,0)-1,COUNTA(raw!$A:$A)-1,1),L$2) -> 0 | M55: =COUNTIFS( OFFSET(raw!$A$1,2,MATCH(回答数!$A55,raw!$2:$2,0)-1,COUNTA(raw!$A:$A)-1,1),回答数!$B55, OFFSET(raw!$A$1,2,MATCH($D$1,raw!$2:$2,0)-1,COUNTA(raw!$A:$A)-1,1),M$2) -> 0 | N55: =COUNTIFS( OFFSET(raw!$A$1,2,MATCH(回答数!$A55,raw!$2:$2,0)-1,COUNTA(raw!$A:$A)-1,1),回答数!$B55, OFFSET(raw!$A$1,2,MATCH($D$1,raw!$2:$2,0)-1,COUNTA(raw!$A:$A)-1,1),N$2) -> 0 | O55: =COUNTIFS( OFFSET(raw!$A$1,2,MATCH(回答数!$A55,raw!$2:$2,0)-1,COUNTA(raw!$A:$A)-1,1),回答数!$B55, OFFSET(raw!$A$1,2,MATCH($D$1,raw!$2:$2,0)-1,COUNTA(raw!$A:$A)-1,1),O$2) -> 0 | P55: 136
A56: 回答エリア | B56: 劔神社 エリア | D56: =COUNTIFS( OFFSET(raw!$A$1,2,MATCH(回答数!$A56,raw!$2:$2,0)-1,COUNTA(raw!$A:$A)-1,1),回答数!$B56, OFFSET(raw!$A$1,2,MATCH($D$1,raw!$2:$2,0)-1,COUNTA(raw!$A:$A)-1,1),D$2) -> 40 | E56: =COUNTIFS( OFFSET(raw!$A$1,2,MATCH(回答数!$A56,raw!$2:$2,0)-1,COUNTA(raw!$A:$A)-1,1),回答数!$B56, OFFSET(raw!$A$1,2,MATCH($D$1,raw!$2:$2,0)-1,COUNTA(raw!$A:$A)-1,1),E$2) -> 27 | F56: =COUNTIFS( OFFSET(raw!$A$1,2,MATCH(回答数!$A56,raw!$2:$2,0)-1,COUNTA(raw!$A:$A)-1,1),回答数!$B56, OFFSET(raw!$A$1,2,MATCH($D$1,raw!$2:$2,0)-1,COUNTA(raw!$A:$A)-1,1),F$2) -> 9 | G56: =COUNTIFS( OFFSET(raw!$A$1,2,MATCH(回答数!$A56,raw!$2:$2,0)-1,COUNTA(raw!$A:$A)-1,1),回答数!$B56, OFFSET(raw!$A$1,2,MATCH($D$1,raw!$2:$2,0)-1,COUNTA(raw!$A:$A)-1,1),G$2) -> 5 | H56: =COUNTIFS( OFFSET(raw!$A$1,2,MATCH(回答数!$A56,raw!$2:$2,0)-1,COUNTA(raw!$A:$A)-1,1),回答数!$B56, OFFSET(raw!$A$1,2,MATCH($D$1,raw!$2:$2,0)-1,COUNTA(raw!$A:$A)-1,1),H$2) -> 0 | I56: =COUNTIFS( OFFSET(raw!$A$1,2,MATCH(回答数!$A56,raw!$2:$2,0)-1,COUNTA(raw!$A:$A)-1,1),回答数!$B56, OFFSET(raw!$A$1,2,MATCH($D$1,raw!$2:$2,0)-1,COUNTA(raw!$A:$A)-1,1),I$2) -> 0 | J56: =COUNTIFS( OFFSET(raw!$A$1,2,MATCH(回答数!$A56,raw!$2:$2,0)-1,COUNTA(raw!$A:$A)-1,1),回答数!$B56, OFFSET(raw!$A$1,2,MATCH($D$1,raw!$2:$2,0)-1,COUNTA(raw!$A:$A)-1,1),J$2) -> 0 | K56: =COUNTIFS( OFFSET(raw!$A$1,2,MATCH(回答数!$A56,raw!$2:$2,0)-1,COUNTA(raw!$A:$A)-1,1),回答数!$B56, OFFSET(raw!$A$1,2,MATCH($D$1,raw!$2:$2,0)-1,COUNTA(raw!$A:$A)-1,1),K$2) -> 0 | L56: =COUNTIFS( OFFSET(raw!$A$1,2,MATCH(回答数!$A56,raw!$2:$2,0)-1,COUNTA(raw!$A:$A)-1,1),回答数!$B56, OFFSET(raw!$A$1,2,MATCH($D$1,raw!$2:$2,0)-1,COUNTA(raw!$A:$A)-1,1),L$2) -> 0 | M56: =COUNTIFS( OFFSET(raw!$A$1,2,MATCH(回答数!$A56,raw!$2:$2,0)-1,COUNTA(raw!$A:$A)-1,1),回答数!$B56, OFFSET(raw!$A$1,2,MATCH($D$1,raw!$2:$2,0)-1,COUNTA(raw!$A:$A)-1,1),M$2) -> 0 | N56: =COUNTIFS( OFFSET(raw!$A$1,2,MATCH(回答数!$A56,raw!$2:$2,0)-1,COUNTA(raw!$A:$A)-1,1),回答数!$B56, OFFSET(raw!$A$1,2,MATCH($D$1,raw!$2:$2,0)-1,COUNTA(raw!$A:$A)-1,1),N$2) -> 0 | O56: =COUNTIFS( OFFSET(raw!$A$1,2,MATCH(回答数!$A56,raw!$2:$2,0)-1,COUNTA(raw!$A:$A)-1,1),回答数!$B56, OFFSET(raw!$A$1,2,MATCH($D$1,raw!$2:$2,0)-1,COUNTA(raw!$A:$A)-1,1),O$2) -> 0 | P56: 81
A57: 回答エリア | B57: 越前陶芸村 エリア | D57: =COUNTIFS( OFFSET(raw!$A$1,2,MATCH(回答数!$A57,raw!$2:$2,0)-1,COUNTA(raw!$A:$A)-1,1),回答数!$B57, OFFSET(raw!$A$1,2,MATCH($D$1,raw!$2:$2,0)-1,COUNTA(raw!$A:$A)-1,1),D$2) -> 30 | E57: =COUNTIFS( OFFSET(raw!$A$1,2,MATCH(回答数!$A57,raw!$2:$2,0)-1,COUNTA(raw!$A:$A)-1,1),回答数!$B57, OFFSET(raw!$A$1,2,MATCH($D$1,raw!$2:$2,0)-1,COUNTA(raw!$A:$A)-1,1),E$2) -> 26 | F57: =COUNTIFS( OFFSET(raw!$A$1,2,MATCH(回答数!$A57,raw!$2:$2,0)-1,COUNTA(raw!$A:$A)-1,1),回答数!$B57, OFFSET(raw!$A$1,2,MATCH($D$1,raw!$2:$2,0)-1,COUNTA(raw!$A:$A)-1,1),F$2) -> 7 | G57: =COUNTIFS( OFFSET(raw!$A$1,2,MATCH(回答数!$A57,raw!$2:$2,0)-1,COUNTA(raw!$A:$A)-1,1),回答数!$B57, OFFSET(raw!$A$1,2,MATCH($D$1,raw!$2:$2,0)-1,COUNTA(raw!$A:$A)-1,1),G$2) -> 6 | H57: =COUNTIFS( OFFSET(raw!$A$1,2,MATCH(回答数!$A57,raw!$2:$2,0)-1,COUNTA(raw!$A:$A)-1,1),回答数!$B57, OFFSET(raw!$A$1,2,MATCH($D$1,raw!$2:$2,0)-1,COUNTA(raw!$A:$A)-1,1),H$2) -> 0 | I57: =COUNTIFS( OFFSET(raw!$A$1,2,MATCH(回答数!$A57,raw!$2:$2,0)-1,COUNTA(raw!$A:$A)-1,1),回答数!$B57, OFFSET(raw!$A$1,2,MATCH($D$1,raw!$2:$2,0)-1,COUNTA(raw!$A:$A)-1,1),I$2) -> 0 | J57: =COUNTIFS( OFFSET(raw!$A$1,2,MATCH(回答数!$A57,raw!$2:$2,0)-1,COUNTA(raw!$A:$A)-1,1),回答数!$B57, OFFSET(raw!$A$1,2,MATCH($D$1,raw!$2:$2,0)-1,COUNTA(raw!$A:$A)-1,1),J$2) -> 0 | K57: =COUNTIFS( OFFSET(raw!$A$1,2,MATCH(回答数!$A57,raw!$2:$2,0)-1,COUNTA(raw!$A:$A)-1,1),回答数!$B57, OFFSET(raw!$A$1,2,MATCH($D$1,raw!$2:$2,0)-1,COUNTA(raw!$A:$A)-1,1),K$2) -> 0 | L57: =COUNTIFS( OFFSET(raw!$A$1,2,MATCH(回答数!$A57,raw!$2:$2,0)-1,COUNTA(raw!$A:$A)-1,1),回答数!$B57, OFFSET(raw!$A$1,2,MATCH($D$1,raw!$2:$2,0)-1,COUNTA(raw!$A:$A)-1,1),L$2) -> 0 | M57: =COUNTIFS( OFFSET(raw!$A$1,2,MATCH(回答数!$A57,raw!$2:$2,0)-1,COUNTA(raw!$A:$A)-1,1),回答数!$B57, OFFSET(raw!$A$1,2,MATCH($D$1,raw!$2:$2,0)-1,COUNTA(raw!$A:$A)-1,1),M$2) -> 0 | N57: =COUNTIFS( OFFSET(raw!$A$1,2,MATCH(回答数!$A57,raw!$2:$2,0)-1,COUNTA(raw!$A:$A)-1,1),回答数!$B57, OFFSET(raw!$A$1,2,MATCH($D$1,raw!$2:$2,0)-1,COUNTA(raw!$A:$A)-1,1),N$2) -> 0 | O57: =COUNTIFS( OFFSET(raw!$A$1,2,MATCH(回答数!$A57,raw!$2:$2,0)-1,COUNTA(raw!$A:$A)-1,1),回答数!$B57, OFFSET(raw!$A$1,2,MATCH($D$1,raw!$2:$2,0)-1,COUNTA(raw!$A:$A)-1,1),O$2) -> 0 | P57: 69
A58: 回答エリア | B58: 越前海岸 越前岬 エリア | D58: =COUNTIFS( OFFSET(raw!$A$1,2,MATCH(回答数!$A58,raw!$2:$2,0)-1,COUNTA(raw!$A:$A)-1,1),回答数!$B58, OFFSET(raw!$A$1,2,MATCH($D$1,raw!$2:$2,0)-1,COUNTA(raw!$A:$A)-1,1),D$2) -> 17 | E58: =COUNTIFS( OFFSET(raw!$A$1,2,MATCH(回答数!$A58,raw!$2:$2,0)-1,COUNTA(raw!$A:$A)-1,1),回答数!$B58, OFFSET(raw!$A$1,2,MATCH($D$1,raw!$2:$2,0)-1,COUNTA(raw!$A:$A)-1,1),E$2) -> 15 | F58: =COUNTIFS( OFFSET(raw!$A$1,2,MATCH(回答数!$A58,raw!$2:$2,0)-1,COUNTA(raw!$A:$A)-1,1),回答数!$B58, OFFSET(raw!$A$1,2,MATCH($D$1,raw!$2:$2,0)-1,COUNTA(raw!$A:$A)-1,1),F$2) -> 0 | G58: =COUNTIFS( OFFSET(raw!$A$1,2,MATCH(回答数!$A58,raw!$2:$2,0)-1,COUNTA(raw!$A:$A)-1,1),回答数!$B58, OFFSET(raw!$A$1,2,MATCH($D$1,raw!$2:$2,0)-1,COUNTA(raw!$A:$A)-1,1),G$2) -> 1 | H58: =COUNTIFS( OFFSET(raw!$A$1,2,MATCH(回答数!$A58,raw!$2:$2,0)-1,COUNTA(raw!$A:$A)-1,1),回答数!$B58, OFFSET(raw!$A$1,2,MATCH($D$1,raw!$2:$2,0)-1,COUNTA(raw!$A:$A)-1,1),H$2) -> 0 | I58: =COUNTIFS( OFFSET(raw!$A$1,2,MATCH(回答数!$A58,raw!$2:$2,0)-1,COUNTA(raw!$A:$A)-1,1),回答数!$B58, OFFSET(raw!$A$1,2,MATCH($D$1,raw!$2:$2,0)-1,COUNTA(raw!$A:$A)-1,1),I$2) -> 0 | J58: =COUNTIFS( OFFSET(raw!$A$1,2,MATCH(回答数!$A58,raw!$2:$2,0)-1,COUNTA(raw!$A:$A)-1,1),回答数!$B58, OFFSET(raw!$A$1,2,MATCH($D$1,raw!$2:$2,0)-1,COUNTA(raw!$A:$A)-1,1),J$2) -> 0 | K58: =COUNTIFS( OFFSET(raw!$A$1,2,MATCH(回答数!$A58,raw!$2:$2,0)-1,COUNTA(raw!$A:$A)-1,1),回答数!$B58, OFFSET(raw!$A$1,2,MATCH($D$1,raw!$2:$2,0)-1,COUNTA(raw!$A:$A)-1,1),K$2) -> 0 | L58: =COUNTIFS( OFFSET(raw!$A$1,2,MATCH(回答数!$A58,raw!$2:$2,0)-1,COUNTA(raw!$A:$A)-1,1),回答数!$B58, OFFSET(raw!$A$1,2,MATCH($D$1,raw!$2:$2,0)-1,COUNTA(raw!$A:$A)-1,1),L$2) -> 0 | M58: =COUNTIFS( OFFSET(raw!$A$1,2,MATCH(回答数!$A58,raw!$2:$2,0)-1,COUNTA(raw!$A:$A)-1,1),回答数!$B58, OFFSET(raw!$A$1,2,MATCH($D$1,raw!$2:$2,0)-1,COUNTA(raw!$A:$A)-1,1),M$2) -> 0 | N58: =COUNTIFS( OFFSET(raw!$A$1,2,MATCH(回答数!$A58,raw!$2:$2,0)-1,COUNTA(raw!$A:$A)-1,1),回答数!$B58, OFFSET(raw!$A$1,2,MATCH($D$1,raw!$2:$2,0)-1,COUNTA(raw!$A:$A)-1,1),N$2) -> 0 | O58: =COUNTIFS( OFFSET(raw!$A$1,2,MATCH(回答数!$A58,raw!$2:$2,0)-1,COUNTA(raw!$A:$A)-1,1),回答数!$B58, OFFSET(raw!$A$1,2,MATCH($D$1,raw!$2:$2,0)-1,COUNTA(raw!$A:$A)-1,1),O$2) -> 0 | P58: 33
A59: 回答エリア | B59: 越前漁港 エリア | D59: =COUNTIFS( OFFSET(raw!$A$1,2,MATCH(回答数!$A59,raw!$2:$2,0)-1,COUNTA(raw!$A:$A)-1,1),回答数!$B59, OFFSET(raw!$A$1,2,MATCH($D$1,raw!$2:$2,0)-1,COUNTA(raw!$A:$A)-1,1),D$2) -> 8 | E59: =COUNTIFS( OFFSET(raw!$A$1,2,MATCH(回答数!$A59,raw!$2:$2,0)-1,COUNTA(raw!$A:$A)-1,1),回答数!$B59, OFFSET(raw!$A$1,2,MATCH($D$1,raw!$2:$2,0)-1,COUNTA(raw!$A:$A)-1,1),E$2) -> 0 | F59: =COUNTIFS( OFFSET(raw!$A$1,2,MATCH(回答数!$A59,raw!$2:$2,0)-1,COUNTA(raw!$A:$A)-1,1),回答数!$B59, OFFSET(raw!$A$1,2,MATCH($D$1,raw!$2:$2,0)-1,COUNTA(raw!$A:$A)-1,1),F$2) -> 4 | G59: =COUNTIFS( OFFSET(raw!$A$1,2,MATCH(回答数!$A59,raw!$2:$2,0)-1,COUNTA(raw!$A:$A)-1,1),回答数!$B59, OFFSET(raw!$A$1,2,MATCH($D$1,raw!$2:$2,0)-1,COUNTA(raw!$A:$A)-1,1),G$2) -> 0 | H59: =COUNTIFS( OFFSET(raw!$A$1,2,MATCH(回答数!$A59,raw!$2:$2,0)-1,COUNTA(raw!$A:$A)-1,1),回答数!$B59, OFFSET(raw!$A$1,2,MATCH($D$1,raw!$2:$2,0)-1,COUNTA(raw!$A:$A)-1,1),H$2) -> 0 | I59: =COUNTIFS( OFFSET(raw!$A$1,2,MATCH(回答数!$A59,raw!$2:$2,0)-1,COUNTA(raw!$A:$A)-1,1),回答数!$B59, OFFSET(raw!$A$1,2,MATCH($D$1,raw!$2:$2,0)-1,COUNTA(raw!$A:$A)-1,1),I$2) -> 0 | J59: =COUNTIFS( OFFSET(raw!$A$1,2,MATCH(回答数!$A59,raw!$2:$2,0)-1,COUNTA(raw!$A:$A)-1,1),回答数!$B59, OFFSET(raw!$A$1,2,MATCH($D$1,raw!$2:$2,0)-1,COUNTA(raw!$A:$A)-1,1),J$2) -> 0 | K59: =COUNTIFS( OFFSET(raw!$A$1,2,MATCH(回答数!$A59,raw!$2:$2,0)-1,COUNTA(raw!$A:$A)-1,1),回答数!$B59, OFFSET(raw!$A$1,2,MATCH($D$1,raw!$2:$2,0)-1,COUNTA(raw!$A:$A)-1,1),K$2) -> 0 | L59: =COUNTIFS( OFFSET(raw!$A$1,2,MATCH(回答数!$A59,raw!$2:$2,0)-1,COUNTA(raw!$A:$A)-1,1),回答数!$B59, OFFSET(raw!$A$1,2,MATCH($D$1,raw!$2:$2,0)-1,COUNTA(raw!$A:$A)-1,1),L$2) -> 0 | M59: =COUNTIFS( OFFSET(raw!$A$1,2,MATCH(回答数!$A59,raw!$2:$2,0)-1,COUNTA(raw!$A:$A)-1,1),回答数!$B59, OFFSET(raw!$A$1,2,MATCH($D$1,raw!$2:$2,0)-1,COUNTA(raw!$A:$A)-1,1),M$2) -> 0 | N59: =COUNTIFS( OFFSET(raw!$A$1,2,MATCH(回答数!$A59,raw!$2:$2,0)-1,COUNTA(raw!$A:$A)-1,1),回答数!$B59, OFFSET(raw!$A$1,2,MATCH($D$1,raw!$2:$2,0)-1,COUNTA(raw!$A:$A)-1,1),N$2) -> 0 | O59: =COUNTIFS( OFFSET(raw!$A$1,2,MATCH(回答数!$A59,raw!$2:$2,0)-1,COUNTA(raw!$A:$A)-1,1),回答数!$B59, OFFSET(raw!$A$1,2,MATCH($D$1,raw!$2:$2,0)-1,COUNTA(raw!$A:$A)-1,1),O$2) -> 0 | P59: 12
A60: 回答エリア | B60: 越前海岸 茂原民宿街 エリア | D60: =COUNTIFS( OFFSET(raw!$A$1,2,MATCH(回答数!$A60,raw!$2:$2,0)-1,COUNTA(raw!$A:$A)-1,1),回答数!$B60, OFFSET(raw!$A$1,2,MATCH($D$1,raw!$2:$2,0)-1,COUNTA(raw!$A:$A)-1,1),D$2) -> 1 | E60: =COUNTIFS( OFFSET(raw!$A$1,2,MATCH(回答数!$A60,raw!$2:$2,0)-1,COUNTA(raw!$A:$A)-1,1),回答数!$B60, OFFSET(raw!$A$1,2,MATCH($D$1,raw!$2:$2,0)-1,COUNTA(raw!$A:$A)-1,1),E$2) -> 0 | F60: =COUNTIFS( OFFSET(raw!$A$1,2,MATCH(回答数!$A60,raw!$2:$2,0)-1,COUNTA(raw!$A:$A)-1,1),回答数!$B60, OFFSET(raw!$A$1,2,MATCH($D$1,raw!$2:$2,0)-1,COUNTA(raw!$A:$A)-1,1),F$2) -> 0 | G60: =COUNTIFS( OFFSET(raw!$A$1,2,MATCH(回答数!$A60,raw!$2:$2,0)-1,COUNTA(raw!$A:$A)-1,1),回答数!$B60, OFFSET(raw!$A$1,2,MATCH($D$1,raw!$2:$2,0)-1,COUNTA(raw!$A:$A)-1,1),G$2) -> 1 | H60: =COUNTIFS( OFFSET(raw!$A$1,2,MATCH(回答数!$A60,raw!$2:$2,0)-1,COUNTA(raw!$A:$A)-1,1),回答数!$B60, OFFSET(raw!$A$1,2,MATCH($D$1,raw!$2:$2,0)-1,COUNTA(raw!$A:$A)-1,1),H$2) -> 0 | I60: =COUNTIFS( OFFSET(raw!$A$1,2,MATCH(回答数!$A60,raw!$2:$2,0)-1,COUNTA(raw!$A:$A)-1,1),回答数!$B60, OFFSET(raw!$A$1,2,MATCH($D$1,raw!$2:$2,0)-1,COUNTA(raw!$A:$A)-1,1),I$2) -> 0 | J60: =COUNTIFS( OFFSET(raw!$A$1,2,MATCH(回答数!$A60,raw!$2:$2,0)-1,COUNTA(raw!$A:$A)-1,1),回答数!$B60, OFFSET(raw!$A$1,2,MATCH($D$1,raw!$2:$2,0)-1,COUNTA(raw!$A:$A)-1,1),J$2) -> 0 | K60: =COUNTIFS( OFFSET(raw!$A$1,2,MATCH(回答数!$A60,raw!$2:$2,0)-1,COUNTA(raw!$A:$A)-1,1),回答数!$B60, OFFSET(raw!$A$1,2,MATCH($D$1,raw!$2:$2,0)-1,COUNTA(raw!$A:$A)-1,1),K$2) -> 0 | L60: =COUNTIFS( OFFSET(raw!$A$1,2,MATCH(回答数!$A60,raw!$2:$2,0)-1,COUNTA(raw!$A:$A)-1,1),回答数!$B60, OFFSET(raw!$A$1,2,MATCH($D$1,raw!$2:$2,0)-1,COUNTA(raw!$A:$A)-1,1),L$2) -> 0 | M60: =COUNTIFS( OFFSET(raw!$A$1,2,MATCH(回答数!$A60,raw!$2:$2,0)-1,COUNTA(raw!$A:$A)-1,1),回答数!$B60, OFFSET(raw!$A$1,2,MATCH($D$1,raw!$2:$2,0)-1,COUNTA(raw!$A:$A)-1,1),M$2) -> 0 | N60: =COUNTIFS( OFFSET(raw!$A$1,2,MATCH(回答数!$A60,raw!$2:$2,0)-1,COUNTA(raw!$A:$A)-1,1),回答数!$B60, OFFSET(raw!$A$1,2,MATCH($D$1,raw!$2:$2,0)-1,COUNTA(raw!$A:$A)-1,1),N$2) -> 0 | O60: =COUNTIFS( OFFSET(raw!$A$1,2,MATCH(回答数!$A60,raw!$2:$2,0)-1,COUNTA(raw!$A:$A)-1,1),回答数!$B60, OFFSET(raw!$A$1,2,MATCH($D$1,raw!$2:$2,0)-1,COUNTA(raw!$A:$A)-1,1),O$2) -> 0 | P60: 2
A61: 回答エリア | B61: 越前海岸 高佐米ノ旅館街 エリア | D61: =COUNTIFS( OFFSET(raw!$A$1,2,MATCH(回答数!$A61,raw!$2:$2,0)-1,COUNTA(raw!$A:$A)-1,1),回答数!$B61, OFFSET(raw!$A$1,2,MATCH($D$1,raw!$2:$2,0)-1,COUNTA(raw!$A:$A)-1,1),D$2) -> 10 | E61: =COUNTIFS( OFFSET(raw!$A$1,2,MATCH(回答数!$A61,raw!$2:$2,0)-1,COUNTA(raw!$A:$A)-1,1),回答数!$B61, OFFSET(raw!$A$1,2,MATCH($D$1,raw!$2:$2,0)-1,COUNTA(raw!$A:$A)-1,1),E$2) -> 2 | F61: =COUNTIFS( OFFSET(raw!$A$1,2,MATCH(回答数!$A61,raw!$2:$2,0)-1,COUNTA(raw!$A:$A)-1,1),回答数!$B61, OFFSET(raw!$A$1,2,MATCH($D$1,raw!$2:$2,0)-1,COUNTA(raw!$A:$A)-1,1),F$2) -> 4 | G61: =COUNTIFS( OFFSET(raw!$A$1,2,MATCH(回答数!$A61,raw!$2:$2,0)-1,COUNTA(raw!$A:$A)-1,1),回答数!$B61, OFFSET(raw!$A$1,2,MATCH($D$1,raw!$2:$2,0)-1,COUNTA(raw!$A:$A)-1,1),G$2) -> 8 | H61: =COUNTIFS( OFFSET(raw!$A$1,2,MATCH(回答数!$A61,raw!$2:$2,0)-1,COUNTA(raw!$A:$A)-1,1),回答数!$B61, OFFSET(raw!$A$1,2,MATCH($D$1,raw!$2:$2,0)-1,COUNTA(raw!$A:$A)-1,1),H$2) -> 0 | I61: =COUNTIFS( OFFSET(raw!$A$1,2,MATCH(回答数!$A61,raw!$2:$2,0)-1,COUNTA(raw!$A:$A)-1,1),回答数!$B61, OFFSET(raw!$A$1,2,MATCH($D$1,raw!$2:$2,0)-1,COUNTA(raw!$A:$A)-1,1),I$2) -> 0 | J61: =COUNTIFS( OFFSET(raw!$A$1,2,MATCH(回答数!$A61,raw!$2:$2,0)-1,COUNTA(raw!$A:$A)-1,1),回答数!$B61, OFFSET(raw!$A$1,2,MATCH($D$1,raw!$2:$2,0)-1,COUNTA(raw!$A:$A)-1,1),J$2) -> 0 | K61: =COUNTIFS( OFFSET(raw!$A$1,2,MATCH(回答数!$A61,raw!$2:$2,0)-1,COUNTA(raw!$A:$A)-1,1),回答数!$B61, OFFSET(raw!$A$1,2,MATCH($D$1,raw!$2:$2,0)-1,COUNTA(raw!$A:$A)-1,1),K$2) -> 0 | L61: =COUNTIFS( OFFSET(raw!$A$1,2,MATCH(回答数!$A61,raw!$2:$2,0)-1,COUNTA(raw!$A:$A)-1,1),回答数!$B61, OFFSET(raw!$A$1,2,MATCH($D$1,raw!$2:$2,0)-1,COUNTA(raw!$A:$A)-1,1),L$2) -> 0 | M61: =COUNTIFS( OFFSET(raw!$A$1,2,MATCH(回答数!$A61,raw!$2:$2,0)-1,COUNTA(raw!$A:$A)-1,1),回答数!$B61, OFFSET(raw!$A$1,2,MATCH($D$1,raw!$2:$2,0)-1,COUNTA(raw!$A:$A)-1,1),M$2) -> 0 | N61: =COUNTIFS( OFFSET(raw!$A$1,2,MATCH(回答数!$A61,raw!$2:$2,0)-1,COUNTA(raw!$A:$A)-1,1),回答数!$B61, OFFSET(raw!$A$1,2,MATCH($D$1,raw!$2:$2,0)-1,COUNTA(raw!$A:$A)-1,1),N$2) -> 0 | O61: =COUNTIFS( OFFSET(raw!$A$1,2,MATCH(回答数!$A61,raw!$2:$2,0)-1,COUNTA(raw!$A:$A)-1,1),回答数!$B61, OFFSET(raw!$A$1,2,MATCH($D$1,raw!$2:$2,0)-1,COUNTA(raw!$A:$A)-1,1),O$2) -> 0 | P61: 24
A62: 回答エリア | B62: 越前海岸 くりや旅館街 エリア | D62: =COUNTIFS( OFFSET(raw!$A$1,2,MATCH(回答数!$A62,raw!$2:$2,0)-1,COUNTA(raw!$A:$A)-1,1),回答数!$B62, OFFSET(raw!$A$1,2,MATCH($D$1,raw!$2:$2,0)-1,COUNTA(raw!$A:$A)-1,1),D$2) -> 5 | E62: =COUNTIFS( OFFSET(raw!$A$1,2,MATCH(回答数!$A62,raw!$2:$2,0)-1,COUNTA(raw!$A:$A)-1,1),回答数!$B62, OFFSET(raw!$A$1,2,MATCH($D$1,raw!$2:$2,0)-1,COUNTA(raw!$A:$A)-1,1),E$2) -> 3 | F62: =COUNTIFS( OFFSET(raw!$A$1,2,MATCH(回答数!$A62,raw!$2:$2,0)-1,COUNTA(raw!$A:$A)-1,1),回答数!$B62, OFFSET(raw!$A$1,2,MATCH($D$1,raw!$2:$2,0)-1,COUNTA(raw!$A:$A)-1,1),F$2) -> 1 | G62: =COUNTIFS( OFFSET(raw!$A$1,2,MATCH(回答数!$A62,raw!$2:$2,0)-1,COUNTA(raw!$A:$A)-1,1),回答数!$B62, OFFSET(raw!$A$1,2,MATCH($D$1,raw!$2:$2,0)-1,COUNTA(raw!$A:$A)-1,1),G$2) -> 3 | H62: =COUNTIFS( OFFSET(raw!$A$1,2,MATCH(回答数!$A62,raw!$2:$2,0)-1,COUNTA(raw!$A:$A)-1,1),回答数!$B62, OFFSET(raw!$A$1,2,MATCH($D$1,raw!$2:$2,0)-1,COUNTA(raw!$A:$A)-1,1),H$2) -> 0 | I62: =COUNTIFS( OFFSET(raw!$A$1,2,MATCH(回答数!$A62,raw!$2:$2,0)-1,COUNTA(raw!$A:$A)-1,1),回答数!$B62, OFFSET(raw!$A$1,2,MATCH($D$1,raw!$2:$2,0)-1,COUNTA(raw!$A:$A)-1,1),I$2) -> 0 | J62: =COUNTIFS( OFFSET(raw!$A$1,2,MATCH(回答数!$A62,raw!$2:$2,0)-1,COUNTA(raw!$A:$A)-1,1),回答数!$B62, OFFSET(raw!$A$1,2,MATCH($D$1,raw!$2:$2,0)-1,COUNTA(raw!$A:$A)-1,1),J$2) -> 0 | K62: =COUNTIFS( OFFSET(raw!$A$1,2,MATCH(回答数!$A62,raw!$2:$2,0)-1,COUNTA(raw!$A:$A)-1,1),回答数!$B62, OFFSET(raw!$A$1,2,MATCH($D$1,raw!$2:$2,0)-1,COUNTA(raw!$A:$A)-1,1),K$2) -> 0 | L62: =COUNTIFS( OFFSET(raw!$A$1,2,MATCH(回答数!$A62,raw!$2:$2,0)-1,COUNTA(raw!$A:$A)-1,1),回答数!$B62, OFFSET(raw!$A$1,2,MATCH($D$1,raw!$2:$2,0)-1,COUNTA(raw!$A:$A)-1,1),L$2) -> 0 | M62: =COUNTIFS( OFFSET(raw!$A$1,2,MATCH(回答数!$A62,raw!$2:$2,0)-1,COUNTA(raw!$A:$A)-1,1),回答数!$B62, OFFSET(raw!$A$1,2,MATCH($D$1,raw!$2:$2,0)-1,COUNTA(raw!$A:$A)-1,1),M$2) -> 0 | N62: =COUNTIFS( OFFSET(raw!$A$1,2,MATCH(回答数!$A62,raw!$2:$2,0)-1,COUNTA(raw!$A:$A)-1,1),回答数!$B62, OFFSET(raw!$A$1,2,MATCH($D$1,raw!$2:$2,0)-1,COUNTA(raw!$A:$A)-1,1),N$2) -> 0 | O62: =COUNTIFS( OFFSET(raw!$A$1,2,MATCH(回答数!$A62,raw!$2:$2,0)-1,COUNTA(raw!$A:$A)-1,1),回答数!$B62, OFFSET(raw!$A$1,2,MATCH($D$1,raw!$2:$2,0)-1,COUNTA(raw!$A:$A)-1,1),O$2) -> 0 | P62: 12
A63: 回答エリア | B63: 道の駅「南えちぜん山海里」 エリア | D63: =COUNTIFS( OFFSET(raw!$A$1,2,MATCH(回答数!$A63,raw!$2:$2,0)-1,COUNTA(raw!$A:$A)-1,1),回答数!$B63, OFFSET(raw!$A$1,2,MATCH($D$1,raw!$2:$2,0)-1,COUNTA(raw!$A:$A)-1,1),D$2) -> 94 | E63: =COUNTIFS( OFFSET(raw!$A$1,2,MATCH(回答数!$A63,raw!$2:$2,0)-1,COUNTA(raw!$A:$A)-1,1),回答数!$B63, OFFSET(raw!$A$1,2,MATCH($D$1,raw!$2:$2,0)-1,COUNTA(raw!$A:$A)-1,1),E$2) -> 92 | F63: =COUNTIFS( OFFSET(raw!$A$1,2,MATCH(回答数!$A63,raw!$2:$2,0)-1,COUNTA(raw!$A:$A)-1,1),回答数!$B63, OFFSET(raw!$A$1,2,MATCH($D$1,raw!$2:$2,0)-1,COUNTA(raw!$A:$A)-1,1),F$2) -> 55 | G63: =COUNTIFS( OFFSET(raw!$A$1,2,MATCH(回答数!$A63,raw!$2:$2,0)-1,COUNTA(raw!$A:$A)-1,1),回答数!$B63, OFFSET(raw!$A$1,2,MATCH($D$1,raw!$2:$2,0)-1,COUNTA(raw!$A:$A)-1,1),G$2) -> 49 | H63: =COUNTIFS( OFFSET(raw!$A$1,2,MATCH(回答数!$A63,raw!$2:$2,0)-1,COUNTA(raw!$A:$A)-1,1),回答数!$B63, OFFSET(raw!$A$1,2,MATCH($D$1,raw!$2:$2,0)-1,COUNTA(raw!$A:$A)-1,1),H$2) -> 0 | I63: =COUNTIFS( OFFSET(raw!$A$1,2,MATCH(回答数!$A63,raw!$2:$2,0)-1,COUNTA(raw!$A:$A)-1,1),回答数!$B63, OFFSET(raw!$A$1,2,MATCH($D$1,raw!$2:$2,0)-1,COUNTA(raw!$A:$A)-1,1),I$2) -> 0 | J63: =COUNTIFS( OFFSET(raw!$A$1,2,MATCH(回答数!$A63,raw!$2:$2,0)-1,COUNTA(raw!$A:$A)-1,1),回答数!$B63, OFFSET(raw!$A$1,2,MATCH($D$1,raw!$2:$2,0)-1,COUNTA(raw!$A:$A)-1,1),J$2) -> 0 | K63: =COUNTIFS( OFFSET(raw!$A$1,2,MATCH(回答数!$A63,raw!$2:$2,0)-1,COUNTA(raw!$A:$A)-1,1),回答数!$B63, OFFSET(raw!$A$1,2,MATCH($D$1,raw!$2:$2,0)-1,COUNTA(raw!$A:$A)-1,1),K$2) -> 0 | L63: =COUNTIFS( OFFSET(raw!$A$1,2,MATCH(回答数!$A63,raw!$2:$2,0)-1,COUNTA(raw!$A:$A)-1,1),回答数!$B63, OFFSET(raw!$A$1,2,MATCH($D$1,raw!$2:$2,0)-1,COUNTA(raw!$A:$A)-1,1),L$2) -> 0 | M63: =COUNTIFS( OFFSET(raw!$A$1,2,MATCH(回答数!$A63,raw!$2:$2,0)-1,COUNTA(raw!$A:$A)-1,1),回答数!$B63, OFFSET(raw!$A$1,2,MATCH($D$1,raw!$2:$2,0)-1,COUNTA(raw!$A:$A)-1,1),M$2) -> 0 | N63: =COUNTIFS( OFFSET(raw!$A$1,2,MATCH(回答数!$A63,raw!$2:$2,0)-1,COUNTA(raw!$A:$A)-1,1),回答数!$B63, OFFSET(raw!$A$1,2,MATCH($D$1,raw!$2:$2,0)-1,COUNTA(raw!$A:$A)-1,1),N$2) -> 0 | O63: =COUNTIFS( OFFSET(raw!$A$1,2,MATCH(回答数!$A63,raw!$2:$2,0)-1,COUNTA(raw!$A:$A)-1,1),回答数!$B63, OFFSET(raw!$A$1,2,MATCH($D$1,raw!$2:$2,0)-1,COUNTA(raw!$A:$A)-1,1),O$2) -> 0 | P63: 290
A64: 回答エリア | B64: 北前船主の館 右近家 エリア | D64: =COUNTIFS( OFFSET(raw!$A$1,2,MATCH(回答数!$A64,raw!$2:$2,0)-1,COUNTA(raw!$A:$A)-1,1),回答数!$B64, OFFSET(raw!$A$1,2,MATCH($D$1,raw!$2:$2,0)-1,COUNTA(raw!$A:$A)-1,1),D$2) -> 7 | E64: =COUNTIFS( OFFSET(raw!$A$1,2,MATCH(回答数!$A64,raw!$2:$2,0)-1,COUNTA(raw!$A:$A)-1,1),回答数!$B64, OFFSET(raw!$A$1,2,MATCH($D$1,raw!$2:$2,0)-1,COUNTA(raw!$A:$A)-1,1),E$2) -> 2 | F64: =COUNTIFS( OFFSET(raw!$A$1,2,MATCH(回答数!$A64,raw!$2:$2,0)-1,COUNTA(raw!$A:$A)-1,1),回答数!$B64, OFFSET(raw!$A$1,2,MATCH($D$1,raw!$2:$2,0)-1,COUNTA(raw!$A:$A)-1,1),F$2) -> 4 | G64: =COUNTIFS( OFFSET(raw!$A$1,2,MATCH(回答数!$A64,raw!$2:$2,0)-1,COUNTA(raw!$A:$A)-1,1),回答数!$B64, OFFSET(raw!$A$1,2,MATCH($D$1,raw!$2:$2,0)-1,COUNTA(raw!$A:$A)-1,1),G$2) -> 1 | H64: =COUNTIFS( OFFSET(raw!$A$1,2,MATCH(回答数!$A64,raw!$2:$2,0)-1,COUNTA(raw!$A:$A)-1,1),回答数!$B64, OFFSET(raw!$A$1,2,MATCH($D$1,raw!$2:$2,0)-1,COUNTA(raw!$A:$A)-1,1),H$2) -> 0 | I64: =COUNTIFS( OFFSET(raw!$A$1,2,MATCH(回答数!$A64,raw!$2:$2,0)-1,COUNTA(raw!$A:$A)-1,1),回答数!$B64, OFFSET(raw!$A$1,2,MATCH($D$1,raw!$2:$2,0)-1,COUNTA(raw!$A:$A)-1,1),I$2) -> 0 | J64: =COUNTIFS( OFFSET(raw!$A$1,2,MATCH(回答数!$A64,raw!$2:$2,0)-1,COUNTA(raw!$A:$A)-1,1),回答数!$B64, OFFSET(raw!$A$1,2,MATCH($D$1,raw!$2:$2,0)-1,COUNTA(raw!$A:$A)-1,1),J$2) -> 0 | K64: =COUNTIFS( OFFSET(raw!$A$1,2,MATCH(回答数!$A64,raw!$2:$2,0)-1,COUNTA(raw!$A:$A)-1,1),回答数!$B64, OFFSET(raw!$A$1,2,MATCH($D$1,raw!$2:$2,0)-1,COUNTA(raw!$A:$A)-1,1),K$2) -> 0 | L64: =COUNTIFS( OFFSET(raw!$A$1,2,MATCH(回答数!$A64,raw!$2:$2,0)-1,COUNTA(raw!$A:$A)-1,1),回答数!$B64, OFFSET(raw!$A$1,2,MATCH($D$1,raw!$2:$2,0)-1,COUNTA(raw!$A:$A)-1,1),L$2) -> 0 | M64: =COUNTIFS( OFFSET(raw!$A$1,2,MATCH(回答数!$A64,raw!$2:$2,0)-1,COUNTA(raw!$A:$A)-1,1),回答数!$B64, OFFSET(raw!$A$1,2,MATCH($D$1,raw!$2:$2,0)-1,COUNTA(raw!$A:$A)-1,1),M$2) -> 0 | N64: =COUNTIFS( OFFSET(raw!$A$1,2,MATCH(回答数!$A64,raw!$2:$2,0)-1,COUNTA(raw!$A:$A)-1,1),回答数!$B64, OFFSET(raw!$A$1,2,MATCH($D$1,raw!$2:$2,0)-1,COUNTA(raw!$A:$A)-1,1),N$2) -> 0 | O64: =COUNTIFS( OFFSET(raw!$A$1,2,MATCH(回答数!$A64,raw!$2:$2,0)-1,COUNTA(raw!$A:$A)-1,1),回答数!$B64, OFFSET(raw!$A$1,2,MATCH($D$1,raw!$2:$2,0)-1,COUNTA(raw!$A:$A)-1,1),O$2) -> 0 | P64: 14
A65: 回答エリア | B65: 今庄宿 エリア | D65: =COUNTIFS( OFFSET(raw!$A$1,2,MATCH(回答数!$A65,raw!$2:$2,0)-1,COUNTA(raw!$A:$A)-1,1),回答数!$B65, OFFSET(raw!$A$1,2,MATCH($D$1,raw!$2:$2,0)-1,COUNTA(raw!$A:$A)-1,1),D$2) -> 6 | E65: =COUNTIFS( OFFSET(raw!$A$1,2,MATCH(回答数!$A65,raw!$2:$2,0)-1,COUNTA(raw!$A:$A)-1,1),回答数!$B65, OFFSET(raw!$A$1,2,MATCH($D$1,raw!$2:$2,0)-1,COUNTA(raw!$A:$A)-1,1),E$2) -> 12 | F65: =COUNTIFS( OFFSET(raw!$A$1,2,MATCH(回答数!$A65,raw!$2:$2,0)-1,COUNTA(raw!$A:$A)-1,1),回答数!$B65, OFFSET(raw!$A$1,2,MATCH($D$1,raw!$2:$2,0)-1,COUNTA(raw!$A:$A)-1,1),F$2) -> 2 | G65: =COUNTIFS( OFFSET(raw!$A$1,2,MATCH(回答数!$A65,raw!$2:$2,0)-1,COUNTA(raw!$A:$A)-1,1),回答数!$B65, OFFSET(raw!$A$1,2,MATCH($D$1,raw!$2:$2,0)-1,COUNTA(raw!$A:$A)-1,1),G$2) -> 9 | H65: =COUNTIFS( OFFSET(raw!$A$1,2,MATCH(回答数!$A65,raw!$2:$2,0)-1,COUNTA(raw!$A:$A)-1,1),回答数!$B65, OFFSET(raw!$A$1,2,MATCH($D$1,raw!$2:$2,0)-1,COUNTA(raw!$A:$A)-1,1),H$2) -> 0 | I65: =COUNTIFS( OFFSET(raw!$A$1,2,MATCH(回答数!$A65,raw!$2:$2,0)-1,COUNTA(raw!$A:$A)-1,1),回答数!$B65, OFFSET(raw!$A$1,2,MATCH($D$1,raw!$2:$2,0)-1,COUNTA(raw!$A:$A)-1,1),I$2) -> 0 | J65: =COUNTIFS( OFFSET(raw!$A$1,2,MATCH(回答数!$A65,raw!$2:$2,0)-1,COUNTA(raw!$A:$A)-1,1),回答数!$B65, OFFSET(raw!$A$1,2,MATCH($D$1,raw!$2:$2,0)-1,COUNTA(raw!$A:$A)-1,1),J$2) -> 0 | K65: =COUNTIFS( OFFSET(raw!$A$1,2,MATCH(回答数!$A65,raw!$2:$2,0)-1,COUNTA(raw!$A:$A)-1,1),回答数!$B65, OFFSET(raw!$A$1,2,MATCH($D$1,raw!$2:$2,0)-1,COUNTA(raw!$A:$A)-1,1),K$2) -> 0 | L65: =COUNTIFS( OFFSET(raw!$A$1,2,MATCH(回答数!$A65,raw!$2:$2,0)-1,COUNTA(raw!$A:$A)-1,1),回答数!$B65, OFFSET(raw!$A$1,2,MATCH($D$1,raw!$2:$2,0)-1,COUNTA(raw!$A:$A)-1,1),L$2) -> 0 | M65: =COUNTIFS( OFFSET(raw!$A$1,2,MATCH(回答数!$A65,raw!$2:$2,0)-1,COUNTA(raw!$A:$A)-1,1),回答数!$B65, OFFSET(raw!$A$1,2,MATCH($D$1,raw!$2:$2,0)-1,COUNTA(raw!$A:$A)-1,1),M$2) -> 0 | N65: =COUNTIFS( OFFSET(raw!$A$1,2,MATCH(回答数!$A65,raw!$2:$2,0)-1,COUNTA(raw!$A:$A)-1,1),回答数!$B65, OFFSET(raw!$A$1,2,MATCH($D$1,raw!$2:$2,0)-1,COUNTA(raw!$A:$A)-1,1),N$2) -> 0 | O65: =COUNTIFS( OFFSET(raw!$A$1,2,MATCH(回答数!$A65,raw!$2:$2,0)-1,COUNTA(raw!$A:$A)-1,1),回答数!$B65, OFFSET(raw!$A$1,2,MATCH($D$1,raw!$2:$2,0)-1,COUNTA(raw!$A:$A)-1,1),O$2) -> 0 | P65: 29
A66: 回答エリア | B66: 日本海さかな街 エリア | D66: =COUNTIFS( OFFSET(raw!$A$1,2,MATCH(回答数!$A66,raw!$2:$2,0)-1,COUNTA(raw!$A:$A)-1,1),回答数!$B66, OFFSET(raw!$A$1,2,MATCH($D$1,raw!$2:$2,0)-1,COUNTA(raw!$A:$A)-1,1),D$2) -> 41 | E66: =COUNTIFS( OFFSET(raw!$A$1,2,MATCH(回答数!$A66,raw!$2:$2,0)-1,COUNTA(raw!$A:$A)-1,1),回答数!$B66, OFFSET(raw!$A$1,2,MATCH($D$1,raw!$2:$2,0)-1,COUNTA(raw!$A:$A)-1,1),E$2) -> 33 | F66: =COUNTIFS( OFFSET(raw!$A$1,2,MATCH(回答数!$A66,raw!$2:$2,0)-1,COUNTA(raw!$A:$A)-1,1),回答数!$B66, OFFSET(raw!$A$1,2,MATCH($D$1,raw!$2:$2,0)-1,COUNTA(raw!$A:$A)-1,1),F$2) -> 23 | G66: =COUNTIFS( OFFSET(raw!$A$1,2,MATCH(回答数!$A66,raw!$2:$2,0)-1,COUNTA(raw!$A:$A)-1,1),回答数!$B66, OFFSET(raw!$A$1,2,MATCH($D$1,raw!$2:$2,0)-1,COUNTA(raw!$A:$A)-1,1),G$2) -> 13 | H66: =COUNTIFS( OFFSET(raw!$A$1,2,MATCH(回答数!$A66,raw!$2:$2,0)-1,COUNTA(raw!$A:$A)-1,1),回答数!$B66, OFFSET(raw!$A$1,2,MATCH($D$1,raw!$2:$2,0)-1,COUNTA(raw!$A:$A)-1,1),H$2) -> 0 | I66: =COUNTIFS( OFFSET(raw!$A$1,2,MATCH(回答数!$A66,raw!$2:$2,0)-1,COUNTA(raw!$A:$A)-1,1),回答数!$B66, OFFSET(raw!$A$1,2,MATCH($D$1,raw!$2:$2,0)-1,COUNTA(raw!$A:$A)-1,1),I$2) -> 0 | J66: =COUNTIFS( OFFSET(raw!$A$1,2,MATCH(回答数!$A66,raw!$2:$2,0)-1,COUNTA(raw!$A:$A)-1,1),回答数!$B66, OFFSET(raw!$A$1,2,MATCH($D$1,raw!$2:$2,0)-1,COUNTA(raw!$A:$A)-1,1),J$2) -> 0 | K66: =COUNTIFS( OFFSET(raw!$A$1,2,MATCH(回答数!$A66,raw!$2:$2,0)-1,COUNTA(raw!$A:$A)-1,1),回答数!$B66, OFFSET(raw!$A$1,2,MATCH($D$1,raw!$2:$2,0)-1,COUNTA(raw!$A:$A)-1,1),K$2) -> 0 | L66: =COUNTIFS( OFFSET(raw!$A$1,2,MATCH(回答数!$A66,raw!$2:$2,0)-1,COUNTA(raw!$A:$A)-1,1),回答数!$B66, OFFSET(raw!$A$1,2,MATCH($D$1,raw!$2:$2,0)-1,COUNTA(raw!$A:$A)-1,1),L$2) -> 0 | M66: =COUNTIFS( OFFSET(raw!$A$1,2,MATCH(回答数!$A66,raw!$2:$2,0)-1,COUNTA(raw!$A:$A)-1,1),回答数!$B66, OFFSET(raw!$A$1,2,MATCH($D$1,raw!$2:$2,0)-1,COUNTA(raw!$A:$A)-1,1),M$2) -> 0 | N66: =COUNTIFS( OFFSET(raw!$A$1,2,MATCH(回答数!$A66,raw!$2:$2,0)-1,COUNTA(raw!$A:$A)-1,1),回答数!$B66, OFFSET(raw!$A$1,2,MATCH($D$1,raw!$2:$2,0)-1,COUNTA(raw!$A:$A)-1,1),N$2) -> 0 | O66: =COUNTIFS( OFFSET(raw!$A$1,2,MATCH(回答数!$A66,raw!$2:$2,0)-1,COUNTA(raw!$A:$A)-1,1),回答数!$B66, OFFSET(raw!$A$1,2,MATCH($D$1,raw!$2:$2,0)-1,COUNTA(raw!$A:$A)-1,1),O$2) -> 0 | P66: 110
A67: 回答エリア | B67: 神楽通り エリア | D67: =COUNTIFS( OFFSET(raw!$A$1,2,MATCH(回答数!$A67,raw!$2:$2,0)-1,COUNTA(raw!$A:$A)-1,1),回答数!$B67, OFFSET(raw!$A$1,2,MATCH($D$1,raw!$2:$2,0)-1,COUNTA(raw!$A:$A)-1,1),D$2) -> 34 | E67: =COUNTIFS( OFFSET(raw!$A$1,2,MATCH(回答数!$A67,raw!$2:$2,0)-1,COUNTA(raw!$A:$A)-1,1),回答数!$B67, OFFSET(raw!$A$1,2,MATCH($D$1,raw!$2:$2,0)-1,COUNTA(raw!$A:$A)-1,1),E$2) -> 13 | F67: =COUNTIFS( OFFSET(raw!$A$1,2,MATCH(回答数!$A67,raw!$2:$2,0)-1,COUNTA(raw!$A:$A)-1,1),回答数!$B67, OFFSET(raw!$A$1,2,MATCH($D$1,raw!$2:$2,0)-1,COUNTA(raw!$A:$A)-1,1),F$2) -> 5 | G67: =COUNTIFS( OFFSET(raw!$A$1,2,MATCH(回答数!$A67,raw!$2:$2,0)-1,COUNTA(raw!$A:$A)-1,1),回答数!$B67, OFFSET(raw!$A$1,2,MATCH($D$1,raw!$2:$2,0)-1,COUNTA(raw!$A:$A)-1,1),G$2) -> 5 | H67: =COUNTIFS( OFFSET(raw!$A$1,2,MATCH(回答数!$A67,raw!$2:$2,0)-1,COUNTA(raw!$A:$A)-1,1),回答数!$B67, OFFSET(raw!$A$1,2,MATCH($D$1,raw!$2:$2,0)-1,COUNTA(raw!$A:$A)-1,1),H$2) -> 0 | I67: =COUNTIFS( OFFSET(raw!$A$1,2,MATCH(回答数!$A67,raw!$2:$2,0)-1,COUNTA(raw!$A:$A)-1,1),回答数!$B67, OFFSET(raw!$A$1,2,MATCH($D$1,raw!$2:$2,0)-1,COUNTA(raw!$A:$A)-1,1),I$2) -> 0 | J67: =COUNTIFS( OFFSET(raw!$A$1,2,MATCH(回答数!$A67,raw!$2:$2,0)-1,COUNTA(raw!$A:$A)-1,1),回答数!$B67, OFFSET(raw!$A$1,2,MATCH($D$1,raw!$2:$2,0)-1,COUNTA(raw!$A:$A)-1,1),J$2) -> 0 | K67: =COUNTIFS( OFFSET(raw!$A$1,2,MATCH(回答数!$A67,raw!$2:$2,0)-1,COUNTA(raw!$A:$A)-1,1),回答数!$B67, OFFSET(raw!$A$1,2,MATCH($D$1,raw!$2:$2,0)-1,COUNTA(raw!$A:$A)-1,1),K$2) -> 0 | L67: =COUNTIFS( OFFSET(raw!$A$1,2,MATCH(回答数!$A67,raw!$2:$2,0)-1,COUNTA(raw!$A:$A)-1,1),回答数!$B67, OFFSET(raw!$A$1,2,MATCH($D$1,raw!$2:$2,0)-1,COUNTA(raw!$A:$A)-1,1),L$2) -> 0 | M67: =COUNTIFS( OFFSET(raw!$A$1,2,MATCH(回答数!$A67,raw!$2:$2,0)-1,COUNTA(raw!$A:$A)-1,1),回答数!$B67, OFFSET(raw!$A$1,2,MATCH($D$1,raw!$2:$2,0)-1,COUNTA(raw!$A:$A)-1,1),M$2) -> 0 | N67: =COUNTIFS( OFFSET(raw!$A$1,2,MATCH(回答数!$A67,raw!$2:$2,0)-1,COUNTA(raw!$A:$A)-1,1),回答数!$B67, OFFSET(raw!$A$1,2,MATCH($D$1,raw!$2:$2,0)-1,COUNTA(raw!$A:$A)-1,1),N$2) -> 0 | O67: =COUNTIFS( OFFSET(raw!$A$1,2,MATCH(回答数!$A67,raw!$2:$2,0)-1,COUNTA(raw!$A:$A)-1,1),回答数!$B67, OFFSET(raw!$A$1,2,MATCH($D$1,raw!$2:$2,0)-1,COUNTA(raw!$A:$A)-1,1),O$2) -> 0 | P67: 57
A68: 回答エリア | B68: JR敦賀駅前 エリア | D68: =COUNTIFS( OFFSET(raw!$A$1,2,MATCH(回答数!$A68,raw!$2:$2,0)-1,COUNTA(raw!$A:$A)-1,1),回答数!$B68, OFFSET(raw!$A$1,2,MATCH($D$1,raw!$2:$2,0)-1,COUNTA(raw!$A:$A)-1,1),D$2) -> 59 | E68: =COUNTIFS( OFFSET(raw!$A$1,2,MATCH(回答数!$A68,raw!$2:$2,0)-1,COUNTA(raw!$A:$A)-1,1),回答数!$B68, OFFSET(raw!$A$1,2,MATCH($D$1,raw!$2:$2,0)-1,COUNTA(raw!$A:$A)-1,1),E$2) -> 44 | F68: =COUNTIFS( OFFSET(raw!$A$1,2,MATCH(回答数!$A68,raw!$2:$2,0)-1,COUNTA(raw!$A:$A)-1,1),回答数!$B68, OFFSET(raw!$A$1,2,MATCH($D$1,raw!$2:$2,0)-1,COUNTA(raw!$A:$A)-1,1),F$2) -> 36 | G68: =COUNTIFS( OFFSET(raw!$A$1,2,MATCH(回答数!$A68,raw!$2:$2,0)-1,COUNTA(raw!$A:$A)-1,1),回答数!$B68, OFFSET(raw!$A$1,2,MATCH($D$1,raw!$2:$2,0)-1,COUNTA(raw!$A:$A)-1,1),G$2) -> 31 | H68: =COUNTIFS( OFFSET(raw!$A$1,2,MATCH(回答数!$A68,raw!$2:$2,0)-1,COUNTA(raw!$A:$A)-1,1),回答数!$B68, OFFSET(raw!$A$1,2,MATCH($D$1,raw!$2:$2,0)-1,COUNTA(raw!$A:$A)-1,1),H$2) -> 0 | I68: =COUNTIFS( OFFSET(raw!$A$1,2,MATCH(回答数!$A68,raw!$2:$2,0)-1,COUNTA(raw!$A:$A)-1,1),回答数!$B68, OFFSET(raw!$A$1,2,MATCH($D$1,raw!$2:$2,0)-1,COUNTA(raw!$A:$A)-1,1),I$2) -> 0 | J68: =COUNTIFS( OFFSET(raw!$A$1,2,MATCH(回答数!$A68,raw!$2:$2,0)-1,COUNTA(raw!$A:$A)-1,1),回答数!$B68, OFFSET(raw!$A$1,2,MATCH($D$1,raw!$2:$2,0)-1,COUNTA(raw!$A:$A)-1,1),J$2) -> 0 | K68: =COUNTIFS( OFFSET(raw!$A$1,2,MATCH(回答数!$A68,raw!$2:$2,0)-1,COUNTA(raw!$A:$A)-1,1),回答数!$B68, OFFSET(raw!$A$1,2,MATCH($D$1,raw!$2:$2,0)-1,COUNTA(raw!$A:$A)-1,1),K$2) -> 0 | L68: =COUNTIFS( OFFSET(raw!$A$1,2,MATCH(回答数!$A68,raw!$2:$2,0)-1,COUNTA(raw!$A:$A)-1,1),回答数!$B68, OFFSET(raw!$A$1,2,MATCH($D$1,raw!$2:$2,0)-1,COUNTA(raw!$A:$A)-1,1),L$2) -> 0 | M68: =COUNTIFS( OFFSET(raw!$A$1,2,MATCH(回答数!$A68,raw!$2:$2,0)-1,COUNTA(raw!$A:$A)-1,1),回答数!$B68, OFFSET(raw!$A$1,2,MATCH($D$1,raw!$2:$2,0)-1,COUNTA(raw!$A:$A)-1,1),M$2) -> 0 | N68: =COUNTIFS( OFFSET(raw!$A$1,2,MATCH(回答数!$A68,raw!$2:$2,0)-1,COUNTA(raw!$A:$A)-1,1),回答数!$B68, OFFSET(raw!$A$1,2,MATCH($D$1,raw!$2:$2,0)-1,COUNTA(raw!$A:$A)-1,1),N$2) -> 0 | O68: =COUNTIFS( OFFSET(raw!$A$1,2,MATCH(回答数!$A68,raw!$2:$2,0)-1,COUNTA(raw!$A:$A)-1,1),回答数!$B68, OFFSET(raw!$A$1,2,MATCH($D$1,raw!$2:$2,0)-1,COUNTA(raw!$A:$A)-1,1),O$2) -> 0 | P68: 170
A69: 回答エリア | B69: 金ヶ崎 エリア | D69: =COUNTIFS( OFFSET(raw!$A$1,2,MATCH(回答数!$A69,raw!$2:$2,0)-1,COUNTA(raw!$A:$A)-1,1),回答数!$B69, OFFSET(raw!$A$1,2,MATCH($D$1,raw!$2:$2,0)-1,COUNTA(raw!$A:$A)-1,1),D$2) -> 70 | E69: =COUNTIFS( OFFSET(raw!$A$1,2,MATCH(回答数!$A69,raw!$2:$2,0)-1,COUNTA(raw!$A:$A)-1,1),回答数!$B69, OFFSET(raw!$A$1,2,MATCH($D$1,raw!$2:$2,0)-1,COUNTA(raw!$A:$A)-1,1),E$2) -> 67 | F69: =COUNTIFS( OFFSET(raw!$A$1,2,MATCH(回答数!$A69,raw!$2:$2,0)-1,COUNTA(raw!$A:$A)-1,1),回答数!$B69, OFFSET(raw!$A$1,2,MATCH($D$1,raw!$2:$2,0)-1,COUNTA(raw!$A:$A)-1,1),F$2) -> 42 | G69: =COUNTIFS( OFFSET(raw!$A$1,2,MATCH(回答数!$A69,raw!$2:$2,0)-1,COUNTA(raw!$A:$A)-1,1),回答数!$B69, OFFSET(raw!$A$1,2,MATCH($D$1,raw!$2:$2,0)-1,COUNTA(raw!$A:$A)-1,1),G$2) -> 29 | H69: =COUNTIFS( OFFSET(raw!$A$1,2,MATCH(回答数!$A69,raw!$2:$2,0)-1,COUNTA(raw!$A:$A)-1,1),回答数!$B69, OFFSET(raw!$A$1,2,MATCH($D$1,raw!$2:$2,0)-1,COUNTA(raw!$A:$A)-1,1),H$2) -> 0 | I69: =COUNTIFS( OFFSET(raw!$A$1,2,MATCH(回答数!$A69,raw!$2:$2,0)-1,COUNTA(raw!$A:$A)-1,1),回答数!$B69, OFFSET(raw!$A$1,2,MATCH($D$1,raw!$2:$2,0)-1,COUNTA(raw!$A:$A)-1,1),I$2) -> 0 | J69: =COUNTIFS( OFFSET(raw!$A$1,2,MATCH(回答数!$A69,raw!$2:$2,0)-1,COUNTA(raw!$A:$A)-1,1),回答数!$B69, OFFSET(raw!$A$1,2,MATCH($D$1,raw!$2:$2,0)-1,COUNTA(raw!$A:$A)-1,1),J$2) -> 0 | K69: =COUNTIFS( OFFSET(raw!$A$1,2,MATCH(回答数!$A69,raw!$2:$2,0)-1,COUNTA(raw!$A:$A)-1,1),回答数!$B69, OFFSET(raw!$A$1,2,MATCH($D$1,raw!$2:$2,0)-1,COUNTA(raw!$A:$A)-1,1),K$2) -> 0 | L69: =COUNTIFS( OFFSET(raw!$A$1,2,MATCH(回答数!$A69,raw!$2:$2,0)-1,COUNTA(raw!$A:$A)-1,1),回答数!$B69, OFFSET(raw!$A$1,2,MATCH($D$1,raw!$2:$2,0)-1,COUNTA(raw!$A:$A)-1,1),L$2) -> 0 | M69: =COUNTIFS( OFFSET(raw!$A$1,2,MATCH(回答数!$A69,raw!$2:$2,0)-1,COUNTA(raw!$A:$A)-1,1),回答数!$B69, OFFSET(raw!$A$1,2,MATCH($D$1,raw!$2:$2,0)-1,COUNTA(raw!$A:$A)-1,1),M$2) -> 0 | N69: =COUNTIFS( OFFSET(raw!$A$1,2,MATCH(回答数!$A69,raw!$2:$2,0)-1,COUNTA(raw!$A:$A)-1,1),回答数!$B69, OFFSET(raw!$A$1,2,MATCH($D$1,raw!$2:$2,0)-1,COUNTA(raw!$A:$A)-1,1),N$2) -> 0 | O69: =COUNTIFS( OFFSET(raw!$A$1,2,MATCH(回答数!$A69,raw!$2:$2,0)-1,COUNTA(raw!$A:$A)-1,1),回答数!$B69, OFFSET(raw!$A$1,2,MATCH($D$1,raw!$2:$2,0)-1,COUNTA(raw!$A:$A)-1,1),O$2) -> 0 | P69: 208
A70: 回答エリア | B70: 敦賀市立博物館 エリア | D70: =COUNTIFS( OFFSET(raw!$A$1,2,MATCH(回答数!$A70,raw!$2:$2,0)-1,COUNTA(raw!$A:$A)-1,1),回答数!$B70, OFFSET(raw!$A$1,2,MATCH($D$1,raw!$2:$2,0)-1,COUNTA(raw!$A:$A)-1,1),D$2) -> 16 | E70: =COUNTIFS( OFFSET(raw!$A$1,2,MATCH(回答数!$A70,raw!$2:$2,0)-1,COUNTA(raw!$A:$A)-1,1),回答数!$B70, OFFSET(raw!$A$1,2,MATCH($D$1,raw!$2:$2,0)-1,COUNTA(raw!$A:$A)-1,1),E$2) -> 14 | F70: =COUNTIFS( OFFSET(raw!$A$1,2,MATCH(回答数!$A70,raw!$2:$2,0)-1,COUNTA(raw!$A:$A)-1,1),回答数!$B70, OFFSET(raw!$A$1,2,MATCH($D$1,raw!$2:$2,0)-1,COUNTA(raw!$A:$A)-1,1),F$2) -> 9 | G70: =COUNTIFS( OFFSET(raw!$A$1,2,MATCH(回答数!$A70,raw!$2:$2,0)-1,COUNTA(raw!$A:$A)-1,1),回答数!$B70, OFFSET(raw!$A$1,2,MATCH($D$1,raw!$2:$2,0)-1,COUNTA(raw!$A:$A)-1,1),G$2) -> 12 | H70: =COUNTIFS( OFFSET(raw!$A$1,2,MATCH(回答数!$A70,raw!$2:$2,0)-1,COUNTA(raw!$A:$A)-1,1),回答数!$B70, OFFSET(raw!$A$1,2,MATCH($D$1,raw!$2:$2,0)-1,COUNTA(raw!$A:$A)-1,1),H$2) -> 0 | I70: =COUNTIFS( OFFSET(raw!$A$1,2,MATCH(回答数!$A70,raw!$2:$2,0)-1,COUNTA(raw!$A:$A)-1,1),回答数!$B70, OFFSET(raw!$A$1,2,MATCH($D$1,raw!$2:$2,0)-1,COUNTA(raw!$A:$A)-1,1),I$2) -> 0 | J70: =COUNTIFS( OFFSET(raw!$A$1,2,MATCH(回答数!$A70,raw!$2:$2,0)-1,COUNTA(raw!$A:$A)-1,1),回答数!$B70, OFFSET(raw!$A$1,2,MATCH($D$1,raw!$2:$2,0)-1,COUNTA(raw!$A:$A)-1,1),J$2) -> 0 | K70: =COUNTIFS( OFFSET(raw!$A$1,2,MATCH(回答数!$A70,raw!$2:$2,0)-1,COUNTA(raw!$A:$A)-1,1),回答数!$B70, OFFSET(raw!$A$1,2,MATCH($D$1,raw!$2:$2,0)-1,COUNTA(raw!$A:$A)-1,1),K$2) -> 0 | L70: =COUNTIFS( OFFSET(raw!$A$1,2,MATCH(回答数!$A70,raw!$2:$2,0)-1,COUNTA(raw!$A:$A)-1,1),回答数!$B70, OFFSET(raw!$A$1,2,MATCH($D$1,raw!$2:$2,0)-1,COUNTA(raw!$A:$A)-1,1),L$2) -> 0 | M70: =COUNTIFS( OFFSET(raw!$A$1,2,MATCH(回答数!$A70,raw!$2:$2,0)-1,COUNTA(raw!$A:$A)-1,1),回答数!$B70, OFFSET(raw!$A$1,2,MATCH($D$1,raw!$2:$2,0)-1,COUNTA(raw!$A:$A)-1,1),M$2) -> 0 | N70: =COUNTIFS( OFFSET(raw!$A$1,2,MATCH(回答数!$A70,raw!$2:$2,0)-1,COUNTA(raw!$A:$A)-1,1),回答数!$B70, OFFSET(raw!$A$1,2,MATCH($D$1,raw!$2:$2,0)-1,COUNTA(raw!$A:$A)-1,1),N$2) -> 0 | O70: =COUNTIFS( OFFSET(raw!$A$1,2,MATCH(回答数!$A70,raw!$2:$2,0)-1,COUNTA(raw!$A:$A)-1,1),回答数!$B70, OFFSET(raw!$A$1,2,MATCH($D$1,raw!$2:$2,0)-1,COUNTA(raw!$A:$A)-1,1),O$2) -> 0 | P70: 51
A71: 回答エリア | B71: 水島 エリア | D71: =COUNTIFS( OFFSET(raw!$A$1,2,MATCH(回答数!$A71,raw!$2:$2,0)-1,COUNTA(raw!$A:$A)-1,1),回答数!$B71, OFFSET(raw!$A$1,2,MATCH($D$1,raw!$2:$2,0)-1,COUNTA(raw!$A:$A)-1,1),D$2) -> 1 | E71: =COUNTIFS( OFFSET(raw!$A$1,2,MATCH(回答数!$A71,raw!$2:$2,0)-1,COUNTA(raw!$A:$A)-1,1),回答数!$B71, OFFSET(raw!$A$1,2,MATCH($D$1,raw!$2:$2,0)-1,COUNTA(raw!$A:$A)-1,1),E$2) -> 1 | F71: =COUNTIFS( OFFSET(raw!$A$1,2,MATCH(回答数!$A71,raw!$2:$2,0)-1,COUNTA(raw!$A:$A)-1,1),回答数!$B71, OFFSET(raw!$A$1,2,MATCH($D$1,raw!$2:$2,0)-1,COUNTA(raw!$A:$A)-1,1),F$2) -> 1 | G71: =COUNTIFS( OFFSET(raw!$A$1,2,MATCH(回答数!$A71,raw!$2:$2,0)-1,COUNTA(raw!$A:$A)-1,1),回答数!$B71, OFFSET(raw!$A$1,2,MATCH($D$1,raw!$2:$2,0)-1,COUNTA(raw!$A:$A)-1,1),G$2) -> 7 | H71: =COUNTIFS( OFFSET(raw!$A$1,2,MATCH(回答数!$A71,raw!$2:$2,0)-1,COUNTA(raw!$A:$A)-1,1),回答数!$B71, OFFSET(raw!$A$1,2,MATCH($D$1,raw!$2:$2,0)-1,COUNTA(raw!$A:$A)-1,1),H$2) -> 0 | I71: =COUNTIFS( OFFSET(raw!$A$1,2,MATCH(回答数!$A71,raw!$2:$2,0)-1,COUNTA(raw!$A:$A)-1,1),回答数!$B71, OFFSET(raw!$A$1,2,MATCH($D$1,raw!$2:$2,0)-1,COUNTA(raw!$A:$A)-1,1),I$2) -> 0 | J71: =COUNTIFS( OFFSET(raw!$A$1,2,MATCH(回答数!$A71,raw!$2:$2,0)-1,COUNTA(raw!$A:$A)-1,1),回答数!$B71, OFFSET(raw!$A$1,2,MATCH($D$1,raw!$2:$2,0)-1,COUNTA(raw!$A:$A)-1,1),J$2) -> 0 | K71: =COUNTIFS( OFFSET(raw!$A$1,2,MATCH(回答数!$A71,raw!$2:$2,0)-1,COUNTA(raw!$A:$A)-1,1),回答数!$B71, OFFSET(raw!$A$1,2,MATCH($D$1,raw!$2:$2,0)-1,COUNTA(raw!$A:$A)-1,1),K$2) -> 0 | L71: =COUNTIFS( OFFSET(raw!$A$1,2,MATCH(回答数!$A71,raw!$2:$2,0)-1,COUNTA(raw!$A:$A)-1,1),回答数!$B71, OFFSET(raw!$A$1,2,MATCH($D$1,raw!$2:$2,0)-1,COUNTA(raw!$A:$A)-1,1),L$2) -> 0 | M71: =COUNTIFS( OFFSET(raw!$A$1,2,MATCH(回答数!$A71,raw!$2:$2,0)-1,COUNTA(raw!$A:$A)-1,1),回答数!$B71, OFFSET(raw!$A$1,2,MATCH($D$1,raw!$2:$2,0)-1,COUNTA(raw!$A:$A)-1,1),M$2) -> 0 | N71: =COUNTIFS( OFFSET(raw!$A$1,2,MATCH(回答数!$A71,raw!$2:$2,0)-1,COUNTA(raw!$A:$A)-1,1),回答数!$B71, OFFSET(raw!$A$1,2,MATCH($D$1,raw!$2:$2,0)-1,COUNTA(raw!$A:$A)-1,1),N$2) -> 0 | O71: =COUNTIFS( OFFSET(raw!$A$1,2,MATCH(回答数!$A71,raw!$2:$2,0)-1,COUNTA(raw!$A:$A)-1,1),回答数!$B71, OFFSET(raw!$A$1,2,MATCH($D$1,raw!$2:$2,0)-1,COUNTA(raw!$A:$A)-1,1),O$2) -> 0 | P71: 10
A72: 回答エリア | B72: 小浜市 阿納 エリア | D72: =COUNTIFS( OFFSET(raw!$A$1,2,MATCH(回答数!$A72,raw!$2:$2,0)-1,COUNTA(raw!$A:$A)-1,1),回答数!$B72, OFFSET(raw!$A$1,2,MATCH($D$1,raw!$2:$2,0)-1,COUNTA(raw!$A:$A)-1,1),D$2) -> 37 | E72: =COUNTIFS( OFFSET(raw!$A$1,2,MATCH(回答数!$A72,raw!$2:$2,0)-1,COUNTA(raw!$A:$A)-1,1),回答数!$B72, OFFSET(raw!$A$1,2,MATCH($D$1,raw!$2:$2,0)-1,COUNTA(raw!$A:$A)-1,1),E$2) -> 14 | F72: =COUNTIFS( OFFSET(raw!$A$1,2,MATCH(回答数!$A72,raw!$2:$2,0)-1,COUNTA(raw!$A:$A)-1,1),回答数!$B72, OFFSET(raw!$A$1,2,MATCH($D$1,raw!$2:$2,0)-1,COUNTA(raw!$A:$A)-1,1),F$2) -> 18 | G72: =COUNTIFS( OFFSET(raw!$A$1,2,MATCH(回答数!$A72,raw!$2:$2,0)-1,COUNTA(raw!$A:$A)-1,1),回答数!$B72, OFFSET(raw!$A$1,2,MATCH($D$1,raw!$2:$2,0)-1,COUNTA(raw!$A:$A)-1,1),G$2) -> 28 | H72: =COUNTIFS( OFFSET(raw!$A$1,2,MATCH(回答数!$A72,raw!$2:$2,0)-1,COUNTA(raw!$A:$A)-1,1),回答数!$B72, OFFSET(raw!$A$1,2,MATCH($D$1,raw!$2:$2,0)-1,COUNTA(raw!$A:$A)-1,1),H$2) -> 0 | I72: =COUNTIFS( OFFSET(raw!$A$1,2,MATCH(回答数!$A72,raw!$2:$2,0)-1,COUNTA(raw!$A:$A)-1,1),回答数!$B72, OFFSET(raw!$A$1,2,MATCH($D$1,raw!$2:$2,0)-1,COUNTA(raw!$A:$A)-1,1),I$2) -> 0 | J72: =COUNTIFS( OFFSET(raw!$A$1,2,MATCH(回答数!$A72,raw!$2:$2,0)-1,COUNTA(raw!$A:$A)-1,1),回答数!$B72, OFFSET(raw!$A$1,2,MATCH($D$1,raw!$2:$2,0)-1,COUNTA(raw!$A:$A)-1,1),J$2) -> 0 | K72: =COUNTIFS( OFFSET(raw!$A$1,2,MATCH(回答数!$A72,raw!$2:$2,0)-1,COUNTA(raw!$A:$A)-1,1),回答数!$B72, OFFSET(raw!$A$1,2,MATCH($D$1,raw!$2:$2,0)-1,COUNTA(raw!$A:$A)-1,1),K$2) -> 0 | L72: =COUNTIFS( OFFSET(raw!$A$1,2,MATCH(回答数!$A72,raw!$2:$2,0)-1,COUNTA(raw!$A:$A)-1,1),回答数!$B72, OFFSET(raw!$A$1,2,MATCH($D$1,raw!$2:$2,0)-1,COUNTA(raw!$A:$A)-1,1),L$2) -> 0 | M72: =COUNTIFS( OFFSET(raw!$A$1,2,MATCH(回答数!$A72,raw!$2:$2,0)-1,COUNTA(raw!$A:$A)-1,1),回答数!$B72, OFFSET(raw!$A$1,2,MATCH($D$1,raw!$2:$2,0)-1,COUNTA(raw!$A:$A)-1,1),M$2) -> 0 | N72: =COUNTIFS( OFFSET(raw!$A$1,2,MATCH(回答数!$A72,raw!$2:$2,0)-1,COUNTA(raw!$A:$A)-1,1),回答数!$B72, OFFSET(raw!$A$1,2,MATCH($D$1,raw!$2:$2,0)-1,COUNTA(raw!$A:$A)-1,1),N$2) -> 0 | O72: =COUNTIFS( OFFSET(raw!$A$1,2,MATCH(回答数!$A72,raw!$2:$2,0)-1,COUNTA(raw!$A:$A)-1,1),回答数!$B72, OFFSET(raw!$A$1,2,MATCH($D$1,raw!$2:$2,0)-1,COUNTA(raw!$A:$A)-1,1),O$2) -> 0 | P72: 97
A73: 回答エリア | B73: 道の駅「若狭おばま」 エリア | D73: =COUNTIFS( OFFSET(raw!$A$1,2,MATCH(回答数!$A73,raw!$2:$2,0)-1,COUNTA(raw!$A:$A)-1,1),回答数!$B73, OFFSET(raw!$A$1,2,MATCH($D$1,raw!$2:$2,0)-1,COUNTA(raw!$A:$A)-1,1),D$2) -> 75 | E73: =COUNTIFS( OFFSET(raw!$A$1,2,MATCH(回答数!$A73,raw!$2:$2,0)-1,COUNTA(raw!$A:$A)-1,1),回答数!$B73, OFFSET(raw!$A$1,2,MATCH($D$1,raw!$2:$2,0)-1,COUNTA(raw!$A:$A)-1,1),E$2) -> 44 | F73: =COUNTIFS( OFFSET(raw!$A$1,2,MATCH(回答数!$A73,raw!$2:$2,0)-1,COUNTA(raw!$A:$A)-1,1),回答数!$B73, OFFSET(raw!$A$1,2,MATCH($D$1,raw!$2:$2,0)-1,COUNTA(raw!$A:$A)-1,1),F$2) -> 33 | G73: =COUNTIFS( OFFSET(raw!$A$1,2,MATCH(回答数!$A73,raw!$2:$2,0)-1,COUNTA(raw!$A:$A)-1,1),回答数!$B73, OFFSET(raw!$A$1,2,MATCH($D$1,raw!$2:$2,0)-1,COUNTA(raw!$A:$A)-1,1),G$2) -> 35 | H73: =COUNTIFS( OFFSET(raw!$A$1,2,MATCH(回答数!$A73,raw!$2:$2,0)-1,COUNTA(raw!$A:$A)-1,1),回答数!$B73, OFFSET(raw!$A$1,2,MATCH($D$1,raw!$2:$2,0)-1,COUNTA(raw!$A:$A)-1,1),H$2) -> 0 | I73: =COUNTIFS( OFFSET(raw!$A$1,2,MATCH(回答数!$A73,raw!$2:$2,0)-1,COUNTA(raw!$A:$A)-1,1),回答数!$B73, OFFSET(raw!$A$1,2,MATCH($D$1,raw!$2:$2,0)-1,COUNTA(raw!$A:$A)-1,1),I$2) -> 0 | J73: =COUNTIFS( OFFSET(raw!$A$1,2,MATCH(回答数!$A73,raw!$2:$2,0)-1,COUNTA(raw!$A:$A)-1,1),回答数!$B73, OFFSET(raw!$A$1,2,MATCH($D$1,raw!$2:$2,0)-1,COUNTA(raw!$A:$A)-1,1),J$2) -> 0 | K73: =COUNTIFS( OFFSET(raw!$A$1,2,MATCH(回答数!$A73,raw!$2:$2,0)-1,COUNTA(raw!$A:$A)-1,1),回答数!$B73, OFFSET(raw!$A$1,2,MATCH($D$1,raw!$2:$2,0)-1,COUNTA(raw!$A:$A)-1,1),K$2) -> 0 | L73: =COUNTIFS( OFFSET(raw!$A$1,2,MATCH(回答数!$A73,raw!$2:$2,0)-1,COUNTA(raw!$A:$A)-1,1),回答数!$B73, OFFSET(raw!$A$1,2,MATCH($D$1,raw!$2:$2,0)-1,COUNTA(raw!$A:$A)-1,1),L$2) -> 0 | M73: =COUNTIFS( OFFSET(raw!$A$1,2,MATCH(回答数!$A73,raw!$2:$2,0)-1,COUNTA(raw!$A:$A)-1,1),回答数!$B73, OFFSET(raw!$A$1,2,MATCH($D$1,raw!$2:$2,0)-1,COUNTA(raw!$A:$A)-1,1),M$2) -> 0 | N73: =COUNTIFS( OFFSET(raw!$A$1,2,MATCH(回答数!$A73,raw!$2:$2,0)-1,COUNTA(raw!$A:$A)-1,1),回答数!$B73, OFFSET(raw!$A$1,2,MATCH($D$1,raw!$2:$2,0)-1,COUNTA(raw!$A:$A)-1,1),N$2) -> 0 | O73: =COUNTIFS( OFFSET(raw!$A$1,2,MATCH(回答数!$A73,raw!$2:$2,0)-1,COUNTA(raw!$A:$A)-1,1),回答数!$B73, OFFSET(raw!$A$1,2,MATCH($D$1,raw!$2:$2,0)-1,COUNTA(raw!$A:$A)-1,1),O$2) -> 0 | P73: 187
A74: 回答エリア | B74: 小浜 エリア（宿泊施設） | D74: =COUNTIFS( OFFSET(raw!$A$1,2,MATCH(回答数!$A74,raw!$2:$2,0)-1,COUNTA(raw!$A:$A)-1,1),回答数!$B74, OFFSET(raw!$A$1,2,MATCH($D$1,raw!$2:$2,0)-1,COUNTA(raw!$A:$A)-1,1),D$2) -> 30 | E74: =COUNTIFS( OFFSET(raw!$A$1,2,MATCH(回答数!$A74,raw!$2:$2,0)-1,COUNTA(raw!$A:$A)-1,1),回答数!$B74, OFFSET(raw!$A$1,2,MATCH($D$1,raw!$2:$2,0)-1,COUNTA(raw!$A:$A)-1,1),E$2) -> 28 | F74: =COUNTIFS( OFFSET(raw!$A$1,2,MATCH(回答数!$A74,raw!$2:$2,0)-1,COUNTA(raw!$A:$A)-1,1),回答数!$B74, OFFSET(raw!$A$1,2,MATCH($D$1,raw!$2:$2,0)-1,COUNTA(raw!$A:$A)-1,1),F$2) -> 16 | G74: =COUNTIFS( OFFSET(raw!$A$1,2,MATCH(回答数!$A74,raw!$2:$2,0)-1,COUNTA(raw!$A:$A)-1,1),回答数!$B74, OFFSET(raw!$A$1,2,MATCH($D$1,raw!$2:$2,0)-1,COUNTA(raw!$A:$A)-1,1),G$2) -> 19 | H74: =COUNTIFS( OFFSET(raw!$A$1,2,MATCH(回答数!$A74,raw!$2:$2,0)-1,COUNTA(raw!$A:$A)-1,1),回答数!$B74, OFFSET(raw!$A$1,2,MATCH($D$1,raw!$2:$2,0)-1,COUNTA(raw!$A:$A)-1,1),H$2) -> 0 | I74: =COUNTIFS( OFFSET(raw!$A$1,2,MATCH(回答数!$A74,raw!$2:$2,0)-1,COUNTA(raw!$A:$A)-1,1),回答数!$B74, OFFSET(raw!$A$1,2,MATCH($D$1,raw!$2:$2,0)-1,COUNTA(raw!$A:$A)-1,1),I$2) -> 0 | J74: =COUNTIFS( OFFSET(raw!$A$1,2,MATCH(回答数!$A74,raw!$2:$2,0)-1,COUNTA(raw!$A:$A)-1,1),回答数!$B74, OFFSET(raw!$A$1,2,MATCH($D$1,raw!$2:$2,0)-1,COUNTA(raw!$A:$A)-1,1),J$2) -> 0 | K74: =COUNTIFS( OFFSET(raw!$A$1,2,MATCH(回答数!$A74,raw!$2:$2,0)-1,COUNTA(raw!$A:$A)-1,1),回答数!$B74, OFFSET(raw!$A$1,2,MATCH($D$1,raw!$2:$2,0)-1,COUNTA(raw!$A:$A)-1,1),K$2) -> 0 | L74: =COUNTIFS( OFFSET(raw!$A$1,2,MATCH(回答数!$A74,raw!$2:$2,0)-1,COUNTA(raw!$A:$A)-1,1),回答数!$B74, OFFSET(raw!$A$1,2,MATCH($D$1,raw!$2:$2,0)-1,COUNTA(raw!$A:$A)-1,1),L$2) -> 0 | M74: =COUNTIFS( OFFSET(raw!$A$1,2,MATCH(回答数!$A74,raw!$2:$2,0)-1,COUNTA(raw!$A:$A)-1,1),回答数!$B74, OFFSET(raw!$A$1,2,MATCH($D$1,raw!$2:$2,0)-1,COUNTA(raw!$A:$A)-1,1),M$2) -> 0 | N74: =COUNTIFS( OFFSET(raw!$A$1,2,MATCH(回答数!$A74,raw!$2:$2,0)-1,COUNTA(raw!$A:$A)-1,1),回答数!$B74, OFFSET(raw!$A$1,2,MATCH($D$1,raw!$2:$2,0)-1,COUNTA(raw!$A:$A)-1,1),N$2) -> 0 | O74: =COUNTIFS( OFFSET(raw!$A$1,2,MATCH(回答数!$A74,raw!$2:$2,0)-1,COUNTA(raw!$A:$A)-1,1),回答数!$B74, OFFSET(raw!$A$1,2,MATCH($D$1,raw!$2:$2,0)-1,COUNTA(raw!$A:$A)-1,1),O$2) -> 0 | P74: 93
A75: 回答エリア | B75: 若狭フィッシャーマンズワーフ エリア | D75: =COUNTIFS( OFFSET(raw!$A$1,2,MATCH(回答数!$A75,raw!$2:$2,0)-1,COUNTA(raw!$A:$A)-1,1),回答数!$B75, OFFSET(raw!$A$1,2,MATCH($D$1,raw!$2:$2,0)-1,COUNTA(raw!$A:$A)-1,1),D$2) -> 22 | E75: =COUNTIFS( OFFSET(raw!$A$1,2,MATCH(回答数!$A75,raw!$2:$2,0)-1,COUNTA(raw!$A:$A)-1,1),回答数!$B75, OFFSET(raw!$A$1,2,MATCH($D$1,raw!$2:$2,0)-1,COUNTA(raw!$A:$A)-1,1),E$2) -> 33 | F75: =COUNTIFS( OFFSET(raw!$A$1,2,MATCH(回答数!$A75,raw!$2:$2,0)-1,COUNTA(raw!$A:$A)-1,1),回答数!$B75, OFFSET(raw!$A$1,2,MATCH($D$1,raw!$2:$2,0)-1,COUNTA(raw!$A:$A)-1,1),F$2) -> 20 | G75: =COUNTIFS( OFFSET(raw!$A$1,2,MATCH(回答数!$A75,raw!$2:$2,0)-1,COUNTA(raw!$A:$A)-1,1),回答数!$B75, OFFSET(raw!$A$1,2,MATCH($D$1,raw!$2:$2,0)-1,COUNTA(raw!$A:$A)-1,1),G$2) -> 21 | H75: =COUNTIFS( OFFSET(raw!$A$1,2,MATCH(回答数!$A75,raw!$2:$2,0)-1,COUNTA(raw!$A:$A)-1,1),回答数!$B75, OFFSET(raw!$A$1,2,MATCH($D$1,raw!$2:$2,0)-1,COUNTA(raw!$A:$A)-1,1),H$2) -> 0 | I75: =COUNTIFS( OFFSET(raw!$A$1,2,MATCH(回答数!$A75,raw!$2:$2,0)-1,COUNTA(raw!$A:$A)-1,1),回答数!$B75, OFFSET(raw!$A$1,2,MATCH($D$1,raw!$2:$2,0)-1,COUNTA(raw!$A:$A)-1,1),I$2) -> 0 | J75: =COUNTIFS( OFFSET(raw!$A$1,2,MATCH(回答数!$A75,raw!$2:$2,0)-1,COUNTA(raw!$A:$A)-1,1),回答数!$B75, OFFSET(raw!$A$1,2,MATCH($D$1,raw!$2:$2,0)-1,COUNTA(raw!$A:$A)-1,1),J$2) -> 0 | K75: =COUNTIFS( OFFSET(raw!$A$1,2,MATCH(回答数!$A75,raw!$2:$2,0)-1,COUNTA(raw!$A:$A)-1,1),回答数!$B75, OFFSET(raw!$A$1,2,MATCH($D$1,raw!$2:$2,0)-1,COUNTA(raw!$A:$A)-1,1),K$2) -> 0 | L75: =COUNTIFS( OFFSET(raw!$A$1,2,MATCH(回答数!$A75,raw!$2:$2,0)-1,COUNTA(raw!$A:$A)-1,1),回答数!$B75, OFFSET(raw!$A$1,2,MATCH($D$1,raw!$2:$2,0)-1,COUNTA(raw!$A:$A)-1,1),L$2) -> 0 | M75: =COUNTIFS( OFFSET(raw!$A$1,2,MATCH(回答数!$A75,raw!$2:$2,0)-1,COUNTA(raw!$A:$A)-1,1),回答数!$B75, OFFSET(raw!$A$1,2,MATCH($D$1,raw!$2:$2,0)-1,COUNTA(raw!$A:$A)-1,1),M$2) -> 0 | N75: =COUNTIFS( OFFSET(raw!$A$1,2,MATCH(回答数!$A75,raw!$2:$2,0)-1,COUNTA(raw!$A:$A)-1,1),回答数!$B75, OFFSET(raw!$A$1,2,MATCH($D$1,raw!$2:$2,0)-1,COUNTA(raw!$A:$A)-1,1),N$2) -> 0 | O75: =COUNTIFS( OFFSET(raw!$A$1,2,MATCH(回答数!$A75,raw!$2:$2,0)-1,COUNTA(raw!$A:$A)-1,1),回答数!$B75, OFFSET(raw!$A$1,2,MATCH($D$1,raw!$2:$2,0)-1,COUNTA(raw!$A:$A)-1,1),O$2) -> 0 | P75: 96
A76: 回答エリア | B76: 御食国若狭おばま食文化館 エリア | D76: =COUNTIFS( OFFSET(raw!$A$1,2,MATCH(回答数!$A76,raw!$2:$2,0)-1,COUNTA(raw!$A:$A)-1,1),回答数!$B76, OFFSET(raw!$A$1,2,MATCH($D$1,raw!$2:$2,0)-1,COUNTA(raw!$A:$A)-1,1),D$2) -> 24 | E76: =COUNTIFS( OFFSET(raw!$A$1,2,MATCH(回答数!$A76,raw!$2:$2,0)-1,COUNTA(raw!$A:$A)-1,1),回答数!$B76, OFFSET(raw!$A$1,2,MATCH($D$1,raw!$2:$2,0)-1,COUNTA(raw!$A:$A)-1,1),E$2) -> 35 | F76: =COUNTIFS( OFFSET(raw!$A$1,2,MATCH(回答数!$A76,raw!$2:$2,0)-1,COUNTA(raw!$A:$A)-1,1),回答数!$B76, OFFSET(raw!$A$1,2,MATCH($D$1,raw!$2:$2,0)-1,COUNTA(raw!$A:$A)-1,1),F$2) -> 10 | G76: =COUNTIFS( OFFSET(raw!$A$1,2,MATCH(回答数!$A76,raw!$2:$2,0)-1,COUNTA(raw!$A:$A)-1,1),回答数!$B76, OFFSET(raw!$A$1,2,MATCH($D$1,raw!$2:$2,0)-1,COUNTA(raw!$A:$A)-1,1),G$2) -> 19 | H76: =COUNTIFS( OFFSET(raw!$A$1,2,MATCH(回答数!$A76,raw!$2:$2,0)-1,COUNTA(raw!$A:$A)-1,1),回答数!$B76, OFFSET(raw!$A$1,2,MATCH($D$1,raw!$2:$2,0)-1,COUNTA(raw!$A:$A)-1,1),H$2) -> 0 | I76: =COUNTIFS( OFFSET(raw!$A$1,2,MATCH(回答数!$A76,raw!$2:$2,0)-1,COUNTA(raw!$A:$A)-1,1),回答数!$B76, OFFSET(raw!$A$1,2,MATCH($D$1,raw!$2:$2,0)-1,COUNTA(raw!$A:$A)-1,1),I$2) -> 0 | J76: =COUNTIFS( OFFSET(raw!$A$1,2,MATCH(回答数!$A76,raw!$2:$2,0)-1,COUNTA(raw!$A:$A)-1,1),回答数!$B76, OFFSET(raw!$A$1,2,MATCH($D$1,raw!$2:$2,0)-1,COUNTA(raw!$A:$A)-1,1),J$2) -> 0 | K76: =COUNTIFS( OFFSET(raw!$A$1,2,MATCH(回答数!$A76,raw!$2:$2,0)-1,COUNTA(raw!$A:$A)-1,1),回答数!$B76, OFFSET(raw!$A$1,2,MATCH($D$1,raw!$2:$2,0)-1,COUNTA(raw!$A:$A)-1,1),K$2) -> 0 | L76: =COUNTIFS( OFFSET(raw!$A$1,2,MATCH(回答数!$A76,raw!$2:$2,0)-1,COUNTA(raw!$A:$A)-1,1),回答数!$B76, OFFSET(raw!$A$1,2,MATCH($D$1,raw!$2:$2,0)-1,COUNTA(raw!$A:$A)-1,1),L$2) -> 0 | M76: =COUNTIFS( OFFSET(raw!$A$1,2,MATCH(回答数!$A76,raw!$2:$2,0)-1,COUNTA(raw!$A:$A)-1,1),回答数!$B76, OFFSET(raw!$A$1,2,MATCH($D$1,raw!$2:$2,0)-1,COUNTA(raw!$A:$A)-1,1),M$2) -> 0 | N76: =COUNTIFS( OFFSET(raw!$A$1,2,MATCH(回答数!$A76,raw!$2:$2,0)-1,COUNTA(raw!$A:$A)-1,1),回答数!$B76, OFFSET(raw!$A$1,2,MATCH($D$1,raw!$2:$2,0)-1,COUNTA(raw!$A:$A)-1,1),N$2) -> 0 | O76: =COUNTIFS( OFFSET(raw!$A$1,2,MATCH(回答数!$A76,raw!$2:$2,0)-1,COUNTA(raw!$A:$A)-1,1),回答数!$B76, OFFSET(raw!$A$1,2,MATCH($D$1,raw!$2:$2,0)-1,COUNTA(raw!$A:$A)-1,1),O$2) -> 0 | P76: 88
A77: 回答エリア | B77: 小浜市まちの駅 エリア | D77: =COUNTIFS( OFFSET(raw!$A$1,2,MATCH(回答数!$A77,raw!$2:$2,0)-1,COUNTA(raw!$A:$A)-1,1),回答数!$B77, OFFSET(raw!$A$1,2,MATCH($D$1,raw!$2:$2,0)-1,COUNTA(raw!$A:$A)-1,1),D$2) -> 6 | E77: =COUNTIFS( OFFSET(raw!$A$1,2,MATCH(回答数!$A77,raw!$2:$2,0)-1,COUNTA(raw!$A:$A)-1,1),回答数!$B77, OFFSET(raw!$A$1,2,MATCH($D$1,raw!$2:$2,0)-1,COUNTA(raw!$A:$A)-1,1),E$2) -> 10 | F77: =COUNTIFS( OFFSET(raw!$A$1,2,MATCH(回答数!$A77,raw!$2:$2,0)-1,COUNTA(raw!$A:$A)-1,1),回答数!$B77, OFFSET(raw!$A$1,2,MATCH($D$1,raw!$2:$2,0)-1,COUNTA(raw!$A:$A)-1,1),F$2) -> 1 | G77: =COUNTIFS( OFFSET(raw!$A$1,2,MATCH(回答数!$A77,raw!$2:$2,0)-1,COUNTA(raw!$A:$A)-1,1),回答数!$B77, OFFSET(raw!$A$1,2,MATCH($D$1,raw!$2:$2,0)-1,COUNTA(raw!$A:$A)-1,1),G$2) -> 0 | H77: =COUNTIFS( OFFSET(raw!$A$1,2,MATCH(回答数!$A77,raw!$2:$2,0)-1,COUNTA(raw!$A:$A)-1,1),回答数!$B77, OFFSET(raw!$A$1,2,MATCH($D$1,raw!$2:$2,0)-1,COUNTA(raw!$A:$A)-1,1),H$2) -> 0 | I77: =COUNTIFS( OFFSET(raw!$A$1,2,MATCH(回答数!$A77,raw!$2:$2,0)-1,COUNTA(raw!$A:$A)-1,1),回答数!$B77, OFFSET(raw!$A$1,2,MATCH($D$1,raw!$2:$2,0)-1,COUNTA(raw!$A:$A)-1,1),I$2) -> 0 | J77: =COUNTIFS( OFFSET(raw!$A$1,2,MATCH(回答数!$A77,raw!$2:$2,0)-1,COUNTA(raw!$A:$A)-1,1),回答数!$B77, OFFSET(raw!$A$1,2,MATCH($D$1,raw!$2:$2,0)-1,COUNTA(raw!$A:$A)-1,1),J$2) -> 0 | K77: =COUNTIFS( OFFSET(raw!$A$1,2,MATCH(回答数!$A77,raw!$2:$2,0)-1,COUNTA(raw!$A:$A)-1,1),回答数!$B77, OFFSET(raw!$A$1,2,MATCH($D$1,raw!$2:$2,0)-1,COUNTA(raw!$A:$A)-1,1),K$2) -> 0 | L77: =COUNTIFS( OFFSET(raw!$A$1,2,MATCH(回答数!$A77,raw!$2:$2,0)-1,COUNTA(raw!$A:$A)-1,1),回答数!$B77, OFFSET(raw!$A$1,2,MATCH($D$1,raw!$2:$2,0)-1,COUNTA(raw!$A:$A)-1,1),L$2) -> 0 | M77: =COUNTIFS( OFFSET(raw!$A$1,2,MATCH(回答数!$A77,raw!$2:$2,0)-1,COUNTA(raw!$A:$A)-1,1),回答数!$B77, OFFSET(raw!$A$1,2,MATCH($D$1,raw!$2:$2,0)-1,COUNTA(raw!$A:$A)-1,1),M$2) -> 0 | N77: =COUNTIFS( OFFSET(raw!$A$1,2,MATCH(回答数!$A77,raw!$2:$2,0)-1,COUNTA(raw!$A:$A)-1,1),回答数!$B77, OFFSET(raw!$A$1,2,MATCH($D$1,raw!$2:$2,0)-1,COUNTA(raw!$A:$A)-1,1),N$2) -> 0 | O77: =COUNTIFS( OFFSET(raw!$A$1,2,MATCH(回答数!$A77,raw!$2:$2,0)-1,COUNTA(raw!$A:$A)-1,1),回答数!$B77, OFFSET(raw!$A$1,2,MATCH($D$1,raw!$2:$2,0)-1,COUNTA(raw!$A:$A)-1,1),O$2) -> 0 | P77: 17
A78: 回答エリア | B78: 明通寺 エリア | D78: =COUNTIFS( OFFSET(raw!$A$1,2,MATCH(回答数!$A78,raw!$2:$2,0)-1,COUNTA(raw!$A:$A)-1,1),回答数!$B78, OFFSET(raw!$A$1,2,MATCH($D$1,raw!$2:$2,0)-1,COUNTA(raw!$A:$A)-1,1),D$2) -> 46 | E78: =COUNTIFS( OFFSET(raw!$A$1,2,MATCH(回答数!$A78,raw!$2:$2,0)-1,COUNTA(raw!$A:$A)-1,1),回答数!$B78, OFFSET(raw!$A$1,2,MATCH($D$1,raw!$2:$2,0)-1,COUNTA(raw!$A:$A)-1,1),E$2) -> 76 | F78: =COUNTIFS( OFFSET(raw!$A$1,2,MATCH(回答数!$A78,raw!$2:$2,0)-1,COUNTA(raw!$A:$A)-1,1),回答数!$B78, OFFSET(raw!$A$1,2,MATCH($D$1,raw!$2:$2,0)-1,COUNTA(raw!$A:$A)-1,1),F$2) -> 32 | G78: =COUNTIFS( OFFSET(raw!$A$1,2,MATCH(回答数!$A78,raw!$2:$2,0)-1,COUNTA(raw!$A:$A)-1,1),回答数!$B78, OFFSET(raw!$A$1,2,MATCH($D$1,raw!$2:$2,0)-1,COUNTA(raw!$A:$A)-1,1),G$2) -> 46 | H78: =COUNTIFS( OFFSET(raw!$A$1,2,MATCH(回答数!$A78,raw!$2:$2,0)-1,COUNTA(raw!$A:$A)-1,1),回答数!$B78, OFFSET(raw!$A$1,2,MATCH($D$1,raw!$2:$2,0)-1,COUNTA(raw!$A:$A)-1,1),H$2) -> 0 | I78: =COUNTIFS( OFFSET(raw!$A$1,2,MATCH(回答数!$A78,raw!$2:$2,0)-1,COUNTA(raw!$A:$A)-1,1),回答数!$B78, OFFSET(raw!$A$1,2,MATCH($D$1,raw!$2:$2,0)-1,COUNTA(raw!$A:$A)-1,1),I$2) -> 0 | J78: =COUNTIFS( OFFSET(raw!$A$1,2,MATCH(回答数!$A78,raw!$2:$2,0)-1,COUNTA(raw!$A:$A)-1,1),回答数!$B78, OFFSET(raw!$A$1,2,MATCH($D$1,raw!$2:$2,0)-1,COUNTA(raw!$A:$A)-1,1),J$2) -> 0 | K78: =COUNTIFS( OFFSET(raw!$A$1,2,MATCH(回答数!$A78,raw!$2:$2,0)-1,COUNTA(raw!$A:$A)-1,1),回答数!$B78, OFFSET(raw!$A$1,2,MATCH($D$1,raw!$2:$2,0)-1,COUNTA(raw!$A:$A)-1,1),K$2) -> 0 | L78: =COUNTIFS( OFFSET(raw!$A$1,2,MATCH(回答数!$A78,raw!$2:$2,0)-1,COUNTA(raw!$A:$A)-1,1),回答数!$B78, OFFSET(raw!$A$1,2,MATCH($D$1,raw!$2:$2,0)-1,COUNTA(raw!$A:$A)-1,1),L$2) -> 0 | M78: =COUNTIFS( OFFSET(raw!$A$1,2,MATCH(回答数!$A78,raw!$2:$2,0)-1,COUNTA(raw!$A:$A)-1,1),回答数!$B78, OFFSET(raw!$A$1,2,MATCH($D$1,raw!$2:$2,0)-1,COUNTA(raw!$A:$A)-1,1),M$2) -> 0 | N78: =COUNTIFS( OFFSET(raw!$A$1,2,MATCH(回答数!$A78,raw!$2:$2,0)-1,COUNTA(raw!$A:$A)-1,1),回答数!$B78, OFFSET(raw!$A$1,2,MATCH($D$1,raw!$2:$2,0)-1,COUNTA(raw!$A:$A)-1,1),N$2) -> 0 | O78: =COUNTIFS( OFFSET(raw!$A$1,2,MATCH(回答数!$A78,raw!$2:$2,0)-1,COUNTA(raw!$A:$A)-1,1),回答数!$B78, OFFSET(raw!$A$1,2,MATCH($D$1,raw!$2:$2,0)-1,COUNTA(raw!$A:$A)-1,1),O$2) -> 0 | P78: 200
A79: 回答エリア | B79: 箸のふるさと館WAKASA エリア | D79: =COUNTIFS( OFFSET(raw!$A$1,2,MATCH(回答数!$A79,raw!$2:$2,0)-1,COUNTA(raw!$A:$A)-1,1),回答数!$B79, OFFSET(raw!$A$1,2,MATCH($D$1,raw!$2:$2,0)-1,COUNTA(raw!$A:$A)-1,1),D$2) -> 5 | E79: =COUNTIFS( OFFSET(raw!$A$1,2,MATCH(回答数!$A79,raw!$2:$2,0)-1,COUNTA(raw!$A:$A)-1,1),回答数!$B79, OFFSET(raw!$A$1,2,MATCH($D$1,raw!$2:$2,0)-1,COUNTA(raw!$A:$A)-1,1),E$2) -> 3 | F79: =COUNTIFS( OFFSET(raw!$A$1,2,MATCH(回答数!$A79,raw!$2:$2,0)-1,COUNTA(raw!$A:$A)-1,1),回答数!$B79, OFFSET(raw!$A$1,2,MATCH($D$1,raw!$2:$2,0)-1,COUNTA(raw!$A:$A)-1,1),F$2) -> 3 | G79: =COUNTIFS( OFFSET(raw!$A$1,2,MATCH(回答数!$A79,raw!$2:$2,0)-1,COUNTA(raw!$A:$A)-1,1),回答数!$B79, OFFSET(raw!$A$1,2,MATCH($D$1,raw!$2:$2,0)-1,COUNTA(raw!$A:$A)-1,1),G$2) -> 1 | H79: =COUNTIFS( OFFSET(raw!$A$1,2,MATCH(回答数!$A79,raw!$2:$2,0)-1,COUNTA(raw!$A:$A)-1,1),回答数!$B79, OFFSET(raw!$A$1,2,MATCH($D$1,raw!$2:$2,0)-1,COUNTA(raw!$A:$A)-1,1),H$2) -> 0 | I79: =COUNTIFS( OFFSET(raw!$A$1,2,MATCH(回答数!$A79,raw!$2:$2,0)-1,COUNTA(raw!$A:$A)-1,1),回答数!$B79, OFFSET(raw!$A$1,2,MATCH($D$1,raw!$2:$2,0)-1,COUNTA(raw!$A:$A)-1,1),I$2) -> 0 | J79: =COUNTIFS( OFFSET(raw!$A$1,2,MATCH(回答数!$A79,raw!$2:$2,0)-1,COUNTA(raw!$A:$A)-1,1),回答数!$B79, OFFSET(raw!$A$1,2,MATCH($D$1,raw!$2:$2,0)-1,COUNTA(raw!$A:$A)-1,1),J$2) -> 0 | K79: =COUNTIFS( OFFSET(raw!$A$1,2,MATCH(回答数!$A79,raw!$2:$2,0)-1,COUNTA(raw!$A:$A)-1,1),回答数!$B79, OFFSET(raw!$A$1,2,MATCH($D$1,raw!$2:$2,0)-1,COUNTA(raw!$A:$A)-1,1),K$2) -> 0 | L79: =COUNTIFS( OFFSET(raw!$A$1,2,MATCH(回答数!$A79,raw!$2:$2,0)-1,COUNTA(raw!$A:$A)-1,1),回答数!$B79, OFFSET(raw!$A$1,2,MATCH($D$1,raw!$2:$2,0)-1,COUNTA(raw!$A:$A)-1,1),L$2) -> 0 | M79: =COUNTIFS( OFFSET(raw!$A$1,2,MATCH(回答数!$A79,raw!$2:$2,0)-1,COUNTA(raw!$A:$A)-1,1),回答数!$B79, OFFSET(raw!$A$1,2,MATCH($D$1,raw!$2:$2,0)-1,COUNTA(raw!$A:$A)-1,1),M$2) -> 0 | N79: =COUNTIFS( OFFSET(raw!$A$1,2,MATCH(回答数!$A79,raw!$2:$2,0)-1,COUNTA(raw!$A:$A)-1,1),回答数!$B79, OFFSET(raw!$A$1,2,MATCH($D$1,raw!$2:$2,0)-1,COUNTA(raw!$A:$A)-1,1),N$2) -> 0 | O79: =COUNTIFS( OFFSET(raw!$A$1,2,MATCH(回答数!$A79,raw!$2:$2,0)-1,COUNTA(raw!$A:$A)-1,1),回答数!$B79, OFFSET(raw!$A$1,2,MATCH($D$1,raw!$2:$2,0)-1,COUNTA(raw!$A:$A)-1,1),O$2) -> 0 | P79: 12
A80: 回答エリア | B80: 水晶浜 エリア | D80: =COUNTIFS( OFFSET(raw!$A$1,2,MATCH(回答数!$A80,raw!$2:$2,0)-1,COUNTA(raw!$A:$A)-1,1),回答数!$B80, OFFSET(raw!$A$1,2,MATCH($D$1,raw!$2:$2,0)-1,COUNTA(raw!$A:$A)-1,1),D$2) -> 8 | E80: =COUNTIFS( OFFSET(raw!$A$1,2,MATCH(回答数!$A80,raw!$2:$2,0)-1,COUNTA(raw!$A:$A)-1,1),回答数!$B80, OFFSET(raw!$A$1,2,MATCH($D$1,raw!$2:$2,0)-1,COUNTA(raw!$A:$A)-1,1),E$2) -> 21 | F80: =COUNTIFS( OFFSET(raw!$A$1,2,MATCH(回答数!$A80,raw!$2:$2,0)-1,COUNTA(raw!$A:$A)-1,1),回答数!$B80, OFFSET(raw!$A$1,2,MATCH($D$1,raw!$2:$2,0)-1,COUNTA(raw!$A:$A)-1,1),F$2) -> 5 | G80: =COUNTIFS( OFFSET(raw!$A$1,2,MATCH(回答数!$A80,raw!$2:$2,0)-1,COUNTA(raw!$A:$A)-1,1),回答数!$B80, OFFSET(raw!$A$1,2,MATCH($D$1,raw!$2:$2,0)-1,COUNTA(raw!$A:$A)-1,1),G$2) -> 6 | H80: =COUNTIFS( OFFSET(raw!$A$1,2,MATCH(回答数!$A80,raw!$2:$2,0)-1,COUNTA(raw!$A:$A)-1,1),回答数!$B80, OFFSET(raw!$A$1,2,MATCH($D$1,raw!$2:$2,0)-1,COUNTA(raw!$A:$A)-1,1),H$2) -> 0 | I80: =COUNTIFS( OFFSET(raw!$A$1,2,MATCH(回答数!$A80,raw!$2:$2,0)-1,COUNTA(raw!$A:$A)-1,1),回答数!$B80, OFFSET(raw!$A$1,2,MATCH($D$1,raw!$2:$2,0)-1,COUNTA(raw!$A:$A)-1,1),I$2) -> 0 | J80: =COUNTIFS( OFFSET(raw!$A$1,2,MATCH(回答数!$A80,raw!$2:$2,0)-1,COUNTA(raw!$A:$A)-1,1),回答数!$B80, OFFSET(raw!$A$1,2,MATCH($D$1,raw!$2:$2,0)-1,COUNTA(raw!$A:$A)-1,1),J$2) -> 0 | K80: =COUNTIFS( OFFSET(raw!$A$1,2,MATCH(回答数!$A80,raw!$2:$2,0)-1,COUNTA(raw!$A:$A)-1,1),回答数!$B80, OFFSET(raw!$A$1,2,MATCH($D$1,raw!$2:$2,0)-1,COUNTA(raw!$A:$A)-1,1),K$2) -> 0 | L80: =COUNTIFS( OFFSET(raw!$A$1,2,MATCH(回答数!$A80,raw!$2:$2,0)-1,COUNTA(raw!$A:$A)-1,1),回答数!$B80, OFFSET(raw!$A$1,2,MATCH($D$1,raw!$2:$2,0)-1,COUNTA(raw!$A:$A)-1,1),L$2) -> 0 | M80: =COUNTIFS( OFFSET(raw!$A$1,2,MATCH(回答数!$A80,raw!$2:$2,0)-1,COUNTA(raw!$A:$A)-1,1),回答数!$B80, OFFSET(raw!$A$1,2,MATCH($D$1,raw!$2:$2,0)-1,COUNTA(raw!$A:$A)-1,1),M$2) -> 0 | N80: =COUNTIFS( OFFSET(raw!$A$1,2,MATCH(回答数!$A80,raw!$2:$2,0)-1,COUNTA(raw!$A:$A)-1,1),回答数!$B80, OFFSET(raw!$A$1,2,MATCH($D$1,raw!$2:$2,0)-1,COUNTA(raw!$A:$A)-1,1),N$2) -> 0 | O80: =COUNTIFS( OFFSET(raw!$A$1,2,MATCH(回答数!$A80,raw!$2:$2,0)-1,COUNTA(raw!$A:$A)-1,1),回答数!$B80, OFFSET(raw!$A$1,2,MATCH($D$1,raw!$2:$2,0)-1,COUNTA(raw!$A:$A)-1,1),O$2) -> 0 | P80: 40
A81: 回答エリア | B81: 美浜町レイクセンター エリア | D81: =COUNTIFS( OFFSET(raw!$A$1,2,MATCH(回答数!$A81,raw!$2:$2,0)-1,COUNTA(raw!$A:$A)-1,1),回答数!$B81, OFFSET(raw!$A$1,2,MATCH($D$1,raw!$2:$2,0)-1,COUNTA(raw!$A:$A)-1,1),D$2) -> 2 | E81: =COUNTIFS( OFFSET(raw!$A$1,2,MATCH(回答数!$A81,raw!$2:$2,0)-1,COUNTA(raw!$A:$A)-1,1),回答数!$B81, OFFSET(raw!$A$1,2,MATCH($D$1,raw!$2:$2,0)-1,COUNTA(raw!$A:$A)-1,1),E$2) -> 2 | F81: =COUNTIFS( OFFSET(raw!$A$1,2,MATCH(回答数!$A81,raw!$2:$2,0)-1,COUNTA(raw!$A:$A)-1,1),回答数!$B81, OFFSET(raw!$A$1,2,MATCH($D$1,raw!$2:$2,0)-1,COUNTA(raw!$A:$A)-1,1),F$2) -> 0 | G81: =COUNTIFS( OFFSET(raw!$A$1,2,MATCH(回答数!$A81,raw!$2:$2,0)-1,COUNTA(raw!$A:$A)-1,1),回答数!$B81, OFFSET(raw!$A$1,2,MATCH($D$1,raw!$2:$2,0)-1,COUNTA(raw!$A:$A)-1,1),G$2) -> 0 | H81: =COUNTIFS( OFFSET(raw!$A$1,2,MATCH(回答数!$A81,raw!$2:$2,0)-1,COUNTA(raw!$A:$A)-1,1),回答数!$B81, OFFSET(raw!$A$1,2,MATCH($D$1,raw!$2:$2,0)-1,COUNTA(raw!$A:$A)-1,1),H$2) -> 0 | I81: =COUNTIFS( OFFSET(raw!$A$1,2,MATCH(回答数!$A81,raw!$2:$2,0)-1,COUNTA(raw!$A:$A)-1,1),回答数!$B81, OFFSET(raw!$A$1,2,MATCH($D$1,raw!$2:$2,0)-1,COUNTA(raw!$A:$A)-1,1),I$2) -> 0 | J81: =COUNTIFS( OFFSET(raw!$A$1,2,MATCH(回答数!$A81,raw!$2:$2,0)-1,COUNTA(raw!$A:$A)-1,1),回答数!$B81, OFFSET(raw!$A$1,2,MATCH($D$1,raw!$2:$2,0)-1,COUNTA(raw!$A:$A)-1,1),J$2) -> 0 | K81: =COUNTIFS( OFFSET(raw!$A$1,2,MATCH(回答数!$A81,raw!$2:$2,0)-1,COUNTA(raw!$A:$A)-1,1),回答数!$B81, OFFSET(raw!$A$1,2,MATCH($D$1,raw!$2:$2,0)-1,COUNTA(raw!$A:$A)-1,1),K$2) -> 0 | L81: =COUNTIFS( OFFSET(raw!$A$1,2,MATCH(回答数!$A81,raw!$2:$2,0)-1,COUNTA(raw!$A:$A)-1,1),回答数!$B81, OFFSET(raw!$A$1,2,MATCH($D$1,raw!$2:$2,0)-1,COUNTA(raw!$A:$A)-1,1),L$2) -> 0 | M81: =COUNTIFS( OFFSET(raw!$A$1,2,MATCH(回答数!$A81,raw!$2:$2,0)-1,COUNTA(raw!$A:$A)-1,1),回答数!$B81, OFFSET(raw!$A$1,2,MATCH($D$1,raw!$2:$2,0)-1,COUNTA(raw!$A:$A)-1,1),M$2) -> 0 | N81: =COUNTIFS( OFFSET(raw!$A$1,2,MATCH(回答数!$A81,raw!$2:$2,0)-1,COUNTA(raw!$A:$A)-1,1),回答数!$B81, OFFSET(raw!$A$1,2,MATCH($D$1,raw!$2:$2,0)-1,COUNTA(raw!$A:$A)-1,1),N$2) -> 0 | O81: =COUNTIFS( OFFSET(raw!$A$1,2,MATCH(回答数!$A81,raw!$2:$2,0)-1,COUNTA(raw!$A:$A)-1,1),回答数!$B81, OFFSET(raw!$A$1,2,MATCH($D$1,raw!$2:$2,0)-1,COUNTA(raw!$A:$A)-1,1),O$2) -> 0 | P81: 4
A82: 回答エリア | B82: レインボーライン エリア | D82: =COUNTIFS( OFFSET(raw!$A$1,2,MATCH(回答数!$A82,raw!$2:$2,0)-1,COUNTA(raw!$A:$A)-1,1),回答数!$B82, OFFSET(raw!$A$1,2,MATCH($D$1,raw!$2:$2,0)-1,COUNTA(raw!$A:$A)-1,1),D$2) -> 47 | E82: =COUNTIFS( OFFSET(raw!$A$1,2,MATCH(回答数!$A82,raw!$2:$2,0)-1,COUNTA(raw!$A:$A)-1,1),回答数!$B82, OFFSET(raw!$A$1,2,MATCH($D$1,raw!$2:$2,0)-1,COUNTA(raw!$A:$A)-1,1),E$2) -> 31 | F82: =COUNTIFS( OFFSET(raw!$A$1,2,MATCH(回答数!$A82,raw!$2:$2,0)-1,COUNTA(raw!$A:$A)-1,1),回答数!$B82, OFFSET(raw!$A$1,2,MATCH($D$1,raw!$2:$2,0)-1,COUNTA(raw!$A:$A)-1,1),F$2) -> 42 | G82: =COUNTIFS( OFFSET(raw!$A$1,2,MATCH(回答数!$A82,raw!$2:$2,0)-1,COUNTA(raw!$A:$A)-1,1),回答数!$B82, OFFSET(raw!$A$1,2,MATCH($D$1,raw!$2:$2,0)-1,COUNTA(raw!$A:$A)-1,1),G$2) -> 30 | H82: =COUNTIFS( OFFSET(raw!$A$1,2,MATCH(回答数!$A82,raw!$2:$2,0)-1,COUNTA(raw!$A:$A)-1,1),回答数!$B82, OFFSET(raw!$A$1,2,MATCH($D$1,raw!$2:$2,0)-1,COUNTA(raw!$A:$A)-1,1),H$2) -> 0 | I82: =COUNTIFS( OFFSET(raw!$A$1,2,MATCH(回答数!$A82,raw!$2:$2,0)-1,COUNTA(raw!$A:$A)-1,1),回答数!$B82, OFFSET(raw!$A$1,2,MATCH($D$1,raw!$2:$2,0)-1,COUNTA(raw!$A:$A)-1,1),I$2) -> 0 | J82: =COUNTIFS( OFFSET(raw!$A$1,2,MATCH(回答数!$A82,raw!$2:$2,0)-1,COUNTA(raw!$A:$A)-1,1),回答数!$B82, OFFSET(raw!$A$1,2,MATCH($D$1,raw!$2:$2,0)-1,COUNTA(raw!$A:$A)-1,1),J$2) -> 0 | K82: =COUNTIFS( OFFSET(raw!$A$1,2,MATCH(回答数!$A82,raw!$2:$2,0)-1,COUNTA(raw!$A:$A)-1,1),回答数!$B82, OFFSET(raw!$A$1,2,MATCH($D$1,raw!$2:$2,0)-1,COUNTA(raw!$A:$A)-1,1),K$2) -> 0 | L82: =COUNTIFS( OFFSET(raw!$A$1,2,MATCH(回答数!$A82,raw!$2:$2,0)-1,COUNTA(raw!$A:$A)-1,1),回答数!$B82, OFFSET(raw!$A$1,2,MATCH($D$1,raw!$2:$2,0)-1,COUNTA(raw!$A:$A)-1,1),L$2) -> 0 | M82: =COUNTIFS( OFFSET(raw!$A$1,2,MATCH(回答数!$A82,raw!$2:$2,0)-1,COUNTA(raw!$A:$A)-1,1),回答数!$B82, OFFSET(raw!$A$1,2,MATCH($D$1,raw!$2:$2,0)-1,COUNTA(raw!$A:$A)-1,1),M$2) -> 0 | N82: =COUNTIFS( OFFSET(raw!$A$1,2,MATCH(回答数!$A82,raw!$2:$2,0)-1,COUNTA(raw!$A:$A)-1,1),回答数!$B82, OFFSET(raw!$A$1,2,MATCH($D$1,raw!$2:$2,0)-1,COUNTA(raw!$A:$A)-1,1),N$2) -> 0 | O82: =COUNTIFS( OFFSET(raw!$A$1,2,MATCH(回答数!$A82,raw!$2:$2,0)-1,COUNTA(raw!$A:$A)-1,1),回答数!$B82, OFFSET(raw!$A$1,2,MATCH($D$1,raw!$2:$2,0)-1,COUNTA(raw!$A:$A)-1,1),O$2) -> 0 | P82: 150
A83: 回答エリア | B83: 若狭海遊バザール 千鳥苑 エリア | D83: =COUNTIFS( OFFSET(raw!$A$1,2,MATCH(回答数!$A83,raw!$2:$2,0)-1,COUNTA(raw!$A:$A)-1,1),回答数!$B83, OFFSET(raw!$A$1,2,MATCH($D$1,raw!$2:$2,0)-1,COUNTA(raw!$A:$A)-1,1),D$2) -> 14 | E83: =COUNTIFS( OFFSET(raw!$A$1,2,MATCH(回答数!$A83,raw!$2:$2,0)-1,COUNTA(raw!$A:$A)-1,1),回答数!$B83, OFFSET(raw!$A$1,2,MATCH($D$1,raw!$2:$2,0)-1,COUNTA(raw!$A:$A)-1,1),E$2) -> 2 | F83: =COUNTIFS( OFFSET(raw!$A$1,2,MATCH(回答数!$A83,raw!$2:$2,0)-1,COUNTA(raw!$A:$A)-1,1),回答数!$B83, OFFSET(raw!$A$1,2,MATCH($D$1,raw!$2:$2,0)-1,COUNTA(raw!$A:$A)-1,1),F$2) -> 11 | G83: =COUNTIFS( OFFSET(raw!$A$1,2,MATCH(回答数!$A83,raw!$2:$2,0)-1,COUNTA(raw!$A:$A)-1,1),回答数!$B83, OFFSET(raw!$A$1,2,MATCH($D$1,raw!$2:$2,0)-1,COUNTA(raw!$A:$A)-1,1),G$2) -> 7 | H83: =COUNTIFS( OFFSET(raw!$A$1,2,MATCH(回答数!$A83,raw!$2:$2,0)-1,COUNTA(raw!$A:$A)-1,1),回答数!$B83, OFFSET(raw!$A$1,2,MATCH($D$1,raw!$2:$2,0)-1,COUNTA(raw!$A:$A)-1,1),H$2) -> 0 | I83: =COUNTIFS( OFFSET(raw!$A$1,2,MATCH(回答数!$A83,raw!$2:$2,0)-1,COUNTA(raw!$A:$A)-1,1),回答数!$B83, OFFSET(raw!$A$1,2,MATCH($D$1,raw!$2:$2,0)-1,COUNTA(raw!$A:$A)-1,1),I$2) -> 0 | J83: =COUNTIFS( OFFSET(raw!$A$1,2,MATCH(回答数!$A83,raw!$2:$2,0)-1,COUNTA(raw!$A:$A)-1,1),回答数!$B83, OFFSET(raw!$A$1,2,MATCH($D$1,raw!$2:$2,0)-1,COUNTA(raw!$A:$A)-1,1),J$2) -> 0 | K83: =COUNTIFS( OFFSET(raw!$A$1,2,MATCH(回答数!$A83,raw!$2:$2,0)-1,COUNTA(raw!$A:$A)-1,1),回答数!$B83, OFFSET(raw!$A$1,2,MATCH($D$1,raw!$2:$2,0)-1,COUNTA(raw!$A:$A)-1,1),K$2) -> 0 | L83: =COUNTIFS( OFFSET(raw!$A$1,2,MATCH(回答数!$A83,raw!$2:$2,0)-1,COUNTA(raw!$A:$A)-1,1),回答数!$B83, OFFSET(raw!$A$1,2,MATCH($D$1,raw!$2:$2,0)-1,COUNTA(raw!$A:$A)-1,1),L$2) -> 0 | M83: =COUNTIFS( OFFSET(raw!$A$1,2,MATCH(回答数!$A83,raw!$2:$2,0)-1,COUNTA(raw!$A:$A)-1,1),回答数!$B83, OFFSET(raw!$A$1,2,MATCH($D$1,raw!$2:$2,0)-1,COUNTA(raw!$A:$A)-1,1),M$2) -> 0 | N83: =COUNTIFS( OFFSET(raw!$A$1,2,MATCH(回答数!$A83,raw!$2:$2,0)-1,COUNTA(raw!$A:$A)-1,1),回答数!$B83, OFFSET(raw!$A$1,2,MATCH($D$1,raw!$2:$2,0)-1,COUNTA(raw!$A:$A)-1,1),N$2) -> 0 | O83: =COUNTIFS( OFFSET(raw!$A$1,2,MATCH(回答数!$A83,raw!$2:$2,0)-1,COUNTA(raw!$A:$A)-1,1),回答数!$B83, OFFSET(raw!$A$1,2,MATCH($D$1,raw!$2:$2,0)-1,COUNTA(raw!$A:$A)-1,1),O$2) -> 0 | P83: 34
A84: 回答エリア | B84: JR美浜駅 エリア | D84: =COUNTIFS( OFFSET(raw!$A$1,2,MATCH(回答数!$A84,raw!$2:$2,0)-1,COUNTA(raw!$A:$A)-1,1),回答数!$B84, OFFSET(raw!$A$1,2,MATCH($D$1,raw!$2:$2,0)-1,COUNTA(raw!$A:$A)-1,1),D$2) -> 51 | E84: =COUNTIFS( OFFSET(raw!$A$1,2,MATCH(回答数!$A84,raw!$2:$2,0)-1,COUNTA(raw!$A:$A)-1,1),回答数!$B84, OFFSET(raw!$A$1,2,MATCH($D$1,raw!$2:$2,0)-1,COUNTA(raw!$A:$A)-1,1),E$2) -> 51 | F84: =COUNTIFS( OFFSET(raw!$A$1,2,MATCH(回答数!$A84,raw!$2:$2,0)-1,COUNTA(raw!$A:$A)-1,1),回答数!$B84, OFFSET(raw!$A$1,2,MATCH($D$1,raw!$2:$2,0)-1,COUNTA(raw!$A:$A)-1,1),F$2) -> 37 | G84: =COUNTIFS( OFFSET(raw!$A$1,2,MATCH(回答数!$A84,raw!$2:$2,0)-1,COUNTA(raw!$A:$A)-1,1),回答数!$B84, OFFSET(raw!$A$1,2,MATCH($D$1,raw!$2:$2,0)-1,COUNTA(raw!$A:$A)-1,1),G$2) -> 41 | H84: =COUNTIFS( OFFSET(raw!$A$1,2,MATCH(回答数!$A84,raw!$2:$2,0)-1,COUNTA(raw!$A:$A)-1,1),回答数!$B84, OFFSET(raw!$A$1,2,MATCH($D$1,raw!$2:$2,0)-1,COUNTA(raw!$A:$A)-1,1),H$2) -> 0 | I84: =COUNTIFS( OFFSET(raw!$A$1,2,MATCH(回答数!$A84,raw!$2:$2,0)-1,COUNTA(raw!$A:$A)-1,1),回答数!$B84, OFFSET(raw!$A$1,2,MATCH($D$1,raw!$2:$2,0)-1,COUNTA(raw!$A:$A)-1,1),I$2) -> 0 | J84: =COUNTIFS( OFFSET(raw!$A$1,2,MATCH(回答数!$A84,raw!$2:$2,0)-1,COUNTA(raw!$A:$A)-1,1),回答数!$B84, OFFSET(raw!$A$1,2,MATCH($D$1,raw!$2:$2,0)-1,COUNTA(raw!$A:$A)-1,1),J$2) -> 0 | K84: =COUNTIFS( OFFSET(raw!$A$1,2,MATCH(回答数!$A84,raw!$2:$2,0)-1,COUNTA(raw!$A:$A)-1,1),回答数!$B84, OFFSET(raw!$A$1,2,MATCH($D$1,raw!$2:$2,0)-1,COUNTA(raw!$A:$A)-1,1),K$2) -> 0 | L84: =COUNTIFS( OFFSET(raw!$A$1,2,MATCH(回答数!$A84,raw!$2:$2,0)-1,COUNTA(raw!$A:$A)-1,1),回答数!$B84, OFFSET(raw!$A$1,2,MATCH($D$1,raw!$2:$2,0)-1,COUNTA(raw!$A:$A)-1,1),L$2) -> 0 | M84: =COUNTIFS( OFFSET(raw!$A$1,2,MATCH(回答数!$A84,raw!$2:$2,0)-1,COUNTA(raw!$A:$A)-1,1),回答数!$B84, OFFSET(raw!$A$1,2,MATCH($D$1,raw!$2:$2,0)-1,COUNTA(raw!$A:$A)-1,1),M$2) -> 0 | N84: =COUNTIFS( OFFSET(raw!$A$1,2,MATCH(回答数!$A84,raw!$2:$2,0)-1,COUNTA(raw!$A:$A)-1,1),回答数!$B84, OFFSET(raw!$A$1,2,MATCH($D$1,raw!$2:$2,0)-1,COUNTA(raw!$A:$A)-1,1),N$2) -> 0 | O84: =COUNTIFS( OFFSET(raw!$A$1,2,MATCH(回答数!$A84,raw!$2:$2,0)-1,COUNTA(raw!$A:$A)-1,1),回答数!$B84, OFFSET(raw!$A$1,2,MATCH($D$1,raw!$2:$2,0)-1,COUNTA(raw!$A:$A)-1,1),O$2) -> 0 | P84: 180
A85: 回答エリア | B85: 新庄 渓流の里 エリア | D85: =COUNTIFS( OFFSET(raw!$A$1,2,MATCH(回答数!$A85,raw!$2:$2,0)-1,COUNTA(raw!$A:$A)-1,1),回答数!$B85, OFFSET(raw!$A$1,2,MATCH($D$1,raw!$2:$2,0)-1,COUNTA(raw!$A:$A)-1,1),D$2) -> 0 | E85: =COUNTIFS( OFFSET(raw!$A$1,2,MATCH(回答数!$A85,raw!$2:$2,0)-1,COUNTA(raw!$A:$A)-1,1),回答数!$B85, OFFSET(raw!$A$1,2,MATCH($D$1,raw!$2:$2,0)-1,COUNTA(raw!$A:$A)-1,1),E$2) -> 0 | F85: =COUNTIFS( OFFSET(raw!$A$1,2,MATCH(回答数!$A85,raw!$2:$2,0)-1,COUNTA(raw!$A:$A)-1,1),回答数!$B85, OFFSET(raw!$A$1,2,MATCH($D$1,raw!$2:$2,0)-1,COUNTA(raw!$A:$A)-1,1),F$2) -> 2 | G85: =COUNTIFS( OFFSET(raw!$A$1,2,MATCH(回答数!$A85,raw!$2:$2,0)-1,COUNTA(raw!$A:$A)-1,1),回答数!$B85, OFFSET(raw!$A$1,2,MATCH($D$1,raw!$2:$2,0)-1,COUNTA(raw!$A:$A)-1,1),G$2) -> 0 | H85: =COUNTIFS( OFFSET(raw!$A$1,2,MATCH(回答数!$A85,raw!$2:$2,0)-1,COUNTA(raw!$A:$A)-1,1),回答数!$B85, OFFSET(raw!$A$1,2,MATCH($D$1,raw!$2:$2,0)-1,COUNTA(raw!$A:$A)-1,1),H$2) -> 0 | I85: =COUNTIFS( OFFSET(raw!$A$1,2,MATCH(回答数!$A85,raw!$2:$2,0)-1,COUNTA(raw!$A:$A)-1,1),回答数!$B85, OFFSET(raw!$A$1,2,MATCH($D$1,raw!$2:$2,0)-1,COUNTA(raw!$A:$A)-1,1),I$2) -> 0 | J85: =COUNTIFS( OFFSET(raw!$A$1,2,MATCH(回答数!$A85,raw!$2:$2,0)-1,COUNTA(raw!$A:$A)-1,1),回答数!$B85, OFFSET(raw!$A$1,2,MATCH($D$1,raw!$2:$2,0)-1,COUNTA(raw!$A:$A)-1,1),J$2) -> 0 | K85: =COUNTIFS( OFFSET(raw!$A$1,2,MATCH(回答数!$A85,raw!$2:$2,0)-1,COUNTA(raw!$A:$A)-1,1),回答数!$B85, OFFSET(raw!$A$1,2,MATCH($D$1,raw!$2:$2,0)-1,COUNTA(raw!$A:$A)-1,1),K$2) -> 0 | L85: =COUNTIFS( OFFSET(raw!$A$1,2,MATCH(回答数!$A85,raw!$2:$2,0)-1,COUNTA(raw!$A:$A)-1,1),回答数!$B85, OFFSET(raw!$A$1,2,MATCH($D$1,raw!$2:$2,0)-1,COUNTA(raw!$A:$A)-1,1),L$2) -> 0 | M85: =COUNTIFS( OFFSET(raw!$A$1,2,MATCH(回答数!$A85,raw!$2:$2,0)-1,COUNTA(raw!$A:$A)-1,1),回答数!$B85, OFFSET(raw!$A$1,2,MATCH($D$1,raw!$2:$2,0)-1,COUNTA(raw!$A:$A)-1,1),M$2) -> 0 | N85: =COUNTIFS( OFFSET(raw!$A$1,2,MATCH(回答数!$A85,raw!$2:$2,0)-1,COUNTA(raw!$A:$A)-1,1),回答数!$B85, OFFSET(raw!$A$1,2,MATCH($D$1,raw!$2:$2,0)-1,COUNTA(raw!$A:$A)-1,1),N$2) -> 0 | O85: =COUNTIFS( OFFSET(raw!$A$1,2,MATCH(回答数!$A85,raw!$2:$2,0)-1,COUNTA(raw!$A:$A)-1,1),回答数!$B85, OFFSET(raw!$A$1,2,MATCH($D$1,raw!$2:$2,0)-1,COUNTA(raw!$A:$A)-1,1),O$2) -> 0 | P85: 2
A86: 回答エリア | B86: 熊川宿 エリア | D86: =COUNTIFS( OFFSET(raw!$A$1,2,MATCH(回答数!$A86,raw!$2:$2,0)-1,COUNTA(raw!$A:$A)-1,1),回答数!$B86, OFFSET(raw!$A$1,2,MATCH($D$1,raw!$2:$2,0)-1,COUNTA(raw!$A:$A)-1,1),D$2) -> 48 | E86: =COUNTIFS( OFFSET(raw!$A$1,2,MATCH(回答数!$A86,raw!$2:$2,0)-1,COUNTA(raw!$A:$A)-1,1),回答数!$B86, OFFSET(raw!$A$1,2,MATCH($D$1,raw!$2:$2,0)-1,COUNTA(raw!$A:$A)-1,1),E$2) -> 48 | F86: =COUNTIFS( OFFSET(raw!$A$1,2,MATCH(回答数!$A86,raw!$2:$2,0)-1,COUNTA(raw!$A:$A)-1,1),回答数!$B86, OFFSET(raw!$A$1,2,MATCH($D$1,raw!$2:$2,0)-1,COUNTA(raw!$A:$A)-1,1),F$2) -> 31 | G86: =COUNTIFS( OFFSET(raw!$A$1,2,MATCH(回答数!$A86,raw!$2:$2,0)-1,COUNTA(raw!$A:$A)-1,1),回答数!$B86, OFFSET(raw!$A$1,2,MATCH($D$1,raw!$2:$2,0)-1,COUNTA(raw!$A:$A)-1,1),G$2) -> 25 | H86: =COUNTIFS( OFFSET(raw!$A$1,2,MATCH(回答数!$A86,raw!$2:$2,0)-1,COUNTA(raw!$A:$A)-1,1),回答数!$B86, OFFSET(raw!$A$1,2,MATCH($D$1,raw!$2:$2,0)-1,COUNTA(raw!$A:$A)-1,1),H$2) -> 0 | I86: =COUNTIFS( OFFSET(raw!$A$1,2,MATCH(回答数!$A86,raw!$2:$2,0)-1,COUNTA(raw!$A:$A)-1,1),回答数!$B86, OFFSET(raw!$A$1,2,MATCH($D$1,raw!$2:$2,0)-1,COUNTA(raw!$A:$A)-1,1),I$2) -> 0 | J86: =COUNTIFS( OFFSET(raw!$A$1,2,MATCH(回答数!$A86,raw!$2:$2,0)-1,COUNTA(raw!$A:$A)-1,1),回答数!$B86, OFFSET(raw!$A$1,2,MATCH($D$1,raw!$2:$2,0)-1,COUNTA(raw!$A:$A)-1,1),J$2) -> 0 | K86: =COUNTIFS( OFFSET(raw!$A$1,2,MATCH(回答数!$A86,raw!$2:$2,0)-1,COUNTA(raw!$A:$A)-1,1),回答数!$B86, OFFSET(raw!$A$1,2,MATCH($D$1,raw!$2:$2,0)-1,COUNTA(raw!$A:$A)-1,1),K$2) -> 0 | L86: =COUNTIFS( OFFSET(raw!$A$1,2,MATCH(回答数!$A86,raw!$2:$2,0)-1,COUNTA(raw!$A:$A)-1,1),回答数!$B86, OFFSET(raw!$A$1,2,MATCH($D$1,raw!$2:$2,0)-1,COUNTA(raw!$A:$A)-1,1),L$2) -> 0 | M86: =COUNTIFS( OFFSET(raw!$A$1,2,MATCH(回答数!$A86,raw!$2:$2,0)-1,COUNTA(raw!$A:$A)-1,1),回答数!$B86, OFFSET(raw!$A$1,2,MATCH($D$1,raw!$2:$2,0)-1,COUNTA(raw!$A:$A)-1,1),M$2) -> 0 | N86: =COUNTIFS( OFFSET(raw!$A$1,2,MATCH(回答数!$A86,raw!$2:$2,0)-1,COUNTA(raw!$A:$A)-1,1),回答数!$B86, OFFSET(raw!$A$1,2,MATCH($D$1,raw!$2:$2,0)-1,COUNTA(raw!$A:$A)-1,1),N$2) -> 0 | O86: =COUNTIFS( OFFSET(raw!$A$1,2,MATCH(回答数!$A86,raw!$2:$2,0)-1,COUNTA(raw!$A:$A)-1,1),回答数!$B86, OFFSET(raw!$A$1,2,MATCH($D$1,raw!$2:$2,0)-1,COUNTA(raw!$A:$A)-1,1),O$2) -> 0 | P86: 152
A87: 回答エリア | B87: 湖上館パムコ（水月湖）エリア | D87: =COUNTIFS( OFFSET(raw!$A$1,2,MATCH(回答数!$A87,raw!$2:$2,0)-1,COUNTA(raw!$A:$A)-1,1),回答数!$B87, OFFSET(raw!$A$1,2,MATCH($D$1,raw!$2:$2,0)-1,COUNTA(raw!$A:$A)-1,1),D$2) -> 13 | E87: =COUNTIFS( OFFSET(raw!$A$1,2,MATCH(回答数!$A87,raw!$2:$2,0)-1,COUNTA(raw!$A:$A)-1,1),回答数!$B87, OFFSET(raw!$A$1,2,MATCH($D$1,raw!$2:$2,0)-1,COUNTA(raw!$A:$A)-1,1),E$2) -> 15 | F87: =COUNTIFS( OFFSET(raw!$A$1,2,MATCH(回答数!$A87,raw!$2:$2,0)-1,COUNTA(raw!$A:$A)-1,1),回答数!$B87, OFFSET(raw!$A$1,2,MATCH($D$1,raw!$2:$2,0)-1,COUNTA(raw!$A:$A)-1,1),F$2) -> 23 | G87: =COUNTIFS( OFFSET(raw!$A$1,2,MATCH(回答数!$A87,raw!$2:$2,0)-1,COUNTA(raw!$A:$A)-1,1),回答数!$B87, OFFSET(raw!$A$1,2,MATCH($D$1,raw!$2:$2,0)-1,COUNTA(raw!$A:$A)-1,1),G$2) -> 15 | H87: =COUNTIFS( OFFSET(raw!$A$1,2,MATCH(回答数!$A87,raw!$2:$2,0)-1,COUNTA(raw!$A:$A)-1,1),回答数!$B87, OFFSET(raw!$A$1,2,MATCH($D$1,raw!$2:$2,0)-1,COUNTA(raw!$A:$A)-1,1),H$2) -> 0 | I87: =COUNTIFS( OFFSET(raw!$A$1,2,MATCH(回答数!$A87,raw!$2:$2,0)-1,COUNTA(raw!$A:$A)-1,1),回答数!$B87, OFFSET(raw!$A$1,2,MATCH($D$1,raw!$2:$2,0)-1,COUNTA(raw!$A:$A)-1,1),I$2) -> 0 | J87: =COUNTIFS( OFFSET(raw!$A$1,2,MATCH(回答数!$A87,raw!$2:$2,0)-1,COUNTA(raw!$A:$A)-1,1),回答数!$B87, OFFSET(raw!$A$1,2,MATCH($D$1,raw!$2:$2,0)-1,COUNTA(raw!$A:$A)-1,1),J$2) -> 0 | K87: =COUNTIFS( OFFSET(raw!$A$1,2,MATCH(回答数!$A87,raw!$2:$2,0)-1,COUNTA(raw!$A:$A)-1,1),回答数!$B87, OFFSET(raw!$A$1,2,MATCH($D$1,raw!$2:$2,0)-1,COUNTA(raw!$A:$A)-1,1),K$2) -> 0 | L87: =COUNTIFS( OFFSET(raw!$A$1,2,MATCH(回答数!$A87,raw!$2:$2,0)-1,COUNTA(raw!$A:$A)-1,1),回答数!$B87, OFFSET(raw!$A$1,2,MATCH($D$1,raw!$2:$2,0)-1,COUNTA(raw!$A:$A)-1,1),L$2) -> 0 | M87: =COUNTIFS( OFFSET(raw!$A$1,2,MATCH(回答数!$A87,raw!$2:$2,0)-1,COUNTA(raw!$A:$A)-1,1),回答数!$B87, OFFSET(raw!$A$1,2,MATCH($D$1,raw!$2:$2,0)-1,COUNTA(raw!$A:$A)-1,1),M$2) -> 0 | N87: =COUNTIFS( OFFSET(raw!$A$1,2,MATCH(回答数!$A87,raw!$2:$2,0)-1,COUNTA(raw!$A:$A)-1,1),回答数!$B87, OFFSET(raw!$A$1,2,MATCH($D$1,raw!$2:$2,0)-1,COUNTA(raw!$A:$A)-1,1),N$2) -> 0 | O87: =COUNTIFS( OFFSET(raw!$A$1,2,MATCH(回答数!$A87,raw!$2:$2,0)-1,COUNTA(raw!$A:$A)-1,1),回答数!$B87, OFFSET(raw!$A$1,2,MATCH($D$1,raw!$2:$2,0)-1,COUNTA(raw!$A:$A)-1,1),O$2) -> 0 | P87: 66
A88: 回答エリア | B88: 道の駅「三方五湖」 エリア | D88: =COUNTIFS( OFFSET(raw!$A$1,2,MATCH(回答数!$A88,raw!$2:$2,0)-1,COUNTA(raw!$A:$A)-1,1),回答数!$B88, OFFSET(raw!$A$1,2,MATCH($D$1,raw!$2:$2,0)-1,COUNTA(raw!$A:$A)-1,1),D$2) -> 63 | E88: =COUNTIFS( OFFSET(raw!$A$1,2,MATCH(回答数!$A88,raw!$2:$2,0)-1,COUNTA(raw!$A:$A)-1,1),回答数!$B88, OFFSET(raw!$A$1,2,MATCH($D$1,raw!$2:$2,0)-1,COUNTA(raw!$A:$A)-1,1),E$2) -> 66 | F88: =COUNTIFS( OFFSET(raw!$A$1,2,MATCH(回答数!$A88,raw!$2:$2,0)-1,COUNTA(raw!$A:$A)-1,1),回答数!$B88, OFFSET(raw!$A$1,2,MATCH($D$1,raw!$2:$2,0)-1,COUNTA(raw!$A:$A)-1,1),F$2) -> 46 | G88: =COUNTIFS( OFFSET(raw!$A$1,2,MATCH(回答数!$A88,raw!$2:$2,0)-1,COUNTA(raw!$A:$A)-1,1),回答数!$B88, OFFSET(raw!$A$1,2,MATCH($D$1,raw!$2:$2,0)-1,COUNTA(raw!$A:$A)-1,1),G$2) -> 51 | H88: =COUNTIFS( OFFSET(raw!$A$1,2,MATCH(回答数!$A88,raw!$2:$2,0)-1,COUNTA(raw!$A:$A)-1,1),回答数!$B88, OFFSET(raw!$A$1,2,MATCH($D$1,raw!$2:$2,0)-1,COUNTA(raw!$A:$A)-1,1),H$2) -> 0 | I88: =COUNTIFS( OFFSET(raw!$A$1,2,MATCH(回答数!$A88,raw!$2:$2,0)-1,COUNTA(raw!$A:$A)-1,1),回答数!$B88, OFFSET(raw!$A$1,2,MATCH($D$1,raw!$2:$2,0)-1,COUNTA(raw!$A:$A)-1,1),I$2) -> 0 | J88: =COUNTIFS( OFFSET(raw!$A$1,2,MATCH(回答数!$A88,raw!$2:$2,0)-1,COUNTA(raw!$A:$A)-1,1),回答数!$B88, OFFSET(raw!$A$1,2,MATCH($D$1,raw!$2:$2,0)-1,COUNTA(raw!$A:$A)-1,1),J$2) -> 0 | K88: =COUNTIFS( OFFSET(raw!$A$1,2,MATCH(回答数!$A88,raw!$2:$2,0)-1,COUNTA(raw!$A:$A)-1,1),回答数!$B88, OFFSET(raw!$A$1,2,MATCH($D$1,raw!$2:$2,0)-1,COUNTA(raw!$A:$A)-1,1),K$2) -> 0 | L88: =COUNTIFS( OFFSET(raw!$A$1,2,MATCH(回答数!$A88,raw!$2:$2,0)-1,COUNTA(raw!$A:$A)-1,1),回答数!$B88, OFFSET(raw!$A$1,2,MATCH($D$1,raw!$2:$2,0)-1,COUNTA(raw!$A:$A)-1,1),L$2) -> 0 | M88: =COUNTIFS( OFFSET(raw!$A$1,2,MATCH(回答数!$A88,raw!$2:$2,0)-1,COUNTA(raw!$A:$A)-1,1),回答数!$B88, OFFSET(raw!$A$1,2,MATCH($D$1,raw!$2:$2,0)-1,COUNTA(raw!$A:$A)-1,1),M$2) -> 0 | N88: =COUNTIFS( OFFSET(raw!$A$1,2,MATCH(回答数!$A88,raw!$2:$2,0)-1,COUNTA(raw!$A:$A)-1,1),回答数!$B88, OFFSET(raw!$A$1,2,MATCH($D$1,raw!$2:$2,0)-1,COUNTA(raw!$A:$A)-1,1),N$2) -> 0 | O88: =COUNTIFS( OFFSET(raw!$A$1,2,MATCH(回答数!$A88,raw!$2:$2,0)-1,COUNTA(raw!$A:$A)-1,1),回答数!$B88, OFFSET(raw!$A$1,2,MATCH($D$1,raw!$2:$2,0)-1,COUNTA(raw!$A:$A)-1,1),O$2) -> 0 | P88: 226
A89: 回答エリア | B89: うみんぴあ大飯 エリア | D89: =COUNTIFS( OFFSET(raw!$A$1,2,MATCH(回答数!$A89,raw!$2:$2,0)-1,COUNTA(raw!$A:$A)-1,1),回答数!$B89, OFFSET(raw!$A$1,2,MATCH($D$1,raw!$2:$2,0)-1,COUNTA(raw!$A:$A)-1,1),D$2) -> 68 | E89: =COUNTIFS( OFFSET(raw!$A$1,2,MATCH(回答数!$A89,raw!$2:$2,0)-1,COUNTA(raw!$A:$A)-1,1),回答数!$B89, OFFSET(raw!$A$1,2,MATCH($D$1,raw!$2:$2,0)-1,COUNTA(raw!$A:$A)-1,1),E$2) -> 52 | F89: =COUNTIFS( OFFSET(raw!$A$1,2,MATCH(回答数!$A89,raw!$2:$2,0)-1,COUNTA(raw!$A:$A)-1,1),回答数!$B89, OFFSET(raw!$A$1,2,MATCH($D$1,raw!$2:$2,0)-1,COUNTA(raw!$A:$A)-1,1),F$2) -> 28 | G89: =COUNTIFS( OFFSET(raw!$A$1,2,MATCH(回答数!$A89,raw!$2:$2,0)-1,COUNTA(raw!$A:$A)-1,1),回答数!$B89, OFFSET(raw!$A$1,2,MATCH($D$1,raw!$2:$2,0)-1,COUNTA(raw!$A:$A)-1,1),G$2) -> 25 | H89: =COUNTIFS( OFFSET(raw!$A$1,2,MATCH(回答数!$A89,raw!$2:$2,0)-1,COUNTA(raw!$A:$A)-1,1),回答数!$B89, OFFSET(raw!$A$1,2,MATCH($D$1,raw!$2:$2,0)-1,COUNTA(raw!$A:$A)-1,1),H$2) -> 0 | I89: =COUNTIFS( OFFSET(raw!$A$1,2,MATCH(回答数!$A89,raw!$2:$2,0)-1,COUNTA(raw!$A:$A)-1,1),回答数!$B89, OFFSET(raw!$A$1,2,MATCH($D$1,raw!$2:$2,0)-1,COUNTA(raw!$A:$A)-1,1),I$2) -> 0 | J89: =COUNTIFS( OFFSET(raw!$A$1,2,MATCH(回答数!$A89,raw!$2:$2,0)-1,COUNTA(raw!$A:$A)-1,1),回答数!$B89, OFFSET(raw!$A$1,2,MATCH($D$1,raw!$2:$2,0)-1,COUNTA(raw!$A:$A)-1,1),J$2) -> 0 | K89: =COUNTIFS( OFFSET(raw!$A$1,2,MATCH(回答数!$A89,raw!$2:$2,0)-1,COUNTA(raw!$A:$A)-1,1),回答数!$B89, OFFSET(raw!$A$1,2,MATCH($D$1,raw!$2:$2,0)-1,COUNTA(raw!$A:$A)-1,1),K$2) -> 0 | L89: =COUNTIFS( OFFSET(raw!$A$1,2,MATCH(回答数!$A89,raw!$2:$2,0)-1,COUNTA(raw!$A:$A)-1,1),回答数!$B89, OFFSET(raw!$A$1,2,MATCH($D$1,raw!$2:$2,0)-1,COUNTA(raw!$A:$A)-1,1),L$2) -> 0 | M89: =COUNTIFS( OFFSET(raw!$A$1,2,MATCH(回答数!$A89,raw!$2:$2,0)-1,COUNTA(raw!$A:$A)-1,1),回答数!$B89, OFFSET(raw!$A$1,2,MATCH($D$1,raw!$2:$2,0)-1,COUNTA(raw!$A:$A)-1,1),M$2) -> 0 | N89: =COUNTIFS( OFFSET(raw!$A$1,2,MATCH(回答数!$A89,raw!$2:$2,0)-1,COUNTA(raw!$A:$A)-1,1),回答数!$B89, OFFSET(raw!$A$1,2,MATCH($D$1,raw!$2:$2,0)-1,COUNTA(raw!$A:$A)-1,1),N$2) -> 0 | O89: =COUNTIFS( OFFSET(raw!$A$1,2,MATCH(回答数!$A89,raw!$2:$2,0)-1,COUNTA(raw!$A:$A)-1,1),回答数!$B89, OFFSET(raw!$A$1,2,MATCH($D$1,raw!$2:$2,0)-1,COUNTA(raw!$A:$A)-1,1),O$2) -> 0 | P89: 173
A90: 回答エリア | B90: 若州一滴文庫 エリア | D90: =COUNTIFS( OFFSET(raw!$A$1,2,MATCH(回答数!$A90,raw!$2:$2,0)-1,COUNTA(raw!$A:$A)-1,1),回答数!$B90, OFFSET(raw!$A$1,2,MATCH($D$1,raw!$2:$2,0)-1,COUNTA(raw!$A:$A)-1,1),D$2) -> 10 | E90: =COUNTIFS( OFFSET(raw!$A$1,2,MATCH(回答数!$A90,raw!$2:$2,0)-1,COUNTA(raw!$A:$A)-1,1),回答数!$B90, OFFSET(raw!$A$1,2,MATCH($D$1,raw!$2:$2,0)-1,COUNTA(raw!$A:$A)-1,1),E$2) -> 9 | F90: =COUNTIFS( OFFSET(raw!$A$1,2,MATCH(回答数!$A90,raw!$2:$2,0)-1,COUNTA(raw!$A:$A)-1,1),回答数!$B90, OFFSET(raw!$A$1,2,MATCH($D$1,raw!$2:$2,0)-1,COUNTA(raw!$A:$A)-1,1),F$2) -> 3 | G90: =COUNTIFS( OFFSET(raw!$A$1,2,MATCH(回答数!$A90,raw!$2:$2,0)-1,COUNTA(raw!$A:$A)-1,1),回答数!$B90, OFFSET(raw!$A$1,2,MATCH($D$1,raw!$2:$2,0)-1,COUNTA(raw!$A:$A)-1,1),G$2) -> 2 | H90: =COUNTIFS( OFFSET(raw!$A$1,2,MATCH(回答数!$A90,raw!$2:$2,0)-1,COUNTA(raw!$A:$A)-1,1),回答数!$B90, OFFSET(raw!$A$1,2,MATCH($D$1,raw!$2:$2,0)-1,COUNTA(raw!$A:$A)-1,1),H$2) -> 0 | I90: =COUNTIFS( OFFSET(raw!$A$1,2,MATCH(回答数!$A90,raw!$2:$2,0)-1,COUNTA(raw!$A:$A)-1,1),回答数!$B90, OFFSET(raw!$A$1,2,MATCH($D$1,raw!$2:$2,0)-1,COUNTA(raw!$A:$A)-1,1),I$2) -> 0 | J90: =COUNTIFS( OFFSET(raw!$A$1,2,MATCH(回答数!$A90,raw!$2:$2,0)-1,COUNTA(raw!$A:$A)-1,1),回答数!$B90, OFFSET(raw!$A$1,2,MATCH($D$1,raw!$2:$2,0)-1,COUNTA(raw!$A:$A)-1,1),J$2) -> 0 | K90: =COUNTIFS( OFFSET(raw!$A$1,2,MATCH(回答数!$A90,raw!$2:$2,0)-1,COUNTA(raw!$A:$A)-1,1),回答数!$B90, OFFSET(raw!$A$1,2,MATCH($D$1,raw!$2:$2,0)-1,COUNTA(raw!$A:$A)-1,1),K$2) -> 0 | L90: =COUNTIFS( OFFSET(raw!$A$1,2,MATCH(回答数!$A90,raw!$2:$2,0)-1,COUNTA(raw!$A:$A)-1,1),回答数!$B90, OFFSET(raw!$A$1,2,MATCH($D$1,raw!$2:$2,0)-1,COUNTA(raw!$A:$A)-1,1),L$2) -> 0 | M90: =COUNTIFS( OFFSET(raw!$A$1,2,MATCH(回答数!$A90,raw!$2:$2,0)-1,COUNTA(raw!$A:$A)-1,1),回答数!$B90, OFFSET(raw!$A$1,2,MATCH($D$1,raw!$2:$2,0)-1,COUNTA(raw!$A:$A)-1,1),M$2) -> 0 | N90: =COUNTIFS( OFFSET(raw!$A$1,2,MATCH(回答数!$A90,raw!$2:$2,0)-1,COUNTA(raw!$A:$A)-1,1),回答数!$B90, OFFSET(raw!$A$1,2,MATCH($D$1,raw!$2:$2,0)-1,COUNTA(raw!$A:$A)-1,1),N$2) -> 0 | O90: =COUNTIFS( OFFSET(raw!$A$1,2,MATCH(回答数!$A90,raw!$2:$2,0)-1,COUNTA(raw!$A:$A)-1,1),回答数!$B90, OFFSET(raw!$A$1,2,MATCH($D$1,raw!$2:$2,0)-1,COUNTA(raw!$A:$A)-1,1),O$2) -> 0 | P90: 24
A91: 回答エリア | B91: 名田庄 エリア | D91: =COUNTIFS( OFFSET(raw!$A$1,2,MATCH(回答数!$A91,raw!$2:$2,0)-1,COUNTA(raw!$A:$A)-1,1),回答数!$B91, OFFSET(raw!$A$1,2,MATCH($D$1,raw!$2:$2,0)-1,COUNTA(raw!$A:$A)-1,1),D$2) -> 15 | E91: =COUNTIFS( OFFSET(raw!$A$1,2,MATCH(回答数!$A91,raw!$2:$2,0)-1,COUNTA(raw!$A:$A)-1,1),回答数!$B91, OFFSET(raw!$A$1,2,MATCH($D$1,raw!$2:$2,0)-1,COUNTA(raw!$A:$A)-1,1),E$2) -> 28 | F91: =COUNTIFS( OFFSET(raw!$A$1,2,MATCH(回答数!$A91,raw!$2:$2,0)-1,COUNTA(raw!$A:$A)-1,1),回答数!$B91, OFFSET(raw!$A$1,2,MATCH($D$1,raw!$2:$2,0)-1,COUNTA(raw!$A:$A)-1,1),F$2) -> 12 | G91: =COUNTIFS( OFFSET(raw!$A$1,2,MATCH(回答数!$A91,raw!$2:$2,0)-1,COUNTA(raw!$A:$A)-1,1),回答数!$B91, OFFSET(raw!$A$1,2,MATCH($D$1,raw!$2:$2,0)-1,COUNTA(raw!$A:$A)-1,1),G$2) -> 12 | H91: =COUNTIFS( OFFSET(raw!$A$1,2,MATCH(回答数!$A91,raw!$2:$2,0)-1,COUNTA(raw!$A:$A)-1,1),回答数!$B91, OFFSET(raw!$A$1,2,MATCH($D$1,raw!$2:$2,0)-1,COUNTA(raw!$A:$A)-1,1),H$2) -> 0 | I91: =COUNTIFS( OFFSET(raw!$A$1,2,MATCH(回答数!$A91,raw!$2:$2,0)-1,COUNTA(raw!$A:$A)-1,1),回答数!$B91, OFFSET(raw!$A$1,2,MATCH($D$1,raw!$2:$2,0)-1,COUNTA(raw!$A:$A)-1,1),I$2) -> 0 | J91: =COUNTIFS( OFFSET(raw!$A$1,2,MATCH(回答数!$A91,raw!$2:$2,0)-1,COUNTA(raw!$A:$A)-1,1),回答数!$B91, OFFSET(raw!$A$1,2,MATCH($D$1,raw!$2:$2,0)-1,COUNTA(raw!$A:$A)-1,1),J$2) -> 0 | K91: =COUNTIFS( OFFSET(raw!$A$1,2,MATCH(回答数!$A91,raw!$2:$2,0)-1,COUNTA(raw!$A:$A)-1,1),回答数!$B91, OFFSET(raw!$A$1,2,MATCH($D$1,raw!$2:$2,0)-1,COUNTA(raw!$A:$A)-1,1),K$2) -> 0 | L91: =COUNTIFS( OFFSET(raw!$A$1,2,MATCH(回答数!$A91,raw!$2:$2,0)-1,COUNTA(raw!$A:$A)-1,1),回答数!$B91, OFFSET(raw!$A$1,2,MATCH($D$1,raw!$2:$2,0)-1,COUNTA(raw!$A:$A)-1,1),L$2) -> 0 | M91: =COUNTIFS( OFFSET(raw!$A$1,2,MATCH(回答数!$A91,raw!$2:$2,0)-1,COUNTA(raw!$A:$A)-1,1),回答数!$B91, OFFSET(raw!$A$1,2,MATCH($D$1,raw!$2:$2,0)-1,COUNTA(raw!$A:$A)-1,1),M$2) -> 0 | N91: =COUNTIFS( OFFSET(raw!$A$1,2,MATCH(回答数!$A91,raw!$2:$2,0)-1,COUNTA(raw!$A:$A)-1,1),回答数!$B91, OFFSET(raw!$A$1,2,MATCH($D$1,raw!$2:$2,0)-1,COUNTA(raw!$A:$A)-1,1),N$2) -> 0 | O91: =COUNTIFS( OFFSET(raw!$A$1,2,MATCH(回答数!$A91,raw!$2:$2,0)-1,COUNTA(raw!$A:$A)-1,1),回答数!$B91, OFFSET(raw!$A$1,2,MATCH($D$1,raw!$2:$2,0)-1,COUNTA(raw!$A:$A)-1,1),O$2) -> 0 | P91: =D91+E91+F91+G91+H91+I91+J91+K91+L91+M91+N91+O91 -> 67
A92: 回答エリア | B92: 赤礁崎オートキャンプ場 エリア | D92: =COUNTIFS( OFFSET(raw!$A$1,2,MATCH(回答数!$A92,raw!$2:$2,0)-1,COUNTA(raw!$A:$A)-1,1),回答数!$B92, OFFSET(raw!$A$1,2,MATCH($D$1,raw!$2:$2,0)-1,COUNTA(raw!$A:$A)-1,1),D$2) -> 2 | E92: =COUNTIFS( OFFSET(raw!$A$1,2,MATCH(回答数!$A92,raw!$2:$2,0)-1,COUNTA(raw!$A:$A)-1,1),回答数!$B92, OFFSET(raw!$A$1,2,MATCH($D$1,raw!$2:$2,0)-1,COUNTA(raw!$A:$A)-1,1),E$2) -> 0 | F92: =COUNTIFS( OFFSET(raw!$A$1,2,MATCH(回答数!$A92,raw!$2:$2,0)-1,COUNTA(raw!$A:$A)-1,1),回答数!$B92, OFFSET(raw!$A$1,2,MATCH($D$1,raw!$2:$2,0)-1,COUNTA(raw!$A:$A)-1,1),F$2) -> 0 | G92: =COUNTIFS( OFFSET(raw!$A$1,2,MATCH(回答数!$A92,raw!$2:$2,0)-1,COUNTA(raw!$A:$A)-1,1),回答数!$B92, OFFSET(raw!$A$1,2,MATCH($D$1,raw!$2:$2,0)-1,COUNTA(raw!$A:$A)-1,1),G$2) -> 2 | H92: =COUNTIFS( OFFSET(raw!$A$1,2,MATCH(回答数!$A92,raw!$2:$2,0)-1,COUNTA(raw!$A:$A)-1,1),回答数!$B92, OFFSET(raw!$A$1,2,MATCH($D$1,raw!$2:$2,0)-1,COUNTA(raw!$A:$A)-1,1),H$2) -> 0 | I92: =COUNTIFS( OFFSET(raw!$A$1,2,MATCH(回答数!$A92,raw!$2:$2,0)-1,COUNTA(raw!$A:$A)-1,1),回答数!$B92, OFFSET(raw!$A$1,2,MATCH($D$1,raw!$2:$2,0)-1,COUNTA(raw!$A:$A)-1,1),I$2) -> 0 | J92: =COUNTIFS( OFFSET(raw!$A$1,2,MATCH(回答数!$A92,raw!$2:$2,0)-1,COUNTA(raw!$A:$A)-1,1),回答数!$B92, OFFSET(raw!$A$1,2,MATCH($D$1,raw!$2:$2,0)-1,COUNTA(raw!$A:$A)-1,1),J$2) -> 0 | K92: =COUNTIFS( OFFSET(raw!$A$1,2,MATCH(回答数!$A92,raw!$2:$2,0)-1,COUNTA(raw!$A:$A)-1,1),回答数!$B92, OFFSET(raw!$A$1,2,MATCH($D$1,raw!$2:$2,0)-1,COUNTA(raw!$A:$A)-1,1),K$2) -> 0 | L92: =COUNTIFS( OFFSET(raw!$A$1,2,MATCH(回答数!$A92,raw!$2:$2,0)-1,COUNTA(raw!$A:$A)-1,1),回答数!$B92, OFFSET(raw!$A$1,2,MATCH($D$1,raw!$2:$2,0)-1,COUNTA(raw!$A:$A)-1,1),L$2) -> 0 | M92: =COUNTIFS( OFFSET(raw!$A$1,2,MATCH(回答数!$A92,raw!$2:$2,0)-1,COUNTA(raw!$A:$A)-1,1),回答数!$B92, OFFSET(raw!$A$1,2,MATCH($D$1,raw!$2:$2,0)-1,COUNTA(raw!$A:$A)-1,1),M$2) -> 0 | N92: =COUNTIFS( OFFSET(raw!$A$1,2,MATCH(回答数!$A92,raw!$2:$2,0)-1,COUNTA(raw!$A:$A)-1,1),回答数!$B92, OFFSET(raw!$A$1,2,MATCH($D$1,raw!$2:$2,0)-1,COUNTA(raw!$A:$A)-1,1),N$2) -> 0 | O92: =COUNTIFS( OFFSET(raw!$A$1,2,MATCH(回答数!$A92,raw!$2:$2,0)-1,COUNTA(raw!$A:$A)-1,1),回答数!$B92, OFFSET(raw!$A$1,2,MATCH($D$1,raw!$2:$2,0)-1,COUNTA(raw!$A:$A)-1,1),O$2) -> 0 | P92: 4
A93: 回答エリア | B93: 道の駅「シーサイド高浜」 エリア | D93: =COUNTIFS( OFFSET(raw!$A$1,2,MATCH(回答数!$A93,raw!$2:$2,0)-1,COUNTA(raw!$A:$A)-1,1),回答数!$B93, OFFSET(raw!$A$1,2,MATCH($D$1,raw!$2:$2,0)-1,COUNTA(raw!$A:$A)-1,1),D$2) -> 16 | E93: =COUNTIFS( OFFSET(raw!$A$1,2,MATCH(回答数!$A93,raw!$2:$2,0)-1,COUNTA(raw!$A:$A)-1,1),回答数!$B93, OFFSET(raw!$A$1,2,MATCH($D$1,raw!$2:$2,0)-1,COUNTA(raw!$A:$A)-1,1),E$2) -> 24 | F93: =COUNTIFS( OFFSET(raw!$A$1,2,MATCH(回答数!$A93,raw!$2:$2,0)-1,COUNTA(raw!$A:$A)-1,1),回答数!$B93, OFFSET(raw!$A$1,2,MATCH($D$1,raw!$2:$2,0)-1,COUNTA(raw!$A:$A)-1,1),F$2) -> 13 | G93: =COUNTIFS( OFFSET(raw!$A$1,2,MATCH(回答数!$A93,raw!$2:$2,0)-1,COUNTA(raw!$A:$A)-1,1),回答数!$B93, OFFSET(raw!$A$1,2,MATCH($D$1,raw!$2:$2,0)-1,COUNTA(raw!$A:$A)-1,1),G$2) -> 16 | H93: =COUNTIFS( OFFSET(raw!$A$1,2,MATCH(回答数!$A93,raw!$2:$2,0)-1,COUNTA(raw!$A:$A)-1,1),回答数!$B93, OFFSET(raw!$A$1,2,MATCH($D$1,raw!$2:$2,0)-1,COUNTA(raw!$A:$A)-1,1),H$2) -> 0 | I93: =COUNTIFS( OFFSET(raw!$A$1,2,MATCH(回答数!$A93,raw!$2:$2,0)-1,COUNTA(raw!$A:$A)-1,1),回答数!$B93, OFFSET(raw!$A$1,2,MATCH($D$1,raw!$2:$2,0)-1,COUNTA(raw!$A:$A)-1,1),I$2) -> 0 | J93: =COUNTIFS( OFFSET(raw!$A$1,2,MATCH(回答数!$A93,raw!$2:$2,0)-1,COUNTA(raw!$A:$A)-1,1),回答数!$B93, OFFSET(raw!$A$1,2,MATCH($D$1,raw!$2:$2,0)-1,COUNTA(raw!$A:$A)-1,1),J$2) -> 0 | K93: =COUNTIFS( OFFSET(raw!$A$1,2,MATCH(回答数!$A93,raw!$2:$2,0)-1,COUNTA(raw!$A:$A)-1,1),回答数!$B93, OFFSET(raw!$A$1,2,MATCH($D$1,raw!$2:$2,0)-1,COUNTA(raw!$A:$A)-1,1),K$2) -> 0 | L93: =COUNTIFS( OFFSET(raw!$A$1,2,MATCH(回答数!$A93,raw!$2:$2,0)-1,COUNTA(raw!$A:$A)-1,1),回答数!$B93, OFFSET(raw!$A$1,2,MATCH($D$1,raw!$2:$2,0)-1,COUNTA(raw!$A:$A)-1,1),L$2) -> 0 | M93: =COUNTIFS( OFFSET(raw!$A$1,2,MATCH(回答数!$A93,raw!$2:$2,0)-1,COUNTA(raw!$A:$A)-1,1),回答数!$B93, OFFSET(raw!$A$1,2,MATCH($D$1,raw!$2:$2,0)-1,COUNTA(raw!$A:$A)-1,1),M$2) -> 0 | N93: =COUNTIFS( OFFSET(raw!$A$1,2,MATCH(回答数!$A93,raw!$2:$2,0)-1,COUNTA(raw!$A:$A)-1,1),回答数!$B93, OFFSET(raw!$A$1,2,MATCH($D$1,raw!$2:$2,0)-1,COUNTA(raw!$A:$A)-1,1),N$2) -> 0 | O93: =COUNTIFS( OFFSET(raw!$A$1,2,MATCH(回答数!$A93,raw!$2:$2,0)-1,COUNTA(raw!$A:$A)-1,1),回答数!$B93, OFFSET(raw!$A$1,2,MATCH($D$1,raw!$2:$2,0)-1,COUNTA(raw!$A:$A)-1,1),O$2) -> 0 | P93: 69
A94: 回答エリア | B94: 若狭和田 エリア | D94: =COUNTIFS( OFFSET(raw!$A$1,2,MATCH(回答数!$A94,raw!$2:$2,0)-1,COUNTA(raw!$A:$A)-1,1),回答数!$B94, OFFSET(raw!$A$1,2,MATCH($D$1,raw!$2:$2,0)-1,COUNTA(raw!$A:$A)-1,1),D$2) -> 8 | E94: =COUNTIFS( OFFSET(raw!$A$1,2,MATCH(回答数!$A94,raw!$2:$2,0)-1,COUNTA(raw!$A:$A)-1,1),回答数!$B94, OFFSET(raw!$A$1,2,MATCH($D$1,raw!$2:$2,0)-1,COUNTA(raw!$A:$A)-1,1),E$2) -> 4 | F94: =COUNTIFS( OFFSET(raw!$A$1,2,MATCH(回答数!$A94,raw!$2:$2,0)-1,COUNTA(raw!$A:$A)-1,1),回答数!$B94, OFFSET(raw!$A$1,2,MATCH($D$1,raw!$2:$2,0)-1,COUNTA(raw!$A:$A)-1,1),F$2) -> 4 | G94: =COUNTIFS( OFFSET(raw!$A$1,2,MATCH(回答数!$A94,raw!$2:$2,0)-1,COUNTA(raw!$A:$A)-1,1),回答数!$B94, OFFSET(raw!$A$1,2,MATCH($D$1,raw!$2:$2,0)-1,COUNTA(raw!$A:$A)-1,1),G$2) -> 3 | H94: =COUNTIFS( OFFSET(raw!$A$1,2,MATCH(回答数!$A94,raw!$2:$2,0)-1,COUNTA(raw!$A:$A)-1,1),回答数!$B94, OFFSET(raw!$A$1,2,MATCH($D$1,raw!$2:$2,0)-1,COUNTA(raw!$A:$A)-1,1),H$2) -> 0 | I94: =COUNTIFS( OFFSET(raw!$A$1,2,MATCH(回答数!$A94,raw!$2:$2,0)-1,COUNTA(raw!$A:$A)-1,1),回答数!$B94, OFFSET(raw!$A$1,2,MATCH($D$1,raw!$2:$2,0)-1,COUNTA(raw!$A:$A)-1,1),I$2) -> 0 | J94: =COUNTIFS( OFFSET(raw!$A$1,2,MATCH(回答数!$A94,raw!$2:$2,0)-1,COUNTA(raw!$A:$A)-1,1),回答数!$B94, OFFSET(raw!$A$1,2,MATCH($D$1,raw!$2:$2,0)-1,COUNTA(raw!$A:$A)-1,1),J$2) -> 0 | K94: =COUNTIFS( OFFSET(raw!$A$1,2,MATCH(回答数!$A94,raw!$2:$2,0)-1,COUNTA(raw!$A:$A)-1,1),回答数!$B94, OFFSET(raw!$A$1,2,MATCH($D$1,raw!$2:$2,0)-1,COUNTA(raw!$A:$A)-1,1),K$2) -> 0 | L94: =COUNTIFS( OFFSET(raw!$A$1,2,MATCH(回答数!$A94,raw!$2:$2,0)-1,COUNTA(raw!$A:$A)-1,1),回答数!$B94, OFFSET(raw!$A$1,2,MATCH($D$1,raw!$2:$2,0)-1,COUNTA(raw!$A:$A)-1,1),L$2) -> 0 | M94: =COUNTIFS( OFFSET(raw!$A$1,2,MATCH(回答数!$A94,raw!$2:$2,0)-1,COUNTA(raw!$A:$A)-1,1),回答数!$B94, OFFSET(raw!$A$1,2,MATCH($D$1,raw!$2:$2,0)-1,COUNTA(raw!$A:$A)-1,1),M$2) -> 0 | N94: =COUNTIFS( OFFSET(raw!$A$1,2,MATCH(回答数!$A94,raw!$2:$2,0)-1,COUNTA(raw!$A:$A)-1,1),回答数!$B94, OFFSET(raw!$A$1,2,MATCH($D$1,raw!$2:$2,0)-1,COUNTA(raw!$A:$A)-1,1),N$2) -> 0 | O94: =COUNTIFS( OFFSET(raw!$A$1,2,MATCH(回答数!$A94,raw!$2:$2,0)-1,COUNTA(raw!$A:$A)-1,1),回答数!$B94, OFFSET(raw!$A$1,2,MATCH($D$1,raw!$2:$2,0)-1,COUNTA(raw!$A:$A)-1,1),O$2) -> 0 | P94: 19
A95: 回答エリア | B95: 若狭高浜 エリア | D95: =COUNTIFS( OFFSET(raw!$A$1,2,MATCH(回答数!$A95,raw!$2:$2,0)-1,COUNTA(raw!$A:$A)-1,1),回答数!$B95, OFFSET(raw!$A$1,2,MATCH($D$1,raw!$2:$2,0)-1,COUNTA(raw!$A:$A)-1,1),D$2) -> 13 | E95: =COUNTIFS( OFFSET(raw!$A$1,2,MATCH(回答数!$A95,raw!$2:$2,0)-1,COUNTA(raw!$A:$A)-1,1),回答数!$B95, OFFSET(raw!$A$1,2,MATCH($D$1,raw!$2:$2,0)-1,COUNTA(raw!$A:$A)-1,1),E$2) -> 3 | F95: =COUNTIFS( OFFSET(raw!$A$1,2,MATCH(回答数!$A95,raw!$2:$2,0)-1,COUNTA(raw!$A:$A)-1,1),回答数!$B95, OFFSET(raw!$A$1,2,MATCH($D$1,raw!$2:$2,0)-1,COUNTA(raw!$A:$A)-1,1),F$2) -> 1 | G95: =COUNTIFS( OFFSET(raw!$A$1,2,MATCH(回答数!$A95,raw!$2:$2,0)-1,COUNTA(raw!$A:$A)-1,1),回答数!$B95, OFFSET(raw!$A$1,2,MATCH($D$1,raw!$2:$2,0)-1,COUNTA(raw!$A:$A)-1,1),G$2) -> 2 | H95: =COUNTIFS( OFFSET(raw!$A$1,2,MATCH(回答数!$A95,raw!$2:$2,0)-1,COUNTA(raw!$A:$A)-1,1),回答数!$B95, OFFSET(raw!$A$1,2,MATCH($D$1,raw!$2:$2,0)-1,COUNTA(raw!$A:$A)-1,1),H$2) -> 0 | I95: =COUNTIFS( OFFSET(raw!$A$1,2,MATCH(回答数!$A95,raw!$2:$2,0)-1,COUNTA(raw!$A:$A)-1,1),回答数!$B95, OFFSET(raw!$A$1,2,MATCH($D$1,raw!$2:$2,0)-1,COUNTA(raw!$A:$A)-1,1),I$2) -> 0 | J95: =COUNTIFS( OFFSET(raw!$A$1,2,MATCH(回答数!$A95,raw!$2:$2,0)-1,COUNTA(raw!$A:$A)-1,1),回答数!$B95, OFFSET(raw!$A$1,2,MATCH($D$1,raw!$2:$2,0)-1,COUNTA(raw!$A:$A)-1,1),J$2) -> 0 | K95: =COUNTIFS( OFFSET(raw!$A$1,2,MATCH(回答数!$A95,raw!$2:$2,0)-1,COUNTA(raw!$A:$A)-1,1),回答数!$B95, OFFSET(raw!$A$1,2,MATCH($D$1,raw!$2:$2,0)-1,COUNTA(raw!$A:$A)-1,1),K$2) -> 0 | L95: =COUNTIFS( OFFSET(raw!$A$1,2,MATCH(回答数!$A95,raw!$2:$2,0)-1,COUNTA(raw!$A:$A)-1,1),回答数!$B95, OFFSET(raw!$A$1,2,MATCH($D$1,raw!$2:$2,0)-1,COUNTA(raw!$A:$A)-1,1),L$2) -> 0 | M95: =COUNTIFS( OFFSET(raw!$A$1,2,MATCH(回答数!$A95,raw!$2:$2,0)-1,COUNTA(raw!$A:$A)-1,1),回答数!$B95, OFFSET(raw!$A$1,2,MATCH($D$1,raw!$2:$2,0)-1,COUNTA(raw!$A:$A)-1,1),M$2) -> 0 | N95: =COUNTIFS( OFFSET(raw!$A$1,2,MATCH(回答数!$A95,raw!$2:$2,0)-1,COUNTA(raw!$A:$A)-1,1),回答数!$B95, OFFSET(raw!$A$1,2,MATCH($D$1,raw!$2:$2,0)-1,COUNTA(raw!$A:$A)-1,1),N$2) -> 0 | O95: =COUNTIFS( OFFSET(raw!$A$1,2,MATCH(回答数!$A95,raw!$2:$2,0)-1,COUNTA(raw!$A:$A)-1,1),回答数!$B95, OFFSET(raw!$A$1,2,MATCH($D$1,raw!$2:$2,0)-1,COUNTA(raw!$A:$A)-1,1),O$2) -> 0 | P95: 19

Sheet NPS
A1: 集計区分 | C1: NPS | R1: Rank | S1: 回答月 | AG1: （処理用_順位） | AH1: 回答月 | AW1: =施設コード!$A$2 -> 7月 | BD1: 4月 | BE1: 5月 | BF1: 6月 | BG1: 7月 | BH1: 8月 | BI1: 9月 | BJ1: 10月 | BK1: 11月 | BL1: 12月 | BM1: 1月 | BN1: 2月 | BO1: 3月 | BP1: 通年
D2: 4月 | E2: 5月 | F2: 6月 | G2: 7月 | H2: 8月 | I2: 9月 | J2: 10月 | K2: 11月 | L2: 12月 | M2: 1月 | N2: 2月 | O2: 3月 | P2: 通年 | S2: 4月 | T2: 5月 | U2: 6月 | V2: 7月 | W2: 8月 | X2: 9月 | Y2: 10月 | Z2: 11月 | AA2: 12月 | AB2: 1月 | AC2: 2月 | AD2: 3月 | AE2: 通年 | AH2: 4月 | AI2: 5月 | AJ2: 6月 | AK2: 7月 | AL2: 8月 | AM2: 9月 | AN2: 10月 | AO2: 11月 | AP2: 12月 | AQ2: 1月 | AR2: 2月 | AS2: 3月 | AT2: 通年 | AV2: （処理用_順位） | AW2: 順位 | AX2: 回答エリア | AY2: NPS | AZ2: 回答数 | BC2: 福井県 | BD2: =D3 -> 8.423326134 | BE2: =E3 -> 13.16774413 | BF2: 11.67381974 | BG2: 14.05263158 | BH2: None | BI2: None | BJ2: None | BK2: None | BL2: None | BM2: None | BN2: None | BO2: None | BP2: =P3 -> 11.51777137
A3: 全体 | B3: =施設コード!$D$2 -> 福井県 | D3: =INDEX(【D】NPS!$C$4:$GO$96,MATCH(NPS!$B3,【D】NPS!$B$4:$B$96,0), MATCH(NPS!D$2&NPS!$C$1,【D】NPS!$C$2:$GO$2&【D】NPS!$C$3:$GO$3,0)) -> 8.423326134 | E3: =INDEX(【D】NPS!$C$4:$GO$96,MATCH(NPS!$B3,【D】NPS!$B$4:$B$96,0), MATCH(NPS!E$2&NPS!$C$1,【D】NPS!$C$2:$GO$2&【D】NPS!$C$3:$GO$3,0)) -> 13.16774413 | F3: =INDEX(【D】NPS!$C$4:$GO$96,MATCH(NPS!$B3,【D】NPS!$B$4:$B$96,0), MATCH(NPS!F$2&NPS!$C$1,【D】NPS!$C$2:$GO$2&【D】NPS!$C$3:$GO$3,0)) -> 11.67381974 | G3: =INDEX(【D】NPS!$C$4:$GO$96,MATCH(NPS!$B3,【D】NPS!$B$4:$B$96,0), MATCH(NPS!G$2&NPS!$C$1,【D】NPS!$C$2:$GO$2&【D】NPS!$C$3:$GO$3,0)) -> 14.05263158 | H3: =INDEX(【D】NPS!$C$4:$GO$96,MATCH(NPS!$B3,【D】NPS!$B$4:$B$96,0), MATCH(NPS!H$2&NPS!$C$1,【D】NPS!$C$2:$GO$2&【D】NPS!$C$3:$GO$3,0)) -> None | I3: =INDEX(【D】NPS!$C$4:$GO$96,MATCH(NPS!$B3,【D】NPS!$B$4:$B$96,0), MATCH(NPS!I$2&NPS!$C$1,【D】NPS!$C$2:$GO$2&【D】NPS!$C$3:$GO$3,0)) -> None | J3: =INDEX(【D】NPS!$C$4:$GO$96,MATCH(NPS!$B3,【D】NPS!$B$4:$B$96,0), MATCH(NPS!J$2&NPS!$C$1,【D】NPS!$C$2:$GO$2&【D】NPS!$C$3:$GO$3,0)) -> None | K3: =INDEX(【D】NPS!$C$4:$GO$96,MATCH(NPS!$B3,【D】NPS!$B$4:$B$96,0), MATCH(NPS!K$2&NPS!$C$1,【D】NPS!$C$2:$GO$2&【D】NPS!$C$3:$GO$3,0)) -> None | L3: =INDEX(【D】NPS!$C$4:$GO$96,MATCH(NPS!$B3,【D】NPS!$B$4:$B$96,0), MATCH(NPS!L$2&NPS!$C$1,【D】NPS!$C$2:$GO$2&【D】NPS!$C$3:$GO$3,0)) -> None | M3: =INDEX(【D】NPS!$C$4:$GO$96,MATCH(NPS!$B3,【D】NPS!$B$4:$B$96,0), MATCH(NPS!M$2&NPS!$C$1,【D】NPS!$C$2:$GO$2&【D】NPS!$C$3:$GO$3,0)) -> None | N3: =INDEX(【D】NPS!$C$4:$GO$96,MATCH(NPS!$B3,【D】NPS!$B$4:$B$96,0), MATCH(NPS!N$2&NPS!$C$1,【D】NPS!$C$2:$GO$2&【D】NPS!$C$3:$GO$3,0)) -> None | O3: =INDEX(【D】NPS!$C$4:$GO$96,MATCH(NPS!$B3,【D】NPS!$B$4:$B$96,0), MATCH(NPS!O$2&NPS!$C$1,【D】NPS!$C$2:$GO$2&【D】NPS!$C$3:$GO$3,0)) -> None | P3: =INDEX(【D】NPS!$C$4:$GO$96,MATCH(NPS!$B3,【D】NPS!$B$4:$B$96,0), MATCH(NPS!P$2&NPS!$C$1,【D】NPS!$C$2:$GO$2&【D】NPS!$C$3:$GO$3,0)) -> 11.51777137 | S3: =INDEX(【D】NPS!$C$4:$GO$96,MATCH(NPS!$B3,【D】NPS!$B$4:$B$96,0), MATCH(NPS!S$2&NPS!$R$1,【D】NPS!$C$2:$GO$2&【D】NPS!$C$3:$GO$3,0)) -> - | T3: =INDEX(【D】NPS!$C$4:$GO$96,MATCH(NPS!$B3,【D】NPS!$B$4:$B$96,0), MATCH(NPS!T$2&NPS!$R$1,【D】NPS!$C$2:$GO$2&【D】NPS!$C$3:$GO$3,0)) -> - | U3: =INDEX(【D】NPS!$C$4:$GO$96,MATCH(NPS!$B3,【D】NPS!$B$4:$B$96,0), MATCH(NPS!U$2&NPS!$R$1,【D】NPS!$C$2:$GO$2&【D】NPS!$C$3:$GO$3,0)) -> - | V3: =INDEX(【D】NPS!$C$4:$GO$96,MATCH(NPS!$B3,【D】NPS!$B$4:$B$96,0), MATCH(NPS!V$2&NPS!$R$1,【D】NPS!$C$2:$GO$2&【D】NPS!$C$3:$GO$3,0)) -> - | W3: =INDEX(【D】NPS!$C$4:$GO$96,MATCH(NPS!$B3,【D】NPS!$B$4:$B$96,0), MATCH(NPS!W$2&NPS!$R$1,【D】NPS!$C$2:$GO$2&【D】NPS!$C$3:$GO$3,0)) -> - | X3: =INDEX(【D】NPS!$C$4:$GO$96,MATCH(NPS!$B3,【D】NPS!$B$4:$B$96,0), MATCH(NPS!X$2&NPS!$R$1,【D】NPS!$C$2:$GO$2&【D】NPS!$C$3:$GO$3,0)) -> - | Y3: =INDEX(【D】NPS!$C$4:$GO$96,MATCH(NPS!$B3,【D】NPS!$B$4:$B$96,0), MATCH(NPS!Y$2&NPS!$R$1,【D】NPS!$C$2:$GO$2&【D】NPS!$C$3:$GO$3,0)) -> - | Z3: =INDEX(【D】NPS!$C$4:$GO$96,MATCH(NPS!$B3,【D】NPS!$B$4:$B$96,0), MATCH(NPS!Z$2&NPS!$R$1,【D】NPS!$C$2:$GO$2&【D】NPS!$C$3:$GO$3,0)) -> - | AA3: =INDEX(【D】NPS!$C$4:$GO$96,MATCH(NPS!$B3,【D】NPS!$B$4:$B$96,0), MATCH(NPS!AA$2&NPS!$R$1,【D】NPS!$C$2:$GO$2&【D】NPS!$C$3:$GO$3,0)) -> - | AB3: =INDEX(【D】NPS!$C$4:$GO$96,MATCH(NPS!$B3,【D】NPS!$B$4:$B$96,0), MATCH(NPS!AB$2&NPS!$R$1,【D】NPS!$C$2:$GO$2&【D】NPS!$C$3:$GO$3,0)) -> - | AC3: =INDEX(【D】NPS!$C$4:$GO$96,MATCH(NPS!$B3,【D】NPS!$B$4:$B$96,0), MATCH(NPS!AC$2&NPS!$R$1,【D】NPS!$C$2:$GO$2&【D】NPS!$C$3:$GO$3,0)) -> - | AD3: =INDEX(【D】NPS!$C$4:$GO$96,MATCH(NPS!$B3,【D】NPS!$B$4:$B$96,0), MATCH(NPS!AD$2&NPS!$R$1,【D】NPS!$C$2:$GO$2&【D】NPS!$C$3:$GO$3,0)) -> - | AE3: =INDEX(【D】NPS!$C$4:$GO$96,MATCH(NPS!$B3,【D】NPS!$B$4:$B$96,0), MATCH(NPS!AE$2&NPS!$R$1,【D】NPS!$C$2:$GO$2&【D】NPS!$C$3:$GO$3,0)) -> - | AH3: =INDEX(【D】NPS!$C$4:$GO$96,MATCH(NPS!$B3,【D】NPS!$B$4:$B$96,0), MATCH(NPS!AH$2&NPS!$AG$1,【D】NPS!$C$2:$GO$2&【D】NPS!$C$3:$GO$3,0)) -> - | AI3: =INDEX(【D】NPS!$C$4:$GO$96,MATCH(NPS!$B3,【D】NPS!$B$4:$B$96,0), MATCH(NPS!AI$2&NPS!$AG$1,【D】NPS!$C$2:$GO$2&【D】NPS!$C$3:$GO$3,0)) -> - | AJ3: =INDEX(【D】NPS!$C$4:$GO$96,MATCH(NPS!$B3,【D】NPS!$B$4:$B$96,0), MATCH(NPS!AJ$2&NPS!$AG$1,【D】NPS!$C$2:$GO$2&【D】NPS!$C$3:$GO$3,0)) -> - | AK3: =INDEX(【D】NPS!$C$4:$GO$96,MATCH(NPS!$B3,【D】NPS!$B$4:$B$96,0), MATCH(NPS!AK$2&NPS!$AG$1,【D】NPS!$C$2:$GO$2&【D】NPS!$C$3:$GO$3,0)) -> - | AL3: =INDEX(【D】NPS!$C$4:$GO$96,MATCH(NPS!$B3,【D】NPS!$B$4:$B$96,0), MATCH(NPS!AL$2&NPS!$AG$1,【D】NPS!$C$2:$GO$2&【D】NPS!$C$3:$GO$3,0)) -> - | AM3: =INDEX(【D】NPS!$C$4:$GO$96,MATCH(NPS!$B3,【D】NPS!$B$4:$B$96,0), MATCH(NPS!AM$2&NPS!$AG$1,【D】NPS!$C$2:$GO$2&【D】NPS!$C$3:$GO$3,0)) -> - | AN3: =INDEX(【D】NPS!$C$4:$GO$96,MATCH(NPS!$B3,【D】NPS!$B$4:$B$96,0), MATCH(NPS!AN$2&NPS!$AG$1,【D】NPS!$C$2:$GO$2&【D】NPS!$C$3:$GO$3,0)) -> - | AO3: =INDEX(【D】NPS!$C$4:$GO$96,MATCH(NPS!$B3,【D】NPS!$B$4:$B$96,0), MATCH(NPS!AO$2&NPS!$AG$1,【D】NPS!$C$2:$GO$2&【D】NPS!$C$3:$GO$3,0)) -> - | AP3: =INDEX(【D】NPS!$C$4:$GO$96,MATCH(NPS!$B3,【D】NPS!$B$4:$B$96,0), MATCH(NPS!AP$2&NPS!$AG$1,【D】NPS!$C$2:$GO$2&【D】NPS!$C$3:$GO$3,0)) -> - | AQ3: =INDEX(【D】NPS!$C$4:$GO$96,MATCH(NPS!$B3,【D】NPS!$B$4:$B$96,0), MATCH(NPS!AQ$2&NPS!$AG$1,【D】NPS!$C$2:$GO$2&【D】NPS!$C$3:$GO$3,0)) -> - | AR3: =INDEX(【D】NPS!$C$4:$GO$96,MATCH(NPS!$B3,【D】NPS!$B$4:$B$96,0), MATCH(NPS!AR$2&NPS!$AG$1,【D】NPS!$C$2:$GO$2&【D】NPS!$C$3:$GO$3,0)) -> - | AS3: =INDEX(【D】NPS!$C$4:$GO$96,MATCH(NPS!$B3,【D】NPS!$B$4:$B$96,0), MATCH(NPS!AS$2&NPS!$AG$1,【D】NPS!$C$2:$GO$2&【D】NPS!$C$3:$GO$3,0)) -> - | AT3: =INDEX(【D】NPS!$C$4:$GO$96,MATCH(NPS!$B3,【D】NPS!$B$4:$B$96,0), MATCH(NPS!AT$2&NPS!$AG$1,【D】NPS!$C$2:$GO$2&【D】NPS!$C$3:$GO$3,0)) -> - | AV3: 1 | AW3: =IFERROR(INDEX($S$6:$AE$95,MATCH(AX3,$B$6:$B$95,0),MATCH(AW$1,$S$2:$AE$2,0)),"-") -> 1 | AX3: =IFERROR( INDEX($B$6:$B$95, MATCH($AV3,OFFSET($AH$6,0,MATCH($AW$1,$AH$2:$AT$2,0)-1,COUNTA($B$6:$B$95),1),0),1),"-") -> 水島 エリア | AY3: =INDEX($D$6:$P$95,MATCH($AX3,$B$6:$B$95,0),MATCH($AW$1,$D$2:$P$2,0)) -> 85.71428571 | AZ3: =INDEX(【D】NPS!$C$7:$HB$96, MATCH(NPS!$AX3,【D】NPS!$B$7:$B$96,0), MATCH(NPS!$AZ$2&NPS!$AW$1,【D】NPS!$C$1:$HB$1&【D】NPS!$C$2:$HB$2,0)) -> 7 | BC3: =施設コード!$E$2 -> 福井市・永平寺町 | BD3: =D4 -> 17.90744467 | BE3: =E4 -> 23.47826087 | BF3: =F4 -> 15.56420233 | BG3: =G4 -> 19.06005222 | BH3: =H4 -> None | BI3: =I4 -> None | BJ3: =J4 -> None | BK3: =K4 -> None | BL3: =L4 -> None | BM3: =M4 -> None | BN3: =N4 -> None | BO3: =O4 -> None | BP3: =P4 -> 19.14677501
A4: 6分類 | B4: =施設コード!$E$2 -> 福井市・永平寺町 | D4: =INDEX(【D】NPS!$C$4:$GO$96,MATCH(NPS!$B4,【D】NPS!$B$4:$B$96,0), MATCH(NPS!D$2&NPS!$C$1,【D】NPS!$C$2:$GO$2&【D】NPS!$C$3:$GO$3,0)) -> 17.90744467 | E4: =INDEX(【D】NPS!$C$4:$GO$96,MATCH(NPS!$B4,【D】NPS!$B$4:$B$96,0), MATCH(NPS!E$2&NPS!$C$1,【D】NPS!$C$2:$GO$2&【D】NPS!$C$3:$GO$3,0)) -> 23.47826087 | F4: =INDEX(【D】NPS!$C$4:$GO$96,MATCH(NPS!$B4,【D】NPS!$B$4:$B$96,0), MATCH(NPS!F$2&NPS!$C$1,【D】NPS!$C$2:$GO$2&【D】NPS!$C$3:$GO$3,0)) -> 15.56420233 | G4: =INDEX(【D】NPS!$C$4:$GO$96,MATCH(NPS!$B4,【D】NPS!$B$4:$B$96,0), MATCH(NPS!G$2&NPS!$C$1,【D】NPS!$C$2:$GO$2&【D】NPS!$C$3:$GO$3,0)) -> 19.06005222 | H4: =INDEX(【D】NPS!$C$4:$GO$96,MATCH(NPS!$B4,【D】NPS!$B$4:$B$96,0), MATCH(NPS!H$2&NPS!$C$1,【D】NPS!$C$2:$GO$2&【D】NPS!$C$3:$GO$3,0)) -> None | I4: =INDEX(【D】NPS!$C$4:$GO$96,MATCH(NPS!$B4,【D】NPS!$B$4:$B$96,0), MATCH(NPS!I$2&NPS!$C$1,【D】NPS!$C$2:$GO$2&【D】NPS!$C$3:$GO$3,0)) -> None | J4: =INDEX(【D】NPS!$C$4:$GO$96,MATCH(NPS!$B4,【D】NPS!$B$4:$B$96,0), MATCH(NPS!J$2&NPS!$C$1,【D】NPS!$C$2:$GO$2&【D】NPS!$C$3:$GO$3,0)) -> None | K4: =INDEX(【D】NPS!$C$4:$GO$96,MATCH(NPS!$B4,【D】NPS!$B$4:$B$96,0), MATCH(NPS!K$2&NPS!$C$1,【D】NPS!$C$2:$GO$2&【D】NPS!$C$3:$GO$3,0)) -> None | L4: =INDEX(【D】NPS!$C$4:$GO$96,MATCH(NPS!$B4,【D】NPS!$B$4:$B$96,0), MATCH(NPS!L$2&NPS!$C$1,【D】NPS!$C$2:$GO$2&【D】NPS!$C$3:$GO$3,0)) -> None | M4: =INDEX(【D】NPS!$C$4:$GO$96,MATCH(NPS!$B4,【D】NPS!$B$4:$B$96,0), MATCH(NPS!M$2&NPS!$C$1,【D】NPS!$C$2:$GO$2&【D】NPS!$C$3:$GO$3,0)) -> None | N4: =INDEX(【D】NPS!$C$4:$GO$96,MATCH(NPS!$B4,【D】NPS!$B$4:$B$96,0), MATCH(NPS!N$2&NPS!$C$1,【D】NPS!$C$2:$GO$2&【D】NPS!$C$3:$GO$3,0)) -> None | O4: =INDEX(【D】NPS!$C$4:$GO$96,MATCH(NPS!$B4,【D】NPS!$B$4:$B$96,0), MATCH(NPS!O$2&NPS!$C$1,【D】NPS!$C$2:$GO$2&【D】NPS!$C$3:$GO$3,0)) -> None | P4: =INDEX(【D】NPS!$C$4:$GO$96,MATCH(NPS!$B4,【D】NPS!$B$4:$B$96,0), MATCH(NPS!P$2&NPS!$C$1,【D】NPS!$C$2:$GO$2&【D】NPS!$C$3:$GO$3,0)) -> 19.14677501 | S4: =INDEX(【D】NPS!$C$4:$GO$96,MATCH(NPS!$B4,【D】NPS!$B$4:$B$96,0), MATCH(NPS!S$2&NPS!$R$1,【D】NPS!$C$2:$GO$2&【D】NPS!$C$3:$GO$3,0)) -> - | T4: =INDEX(【D】NPS!$C$4:$GO$96,MATCH(NPS!$B4,【D】NPS!$B$4:$B$96,0), MATCH(NPS!T$2&NPS!$R$1,【D】NPS!$C$2:$GO$2&【D】NPS!$C$3:$GO$3,0)) -> - | U4: =INDEX(【D】NPS!$C$4:$GO$96,MATCH(NPS!$B4,【D】NPS!$B$4:$B$96,0), MATCH(NPS!U$2&NPS!$R$1,【D】NPS!$C$2:$GO$2&【D】NPS!$C$3:$GO$3,0)) -> - | V4: =INDEX(【D】NPS!$C$4:$GO$96,MATCH(NPS!$B4,【D】NPS!$B$4:$B$96,0), MATCH(NPS!V$2&NPS!$R$1,【D】NPS!$C$2:$GO$2&【D】NPS!$C$3:$GO$3,0)) -> - | W4: =INDEX(【D】NPS!$C$4:$GO$96,MATCH(NPS!$B4,【D】NPS!$B$4:$B$96,0), MATCH(NPS!W$2&NPS!$R$1,【D】NPS!$C$2:$GO$2&【D】NPS!$C$3:$GO$3,0)) -> - | X4: =INDEX(【D】NPS!$C$4:$GO$96,MATCH(NPS!$B4,【D】NPS!$B$4:$B$96,0), MATCH(NPS!X$2&NPS!$R$1,【D】NPS!$C$2:$GO$2&【D】NPS!$C$3:$GO$3,0)) -> - | Y4: =INDEX(【D】NPS!$C$4:$GO$96,MATCH(NPS!$B4,【D】NPS!$B$4:$B$96,0), MATCH(NPS!Y$2&NPS!$R$1,【D】NPS!$C$2:$GO$2&【D】NPS!$C$3:$GO$3,0)) -> - | Z4: =INDEX(【D】NPS!$C$4:$GO$96,MATCH(NPS!$B4,【D】NPS!$B$4:$B$96,0), MATCH(NPS!Z$2&NPS!$R$1,【D】NPS!$C$2:$GO$2&【D】NPS!$C$3:$GO$3,0)) -> - | AA4: =INDEX(【D】NPS!$C$4:$GO$96,MATCH(NPS!$B4,【D】NPS!$B$4:$B$96,0), MATCH(NPS!AA$2&NPS!$R$1,【D】NPS!$C$2:$GO$2&【D】NPS!$C$3:$GO$3,0)) -> - | AB4: =INDEX(【D】NPS!$C$4:$GO$96,MATCH(NPS!$B4,【D】NPS!$B$4:$B$96,0), MATCH(NPS!AB$2&NPS!$R$1,【D】NPS!$C$2:$GO$2&【D】NPS!$C$3:$GO$3,0)) -> - | AC4: =INDEX(【D】NPS!$C$4:$GO$96,MATCH(NPS!$B4,【D】NPS!$B$4:$B$96,0), MATCH(NPS!AC$2&NPS!$R$1,【D】NPS!$C$2:$GO$2&【D】NPS!$C$3:$GO$3,0)) -> - | AD4: =INDEX(【D】NPS!$C$4:$GO$96,MATCH(NPS!$B4,【D】NPS!$B$4:$B$96,0), MATCH(NPS!AD$2&NPS!$R$1,【D】NPS!$C$2:$GO$2&【D】NPS!$C$3:$GO$3,0)) -> - | AE4: =INDEX(【D】NPS!$C$4:$GO$96,MATCH(NPS!$B4,【D】NPS!$B$4:$B$96,0), MATCH(NPS!AE$2&NPS!$R$1,【D】NPS!$C$2:$GO$2&【D】NPS!$C$3:$GO$3,0)) -> - | AH4: =INDEX(【D】NPS!$C$4:$GO$96,MATCH(NPS!$B4,【D】NPS!$B$4:$B$96,0), MATCH(NPS!AH$2&NPS!$AG$1,【D】NPS!$C$2:$GO$2&【D】NPS!$C$3:$GO$3,0)) -> - | AI4: =INDEX(【D】NPS!$C$4:$GO$96,MATCH(NPS!$B4,【D】NPS!$B$4:$B$96,0), MATCH(NPS!AI$2&NPS!$AG$1,【D】NPS!$C$2:$GO$2&【D】NPS!$C$3:$GO$3,0)) -> - | AJ4: =INDEX(【D】NPS!$C$4:$GO$96,MATCH(NPS!$B4,【D】NPS!$B$4:$B$96,0), MATCH(NPS!AJ$2&NPS!$AG$1,【D】NPS!$C$2:$GO$2&【D】NPS!$C$3:$GO$3,0)) -> - | AK4: =INDEX(【D】NPS!$C$4:$GO$96,MATCH(NPS!$B4,【D】NPS!$B$4:$B$96,0), MATCH(NPS!AK$2&NPS!$AG$1,【D】NPS!$C$2:$GO$2&【D】NPS!$C$3:$GO$3,0)) -> - | AL4: =INDEX(【D】NPS!$C$4:$GO$96,MATCH(NPS!$B4,【D】NPS!$B$4:$B$96,0), MATCH(NPS!AL$2&NPS!$AG$1,【D】NPS!$C$2:$GO$2&【D】NPS!$C$3:$GO$3,0)) -> - | AM4: =INDEX(【D】NPS!$C$4:$GO$96,MATCH(NPS!$B4,【D】NPS!$B$4:$B$96,0), MATCH(NPS!AM$2&NPS!$AG$1,【D】NPS!$C$2:$GO$2&【D】NPS!$C$3:$GO$3,0)) -> - | AN4: =INDEX(【D】NPS!$C$4:$GO$96,MATCH(NPS!$B4,【D】NPS!$B$4:$B$96,0), MATCH(NPS!AN$2&NPS!$AG$1,【D】NPS!$C$2:$GO$2&【D】NPS!$C$3:$GO$3,0)) -> - | AO4: =INDEX(【D】NPS!$C$4:$GO$96,MATCH(NPS!$B4,【D】NPS!$B$4:$B$96,0), MATCH(NPS!AO$2&NPS!$AG$1,【D】NPS!$C$2:$GO$2&【D】NPS!$C$3:$GO$3,0)) -> - | AP4: =INDEX(【D】NPS!$C$4:$GO$96,MATCH(NPS!$B4,【D】NPS!$B$4:$B$96,0), MATCH(NPS!AP$2&NPS!$AG$1,【D】NPS!$C$2:$GO$2&【D】NPS!$C$3:$GO$3,0)) -> - | AQ4: =INDEX(【D】NPS!$C$4:$GO$96,MATCH(NPS!$B4,【D】NPS!$B$4:$B$96,0), MATCH(NPS!AQ$2&NPS!$AG$1,【D】NPS!$C$2:$GO$2&【D】NPS!$C$3:$GO$3,0)) -> - | AR4: =INDEX(【D】NPS!$C$4:$GO$96,MATCH(NPS!$B4,【D】NPS!$B$4:$B$96,0), MATCH(NPS!AR$2&NPS!$AG$1,【D】NPS!$C$2:$GO$2&【D】NPS!$C$3:$GO$3,0)) -> - | AS4: =INDEX(【D】NPS!$C$4:$GO$96,MATCH(NPS!$B4,【D】NPS!$B$4:$B$96,0), MATCH(NPS!AS$2&NPS!$AG$1,【D】NPS!$C$2:$GO$2&【D】NPS!$C$3:$GO$3,0)) -> - | AT4: =INDEX(【D】NPS!$C$4:$GO$96,MATCH(NPS!$B4,【D】NPS!$B$4:$B$96,0), MATCH(NPS!AT$2&NPS!$AG$1,【D】NPS!$C$2:$GO$2&【D】NPS!$C$3:$GO$3,0)) -> - | AV4: =AV3+1 -> 2 | AW4: 2 | AX4: 若狭和田 エリア | AY4: 66.66666667 | AZ4: =INDEX(【D】NPS!$C$7:$HB$96, MATCH(NPS!$AX4,【D】NPS!$B$7:$B$96,0), MATCH(NPS!$AZ$2&NPS!$AW$1,【D】NPS!$C$1:$HB$1&【D】NPS!$C$2:$HB$2,0)) -> 3 | BC4: =施設コード!$F$2 -> 福井市 | BD4: 20.3125 | BE4: 13.97515528 | BF4: 9.756097561 | BG4: 17.06161137 | BH4: None | BI4: None | BJ4: None | BK4: None | BL4: None | BM4: None | BN4: None | BO4: None | BP4: =P5 -> 15.53156146
A5: 市町村 | B5: =施設コード!$F$2 -> 福井市 | D5: =INDEX(【D】NPS!$C$4:$GO$96,MATCH(NPS!$B5,【D】NPS!$B$4:$B$96,0), MATCH(NPS!D$2&NPS!$C$1,【D】NPS!$C$2:$GO$2&【D】NPS!$C$3:$GO$3,0)) -> 20.3125 | E5: =INDEX(【D】NPS!$C$4:$GO$96,MATCH(NPS!$B5,【D】NPS!$B$4:$B$96,0), MATCH(NPS!E$2&NPS!$C$1,【D】NPS!$C$2:$GO$2&【D】NPS!$C$3:$GO$3,0)) -> 13.97515528 | F5: =INDEX(【D】NPS!$C$4:$GO$96,MATCH(NPS!$B5,【D】NPS!$B$4:$B$96,0), MATCH(NPS!F$2&NPS!$C$1,【D】NPS!$C$2:$GO$2&【D】NPS!$C$3:$GO$3,0)) -> 9.756097561 | G5: =INDEX(【D】NPS!$C$4:$GO$96,MATCH(NPS!$B5,【D】NPS!$B$4:$B$96,0), MATCH(NPS!G$2&NPS!$C$1,【D】NPS!$C$2:$GO$2&【D】NPS!$C$3:$GO$3,0)) -> 17.06161137 | H5: =INDEX(【D】NPS!$C$4:$GO$96,MATCH(NPS!$B5,【D】NPS!$B$4:$B$96,0), MATCH(NPS!H$2&NPS!$C$1,【D】NPS!$C$2:$GO$2&【D】NPS!$C$3:$GO$3,0)) -> None | I5: =INDEX(【D】NPS!$C$4:$GO$96,MATCH(NPS!$B5,【D】NPS!$B$4:$B$96,0), MATCH(NPS!I$2&NPS!$C$1,【D】NPS!$C$2:$GO$2&【D】NPS!$C$3:$GO$3,0)) -> None | J5: =INDEX(【D】NPS!$C$4:$GO$96,MATCH(NPS!$B5,【D】NPS!$B$4:$B$96,0), MATCH(NPS!J$2&NPS!$C$1,【D】NPS!$C$2:$GO$2&【D】NPS!$C$3:$GO$3,0)) -> None | K5: =INDEX(【D】NPS!$C$4:$GO$96,MATCH(NPS!$B5,【D】NPS!$B$4:$B$96,0), MATCH(NPS!K$2&NPS!$C$1,【D】NPS!$C$2:$GO$2&【D】NPS!$C$3:$GO$3,0)) -> None | L5: =INDEX(【D】NPS!$C$4:$GO$96,MATCH(NPS!$B5,【D】NPS!$B$4:$B$96,0), MATCH(NPS!L$2&NPS!$C$1,【D】NPS!$C$2:$GO$2&【D】NPS!$C$3:$GO$3,0)) -> None | M5: =INDEX(【D】NPS!$C$4:$GO$96,MATCH(NPS!$B5,【D】NPS!$B$4:$B$96,0), MATCH(NPS!M$2&NPS!$C$1,【D】NPS!$C$2:$GO$2&【D】NPS!$C$3:$GO$3,0)) -> None | N5: =INDEX(【D】NPS!$C$4:$GO$96,MATCH(NPS!$B5,【D】NPS!$B$4:$B$96,0), MATCH(NPS!N$2&NPS!$C$1,【D】NPS!$C$2:$GO$2&【D】NPS!$C$3:$GO$3,0)) -> None | O5: =INDEX(【D】NPS!$C$4:$GO$96,MATCH(NPS!$B5,【D】NPS!$B$4:$B$96,0), MATCH(NPS!O$2&NPS!$C$1,【D】NPS!$C$2:$GO$2&【D】NPS!$C$3:$GO$3,0)) -> None | P5: =INDEX(【D】NPS!$C$4:$GO$96,MATCH(NPS!$B5,【D】NPS!$B$4:$B$96,0), MATCH(NPS!P$2&NPS!$C$1,【D】NPS!$C$2:$GO$2&【D】NPS!$C$3:$GO$3,0)) -> 15.53156146 | S5: =INDEX(【D】NPS!$C$4:$GO$96,MATCH(NPS!$B5,【D】NPS!$B$4:$B$96,0), MATCH(NPS!S$2&NPS!$R$1,【D】NPS!$C$2:$GO$2&【D】NPS!$C$3:$GO$3,0)) -> - | T5: =INDEX(【D】NPS!$C$4:$GO$96,MATCH(NPS!$B5,【D】NPS!$B$4:$B$96,0), MATCH(NPS!T$2&NPS!$R$1,【D】NPS!$C$2:$GO$2&【D】NPS!$C$3:$GO$3,0)) -> - | U5: =INDEX(【D】NPS!$C$4:$GO$96,MATCH(NPS!$B5,【D】NPS!$B$4:$B$96,0), MATCH(NPS!U$2&NPS!$R$1,【D】NPS!$C$2:$GO$2&【D】NPS!$C$3:$GO$3,0)) -> - | V5: =INDEX(【D】NPS!$C$4:$GO$96,MATCH(NPS!$B5,【D】NPS!$B$4:$B$96,0), MATCH(NPS!V$2&NPS!$R$1,【D】NPS!$C$2:$GO$2&【D】NPS!$C$3:$GO$3,0)) -> - | W5: =INDEX(【D】NPS!$C$4:$GO$96,MATCH(NPS!$B5,【D】NPS!$B$4:$B$96,0), MATCH(NPS!W$2&NPS!$R$1,【D】NPS!$C$2:$GO$2&【D】NPS!$C$3:$GO$3,0)) -> - | X5: =INDEX(【D】NPS!$C$4:$GO$96,MATCH(NPS!$B5,【D】NPS!$B$4:$B$96,0), MATCH(NPS!X$2&NPS!$R$1,【D】NPS!$C$2:$GO$2&【D】NPS!$C$3:$GO$3,0)) -> - | Y5: =INDEX(【D】NPS!$C$4:$GO$96,MATCH(NPS!$B5,【D】NPS!$B$4:$B$96,0), MATCH(NPS!Y$2&NPS!$R$1,【D】NPS!$C$2:$GO$2&【D】NPS!$C$3:$GO$3,0)) -> - | Z5: =INDEX(【D】NPS!$C$4:$GO$96,MATCH(NPS!$B5,【D】NPS!$B$4:$B$96,0), MATCH(NPS!Z$2&NPS!$R$1,【D】NPS!$C$2:$GO$2&【D】NPS!$C$3:$GO$3,0)) -> - | AA5: =INDEX(【D】NPS!$C$4:$GO$96,MATCH(NPS!$B5,【D】NPS!$B$4:$B$96,0), MATCH(NPS!AA$2&NPS!$R$1,【D】NPS!$C$2:$GO$2&【D】NPS!$C$3:$GO$3,0)) -> - | AB5: =INDEX(【D】NPS!$C$4:$GO$96,MATCH(NPS!$B5,【D】NPS!$B$4:$B$96,0), MATCH(NPS!AB$2&NPS!$R$1,【D】NPS!$C$2:$GO$2&【D】NPS!$C$3:$GO$3,0)) -> - | AC5: =INDEX(【D】NPS!$C$4:$GO$96,MATCH(NPS!$B5,【D】NPS!$B$4:$B$96,0), MATCH(NPS!AC$2&NPS!$R$1,【D】NPS!$C$2:$GO$2&【D】NPS!$C$3:$GO$3,0)) -> - | AD5: =INDEX(【D】NPS!$C$4:$GO$96,MATCH(NPS!$B5,【D】NPS!$B$4:$B$96,0), MATCH(NPS!AD$2&NPS!$R$1,【D】NPS!$C$2:$GO$2&【D】NPS!$C$3:$GO$3,0)) -> - | AE5: =INDEX(【D】NPS!$C$4:$GO$96,MATCH(NPS!$B5,【D】NPS!$B$4:$B$96,0), MATCH(NPS!AE$2&NPS!$R$1,【D】NPS!$C$2:$GO$2&【D】NPS!$C$3:$GO$3,0)) -> - | AH5: =INDEX(【D】NPS!$C$4:$GO$96,MATCH(NPS!$B5,【D】NPS!$B$4:$B$96,0), MATCH(NPS!AH$2&NPS!$AG$1,【D】NPS!$C$2:$GO$2&【D】NPS!$C$3:$GO$3,0)) -> - | AI5: =INDEX(【D】NPS!$C$4:$GO$96,MATCH(NPS!$B5,【D】NPS!$B$4:$B$96,0), MATCH(NPS!AI$2&NPS!$AG$1,【D】NPS!$C$2:$GO$2&【D】NPS!$C$3:$GO$3,0)) -> - | AJ5: =INDEX(【D】NPS!$C$4:$GO$96,MATCH(NPS!$B5,【D】NPS!$B$4:$B$96,0), MATCH(NPS!AJ$2&NPS!$AG$1,【D】NPS!$C$2:$GO$2&【D】NPS!$C$3:$GO$3,0)) -> - | AK5: =INDEX(【D】NPS!$C$4:$GO$96,MATCH(NPS!$B5,【D】NPS!$B$4:$B$96,0), MATCH(NPS!AK$2&NPS!$AG$1,【D】NPS!$C$2:$GO$2&【D】NPS!$C$3:$GO$3,0)) -> - | AL5: =INDEX(【D】NPS!$C$4:$GO$96,MATCH(NPS!$B5,【D】NPS!$B$4:$B$96,0), MATCH(NPS!AL$2&NPS!$AG$1,【D】NPS!$C$2:$GO$2&【D】NPS!$C$3:$GO$3,0)) -> - | AM5: =INDEX(【D】NPS!$C$4:$GO$96,MATCH(NPS!$B5,【D】NPS!$B$4:$B$96,0), MATCH(NPS!AM$2&NPS!$AG$1,【D】NPS!$C$2:$GO$2&【D】NPS!$C$3:$GO$3,0)) -> - | AN5: =INDEX(【D】NPS!$C$4:$GO$96,MATCH(NPS!$B5,【D】NPS!$B$4:$B$96,0), MATCH(NPS!AN$2&NPS!$AG$1,【D】NPS!$C$2:$GO$2&【D】NPS!$C$3:$GO$3,0)) -> - | AO5: =INDEX(【D】NPS!$C$4:$GO$96,MATCH(NPS!$B5,【D】NPS!$B$4:$B$96,0), MATCH(NPS!AO$2&NPS!$AG$1,【D】NPS!$C$2:$GO$2&【D】NPS!$C$3:$GO$3,0)) -> - | AP5: =INDEX(【D】NPS!$C$4:$GO$96,MATCH(NPS!$B5,【D】NPS!$B$4:$B$96,0), MATCH(NPS!AP$2&NPS!$AG$1,【D】NPS!$C$2:$GO$2&【D】NPS!$C$3:$GO$3,0)) -> - | AQ5: =INDEX(【D】NPS!$C$4:$GO$96,MATCH(NPS!$B5,【D】NPS!$B$4:$B$96,0), MATCH(NPS!AQ$2&NPS!$AG$1,【D】NPS!$C$2:$GO$2&【D】NPS!$C$3:$GO$3,0)) -> - | AR5: =INDEX(【D】NPS!$C$4:$GO$96,MATCH(NPS!$B5,【D】NPS!$B$4:$B$96,0), MATCH(NPS!AR$2&NPS!$AG$1,【D】NPS!$C$2:$GO$2&【D】NPS!$C$3:$GO$3,0)) -> - | AS5: =INDEX(【D】NPS!$C$4:$GO$96,MATCH(NPS!$B5,【D】NPS!$B$4:$B$96,0), MATCH(NPS!AS$2&NPS!$AG$1,【D】NPS!$C$2:$GO$2&【D】NPS!$C$3:$GO$3,0)) -> - | AT5: =INDEX(【D】NPS!$C$4:$GO$96,MATCH(NPS!$B5,【D】NPS!$B$4:$B$96,0), MATCH(NPS!AT$2&NPS!$AG$1,【D】NPS!$C$2:$GO$2&【D】NPS!$C$3:$GO$3,0)) -> - | AV5: =AV4+1 -> 3 | AW5: 2 | AX5: だるまちゃん広場 エリア | AY5: 66.66666667 | AZ5: =INDEX(【D】NPS!$C$7:$HB$96, MATCH(NPS!$AX5,【D】NPS!$B$7:$B$96,0), MATCH(NPS!$AZ$2&NPS!$AW$1,【D】NPS!$C$1:$HB$1&【D】NPS!$C$2:$HB$2,0)) -> 3 | BC5: =施設コード!$C$2 -> 福井駅前 エリア | BD5: =INDEX(D$6:D$95,MATCH($BC$5,$B$6:$B$95,0),1) -> 20.73170732 | BE5: 19.62025316 | BF5: 13.00813008 | BG5: 21.33333333 | BH5: None | BI5: None | BJ5: None | BK5: None | BL5: None | BM5: None | BN5: None | BO5: None | BP5: =INDEX(P$6:P$94,MATCH($BC$5,$B$6:$B$94,0),1) -> 18.65384615
A6: 回答エリア | B6: 福井駅前 エリア | D6: =INDEX(【D】NPS!$C$4:$GO$96,MATCH(NPS!$B6,【D】NPS!$B$4:$B$96,0), MATCH(NPS!D$2&NPS!$C$1,【D】NPS!$C$2:$GO$2&【D】NPS!$C$3:$GO$3,0)) -> 20.73170732 | E6: =INDEX(【D】NPS!$C$4:$GO$96,MATCH(NPS!$B6,【D】NPS!$B$4:$B$96,0), MATCH(NPS!E$2&NPS!$C$1,【D】NPS!$C$2:$GO$2&【D】NPS!$C$3:$GO$3,0)) -> 19.62025316 | F6: =INDEX(【D】NPS!$C$4:$GO$96,MATCH(NPS!$B6,【D】NPS!$B$4:$B$96,0), MATCH(NPS!F$2&NPS!$C$1,【D】NPS!$C$2:$GO$2&【D】NPS!$C$3:$GO$3,0)) -> 13.00813008 | G6: =INDEX(【D】NPS!$C$4:$GO$96,MATCH(NPS!$B6,【D】NPS!$B$4:$B$96,0), MATCH(NPS!G$2&NPS!$C$1,【D】NPS!$C$2:$GO$2&【D】NPS!$C$3:$GO$3,0)) -> 21.33333333 | H6: =INDEX(【D】NPS!$C$4:$GO$96,MATCH(NPS!$B6,【D】NPS!$B$4:$B$96,0), MATCH(NPS!H$2&NPS!$C$1,【D】NPS!$C$2:$GO$2&【D】NPS!$C$3:$GO$3,0)) -> None | I6: =INDEX(【D】NPS!$C$4:$GO$96,MATCH(NPS!$B6,【D】NPS!$B$4:$B$96,0), MATCH(NPS!I$2&NPS!$C$1,【D】NPS!$C$2:$GO$2&【D】NPS!$C$3:$GO$3,0)) -> None | J6: =INDEX(【D】NPS!$C$4:$GO$96,MATCH(NPS!$B6,【D】NPS!$B$4:$B$96,0), MATCH(NPS!J$2&NPS!$C$1,【D】NPS!$C$2:$GO$2&【D】NPS!$C$3:$GO$3,0)) -> None | K6: =INDEX(【D】NPS!$C$4:$GO$96,MATCH(NPS!$B6,【D】NPS!$B$4:$B$96,0), MATCH(NPS!K$2&NPS!$C$1,【D】NPS!$C$2:$GO$2&【D】NPS!$C$3:$GO$3,0)) -> None | L6: =INDEX(【D】NPS!$C$4:$GO$96,MATCH(NPS!$B6,【D】NPS!$B$4:$B$96,0), MATCH(NPS!L$2&NPS!$C$1,【D】NPS!$C$2:$GO$2&【D】NPS!$C$3:$GO$3,0)) -> None | M6: =INDEX(【D】NPS!$C$4:$GO$96,MATCH(NPS!$B6,【D】NPS!$B$4:$B$96,0), MATCH(NPS!M$2&NPS!$C$1,【D】NPS!$C$2:$GO$2&【D】NPS!$C$3:$GO$3,0)) -> None | N6: =INDEX(【D】NPS!$C$4:$GO$96,MATCH(NPS!$B6,【D】NPS!$B$4:$B$96,0), MATCH(NPS!N$2&NPS!$C$1,【D】NPS!$C$2:$GO$2&【D】NPS!$C$3:$GO$3,0)) -> None | O6: =INDEX(【D】NPS!$C$4:$GO$96,MATCH(NPS!$B6,【D】NPS!$B$4:$B$96,0), MATCH(NPS!O$2&NPS!$C$1,【D】NPS!$C$2:$GO$2&【D】NPS!$C$3:$GO$3,0)) -> None | P6: =INDEX(【D】NPS!$C$4:$GO$96,MATCH(NPS!$B6,【D】NPS!$B$4:$B$96,0), MATCH(NPS!P$2&NPS!$C$1,【D】NPS!$C$2:$GO$2&【D】NPS!$C$3:$GO$3,0)) -> 18.65384615 | S6: =INDEX(【D】NPS!$C$4:$GO$96,MATCH(NPS!$B6,【D】NPS!$B$4:$B$96,0), MATCH(NPS!S$2&NPS!$R$1,【D】NPS!$C$2:$GO$2&【D】NPS!$C$3:$GO$3,0)) -> 26 | T6: =INDEX(【D】NPS!$C$4:$GO$96,MATCH(NPS!$B6,【D】NPS!$B$4:$B$96,0), MATCH(NPS!T$2&NPS!$R$1,【D】NPS!$C$2:$GO$2&【D】NPS!$C$3:$GO$3,0)) -> 26 | U6: =INDEX(【D】NPS!$C$4:$GO$96,MATCH(NPS!$B6,【D】NPS!$B$4:$B$96,0), MATCH(NPS!U$2&NPS!$R$1,【D】NPS!$C$2:$GO$2&【D】NPS!$C$3:$GO$3,0)) -> 35 | V6: =INDEX(【D】NPS!$C$4:$GO$96,MATCH(NPS!$B6,【D】NPS!$B$4:$B$96,0), MATCH(NPS!V$2&NPS!$R$1,【D】NPS!$C$2:$GO$2&【D】NPS!$C$3:$GO$3,0)) -> 25 | W6: =INDEX(【D】NPS!$C$4:$GO$96,MATCH(NPS!$B6,【D】NPS!$B$4:$B$96,0), MATCH(NPS!W$2&NPS!$R$1,【D】NPS!$C$2:$GO$2&【D】NPS!$C$3:$GO$3,0)) -> - | X6: =INDEX(【D】NPS!$C$4:$GO$96,MATCH(NPS!$B6,【D】NPS!$B$4:$B$96,0), MATCH(NPS!X$2&NPS!$R$1,【D】NPS!$C$2:$GO$2&【D】NPS!$C$3:$GO$3,0)) -> - | Y6: =INDEX(【D】NPS!$C$4:$GO$96,MATCH(NPS!$B6,【D】NPS!$B$4:$B$96,0), MATCH(NPS!Y$2&NPS!$R$1,【D】NPS!$C$2:$GO$2&【D】NPS!$C$3:$GO$3,0)) -> - | Z6: =INDEX(【D】NPS!$C$4:$GO$96,MATCH(NPS!$B6,【D】NPS!$B$4:$B$96,0), MATCH(NPS!Z$2&NPS!$R$1,【D】NPS!$C$2:$GO$2&【D】NPS!$C$3:$GO$3,0)) -> - | AA6: =INDEX(【D】NPS!$C$4:$GO$96,MATCH(NPS!$B6,【D】NPS!$B$4:$B$96,0), MATCH(NPS!AA$2&NPS!$R$1,【D】NPS!$C$2:$GO$2&【D】NPS!$C$3:$GO$3,0)) -> - | AB6: =INDEX(【D】NPS!$C$4:$GO$96,MATCH(NPS!$B6,【D】NPS!$B$4:$B$96,0), MATCH(NPS!AB$2&NPS!$R$1,【D】NPS!$C$2:$GO$2&【D】NPS!$C$3:$GO$3,0)) -> - | AC6: =INDEX(【D】NPS!$C$4:$GO$96,MATCH(NPS!$B6,【D】NPS!$B$4:$B$96,0), MATCH(NPS!AC$2&NPS!$R$1,【D】NPS!$C$2:$GO$2&【D】NPS!$C$3:$GO$3,0)) -> - | AD6: =INDEX(【D】NPS!$C$4:$GO$96,MATCH(NPS!$B6,【D】NPS!$B$4:$B$96,0), MATCH(NPS!AD$2&NPS!$R$1,【D】NPS!$C$2:$GO$2&【D】NPS!$C$3:$GO$3,0)) -> - | AE6: =INDEX(【D】NPS!$C$4:$GO$96,MATCH(NPS!$B6,【D】NPS!$B$4:$B$96,0), MATCH(NPS!AE$2&NPS!$R$1,【D】NPS!$C$2:$GO$2&【D】NPS!$C$3:$GO$3,0)) -> 25 | AH6: =INDEX(【D】NPS!$C$4:$GO$96,MATCH(NPS!$B6,【D】NPS!$B$4:$B$96,0), MATCH(NPS!AH$2&NPS!$AG$1,【D】NPS!$C$2:$GO$2&【D】NPS!$C$3:$GO$3,0)) -> 26 | AI6: =INDEX(【D】NPS!$C$4:$GO$96,MATCH(NPS!$B6,【D】NPS!$B$4:$B$96,0), MATCH(NPS!AI$2&NPS!$AG$1,【D】NPS!$C$2:$GO$2&【D】NPS!$C$3:$GO$3,0)) -> 26 | AJ6: =INDEX(【D】NPS!$C$4:$GO$96,MATCH(NPS!$B6,【D】NPS!$B$4:$B$96,0), MATCH(NPS!AJ$2&NPS!$AG$1,【D】NPS!$C$2:$GO$2&【D】NPS!$C$3:$GO$3,0)) -> 35 | AK6: =INDEX(【D】NPS!$C$4:$GO$96,MATCH(NPS!$B6,【D】NPS!$B$4:$B$96,0), MATCH(NPS!AK$2&NPS!$AG$1,【D】NPS!$C$2:$GO$2&【D】NPS!$C$3:$GO$3,0)) -> 25 | AL6: =INDEX(【D】NPS!$C$4:$GO$96,MATCH(NPS!$B6,【D】NPS!$B$4:$B$96,0), MATCH(NPS!AL$2&NPS!$AG$1,【D】NPS!$C$2:$GO$2&【D】NPS!$C$3:$GO$3,0)) -> - | AM6: =INDEX(【D】NPS!$C$4:$GO$96,MATCH(NPS!$B6,【D】NPS!$B$4:$B$96,0), MATCH(NPS!AM$2&NPS!$AG$1,【D】NPS!$C$2:$GO$2&【D】NPS!$C$3:$GO$3,0)) -> - | AN6: =INDEX(【D】NPS!$C$4:$GO$96,MATCH(NPS!$B6,【D】NPS!$B$4:$B$96,0), MATCH(NPS!AN$2&NPS!$AG$1,【D】NPS!$C$2:$GO$2&【D】NPS!$C$3:$GO$3,0)) -> - | AO6: =INDEX(【D】NPS!$C$4:$GO$96,MATCH(NPS!$B6,【D】NPS!$B$4:$B$96,0), MATCH(NPS!AO$2&NPS!$AG$1,【D】NPS!$C$2:$GO$2&【D】NPS!$C$3:$GO$3,0)) -> - | AP6: =INDEX(【D】NPS!$C$4:$GO$96,MATCH(NPS!$B6,【D】NPS!$B$4:$B$96,0), MATCH(NPS!AP$2&NPS!$AG$1,【D】NPS!$C$2:$GO$2&【D】NPS!$C$3:$GO$3,0)) -> - | AQ6: =INDEX(【D】NPS!$C$4:$GO$96,MATCH(NPS!$B6,【D】NPS!$B$4:$B$96,0), MATCH(NPS!AQ$2&NPS!$AG$1,【D】NPS!$C$2:$GO$2&【D】NPS!$C$3:$GO$3,0)) -> - | AR6: =INDEX(【D】NPS!$C$4:$GO$96,MATCH(NPS!$B6,【D】NPS!$B$4:$B$96,0), MATCH(NPS!AR$2&NPS!$AG$1,【D】NPS!$C$2:$GO$2&【D】NPS!$C$3:$GO$3,0)) -> - | AS6: =INDEX(【D】NPS!$C$4:$GO$96,MATCH(NPS!$B6,【D】NPS!$B$4:$B$96,0), MATCH(NPS!AS$2&NPS!$AG$1,【D】NPS!$C$2:$GO$2&【D】NPS!$C$3:$GO$3,0)) -> - | AT6: =INDEX(【D】NPS!$C$4:$GO$96,MATCH(NPS!$B6,【D】NPS!$B$4:$B$96,0), MATCH(NPS!AT$2&NPS!$AG$1,【D】NPS!$C$2:$GO$2&【D】NPS!$C$3:$GO$3,0)) -> 25 | AV6: 4 | AW6: 4 | AX6: 若狭高浜 エリア | AY6: 50 | AZ6: =INDEX(【D】NPS!$C$7:$HB$96, MATCH(NPS!$AX6,【D】NPS!$B$7:$B$96,0), MATCH(NPS!$AZ$2&NPS!$AW$1,【D】NPS!$C$1:$HB$1&【D】NPS!$C$2:$HB$2,0)) -> 2
B7: 福井駅前 エリア（宿泊施設） | D7: =INDEX(【D】NPS!$C$4:$GO$96,MATCH(NPS!$B7,【D】NPS!$B$4:$B$96,0), MATCH(NPS!D$2&NPS!$C$1,【D】NPS!$C$2:$GO$2&【D】NPS!$C$3:$GO$3,0)) -> 38.46153846 | E7: =INDEX(【D】NPS!$C$4:$GO$96,MATCH(NPS!$B7,【D】NPS!$B$4:$B$96,0), MATCH(NPS!E$2&NPS!$C$1,【D】NPS!$C$2:$GO$2&【D】NPS!$C$3:$GO$3,0)) -> 11.9047619 | F7: =INDEX(【D】NPS!$C$4:$GO$96,MATCH(NPS!$B7,【D】NPS!$B$4:$B$96,0), MATCH(NPS!F$2&NPS!$C$1,【D】NPS!$C$2:$GO$2&【D】NPS!$C$3:$GO$3,0)) -> 8.108108108 | G7: =INDEX(【D】NPS!$C$4:$GO$96,MATCH(NPS!$B7,【D】NPS!$B$4:$B$96,0), MATCH(NPS!G$2&NPS!$C$1,【D】NPS!$C$2:$GO$2&【D】NPS!$C$3:$GO$3,0)) -> 11.11111111 | H7: =INDEX(【D】NPS!$C$4:$GO$96,MATCH(NPS!$B7,【D】NPS!$B$4:$B$96,0), MATCH(NPS!H$2&NPS!$C$1,【D】NPS!$C$2:$GO$2&【D】NPS!$C$3:$GO$3,0)) -> None | I7: =INDEX(【D】NPS!$C$4:$GO$96,MATCH(NPS!$B7,【D】NPS!$B$4:$B$96,0), MATCH(NPS!I$2&NPS!$C$1,【D】NPS!$C$2:$GO$2&【D】NPS!$C$3:$GO$3,0)) -> None | J7: =INDEX(【D】NPS!$C$4:$GO$96,MATCH(NPS!$B7,【D】NPS!$B$4:$B$96,0), MATCH(NPS!J$2&NPS!$C$1,【D】NPS!$C$2:$GO$2&【D】NPS!$C$3:$GO$3,0)) -> None | K7: =INDEX(【D】NPS!$C$4:$GO$96,MATCH(NPS!$B7,【D】NPS!$B$4:$B$96,0), MATCH(NPS!K$2&NPS!$C$1,【D】NPS!$C$2:$GO$2&【D】NPS!$C$3:$GO$3,0)) -> None | L7: =INDEX(【D】NPS!$C$4:$GO$96,MATCH(NPS!$B7,【D】NPS!$B$4:$B$96,0), MATCH(NPS!L$2&NPS!$C$1,【D】NPS!$C$2:$GO$2&【D】NPS!$C$3:$GO$3,0)) -> None | M7: =INDEX(【D】NPS!$C$4:$GO$96,MATCH(NPS!$B7,【D】NPS!$B$4:$B$96,0), MATCH(NPS!M$2&NPS!$C$1,【D】NPS!$C$2:$GO$2&【D】NPS!$C$3:$GO$3,0)) -> None | N7: =INDEX(【D】NPS!$C$4:$GO$96,MATCH(NPS!$B7,【D】NPS!$B$4:$B$96,0), MATCH(NPS!N$2&NPS!$C$1,【D】NPS!$C$2:$GO$2&【D】NPS!$C$3:$GO$3,0)) -> None | O7: =INDEX(【D】NPS!$C$4:$GO$96,MATCH(NPS!$B7,【D】NPS!$B$4:$B$96,0), MATCH(NPS!O$2&NPS!$C$1,【D】NPS!$C$2:$GO$2&【D】NPS!$C$3:$GO$3,0)) -> None | P7: =INDEX(【D】NPS!$C$4:$GO$96,MATCH(NPS!$B7,【D】NPS!$B$4:$B$96,0), MATCH(NPS!P$2&NPS!$C$1,【D】NPS!$C$2:$GO$2&【D】NPS!$C$3:$GO$3,0)) -> 19.16167665 | S7: =INDEX(【D】NPS!$C$4:$GO$96,MATCH(NPS!$B7,【D】NPS!$B$4:$B$96,0), MATCH(NPS!S$2&NPS!$R$1,【D】NPS!$C$2:$GO$2&【D】NPS!$C$3:$GO$3,0)) -> 9 | T7: =INDEX(【D】NPS!$C$4:$GO$96,MATCH(NPS!$B7,【D】NPS!$B$4:$B$96,0), MATCH(NPS!T$2&NPS!$R$1,【D】NPS!$C$2:$GO$2&【D】NPS!$C$3:$GO$3,0)) -> 37 | U7: =INDEX(【D】NPS!$C$4:$GO$96,MATCH(NPS!$B7,【D】NPS!$B$4:$B$96,0), MATCH(NPS!U$2&NPS!$R$1,【D】NPS!$C$2:$GO$2&【D】NPS!$C$3:$GO$3,0)) -> 38 | V7: =INDEX(【D】NPS!$C$4:$GO$96,MATCH(NPS!$B7,【D】NPS!$B$4:$B$96,0), MATCH(NPS!V$2&NPS!$R$1,【D】NPS!$C$2:$GO$2&【D】NPS!$C$3:$GO$3,0)) -> 42 | W7: =INDEX(【D】NPS!$C$4:$GO$96,MATCH(NPS!$B7,【D】NPS!$B$4:$B$96,0), MATCH(NPS!W$2&NPS!$R$1,【D】NPS!$C$2:$GO$2&【D】NPS!$C$3:$GO$3,0)) -> - | X7: =INDEX(【D】NPS!$C$4:$GO$96,MATCH(NPS!$B7,【D】NPS!$B$4:$B$96,0), MATCH(NPS!X$2&NPS!$R$1,【D】NPS!$C$2:$GO$2&【D】NPS!$C$3:$GO$3,0)) -> - | Y7: =INDEX(【D】NPS!$C$4:$GO$96,MATCH(NPS!$B7,【D】NPS!$B$4:$B$96,0), MATCH(NPS!Y$2&NPS!$R$1,【D】NPS!$C$2:$GO$2&【D】NPS!$C$3:$GO$3,0)) -> - | Z7: =INDEX(【D】NPS!$C$4:$GO$96,MATCH(NPS!$B7,【D】NPS!$B$4:$B$96,0), MATCH(NPS!Z$2&NPS!$R$1,【D】NPS!$C$2:$GO$2&【D】NPS!$C$3:$GO$3,0)) -> - | AA7: =INDEX(【D】NPS!$C$4:$GO$96,MATCH(NPS!$B7,【D】NPS!$B$4:$B$96,0), MATCH(NPS!AA$2&NPS!$R$1,【D】NPS!$C$2:$GO$2&【D】NPS!$C$3:$GO$3,0)) -> - | AB7: =INDEX(【D】NPS!$C$4:$GO$96,MATCH(NPS!$B7,【D】NPS!$B$4:$B$96,0), MATCH(NPS!AB$2&NPS!$R$1,【D】NPS!$C$2:$GO$2&【D】NPS!$C$3:$GO$3,0)) -> - | AC7: =INDEX(【D】NPS!$C$4:$GO$96,MATCH(NPS!$B7,【D】NPS!$B$4:$B$96,0), MATCH(NPS!AC$2&NPS!$R$1,【D】NPS!$C$2:$GO$2&【D】NPS!$C$3:$GO$3,0)) -> - | AD7: =INDEX(【D】NPS!$C$4:$GO$96,MATCH(NPS!$B7,【D】NPS!$B$4:$B$96,0), MATCH(NPS!AD$2&NPS!$R$1,【D】NPS!$C$2:$GO$2&【D】NPS!$C$3:$GO$3,0)) -> - | AE7: =INDEX(【D】NPS!$C$4:$GO$96,MATCH(NPS!$B7,【D】NPS!$B$4:$B$96,0), MATCH(NPS!AE$2&NPS!$R$1,【D】NPS!$C$2:$GO$2&【D】NPS!$C$3:$GO$3,0)) -> 24 | AH7: =INDEX(【D】NPS!$C$4:$GO$96,MATCH(NPS!$B7,【D】NPS!$B$4:$B$96,0), MATCH(NPS!AH$2&NPS!$AG$1,【D】NPS!$C$2:$GO$2&【D】NPS!$C$3:$GO$3,0)) -> 9 | AI7: =INDEX(【D】NPS!$C$4:$GO$96,MATCH(NPS!$B7,【D】NPS!$B$4:$B$96,0), MATCH(NPS!AI$2&NPS!$AG$1,【D】NPS!$C$2:$GO$2&【D】NPS!$C$3:$GO$3,0)) -> 37 | AJ7: =INDEX(【D】NPS!$C$4:$GO$96,MATCH(NPS!$B7,【D】NPS!$B$4:$B$96,0), MATCH(NPS!AJ$2&NPS!$AG$1,【D】NPS!$C$2:$GO$2&【D】NPS!$C$3:$GO$3,0)) -> 38 | AK7: =INDEX(【D】NPS!$C$4:$GO$96,MATCH(NPS!$B7,【D】NPS!$B$4:$B$96,0), MATCH(NPS!AK$2&NPS!$AG$1,【D】NPS!$C$2:$GO$2&【D】NPS!$C$3:$GO$3,0)) -> 43 | AL7: =INDEX(【D】NPS!$C$4:$GO$96,MATCH(NPS!$B7,【D】NPS!$B$4:$B$96,0), MATCH(NPS!AL$2&NPS!$AG$1,【D】NPS!$C$2:$GO$2&【D】NPS!$C$3:$GO$3,0)) -> - | AM7: =INDEX(【D】NPS!$C$4:$GO$96,MATCH(NPS!$B7,【D】NPS!$B$4:$B$96,0), MATCH(NPS!AM$2&NPS!$AG$1,【D】NPS!$C$2:$GO$2&【D】NPS!$C$3:$GO$3,0)) -> - | AN7: =INDEX(【D】NPS!$C$4:$GO$96,MATCH(NPS!$B7,【D】NPS!$B$4:$B$96,0), MATCH(NPS!AN$2&NPS!$AG$1,【D】NPS!$C$2:$GO$2&【D】NPS!$C$3:$GO$3,0)) -> - | AO7: =INDEX(【D】NPS!$C$4:$GO$96,MATCH(NPS!$B7,【D】NPS!$B$4:$B$96,0), MATCH(NPS!AO$2&NPS!$AG$1,【D】NPS!$C$2:$GO$2&【D】NPS!$C$3:$GO$3,0)) -> - | AP7: =INDEX(【D】NPS!$C$4:$GO$96,MATCH(NPS!$B7,【D】NPS!$B$4:$B$96,0), MATCH(NPS!AP$2&NPS!$AG$1,【D】NPS!$C$2:$GO$2&【D】NPS!$C$3:$GO$3,0)) -> - | AQ7: =INDEX(【D】NPS!$C$4:$GO$96,MATCH(NPS!$B7,【D】NPS!$B$4:$B$96,0), MATCH(NPS!AQ$2&NPS!$AG$1,【D】NPS!$C$2:$GO$2&【D】NPS!$C$3:$GO$3,0)) -> - | AR7: =INDEX(【D】NPS!$C$4:$GO$96,MATCH(NPS!$B7,【D】NPS!$B$4:$B$96,0), MATCH(NPS!AR$2&NPS!$AG$1,【D】NPS!$C$2:$GO$2&【D】NPS!$C$3:$GO$3,0)) -> - | AS7: =INDEX(【D】NPS!$C$4:$GO$96,MATCH(NPS!$B7,【D】NPS!$B$4:$B$96,0), MATCH(NPS!AS$2&NPS!$AG$1,【D】NPS!$C$2:$GO$2&【D】NPS!$C$3:$GO$3,0)) -> - | AT7: =INDEX(【D】NPS!$C$4:$GO$96,MATCH(NPS!$B7,【D】NPS!$B$4:$B$96,0), MATCH(NPS!AT$2&NPS!$AG$1,【D】NPS!$C$2:$GO$2&【D】NPS!$C$3:$GO$3,0)) -> 24 | AV7: 5 | AW7: 4 | AX7: 赤礁崎オートキャンプ場 エリア | AY7: 50 | AZ7: =INDEX(【D】NPS!$C$7:$HB$96, MATCH(NPS!$AX7,【D】NPS!$B$7:$B$96,0), MATCH(NPS!$AZ$2&NPS!$AW$1,【D】NPS!$C$1:$HB$1&【D】NPS!$C$2:$HB$2,0)) -> 2
B8: 北ノ庄 エリア | D8: =INDEX(【D】NPS!$C$4:$GO$96,MATCH(NPS!$B8,【D】NPS!$B$4:$B$96,0), MATCH(NPS!D$2&NPS!$C$1,【D】NPS!$C$2:$GO$2&【D】NPS!$C$3:$GO$3,0)) -> 7.142857143 | E8: =INDEX(【D】NPS!$C$4:$GO$96,MATCH(NPS!$B8,【D】NPS!$B$4:$B$96,0), MATCH(NPS!E$2&NPS!$C$1,【D】NPS!$C$2:$GO$2&【D】NPS!$C$3:$GO$3,0)) -> -18.18181818 | F8: =INDEX(【D】NPS!$C$4:$GO$96,MATCH(NPS!$B8,【D】NPS!$B$4:$B$96,0), MATCH(NPS!F$2&NPS!$C$1,【D】NPS!$C$2:$GO$2&【D】NPS!$C$3:$GO$3,0)) -> 0 | G8: =INDEX(【D】NPS!$C$4:$GO$96,MATCH(NPS!$B8,【D】NPS!$B$4:$B$96,0), MATCH(NPS!G$2&NPS!$C$1,【D】NPS!$C$2:$GO$2&【D】NPS!$C$3:$GO$3,0)) -> 0 | H8: =INDEX(【D】NPS!$C$4:$GO$96,MATCH(NPS!$B8,【D】NPS!$B$4:$B$96,0), MATCH(NPS!H$2&NPS!$C$1,【D】NPS!$C$2:$GO$2&【D】NPS!$C$3:$GO$3,0)) -> None | I8: =INDEX(【D】NPS!$C$4:$GO$96,MATCH(NPS!$B8,【D】NPS!$B$4:$B$96,0), MATCH(NPS!I$2&NPS!$C$1,【D】NPS!$C$2:$GO$2&【D】NPS!$C$3:$GO$3,0)) -> None | J8: =INDEX(【D】NPS!$C$4:$GO$96,MATCH(NPS!$B8,【D】NPS!$B$4:$B$96,0), MATCH(NPS!J$2&NPS!$C$1,【D】NPS!$C$2:$GO$2&【D】NPS!$C$3:$GO$3,0)) -> None | K8: =INDEX(【D】NPS!$C$4:$GO$96,MATCH(NPS!$B8,【D】NPS!$B$4:$B$96,0), MATCH(NPS!K$2&NPS!$C$1,【D】NPS!$C$2:$GO$2&【D】NPS!$C$3:$GO$3,0)) -> None | L8: =INDEX(【D】NPS!$C$4:$GO$96,MATCH(NPS!$B8,【D】NPS!$B$4:$B$96,0), MATCH(NPS!L$2&NPS!$C$1,【D】NPS!$C$2:$GO$2&【D】NPS!$C$3:$GO$3,0)) -> None | M8: =INDEX(【D】NPS!$C$4:$GO$96,MATCH(NPS!$B8,【D】NPS!$B$4:$B$96,0), MATCH(NPS!M$2&NPS!$C$1,【D】NPS!$C$2:$GO$2&【D】NPS!$C$3:$GO$3,0)) -> None | N8: =INDEX(【D】NPS!$C$4:$GO$96,MATCH(NPS!$B8,【D】NPS!$B$4:$B$96,0), MATCH(NPS!N$2&NPS!$C$1,【D】NPS!$C$2:$GO$2&【D】NPS!$C$3:$GO$3,0)) -> None | O8: =INDEX(【D】NPS!$C$4:$GO$96,MATCH(NPS!$B8,【D】NPS!$B$4:$B$96,0), MATCH(NPS!O$2&NPS!$C$1,【D】NPS!$C$2:$GO$2&【D】NPS!$C$3:$GO$3,0)) -> None | P8: =INDEX(【D】NPS!$C$4:$GO$96,MATCH(NPS!$B8,【D】NPS!$B$4:$B$96,0), MATCH(NPS!P$2&NPS!$C$1,【D】NPS!$C$2:$GO$2&【D】NPS!$C$3:$GO$3,0)) -> -2.272727273 | S8: =INDEX(【D】NPS!$C$4:$GO$96,MATCH(NPS!$B8,【D】NPS!$B$4:$B$96,0), MATCH(NPS!S$2&NPS!$R$1,【D】NPS!$C$2:$GO$2&【D】NPS!$C$3:$GO$3,0)) -> 43 | T8: =INDEX(【D】NPS!$C$4:$GO$96,MATCH(NPS!$B8,【D】NPS!$B$4:$B$96,0), MATCH(NPS!T$2&NPS!$R$1,【D】NPS!$C$2:$GO$2&【D】NPS!$C$3:$GO$3,0)) -> 74 | U8: =INDEX(【D】NPS!$C$4:$GO$96,MATCH(NPS!$B8,【D】NPS!$B$4:$B$96,0), MATCH(NPS!U$2&NPS!$R$1,【D】NPS!$C$2:$GO$2&【D】NPS!$C$3:$GO$3,0)) -> 48 | V8: =INDEX(【D】NPS!$C$4:$GO$96,MATCH(NPS!$B8,【D】NPS!$B$4:$B$96,0), MATCH(NPS!V$2&NPS!$R$1,【D】NPS!$C$2:$GO$2&【D】NPS!$C$3:$GO$3,0)) -> 54 | W8: =INDEX(【D】NPS!$C$4:$GO$96,MATCH(NPS!$B8,【D】NPS!$B$4:$B$96,0), MATCH(NPS!W$2&NPS!$R$1,【D】NPS!$C$2:$GO$2&【D】NPS!$C$3:$GO$3,0)) -> - | X8: =INDEX(【D】NPS!$C$4:$GO$96,MATCH(NPS!$B8,【D】NPS!$B$4:$B$96,0), MATCH(NPS!X$2&NPS!$R$1,【D】NPS!$C$2:$GO$2&【D】NPS!$C$3:$GO$3,0)) -> - | Y8: =INDEX(【D】NPS!$C$4:$GO$96,MATCH(NPS!$B8,【D】NPS!$B$4:$B$96,0), MATCH(NPS!Y$2&NPS!$R$1,【D】NPS!$C$2:$GO$2&【D】NPS!$C$3:$GO$3,0)) -> - | Z8: =INDEX(【D】NPS!$C$4:$GO$96,MATCH(NPS!$B8,【D】NPS!$B$4:$B$96,0), MATCH(NPS!Z$2&NPS!$R$1,【D】NPS!$C$2:$GO$2&【D】NPS!$C$3:$GO$3,0)) -> - | AA8: =INDEX(【D】NPS!$C$4:$GO$96,MATCH(NPS!$B8,【D】NPS!$B$4:$B$96,0), MATCH(NPS!AA$2&NPS!$R$1,【D】NPS!$C$2:$GO$2&【D】NPS!$C$3:$GO$3,0)) -> - | AB8: =INDEX(【D】NPS!$C$4:$GO$96,MATCH(NPS!$B8,【D】NPS!$B$4:$B$96,0), MATCH(NPS!AB$2&NPS!$R$1,【D】NPS!$C$2:$GO$2&【D】NPS!$C$3:$GO$3,0)) -> - | AC8: =INDEX(【D】NPS!$C$4:$GO$96,MATCH(NPS!$B8,【D】NPS!$B$4:$B$96,0), MATCH(NPS!AC$2&NPS!$R$1,【D】NPS!$C$2:$GO$2&【D】NPS!$C$3:$GO$3,0)) -> - | AD8: =INDEX(【D】NPS!$C$4:$GO$96,MATCH(NPS!$B8,【D】NPS!$B$4:$B$96,0), MATCH(NPS!AD$2&NPS!$R$1,【D】NPS!$C$2:$GO$2&【D】NPS!$C$3:$GO$3,0)) -> - | AE8: =INDEX(【D】NPS!$C$4:$GO$96,MATCH(NPS!$B8,【D】NPS!$B$4:$B$96,0), MATCH(NPS!AE$2&NPS!$R$1,【D】NPS!$C$2:$GO$2&【D】NPS!$C$3:$GO$3,0)) -> 72 | AH8: =INDEX(【D】NPS!$C$4:$GO$96,MATCH(NPS!$B8,【D】NPS!$B$4:$B$96,0), MATCH(NPS!AH$2&NPS!$AG$1,【D】NPS!$C$2:$GO$2&【D】NPS!$C$3:$GO$3,0)) -> 43 | AI8: =INDEX(【D】NPS!$C$4:$GO$96,MATCH(NPS!$B8,【D】NPS!$B$4:$B$96,0), MATCH(NPS!AI$2&NPS!$AG$1,【D】NPS!$C$2:$GO$2&【D】NPS!$C$3:$GO$3,0)) -> 74 | AJ8: =INDEX(【D】NPS!$C$4:$GO$96,MATCH(NPS!$B8,【D】NPS!$B$4:$B$96,0), MATCH(NPS!AJ$2&NPS!$AG$1,【D】NPS!$C$2:$GO$2&【D】NPS!$C$3:$GO$3,0)) -> 59 | AK8: =INDEX(【D】NPS!$C$4:$GO$96,MATCH(NPS!$B8,【D】NPS!$B$4:$B$96,0), MATCH(NPS!AK$2&NPS!$AG$1,【D】NPS!$C$2:$GO$2&【D】NPS!$C$3:$GO$3,0)) -> 66 | AL8: =INDEX(【D】NPS!$C$4:$GO$96,MATCH(NPS!$B8,【D】NPS!$B$4:$B$96,0), MATCH(NPS!AL$2&NPS!$AG$1,【D】NPS!$C$2:$GO$2&【D】NPS!$C$3:$GO$3,0)) -> - | AM8: =INDEX(【D】NPS!$C$4:$GO$96,MATCH(NPS!$B8,【D】NPS!$B$4:$B$96,0), MATCH(NPS!AM$2&NPS!$AG$1,【D】NPS!$C$2:$GO$2&【D】NPS!$C$3:$GO$3,0)) -> - | AN8: =INDEX(【D】NPS!$C$4:$GO$96,MATCH(NPS!$B8,【D】NPS!$B$4:$B$96,0), MATCH(NPS!AN$2&NPS!$AG$1,【D】NPS!$C$2:$GO$2&【D】NPS!$C$3:$GO$3,0)) -> - | AO8: =INDEX(【D】NPS!$C$4:$GO$96,MATCH(NPS!$B8,【D】NPS!$B$4:$B$96,0), MATCH(NPS!AO$2&NPS!$AG$1,【D】NPS!$C$2:$GO$2&【D】NPS!$C$3:$GO$3,0)) -> - | AP8: =INDEX(【D】NPS!$C$4:$GO$96,MATCH(NPS!$B8,【D】NPS!$B$4:$B$96,0), MATCH(NPS!AP$2&NPS!$AG$1,【D】NPS!$C$2:$GO$2&【D】NPS!$C$3:$GO$3,0)) -> - | AQ8: =INDEX(【D】NPS!$C$4:$GO$96,MATCH(NPS!$B8,【D】NPS!$B$4:$B$96,0), MATCH(NPS!AQ$2&NPS!$AG$1,【D】NPS!$C$2:$GO$2&【D】NPS!$C$3:$GO$3,0)) -> - | AR8: =INDEX(【D】NPS!$C$4:$GO$96,MATCH(NPS!$B8,【D】NPS!$B$4:$B$96,0), MATCH(NPS!AR$2&NPS!$AG$1,【D】NPS!$C$2:$GO$2&【D】NPS!$C$3:$GO$3,0)) -> - | AS8: =INDEX(【D】NPS!$C$4:$GO$96,MATCH(NPS!$B8,【D】NPS!$B$4:$B$96,0), MATCH(NPS!AS$2&NPS!$AG$1,【D】NPS!$C$2:$GO$2&【D】NPS!$C$3:$GO$3,0)) -> - | AT8: =INDEX(【D】NPS!$C$4:$GO$96,MATCH(NPS!$B8,【D】NPS!$B$4:$B$96,0), MATCH(NPS!AT$2&NPS!$AG$1,【D】NPS!$C$2:$GO$2&【D】NPS!$C$3:$GO$3,0)) -> 72 | AV8: 6 | AW8: 6 | AX8: 道の駅「越前」 エリア | AY8: 48.14814815 | AZ8: =INDEX(【D】NPS!$C$7:$HB$96, MATCH(NPS!$AX8,【D】NPS!$B$7:$B$96,0), MATCH(NPS!$AZ$2&NPS!$AW$1,【D】NPS!$C$1:$HB$1&【D】NPS!$C$2:$HB$2,0)) -> 27
B9: 名勝 養浩館庭園 エリア | D9: =INDEX(【D】NPS!$C$4:$GO$96,MATCH(NPS!$B9,【D】NPS!$B$4:$B$96,0), MATCH(NPS!D$2&NPS!$C$1,【D】NPS!$C$2:$GO$2&【D】NPS!$C$3:$GO$3,0)) -> 28.57142857 | E9: =INDEX(【D】NPS!$C$4:$GO$96,MATCH(NPS!$B9,【D】NPS!$B$4:$B$96,0), MATCH(NPS!E$2&NPS!$C$1,【D】NPS!$C$2:$GO$2&【D】NPS!$C$3:$GO$3,0)) -> 4.347826087 | F9: =INDEX(【D】NPS!$C$4:$GO$96,MATCH(NPS!$B9,【D】NPS!$B$4:$B$96,0), MATCH(NPS!F$2&NPS!$C$1,【D】NPS!$C$2:$GO$2&【D】NPS!$C$3:$GO$3,0)) -> 15.78947368 | G9: =INDEX(【D】NPS!$C$4:$GO$96,MATCH(NPS!$B9,【D】NPS!$B$4:$B$96,0), MATCH(NPS!G$2&NPS!$C$1,【D】NPS!$C$2:$GO$2&【D】NPS!$C$3:$GO$3,0)) -> 25 | H9: =INDEX(【D】NPS!$C$4:$GO$96,MATCH(NPS!$B9,【D】NPS!$B$4:$B$96,0), MATCH(NPS!H$2&NPS!$C$1,【D】NPS!$C$2:$GO$2&【D】NPS!$C$3:$GO$3,0)) -> None | I9: =INDEX(【D】NPS!$C$4:$GO$96,MATCH(NPS!$B9,【D】NPS!$B$4:$B$96,0), MATCH(NPS!I$2&NPS!$C$1,【D】NPS!$C$2:$GO$2&【D】NPS!$C$3:$GO$3,0)) -> None | J9: =INDEX(【D】NPS!$C$4:$GO$96,MATCH(NPS!$B9,【D】NPS!$B$4:$B$96,0), MATCH(NPS!J$2&NPS!$C$1,【D】NPS!$C$2:$GO$2&【D】NPS!$C$3:$GO$3,0)) -> None | K9: =INDEX(【D】NPS!$C$4:$GO$96,MATCH(NPS!$B9,【D】NPS!$B$4:$B$96,0), MATCH(NPS!K$2&NPS!$C$1,【D】NPS!$C$2:$GO$2&【D】NPS!$C$3:$GO$3,0)) -> None | L9: =INDEX(【D】NPS!$C$4:$GO$96,MATCH(NPS!$B9,【D】NPS!$B$4:$B$96,0), MATCH(NPS!L$2&NPS!$C$1,【D】NPS!$C$2:$GO$2&【D】NPS!$C$3:$GO$3,0)) -> None | M9: =INDEX(【D】NPS!$C$4:$GO$96,MATCH(NPS!$B9,【D】NPS!$B$4:$B$96,0), MATCH(NPS!M$2&NPS!$C$1,【D】NPS!$C$2:$GO$2&【D】NPS!$C$3:$GO$3,0)) -> None | N9: =INDEX(【D】NPS!$C$4:$GO$96,MATCH(NPS!$B9,【D】NPS!$B$4:$B$96,0), MATCH(NPS!N$2&NPS!$C$1,【D】NPS!$C$2:$GO$2&【D】NPS!$C$3:$GO$3,0)) -> None | O9: =INDEX(【D】NPS!$C$4:$GO$96,MATCH(NPS!$B9,【D】NPS!$B$4:$B$96,0), MATCH(NPS!O$2&NPS!$C$1,【D】NPS!$C$2:$GO$2&【D】NPS!$C$3:$GO$3,0)) -> None | P9: =INDEX(【D】NPS!$C$4:$GO$96,MATCH(NPS!$B9,【D】NPS!$B$4:$B$96,0), MATCH(NPS!P$2&NPS!$C$1,【D】NPS!$C$2:$GO$2&【D】NPS!$C$3:$GO$3,0)) -> 16.17647059 | S9: =INDEX(【D】NPS!$C$4:$GO$96,MATCH(NPS!$B9,【D】NPS!$B$4:$B$96,0), MATCH(NPS!S$2&NPS!$R$1,【D】NPS!$C$2:$GO$2&【D】NPS!$C$3:$GO$3,0)) -> 18 | T9: =INDEX(【D】NPS!$C$4:$GO$96,MATCH(NPS!$B9,【D】NPS!$B$4:$B$96,0), MATCH(NPS!T$2&NPS!$R$1,【D】NPS!$C$2:$GO$2&【D】NPS!$C$3:$GO$3,0)) -> 49 | U9: =INDEX(【D】NPS!$C$4:$GO$96,MATCH(NPS!$B9,【D】NPS!$B$4:$B$96,0), MATCH(NPS!U$2&NPS!$R$1,【D】NPS!$C$2:$GO$2&【D】NPS!$C$3:$GO$3,0)) -> 29 | V9: =INDEX(【D】NPS!$C$4:$GO$96,MATCH(NPS!$B9,【D】NPS!$B$4:$B$96,0), MATCH(NPS!V$2&NPS!$R$1,【D】NPS!$C$2:$GO$2&【D】NPS!$C$3:$GO$3,0)) -> 20 | W9: =INDEX(【D】NPS!$C$4:$GO$96,MATCH(NPS!$B9,【D】NPS!$B$4:$B$96,0), MATCH(NPS!W$2&NPS!$R$1,【D】NPS!$C$2:$GO$2&【D】NPS!$C$3:$GO$3,0)) -> - | X9: =INDEX(【D】NPS!$C$4:$GO$96,MATCH(NPS!$B9,【D】NPS!$B$4:$B$96,0), MATCH(NPS!X$2&NPS!$R$1,【D】NPS!$C$2:$GO$2&【D】NPS!$C$3:$GO$3,0)) -> - | Y9: =INDEX(【D】NPS!$C$4:$GO$96,MATCH(NPS!$B9,【D】NPS!$B$4:$B$96,0), MATCH(NPS!Y$2&NPS!$R$1,【D】NPS!$C$2:$GO$2&【D】NPS!$C$3:$GO$3,0)) -> - | Z9: =INDEX(【D】NPS!$C$4:$GO$96,MATCH(NPS!$B9,【D】NPS!$B$4:$B$96,0), MATCH(NPS!Z$2&NPS!$R$1,【D】NPS!$C$2:$GO$2&【D】NPS!$C$3:$GO$3,0)) -> - | AA9: =INDEX(【D】NPS!$C$4:$GO$96,MATCH(NPS!$B9,【D】NPS!$B$4:$B$96,0), MATCH(NPS!AA$2&NPS!$R$1,【D】NPS!$C$2:$GO$2&【D】NPS!$C$3:$GO$3,0)) -> - | AB9: =INDEX(【D】NPS!$C$4:$GO$96,MATCH(NPS!$B9,【D】NPS!$B$4:$B$96,0), MATCH(NPS!AB$2&NPS!$R$1,【D】NPS!$C$2:$GO$2&【D】NPS!$C$3:$GO$3,0)) -> - | AC9: =INDEX(【D】NPS!$C$4:$GO$96,MATCH(NPS!$B9,【D】NPS!$B$4:$B$96,0), MATCH(NPS!AC$2&NPS!$R$1,【D】NPS!$C$2:$GO$2&【D】NPS!$C$3:$GO$3,0)) -> - | AD9: =INDEX(【D】NPS!$C$4:$GO$96,MATCH(NPS!$B9,【D】NPS!$B$4:$B$96,0), MATCH(NPS!AD$2&NPS!$R$1,【D】NPS!$C$2:$GO$2&【D】NPS!$C$3:$GO$3,0)) -> - | AE9: =INDEX(【D】NPS!$C$4:$GO$96,MATCH(NPS!$B9,【D】NPS!$B$4:$B$96,0), MATCH(NPS!AE$2&NPS!$R$1,【D】NPS!$C$2:$GO$2&【D】NPS!$C$3:$GO$3,0)) -> 28 | AH9: =INDEX(【D】NPS!$C$4:$GO$96,MATCH(NPS!$B9,【D】NPS!$B$4:$B$96,0), MATCH(NPS!AH$2&NPS!$AG$1,【D】NPS!$C$2:$GO$2&【D】NPS!$C$3:$GO$3,0)) -> 19 | AI9: =INDEX(【D】NPS!$C$4:$GO$96,MATCH(NPS!$B9,【D】NPS!$B$4:$B$96,0), MATCH(NPS!AI$2&NPS!$AG$1,【D】NPS!$C$2:$GO$2&【D】NPS!$C$3:$GO$3,0)) -> 49 | AJ9: =INDEX(【D】NPS!$C$4:$GO$96,MATCH(NPS!$B9,【D】NPS!$B$4:$B$96,0), MATCH(NPS!AJ$2&NPS!$AG$1,【D】NPS!$C$2:$GO$2&【D】NPS!$C$3:$GO$3,0)) -> 29 | AK9: =INDEX(【D】NPS!$C$4:$GO$96,MATCH(NPS!$B9,【D】NPS!$B$4:$B$96,0), MATCH(NPS!AK$2&NPS!$AG$1,【D】NPS!$C$2:$GO$2&【D】NPS!$C$3:$GO$3,0)) -> 20 | AL9: =INDEX(【D】NPS!$C$4:$GO$96,MATCH(NPS!$B9,【D】NPS!$B$4:$B$96,0), MATCH(NPS!AL$2&NPS!$AG$1,【D】NPS!$C$2:$GO$2&【D】NPS!$C$3:$GO$3,0)) -> - | AM9: =INDEX(【D】NPS!$C$4:$GO$96,MATCH(NPS!$B9,【D】NPS!$B$4:$B$96,0), MATCH(NPS!AM$2&NPS!$AG$1,【D】NPS!$C$2:$GO$2&【D】NPS!$C$3:$GO$3,0)) -> - | AN9: =INDEX(【D】NPS!$C$4:$GO$96,MATCH(NPS!$B9,【D】NPS!$B$4:$B$96,0), MATCH(NPS!AN$2&NPS!$AG$1,【D】NPS!$C$2:$GO$2&【D】NPS!$C$3:$GO$3,0)) -> - | AO9: =INDEX(【D】NPS!$C$4:$GO$96,MATCH(NPS!$B9,【D】NPS!$B$4:$B$96,0), MATCH(NPS!AO$2&NPS!$AG$1,【D】NPS!$C$2:$GO$2&【D】NPS!$C$3:$GO$3,0)) -> - | AP9: =INDEX(【D】NPS!$C$4:$GO$96,MATCH(NPS!$B9,【D】NPS!$B$4:$B$96,0), MATCH(NPS!AP$2&NPS!$AG$1,【D】NPS!$C$2:$GO$2&【D】NPS!$C$3:$GO$3,0)) -> - | AQ9: =INDEX(【D】NPS!$C$4:$GO$96,MATCH(NPS!$B9,【D】NPS!$B$4:$B$96,0), MATCH(NPS!AQ$2&NPS!$AG$1,【D】NPS!$C$2:$GO$2&【D】NPS!$C$3:$GO$3,0)) -> - | AR9: =INDEX(【D】NPS!$C$4:$GO$96,MATCH(NPS!$B9,【D】NPS!$B$4:$B$96,0), MATCH(NPS!AR$2&NPS!$AG$1,【D】NPS!$C$2:$GO$2&【D】NPS!$C$3:$GO$3,0)) -> - | AS9: =INDEX(【D】NPS!$C$4:$GO$96,MATCH(NPS!$B9,【D】NPS!$B$4:$B$96,0), MATCH(NPS!AS$2&NPS!$AG$1,【D】NPS!$C$2:$GO$2&【D】NPS!$C$3:$GO$3,0)) -> - | AT9: =INDEX(【D】NPS!$C$4:$GO$96,MATCH(NPS!$B9,【D】NPS!$B$4:$B$96,0), MATCH(NPS!AT$2&NPS!$AG$1,【D】NPS!$C$2:$GO$2&【D】NPS!$C$3:$GO$3,0)) -> 28 | AV9: 7 | AW9: 7 | AX9: レインボーライン エリア | AY9: 46.66666667 | AZ9: =INDEX(【D】NPS!$C$7:$HB$96, MATCH(NPS!$AX9,【D】NPS!$B$7:$B$96,0), MATCH(NPS!$AZ$2&NPS!$AW$1,【D】NPS!$C$1:$HB$1&【D】NPS!$C$2:$HB$2,0)) -> 30
B10: ふくい鮮いちば エリア | D10: =INDEX(【D】NPS!$C$4:$GO$96,MATCH(NPS!$B10,【D】NPS!$B$4:$B$96,0), MATCH(NPS!D$2&NPS!$C$1,【D】NPS!$C$2:$GO$2&【D】NPS!$C$3:$GO$3,0)) -> 17.85714286 | E10: =INDEX(【D】NPS!$C$4:$GO$96,MATCH(NPS!$B10,【D】NPS!$B$4:$B$96,0), MATCH(NPS!E$2&NPS!$C$1,【D】NPS!$C$2:$GO$2&【D】NPS!$C$3:$GO$3,0)) -> -23.52941176 | F10: =INDEX(【D】NPS!$C$4:$GO$96,MATCH(NPS!$B10,【D】NPS!$B$4:$B$96,0), MATCH(NPS!F$2&NPS!$C$1,【D】NPS!$C$2:$GO$2&【D】NPS!$C$3:$GO$3,0)) -> 14.28571429 | G10: =INDEX(【D】NPS!$C$4:$GO$96,MATCH(NPS!$B10,【D】NPS!$B$4:$B$96,0), MATCH(NPS!G$2&NPS!$C$1,【D】NPS!$C$2:$GO$2&【D】NPS!$C$3:$GO$3,0)) -> 20 | H10: =INDEX(【D】NPS!$C$4:$GO$96,MATCH(NPS!$B10,【D】NPS!$B$4:$B$96,0), MATCH(NPS!H$2&NPS!$C$1,【D】NPS!$C$2:$GO$2&【D】NPS!$C$3:$GO$3,0)) -> None | I10: =INDEX(【D】NPS!$C$4:$GO$96,MATCH(NPS!$B10,【D】NPS!$B$4:$B$96,0), MATCH(NPS!I$2&NPS!$C$1,【D】NPS!$C$2:$GO$2&【D】NPS!$C$3:$GO$3,0)) -> None | J10: =INDEX(【D】NPS!$C$4:$GO$96,MATCH(NPS!$B10,【D】NPS!$B$4:$B$96,0), MATCH(NPS!J$2&NPS!$C$1,【D】NPS!$C$2:$GO$2&【D】NPS!$C$3:$GO$3,0)) -> None | K10: =INDEX(【D】NPS!$C$4:$GO$96,MATCH(NPS!$B10,【D】NPS!$B$4:$B$96,0), MATCH(NPS!K$2&NPS!$C$1,【D】NPS!$C$2:$GO$2&【D】NPS!$C$3:$GO$3,0)) -> None | L10: =INDEX(【D】NPS!$C$4:$GO$96,MATCH(NPS!$B10,【D】NPS!$B$4:$B$96,0), MATCH(NPS!L$2&NPS!$C$1,【D】NPS!$C$2:$GO$2&【D】NPS!$C$3:$GO$3,0)) -> None | M10: =INDEX(【D】NPS!$C$4:$GO$96,MATCH(NPS!$B10,【D】NPS!$B$4:$B$96,0), MATCH(NPS!M$2&NPS!$C$1,【D】NPS!$C$2:$GO$2&【D】NPS!$C$3:$GO$3,0)) -> None | N10: =INDEX(【D】NPS!$C$4:$GO$96,MATCH(NPS!$B10,【D】NPS!$B$4:$B$96,0), MATCH(NPS!N$2&NPS!$C$1,【D】NPS!$C$2:$GO$2&【D】NPS!$C$3:$GO$3,0)) -> None | O10: =INDEX(【D】NPS!$C$4:$GO$96,MATCH(NPS!$B10,【D】NPS!$B$4:$B$96,0), MATCH(NPS!O$2&NPS!$C$1,【D】NPS!$C$2:$GO$2&【D】NPS!$C$3:$GO$3,0)) -> None | P10: =INDEX(【D】NPS!$C$4:$GO$96,MATCH(NPS!$B10,【D】NPS!$B$4:$B$96,0), MATCH(NPS!P$2&NPS!$C$1,【D】NPS!$C$2:$GO$2&【D】NPS!$C$3:$GO$3,0)) -> 8.108108108 | S10: =INDEX(【D】NPS!$C$4:$GO$96,MATCH(NPS!$B10,【D】NPS!$B$4:$B$96,0), MATCH(NPS!S$2&NPS!$R$1,【D】NPS!$C$2:$GO$2&【D】NPS!$C$3:$GO$3,0)) -> 29 | T10: =INDEX(【D】NPS!$C$4:$GO$96,MATCH(NPS!$B10,【D】NPS!$B$4:$B$96,0), MATCH(NPS!T$2&NPS!$R$1,【D】NPS!$C$2:$GO$2&【D】NPS!$C$3:$GO$3,0)) -> 78 | U10: =INDEX(【D】NPS!$C$4:$GO$96,MATCH(NPS!$B10,【D】NPS!$B$4:$B$96,0), MATCH(NPS!U$2&NPS!$R$1,【D】NPS!$C$2:$GO$2&【D】NPS!$C$3:$GO$3,0)) -> 33 | V10: =INDEX(【D】NPS!$C$4:$GO$96,MATCH(NPS!$B10,【D】NPS!$B$4:$B$96,0), MATCH(NPS!V$2&NPS!$R$1,【D】NPS!$C$2:$GO$2&【D】NPS!$C$3:$GO$3,0)) -> 28 | W10: =INDEX(【D】NPS!$C$4:$GO$96,MATCH(NPS!$B10,【D】NPS!$B$4:$B$96,0), MATCH(NPS!W$2&NPS!$R$1,【D】NPS!$C$2:$GO$2&【D】NPS!$C$3:$GO$3,0)) -> - | X10: =INDEX(【D】NPS!$C$4:$GO$96,MATCH(NPS!$B10,【D】NPS!$B$4:$B$96,0), MATCH(NPS!X$2&NPS!$R$1,【D】NPS!$C$2:$GO$2&【D】NPS!$C$3:$GO$3,0)) -> - | Y10: =INDEX(【D】NPS!$C$4:$GO$96,MATCH(NPS!$B10,【D】NPS!$B$4:$B$96,0), MATCH(NPS!Y$2&NPS!$R$1,【D】NPS!$C$2:$GO$2&【D】NPS!$C$3:$GO$3,0)) -> - | Z10: =INDEX(【D】NPS!$C$4:$GO$96,MATCH(NPS!$B10,【D】NPS!$B$4:$B$96,0), MATCH(NPS!Z$2&NPS!$R$1,【D】NPS!$C$2:$GO$2&【D】NPS!$C$3:$GO$3,0)) -> - | AA10: =INDEX(【D】NPS!$C$4:$GO$96,MATCH(NPS!$B10,【D】NPS!$B$4:$B$96,0), MATCH(NPS!AA$2&NPS!$R$1,【D】NPS!$C$2:$GO$2&【D】NPS!$C$3:$GO$3,0)) -> - | AB10: =INDEX(【D】NPS!$C$4:$GO$96,MATCH(NPS!$B10,【D】NPS!$B$4:$B$96,0), MATCH(NPS!AB$2&NPS!$R$1,【D】NPS!$C$2:$GO$2&【D】NPS!$C$3:$GO$3,0)) -> - | AC10: =INDEX(【D】NPS!$C$4:$GO$96,MATCH(NPS!$B10,【D】NPS!$B$4:$B$96,0), MATCH(NPS!AC$2&NPS!$R$1,【D】NPS!$C$2:$GO$2&【D】NPS!$C$3:$GO$3,0)) -> - | AD10: =INDEX(【D】NPS!$C$4:$GO$96,MATCH(NPS!$B10,【D】NPS!$B$4:$B$96,0), MATCH(NPS!AD$2&NPS!$R$1,【D】NPS!$C$2:$GO$2&【D】NPS!$C$3:$GO$3,0)) -> - | AE10: =INDEX(【D】NPS!$C$4:$GO$96,MATCH(NPS!$B10,【D】NPS!$B$4:$B$96,0), MATCH(NPS!AE$2&NPS!$R$1,【D】NPS!$C$2:$GO$2&【D】NPS!$C$3:$GO$3,0)) -> 46 | AH10: =INDEX(【D】NPS!$C$4:$GO$96,MATCH(NPS!$B10,【D】NPS!$B$4:$B$96,0), MATCH(NPS!AH$2&NPS!$AG$1,【D】NPS!$C$2:$GO$2&【D】NPS!$C$3:$GO$3,0)) -> 29 | AI10: =INDEX(【D】NPS!$C$4:$GO$96,MATCH(NPS!$B10,【D】NPS!$B$4:$B$96,0), MATCH(NPS!AI$2&NPS!$AG$1,【D】NPS!$C$2:$GO$2&【D】NPS!$C$3:$GO$3,0)) -> 78 | AJ10: =INDEX(【D】NPS!$C$4:$GO$96,MATCH(NPS!$B10,【D】NPS!$B$4:$B$96,0), MATCH(NPS!AJ$2&NPS!$AG$1,【D】NPS!$C$2:$GO$2&【D】NPS!$C$3:$GO$3,0)) -> 33 | AK10: =INDEX(【D】NPS!$C$4:$GO$96,MATCH(NPS!$B10,【D】NPS!$B$4:$B$96,0), MATCH(NPS!AK$2&NPS!$AG$1,【D】NPS!$C$2:$GO$2&【D】NPS!$C$3:$GO$3,0)) -> 28 | AL10: =INDEX(【D】NPS!$C$4:$GO$96,MATCH(NPS!$B10,【D】NPS!$B$4:$B$96,0), MATCH(NPS!AL$2&NPS!$AG$1,【D】NPS!$C$2:$GO$2&【D】NPS!$C$3:$GO$3,0)) -> - | AM10: =INDEX(【D】NPS!$C$4:$GO$96,MATCH(NPS!$B10,【D】NPS!$B$4:$B$96,0), MATCH(NPS!AM$2&NPS!$AG$1,【D】NPS!$C$2:$GO$2&【D】NPS!$C$3:$GO$3,0)) -> - | AN10: =INDEX(【D】NPS!$C$4:$GO$96,MATCH(NPS!$B10,【D】NPS!$B$4:$B$96,0), MATCH(NPS!AN$2&NPS!$AG$1,【D】NPS!$C$2:$GO$2&【D】NPS!$C$3:$GO$3,0)) -> - | AO10: =INDEX(【D】NPS!$C$4:$GO$96,MATCH(NPS!$B10,【D】NPS!$B$4:$B$96,0), MATCH(NPS!AO$2&NPS!$AG$1,【D】NPS!$C$2:$GO$2&【D】NPS!$C$3:$GO$3,0)) -> - | AP10: =INDEX(【D】NPS!$C$4:$GO$96,MATCH(NPS!$B10,【D】NPS!$B$4:$B$96,0), MATCH(NPS!AP$2&NPS!$AG$1,【D】NPS!$C$2:$GO$2&【D】NPS!$C$3:$GO$3,0)) -> - | AQ10: =INDEX(【D】NPS!$C$4:$GO$96,MATCH(NPS!$B10,【D】NPS!$B$4:$B$96,0), MATCH(NPS!AQ$2&NPS!$AG$1,【D】NPS!$C$2:$GO$2&【D】NPS!$C$3:$GO$3,0)) -> - | AR10: =INDEX(【D】NPS!$C$4:$GO$96,MATCH(NPS!$B10,【D】NPS!$B$4:$B$96,0), MATCH(NPS!AR$2&NPS!$AG$1,【D】NPS!$C$2:$GO$2&【D】NPS!$C$3:$GO$3,0)) -> - | AS10: =INDEX(【D】NPS!$C$4:$GO$96,MATCH(NPS!$B10,【D】NPS!$B$4:$B$96,0), MATCH(NPS!AS$2&NPS!$AG$1,【D】NPS!$C$2:$GO$2&【D】NPS!$C$3:$GO$3,0)) -> - | AT10: =INDEX(【D】NPS!$C$4:$GO$96,MATCH(NPS!$B10,【D】NPS!$B$4:$B$96,0), MATCH(NPS!AT$2&NPS!$AG$1,【D】NPS!$C$2:$GO$2&【D】NPS!$C$3:$GO$3,0)) -> 46 | AV10: 8 | AW10: 8 | AX10: 越前海岸 北部 エリア | AY10: 37.5 | AZ10: =INDEX(【D】NPS!$C$7:$HB$96, MATCH(NPS!$AX10,【D】NPS!$B$7:$B$96,0), MATCH(NPS!$AZ$2&NPS!$AW$1,【D】NPS!$C$1:$HB$1&【D】NPS!$C$2:$HB$2,0)) -> 16
B11: 一乗谷朝倉氏遺跡 エリア | D11: =INDEX(【D】NPS!$C$4:$GO$96,MATCH(NPS!$B11,【D】NPS!$B$4:$B$96,0), MATCH(NPS!D$2&NPS!$C$1,【D】NPS!$C$2:$GO$2&【D】NPS!$C$3:$GO$3,0)) -> 8.24742268 | E11: =INDEX(【D】NPS!$C$4:$GO$96,MATCH(NPS!$B11,【D】NPS!$B$4:$B$96,0), MATCH(NPS!E$2&NPS!$C$1,【D】NPS!$C$2:$GO$2&【D】NPS!$C$3:$GO$3,0)) -> 13.55932203 | F11: =INDEX(【D】NPS!$C$4:$GO$96,MATCH(NPS!$B11,【D】NPS!$B$4:$B$96,0), MATCH(NPS!F$2&NPS!$C$1,【D】NPS!$C$2:$GO$2&【D】NPS!$C$3:$GO$3,0)) -> 12.6984127 | G11: =INDEX(【D】NPS!$C$4:$GO$96,MATCH(NPS!$B11,【D】NPS!$B$4:$B$96,0), MATCH(NPS!G$2&NPS!$C$1,【D】NPS!$C$2:$GO$2&【D】NPS!$C$3:$GO$3,0)) -> 10 | H11: =INDEX(【D】NPS!$C$4:$GO$96,MATCH(NPS!$B11,【D】NPS!$B$4:$B$96,0), MATCH(NPS!H$2&NPS!$C$1,【D】NPS!$C$2:$GO$2&【D】NPS!$C$3:$GO$3,0)) -> None | I11: =INDEX(【D】NPS!$C$4:$GO$96,MATCH(NPS!$B11,【D】NPS!$B$4:$B$96,0), MATCH(NPS!I$2&NPS!$C$1,【D】NPS!$C$2:$GO$2&【D】NPS!$C$3:$GO$3,0)) -> None | J11: =INDEX(【D】NPS!$C$4:$GO$96,MATCH(NPS!$B11,【D】NPS!$B$4:$B$96,0), MATCH(NPS!J$2&NPS!$C$1,【D】NPS!$C$2:$GO$2&【D】NPS!$C$3:$GO$3,0)) -> None | K11: =INDEX(【D】NPS!$C$4:$GO$96,MATCH(NPS!$B11,【D】NPS!$B$4:$B$96,0), MATCH(NPS!K$2&NPS!$C$1,【D】NPS!$C$2:$GO$2&【D】NPS!$C$3:$GO$3,0)) -> None | L11: =INDEX(【D】NPS!$C$4:$GO$96,MATCH(NPS!$B11,【D】NPS!$B$4:$B$96,0), MATCH(NPS!L$2&NPS!$C$1,【D】NPS!$C$2:$GO$2&【D】NPS!$C$3:$GO$3,0)) -> None | M11: =INDEX(【D】NPS!$C$4:$GO$96,MATCH(NPS!$B11,【D】NPS!$B$4:$B$96,0), MATCH(NPS!M$2&NPS!$C$1,【D】NPS!$C$2:$GO$2&【D】NPS!$C$3:$GO$3,0)) -> None | N11: =INDEX(【D】NPS!$C$4:$GO$96,MATCH(NPS!$B11,【D】NPS!$B$4:$B$96,0), MATCH(NPS!N$2&NPS!$C$1,【D】NPS!$C$2:$GO$2&【D】NPS!$C$3:$GO$3,0)) -> None | O11: =INDEX(【D】NPS!$C$4:$GO$96,MATCH(NPS!$B11,【D】NPS!$B$4:$B$96,0), MATCH(NPS!O$2&NPS!$C$1,【D】NPS!$C$2:$GO$2&【D】NPS!$C$3:$GO$3,0)) -> None | P11: =INDEX(【D】NPS!$C$4:$GO$96,MATCH(NPS!$B11,【D】NPS!$B$4:$B$96,0), MATCH(NPS!P$2&NPS!$C$1,【D】NPS!$C$2:$GO$2&【D】NPS!$C$3:$GO$3,0)) -> 10.78066914 | S11: =INDEX(【D】NPS!$C$4:$GO$96,MATCH(NPS!$B11,【D】NPS!$B$4:$B$96,0), MATCH(NPS!S$2&NPS!$R$1,【D】NPS!$C$2:$GO$2&【D】NPS!$C$3:$GO$3,0)) -> 39 | T11: =INDEX(【D】NPS!$C$4:$GO$96,MATCH(NPS!$B11,【D】NPS!$B$4:$B$96,0), MATCH(NPS!T$2&NPS!$R$1,【D】NPS!$C$2:$GO$2&【D】NPS!$C$3:$GO$3,0)) -> 36 | U11: =INDEX(【D】NPS!$C$4:$GO$96,MATCH(NPS!$B11,【D】NPS!$B$4:$B$96,0), MATCH(NPS!U$2&NPS!$R$1,【D】NPS!$C$2:$GO$2&【D】NPS!$C$3:$GO$3,0)) -> 36 | V11: =INDEX(【D】NPS!$C$4:$GO$96,MATCH(NPS!$B11,【D】NPS!$B$4:$B$96,0), MATCH(NPS!V$2&NPS!$R$1,【D】NPS!$C$2:$GO$2&【D】NPS!$C$3:$GO$3,0)) -> 44 | W11: =INDEX(【D】NPS!$C$4:$GO$96,MATCH(NPS!$B11,【D】NPS!$B$4:$B$96,0), MATCH(NPS!W$2&NPS!$R$1,【D】NPS!$C$2:$GO$2&【D】NPS!$C$3:$GO$3,0)) -> - | X11: =INDEX(【D】NPS!$C$4:$GO$96,MATCH(NPS!$B11,【D】NPS!$B$4:$B$96,0), MATCH(NPS!X$2&NPS!$R$1,【D】NPS!$C$2:$GO$2&【D】NPS!$C$3:$GO$3,0)) -> - | Y11: =INDEX(【D】NPS!$C$4:$GO$96,MATCH(NPS!$B11,【D】NPS!$B$4:$B$96,0), MATCH(NPS!Y$2&NPS!$R$1,【D】NPS!$C$2:$GO$2&【D】NPS!$C$3:$GO$3,0)) -> - | Z11: =INDEX(【D】NPS!$C$4:$GO$96,MATCH(NPS!$B11,【D】NPS!$B$4:$B$96,0), MATCH(NPS!Z$2&NPS!$R$1,【D】NPS!$C$2:$GO$2&【D】NPS!$C$3:$GO$3,0)) -> - | AA11: =INDEX(【D】NPS!$C$4:$GO$96,MATCH(NPS!$B11,【D】NPS!$B$4:$B$96,0), MATCH(NPS!AA$2&NPS!$R$1,【D】NPS!$C$2:$GO$2&【D】NPS!$C$3:$GO$3,0)) -> - | AB11: =INDEX(【D】NPS!$C$4:$GO$96,MATCH(NPS!$B11,【D】NPS!$B$4:$B$96,0), MATCH(NPS!AB$2&NPS!$R$1,【D】NPS!$C$2:$GO$2&【D】NPS!$C$3:$GO$3,0)) -> - | AC11: =INDEX(【D】NPS!$C$4:$GO$96,MATCH(NPS!$B11,【D】NPS!$B$4:$B$96,0), MATCH(NPS!AC$2&NPS!$R$1,【D】NPS!$C$2:$GO$2&【D】NPS!$C$3:$GO$3,0)) -> - | AD11: =INDEX(【D】NPS!$C$4:$GO$96,MATCH(NPS!$B11,【D】NPS!$B$4:$B$96,0), MATCH(NPS!AD$2&NPS!$R$1,【D】NPS!$C$2:$GO$2&【D】NPS!$C$3:$GO$3,0)) -> - | AE11: =INDEX(【D】NPS!$C$4:$GO$96,MATCH(NPS!$B11,【D】NPS!$B$4:$B$96,0), MATCH(NPS!AE$2&NPS!$R$1,【D】NPS!$C$2:$GO$2&【D】NPS!$C$3:$GO$3,0)) -> 38 | AH11: =INDEX(【D】NPS!$C$4:$GO$96,MATCH(NPS!$B11,【D】NPS!$B$4:$B$96,0), MATCH(NPS!AH$2&NPS!$AG$1,【D】NPS!$C$2:$GO$2&【D】NPS!$C$3:$GO$3,0)) -> 39 | AI11: =INDEX(【D】NPS!$C$4:$GO$96,MATCH(NPS!$B11,【D】NPS!$B$4:$B$96,0), MATCH(NPS!AI$2&NPS!$AG$1,【D】NPS!$C$2:$GO$2&【D】NPS!$C$3:$GO$3,0)) -> 36 | AJ11: =INDEX(【D】NPS!$C$4:$GO$96,MATCH(NPS!$B11,【D】NPS!$B$4:$B$96,0), MATCH(NPS!AJ$2&NPS!$AG$1,【D】NPS!$C$2:$GO$2&【D】NPS!$C$3:$GO$3,0)) -> 36 | AK11: =INDEX(【D】NPS!$C$4:$GO$96,MATCH(NPS!$B11,【D】NPS!$B$4:$B$96,0), MATCH(NPS!AK$2&NPS!$AG$1,【D】NPS!$C$2:$GO$2&【D】NPS!$C$3:$GO$3,0)) -> 44 | AL11: =INDEX(【D】NPS!$C$4:$GO$96,MATCH(NPS!$B11,【D】NPS!$B$4:$B$96,0), MATCH(NPS!AL$2&NPS!$AG$1,【D】NPS!$C$2:$GO$2&【D】NPS!$C$3:$GO$3,0)) -> - | AM11: =INDEX(【D】NPS!$C$4:$GO$96,MATCH(NPS!$B11,【D】NPS!$B$4:$B$96,0), MATCH(NPS!AM$2&NPS!$AG$1,【D】NPS!$C$2:$GO$2&【D】NPS!$C$3:$GO$3,0)) -> - | AN11: =INDEX(【D】NPS!$C$4:$GO$96,MATCH(NPS!$B11,【D】NPS!$B$4:$B$96,0), MATCH(NPS!AN$2&NPS!$AG$1,【D】NPS!$C$2:$GO$2&【D】NPS!$C$3:$GO$3,0)) -> - | AO11: =INDEX(【D】NPS!$C$4:$GO$96,MATCH(NPS!$B11,【D】NPS!$B$4:$B$96,0), MATCH(NPS!AO$2&NPS!$AG$1,【D】NPS!$C$2:$GO$2&【D】NPS!$C$3:$GO$3,0)) -> - | AP11: =INDEX(【D】NPS!$C$4:$GO$96,MATCH(NPS!$B11,【D】NPS!$B$4:$B$96,0), MATCH(NPS!AP$2&NPS!$AG$1,【D】NPS!$C$2:$GO$2&【D】NPS!$C$3:$GO$3,0)) -> - | AQ11: =INDEX(【D】NPS!$C$4:$GO$96,MATCH(NPS!$B11,【D】NPS!$B$4:$B$96,0), MATCH(NPS!AQ$2&NPS!$AG$1,【D】NPS!$C$2:$GO$2&【D】NPS!$C$3:$GO$3,0)) -> - | AR11: =INDEX(【D】NPS!$C$4:$GO$96,MATCH(NPS!$B11,【D】NPS!$B$4:$B$96,0), MATCH(NPS!AR$2&NPS!$AG$1,【D】NPS!$C$2:$GO$2&【D】NPS!$C$3:$GO$3,0)) -> - | AS11: =INDEX(【D】NPS!$C$4:$GO$96,MATCH(NPS!$B11,【D】NPS!$B$4:$B$96,0), MATCH(NPS!AS$2&NPS!$AG$1,【D】NPS!$C$2:$GO$2&【D】NPS!$C$3:$GO$3,0)) -> - | AT11: =INDEX(【D】NPS!$C$4:$GO$96,MATCH(NPS!$B11,【D】NPS!$B$4:$B$96,0), MATCH(NPS!AT$2&NPS!$AG$1,【D】NPS!$C$2:$GO$2&【D】NPS!$C$3:$GO$3,0)) -> 38 | AV11: 9 | AW11: 9 | AX11: うみんぴあ大飯 エリア | AY11: 36 | AZ11: =INDEX(【D】NPS!$C$7:$HB$96, MATCH(NPS!$AX11,【D】NPS!$B$7:$B$96,0), MATCH(NPS!$AZ$2&NPS!$AW$1,【D】NPS!$C$1:$HB$1&【D】NPS!$C$2:$HB$2,0)) -> 25
B12: 越前海岸 北部 エリア | D12: =INDEX(【D】NPS!$C$4:$GO$96,MATCH(NPS!$B12,【D】NPS!$B$4:$B$96,0), MATCH(NPS!D$2&NPS!$C$1,【D】NPS!$C$2:$GO$2&【D】NPS!$C$3:$GO$3,0)) -> 35.71428571 | E12: =INDEX(【D】NPS!$C$4:$GO$96,MATCH(NPS!$B12,【D】NPS!$B$4:$B$96,0), MATCH(NPS!E$2&NPS!$C$1,【D】NPS!$C$2:$GO$2&【D】NPS!$C$3:$GO$3,0)) -> 50 | F12: =INDEX(【D】NPS!$C$4:$GO$96,MATCH(NPS!$B12,【D】NPS!$B$4:$B$96,0), MATCH(NPS!F$2&NPS!$C$1,【D】NPS!$C$2:$GO$2&【D】NPS!$C$3:$GO$3,0)) -> -41.66666667 | G12: =INDEX(【D】NPS!$C$4:$GO$96,MATCH(NPS!$B12,【D】NPS!$B$4:$B$96,0), MATCH(NPS!G$2&NPS!$C$1,【D】NPS!$C$2:$GO$2&【D】NPS!$C$3:$GO$3,0)) -> 37.5 | H12: =INDEX(【D】NPS!$C$4:$GO$96,MATCH(NPS!$B12,【D】NPS!$B$4:$B$96,0), MATCH(NPS!H$2&NPS!$C$1,【D】NPS!$C$2:$GO$2&【D】NPS!$C$3:$GO$3,0)) -> None | I12: =INDEX(【D】NPS!$C$4:$GO$96,MATCH(NPS!$B12,【D】NPS!$B$4:$B$96,0), MATCH(NPS!I$2&NPS!$C$1,【D】NPS!$C$2:$GO$2&【D】NPS!$C$3:$GO$3,0)) -> None | J12: =INDEX(【D】NPS!$C$4:$GO$96,MATCH(NPS!$B12,【D】NPS!$B$4:$B$96,0), MATCH(NPS!J$2&NPS!$C$1,【D】NPS!$C$2:$GO$2&【D】NPS!$C$3:$GO$3,0)) -> None | K12: =INDEX(【D】NPS!$C$4:$GO$96,MATCH(NPS!$B12,【D】NPS!$B$4:$B$96,0), MATCH(NPS!K$2&NPS!$C$1,【D】NPS!$C$2:$GO$2&【D】NPS!$C$3:$GO$3,0)) -> None | L12: =INDEX(【D】NPS!$C$4:$GO$96,MATCH(NPS!$B12,【D】NPS!$B$4:$B$96,0), MATCH(NPS!L$2&NPS!$C$1,【D】NPS!$C$2:$GO$2&【D】NPS!$C$3:$GO$3,0)) -> None | M12: =INDEX(【D】NPS!$C$4:$GO$96,MATCH(NPS!$B12,【D】NPS!$B$4:$B$96,0), MATCH(NPS!M$2&NPS!$C$1,【D】NPS!$C$2:$GO$2&【D】NPS!$C$3:$GO$3,0)) -> None | N12: =INDEX(【D】NPS!$C$4:$GO$96,MATCH(NPS!$B12,【D】NPS!$B$4:$B$96,0), MATCH(NPS!N$2&NPS!$C$1,【D】NPS!$C$2:$GO$2&【D】NPS!$C$3:$GO$3,0)) -> None | O12: =INDEX(【D】NPS!$C$4:$GO$96,MATCH(NPS!$B12,【D】NPS!$B$4:$B$96,0), MATCH(NPS!O$2&NPS!$C$1,【D】NPS!$C$2:$GO$2&【D】NPS!$C$3:$GO$3,0)) -> None | P12: =INDEX(【D】NPS!$C$4:$GO$96,MATCH(NPS!$B12,【D】NPS!$B$4:$B$96,0), MATCH(NPS!P$2&NPS!$C$1,【D】NPS!$C$2:$GO$2&【D】NPS!$C$3:$GO$3,0)) -> 22.22222222 | S12: =INDEX(【D】NPS!$C$4:$GO$96,MATCH(NPS!$B12,【D】NPS!$B$4:$B$96,0), MATCH(NPS!S$2&NPS!$R$1,【D】NPS!$C$2:$GO$2&【D】NPS!$C$3:$GO$3,0)) -> 13 | T12: =INDEX(【D】NPS!$C$4:$GO$96,MATCH(NPS!$B12,【D】NPS!$B$4:$B$96,0), MATCH(NPS!T$2&NPS!$R$1,【D】NPS!$C$2:$GO$2&【D】NPS!$C$3:$GO$3,0)) -> 3 | U12: =INDEX(【D】NPS!$C$4:$GO$96,MATCH(NPS!$B12,【D】NPS!$B$4:$B$96,0), MATCH(NPS!U$2&NPS!$R$1,【D】NPS!$C$2:$GO$2&【D】NPS!$C$3:$GO$3,0)) -> 79 | V12: =INDEX(【D】NPS!$C$4:$GO$96,MATCH(NPS!$B12,【D】NPS!$B$4:$B$96,0), MATCH(NPS!V$2&NPS!$R$1,【D】NPS!$C$2:$GO$2&【D】NPS!$C$3:$GO$3,0)) -> 8 | W12: =INDEX(【D】NPS!$C$4:$GO$96,MATCH(NPS!$B12,【D】NPS!$B$4:$B$96,0), MATCH(NPS!W$2&NPS!$R$1,【D】NPS!$C$2:$GO$2&【D】NPS!$C$3:$GO$3,0)) -> - | X12: =INDEX(【D】NPS!$C$4:$GO$96,MATCH(NPS!$B12,【D】NPS!$B$4:$B$96,0), MATCH(NPS!X$2&NPS!$R$1,【D】NPS!$C$2:$GO$2&【D】NPS!$C$3:$GO$3,0)) -> - | Y12: =INDEX(【D】NPS!$C$4:$GO$96,MATCH(NPS!$B12,【D】NPS!$B$4:$B$96,0), MATCH(NPS!Y$2&NPS!$R$1,【D】NPS!$C$2:$GO$2&【D】NPS!$C$3:$GO$3,0)) -> - | Z12: =INDEX(【D】NPS!$C$4:$GO$96,MATCH(NPS!$B12,【D】NPS!$B$4:$B$96,0), MATCH(NPS!Z$2&NPS!$R$1,【D】NPS!$C$2:$GO$2&【D】NPS!$C$3:$GO$3,0)) -> - | AA12: =INDEX(【D】NPS!$C$4:$GO$96,MATCH(NPS!$B12,【D】NPS!$B$4:$B$96,0), MATCH(NPS!AA$2&NPS!$R$1,【D】NPS!$C$2:$GO$2&【D】NPS!$C$3:$GO$3,0)) -> - | AB12: =INDEX(【D】NPS!$C$4:$GO$96,MATCH(NPS!$B12,【D】NPS!$B$4:$B$96,0), MATCH(NPS!AB$2&NPS!$R$1,【D】NPS!$C$2:$GO$2&【D】NPS!$C$3:$GO$3,0)) -> - | AC12: =INDEX(【D】NPS!$C$4:$GO$96,MATCH(NPS!$B12,【D】NPS!$B$4:$B$96,0), MATCH(NPS!AC$2&NPS!$R$1,【D】NPS!$C$2:$GO$2&【D】NPS!$C$3:$GO$3,0)) -> - | AD12: =INDEX(【D】NPS!$C$4:$GO$96,MATCH(NPS!$B12,【D】NPS!$B$4:$B$96,0), MATCH(NPS!AD$2&NPS!$R$1,【D】NPS!$C$2:$GO$2&【D】NPS!$C$3:$GO$3,0)) -> - | AE12: =INDEX(【D】NPS!$C$4:$GO$96,MATCH(NPS!$B12,【D】NPS!$B$4:$B$96,0), MATCH(NPS!AE$2&NPS!$R$1,【D】NPS!$C$2:$GO$2&【D】NPS!$C$3:$GO$3,0)) -> 20 | AH12: =INDEX(【D】NPS!$C$4:$GO$96,MATCH(NPS!$B12,【D】NPS!$B$4:$B$96,0), MATCH(NPS!AH$2&NPS!$AG$1,【D】NPS!$C$2:$GO$2&【D】NPS!$C$3:$GO$3,0)) -> 13 | AI12: =INDEX(【D】NPS!$C$4:$GO$96,MATCH(NPS!$B12,【D】NPS!$B$4:$B$96,0), MATCH(NPS!AI$2&NPS!$AG$1,【D】NPS!$C$2:$GO$2&【D】NPS!$C$3:$GO$3,0)) -> 5 | AJ12: =INDEX(【D】NPS!$C$4:$GO$96,MATCH(NPS!$B12,【D】NPS!$B$4:$B$96,0), MATCH(NPS!AJ$2&NPS!$AG$1,【D】NPS!$C$2:$GO$2&【D】NPS!$C$3:$GO$3,0)) -> 79 | AK12: =INDEX(【D】NPS!$C$4:$GO$96,MATCH(NPS!$B12,【D】NPS!$B$4:$B$96,0), MATCH(NPS!AK$2&NPS!$AG$1,【D】NPS!$C$2:$GO$2&【D】NPS!$C$3:$GO$3,0)) -> 8 | AL12: =INDEX(【D】NPS!$C$4:$GO$96,MATCH(NPS!$B12,【D】NPS!$B$4:$B$96,0), MATCH(NPS!AL$2&NPS!$AG$1,【D】NPS!$C$2:$GO$2&【D】NPS!$C$3:$GO$3,0)) -> - | AM12: =INDEX(【D】NPS!$C$4:$GO$96,MATCH(NPS!$B12,【D】NPS!$B$4:$B$96,0), MATCH(NPS!AM$2&NPS!$AG$1,【D】NPS!$C$2:$GO$2&【D】NPS!$C$3:$GO$3,0)) -> - | AN12: =INDEX(【D】NPS!$C$4:$GO$96,MATCH(NPS!$B12,【D】NPS!$B$4:$B$96,0), MATCH(NPS!AN$2&NPS!$AG$1,【D】NPS!$C$2:$GO$2&【D】NPS!$C$3:$GO$3,0)) -> - | AO12: =INDEX(【D】NPS!$C$4:$GO$96,MATCH(NPS!$B12,【D】NPS!$B$4:$B$96,0), MATCH(NPS!AO$2&NPS!$AG$1,【D】NPS!$C$2:$GO$2&【D】NPS!$C$3:$GO$3,0)) -> - | AP12: =INDEX(【D】NPS!$C$4:$GO$96,MATCH(NPS!$B12,【D】NPS!$B$4:$B$96,0), MATCH(NPS!AP$2&NPS!$AG$1,【D】NPS!$C$2:$GO$2&【D】NPS!$C$3:$GO$3,0)) -> - | AQ12: =INDEX(【D】NPS!$C$4:$GO$96,MATCH(NPS!$B12,【D】NPS!$B$4:$B$96,0), MATCH(NPS!AQ$2&NPS!$AG$1,【D】NPS!$C$2:$GO$2&【D】NPS!$C$3:$GO$3,0)) -> - | AR12: =INDEX(【D】NPS!$C$4:$GO$96,MATCH(NPS!$B12,【D】NPS!$B$4:$B$96,0), MATCH(NPS!AR$2&NPS!$AG$1,【D】NPS!$C$2:$GO$2&【D】NPS!$C$3:$GO$3,0)) -> - | AS12: =INDEX(【D】NPS!$C$4:$GO$96,MATCH(NPS!$B12,【D】NPS!$B$4:$B$96,0), MATCH(NPS!AS$2&NPS!$AG$1,【D】NPS!$C$2:$GO$2&【D】NPS!$C$3:$GO$3,0)) -> - | AT12: =INDEX(【D】NPS!$C$4:$GO$96,MATCH(NPS!$B12,【D】NPS!$B$4:$B$96,0), MATCH(NPS!AT$2&NPS!$AG$1,【D】NPS!$C$2:$GO$2&【D】NPS!$C$3:$GO$3,0)) -> 20 | AV12: 10 | AW12: 10 | AX12: 道の駅「若狭おばま」 エリア | AY12: 34.28571429 | AZ12: =INDEX(【D】NPS!$C$7:$HB$96, MATCH(NPS!$AX12,【D】NPS!$B$7:$B$96,0), MATCH(NPS!$AZ$2&NPS!$AW$1,【D】NPS!$C$1:$HB$1&【D】NPS!$C$2:$HB$2,0)) -> 35
B13: 大安禅寺 エリア | D13: =INDEX(【D】NPS!$C$4:$GO$96,MATCH(NPS!$B13,【D】NPS!$B$4:$B$96,0), MATCH(NPS!D$2&NPS!$C$1,【D】NPS!$C$2:$GO$2&【D】NPS!$C$3:$GO$3,0)) -> 100 | E13: =INDEX(【D】NPS!$C$4:$GO$96,MATCH(NPS!$B13,【D】NPS!$B$4:$B$96,0), MATCH(NPS!E$2&NPS!$C$1,【D】NPS!$C$2:$GO$2&【D】NPS!$C$3:$GO$3,0)) -> None | F13: =INDEX(【D】NPS!$C$4:$GO$96,MATCH(NPS!$B13,【D】NPS!$B$4:$B$96,0), MATCH(NPS!F$2&NPS!$C$1,【D】NPS!$C$2:$GO$2&【D】NPS!$C$3:$GO$3,0)) -> 25 | G13: =INDEX(【D】NPS!$C$4:$GO$96,MATCH(NPS!$B13,【D】NPS!$B$4:$B$96,0), MATCH(NPS!G$2&NPS!$C$1,【D】NPS!$C$2:$GO$2&【D】NPS!$C$3:$GO$3,0)) -> -33.33333333 | H13: =INDEX(【D】NPS!$C$4:$GO$96,MATCH(NPS!$B13,【D】NPS!$B$4:$B$96,0), MATCH(NPS!H$2&NPS!$C$1,【D】NPS!$C$2:$GO$2&【D】NPS!$C$3:$GO$3,0)) -> None | I13: =INDEX(【D】NPS!$C$4:$GO$96,MATCH(NPS!$B13,【D】NPS!$B$4:$B$96,0), MATCH(NPS!I$2&NPS!$C$1,【D】NPS!$C$2:$GO$2&【D】NPS!$C$3:$GO$3,0)) -> None | J13: =INDEX(【D】NPS!$C$4:$GO$96,MATCH(NPS!$B13,【D】NPS!$B$4:$B$96,0), MATCH(NPS!J$2&NPS!$C$1,【D】NPS!$C$2:$GO$2&【D】NPS!$C$3:$GO$3,0)) -> None | K13: =INDEX(【D】NPS!$C$4:$GO$96,MATCH(NPS!$B13,【D】NPS!$B$4:$B$96,0), MATCH(NPS!K$2&NPS!$C$1,【D】NPS!$C$2:$GO$2&【D】NPS!$C$3:$GO$3,0)) -> None | L13: =INDEX(【D】NPS!$C$4:$GO$96,MATCH(NPS!$B13,【D】NPS!$B$4:$B$96,0), MATCH(NPS!L$2&NPS!$C$1,【D】NPS!$C$2:$GO$2&【D】NPS!$C$3:$GO$3,0)) -> None | M13: =INDEX(【D】NPS!$C$4:$GO$96,MATCH(NPS!$B13,【D】NPS!$B$4:$B$96,0), MATCH(NPS!M$2&NPS!$C$1,【D】NPS!$C$2:$GO$2&【D】NPS!$C$3:$GO$3,0)) -> None | N13: =INDEX(【D】NPS!$C$4:$GO$96,MATCH(NPS!$B13,【D】NPS!$B$4:$B$96,0), MATCH(NPS!N$2&NPS!$C$1,【D】NPS!$C$2:$GO$2&【D】NPS!$C$3:$GO$3,0)) -> None | O13: =INDEX(【D】NPS!$C$4:$GO$96,MATCH(NPS!$B13,【D】NPS!$B$4:$B$96,0), MATCH(NPS!O$2&NPS!$C$1,【D】NPS!$C$2:$GO$2&【D】NPS!$C$3:$GO$3,0)) -> None | P13: =INDEX(【D】NPS!$C$4:$GO$96,MATCH(NPS!$B13,【D】NPS!$B$4:$B$96,0), MATCH(NPS!P$2&NPS!$C$1,【D】NPS!$C$2:$GO$2&【D】NPS!$C$3:$GO$3,0)) -> 12.5 | S13: =INDEX(【D】NPS!$C$4:$GO$96,MATCH(NPS!$B13,【D】NPS!$B$4:$B$96,0), MATCH(NPS!S$2&NPS!$R$1,【D】NPS!$C$2:$GO$2&【D】NPS!$C$3:$GO$3,0)) -> 1 | T13: =INDEX(【D】NPS!$C$4:$GO$96,MATCH(NPS!$B13,【D】NPS!$B$4:$B$96,0), MATCH(NPS!T$2&NPS!$R$1,【D】NPS!$C$2:$GO$2&【D】NPS!$C$3:$GO$3,0)) -> - | U13: =INDEX(【D】NPS!$C$4:$GO$96,MATCH(NPS!$B13,【D】NPS!$B$4:$B$96,0), MATCH(NPS!U$2&NPS!$R$1,【D】NPS!$C$2:$GO$2&【D】NPS!$C$3:$GO$3,0)) -> 19 | V13: =INDEX(【D】NPS!$C$4:$GO$96,MATCH(NPS!$B13,【D】NPS!$B$4:$B$96,0), MATCH(NPS!V$2&NPS!$R$1,【D】NPS!$C$2:$GO$2&【D】NPS!$C$3:$GO$3,0)) -> 80 | W13: =INDEX(【D】NPS!$C$4:$GO$96,MATCH(NPS!$B13,【D】NPS!$B$4:$B$96,0), MATCH(NPS!W$2&NPS!$R$1,【D】NPS!$C$2:$GO$2&【D】NPS!$C$3:$GO$3,0)) -> - | X13: =INDEX(【D】NPS!$C$4:$GO$96,MATCH(NPS!$B13,【D】NPS!$B$4:$B$96,0), MATCH(NPS!X$2&NPS!$R$1,【D】NPS!$C$2:$GO$2&【D】NPS!$C$3:$GO$3,0)) -> - | Y13: =INDEX(【D】NPS!$C$4:$GO$96,MATCH(NPS!$B13,【D】NPS!$B$4:$B$96,0), MATCH(NPS!Y$2&NPS!$R$1,【D】NPS!$C$2:$GO$2&【D】NPS!$C$3:$GO$3,0)) -> - | Z13: =INDEX(【D】NPS!$C$4:$GO$96,MATCH(NPS!$B13,【D】NPS!$B$4:$B$96,0), MATCH(NPS!Z$2&NPS!$R$1,【D】NPS!$C$2:$GO$2&【D】NPS!$C$3:$GO$3,0)) -> - | AA13: =INDEX(【D】NPS!$C$4:$GO$96,MATCH(NPS!$B13,【D】NPS!$B$4:$B$96,0), MATCH(NPS!AA$2&NPS!$R$1,【D】NPS!$C$2:$GO$2&【D】NPS!$C$3:$GO$3,0)) -> - | AB13: =INDEX(【D】NPS!$C$4:$GO$96,MATCH(NPS!$B13,【D】NPS!$B$4:$B$96,0), MATCH(NPS!AB$2&NPS!$R$1,【D】NPS!$C$2:$GO$2&【D】NPS!$C$3:$GO$3,0)) -> - | AC13: =INDEX(【D】NPS!$C$4:$GO$96,MATCH(NPS!$B13,【D】NPS!$B$4:$B$96,0), MATCH(NPS!AC$2&NPS!$R$1,【D】NPS!$C$2:$GO$2&【D】NPS!$C$3:$GO$3,0)) -> - | AD13: =INDEX(【D】NPS!$C$4:$GO$96,MATCH(NPS!$B13,【D】NPS!$B$4:$B$96,0), MATCH(NPS!AD$2&NPS!$R$1,【D】NPS!$C$2:$GO$2&【D】NPS!$C$3:$GO$3,0)) -> - | AE13: =INDEX(【D】NPS!$C$4:$GO$96,MATCH(NPS!$B13,【D】NPS!$B$4:$B$96,0), MATCH(NPS!AE$2&NPS!$R$1,【D】NPS!$C$2:$GO$2&【D】NPS!$C$3:$GO$3,0)) -> 36 | AH13: =INDEX(【D】NPS!$C$4:$GO$96,MATCH(NPS!$B13,【D】NPS!$B$4:$B$96,0), MATCH(NPS!AH$2&NPS!$AG$1,【D】NPS!$C$2:$GO$2&【D】NPS!$C$3:$GO$3,0)) -> 4 | AI13: =INDEX(【D】NPS!$C$4:$GO$96,MATCH(NPS!$B13,【D】NPS!$B$4:$B$96,0), MATCH(NPS!AI$2&NPS!$AG$1,【D】NPS!$C$2:$GO$2&【D】NPS!$C$3:$GO$3,0)) -> - | AJ13: =INDEX(【D】NPS!$C$4:$GO$96,MATCH(NPS!$B13,【D】NPS!$B$4:$B$96,0), MATCH(NPS!AJ$2&NPS!$AG$1,【D】NPS!$C$2:$GO$2&【D】NPS!$C$3:$GO$3,0)) -> 21 | AK13: =INDEX(【D】NPS!$C$4:$GO$96,MATCH(NPS!$B13,【D】NPS!$B$4:$B$96,0), MATCH(NPS!AK$2&NPS!$AG$1,【D】NPS!$C$2:$GO$2&【D】NPS!$C$3:$GO$3,0)) -> 80 | AL13: =INDEX(【D】NPS!$C$4:$GO$96,MATCH(NPS!$B13,【D】NPS!$B$4:$B$96,0), MATCH(NPS!AL$2&NPS!$AG$1,【D】NPS!$C$2:$GO$2&【D】NPS!$C$3:$GO$3,0)) -> - | AM13: =INDEX(【D】NPS!$C$4:$GO$96,MATCH(NPS!$B13,【D】NPS!$B$4:$B$96,0), MATCH(NPS!AM$2&NPS!$AG$1,【D】NPS!$C$2:$GO$2&【D】NPS!$C$3:$GO$3,0)) -> - | AN13: =INDEX(【D】NPS!$C$4:$GO$96,MATCH(NPS!$B13,【D】NPS!$B$4:$B$96,0), MATCH(NPS!AN$2&NPS!$AG$1,【D】NPS!$C$2:$GO$2&【D】NPS!$C$3:$GO$3,0)) -> - | AO13: =INDEX(【D】NPS!$C$4:$GO$96,MATCH(NPS!$B13,【D】NPS!$B$4:$B$96,0), MATCH(NPS!AO$2&NPS!$AG$1,【D】NPS!$C$2:$GO$2&【D】NPS!$C$3:$GO$3,0)) -> - | AP13: =INDEX(【D】NPS!$C$4:$GO$96,MATCH(NPS!$B13,【D】NPS!$B$4:$B$96,0), MATCH(NPS!AP$2&NPS!$AG$1,【D】NPS!$C$2:$GO$2&【D】NPS!$C$3:$GO$3,0)) -> - | AQ13: =INDEX(【D】NPS!$C$4:$GO$96,MATCH(NPS!$B13,【D】NPS!$B$4:$B$96,0), MATCH(NPS!AQ$2&NPS!$AG$1,【D】NPS!$C$2:$GO$2&【D】NPS!$C$3:$GO$3,0)) -> - | AR13: =INDEX(【D】NPS!$C$4:$GO$96,MATCH(NPS!$B13,【D】NPS!$B$4:$B$96,0), MATCH(NPS!AR$2&NPS!$AG$1,【D】NPS!$C$2:$GO$2&【D】NPS!$C$3:$GO$3,0)) -> - | AS13: =INDEX(【D】NPS!$C$4:$GO$96,MATCH(NPS!$B13,【D】NPS!$B$4:$B$96,0), MATCH(NPS!AS$2&NPS!$AG$1,【D】NPS!$C$2:$GO$2&【D】NPS!$C$3:$GO$3,0)) -> - | AT13: =INDEX(【D】NPS!$C$4:$GO$96,MATCH(NPS!$B13,【D】NPS!$B$4:$B$96,0), MATCH(NPS!AT$2&NPS!$AG$1,【D】NPS!$C$2:$GO$2&【D】NPS!$C$3:$GO$3,0)) -> 36 | AV13: 11 | AW13: 11 | AX13: 水晶浜 エリア | AY13: 33.33333333 | AZ13: =INDEX(【D】NPS!$C$7:$HB$96, MATCH(NPS!$AX13,【D】NPS!$B$7:$B$96,0), MATCH(NPS!$AZ$2&NPS!$AW$1,【D】NPS!$C$1:$HB$1&【D】NPS!$C$2:$HB$2,0)) -> 6
B14: 三国湊 エリア | D14: =INDEX(【D】NPS!$C$4:$GO$96,MATCH(NPS!$B14,【D】NPS!$B$4:$B$96,0), MATCH(NPS!D$2&NPS!$C$1,【D】NPS!$C$2:$GO$2&【D】NPS!$C$3:$GO$3,0)) -> 15.38461538 | E14: =INDEX(【D】NPS!$C$4:$GO$96,MATCH(NPS!$B14,【D】NPS!$B$4:$B$96,0), MATCH(NPS!E$2&NPS!$C$1,【D】NPS!$C$2:$GO$2&【D】NPS!$C$3:$GO$3,0)) -> 8.163265306 | F14: =INDEX(【D】NPS!$C$4:$GO$96,MATCH(NPS!$B14,【D】NPS!$B$4:$B$96,0), MATCH(NPS!F$2&NPS!$C$1,【D】NPS!$C$2:$GO$2&【D】NPS!$C$3:$GO$3,0)) -> -5.882352941 | G14: =INDEX(【D】NPS!$C$4:$GO$96,MATCH(NPS!$B14,【D】NPS!$B$4:$B$96,0), MATCH(NPS!G$2&NPS!$C$1,【D】NPS!$C$2:$GO$2&【D】NPS!$C$3:$GO$3,0)) -> -6.25 | H14: =INDEX(【D】NPS!$C$4:$GO$96,MATCH(NPS!$B14,【D】NPS!$B$4:$B$96,0), MATCH(NPS!H$2&NPS!$C$1,【D】NPS!$C$2:$GO$2&【D】NPS!$C$3:$GO$3,0)) -> None | I14: =INDEX(【D】NPS!$C$4:$GO$96,MATCH(NPS!$B14,【D】NPS!$B$4:$B$96,0), MATCH(NPS!I$2&NPS!$C$1,【D】NPS!$C$2:$GO$2&【D】NPS!$C$3:$GO$3,0)) -> None | J14: =INDEX(【D】NPS!$C$4:$GO$96,MATCH(NPS!$B14,【D】NPS!$B$4:$B$96,0), MATCH(NPS!J$2&NPS!$C$1,【D】NPS!$C$2:$GO$2&【D】NPS!$C$3:$GO$3,0)) -> None | K14: =INDEX(【D】NPS!$C$4:$GO$96,MATCH(NPS!$B14,【D】NPS!$B$4:$B$96,0), MATCH(NPS!K$2&NPS!$C$1,【D】NPS!$C$2:$GO$2&【D】NPS!$C$3:$GO$3,0)) -> None | L14: =INDEX(【D】NPS!$C$4:$GO$96,MATCH(NPS!$B14,【D】NPS!$B$4:$B$96,0), MATCH(NPS!L$2&NPS!$C$1,【D】NPS!$C$2:$GO$2&【D】NPS!$C$3:$GO$3,0)) -> None | M14: =INDEX(【D】NPS!$C$4:$GO$96,MATCH(NPS!$B14,【D】NPS!$B$4:$B$96,0), MATCH(NPS!M$2&NPS!$C$1,【D】NPS!$C$2:$GO$2&【D】NPS!$C$3:$GO$3,0)) -> None | N14: =INDEX(【D】NPS!$C$4:$GO$96,MATCH(NPS!$B14,【D】NPS!$B$4:$B$96,0), MATCH(NPS!N$2&NPS!$C$1,【D】NPS!$C$2:$GO$2&【D】NPS!$C$3:$GO$3,0)) -> None | O14: =INDEX(【D】NPS!$C$4:$GO$96,MATCH(NPS!$B14,【D】NPS!$B$4:$B$96,0), MATCH(NPS!O$2&NPS!$C$1,【D】NPS!$C$2:$GO$2&【D】NPS!$C$3:$GO$3,0)) -> None | P14: =INDEX(【D】NPS!$C$4:$GO$96,MATCH(NPS!$B14,【D】NPS!$B$4:$B$96,0), MATCH(NPS!P$2&NPS!$C$1,【D】NPS!$C$2:$GO$2&【D】NPS!$C$3:$GO$3,0)) -> 5.960264901 | S14: =INDEX(【D】NPS!$C$4:$GO$96,MATCH(NPS!$B14,【D】NPS!$B$4:$B$96,0), MATCH(NPS!S$2&NPS!$R$1,【D】NPS!$C$2:$GO$2&【D】NPS!$C$3:$GO$3,0)) -> 30 | T14: =INDEX(【D】NPS!$C$4:$GO$96,MATCH(NPS!$B14,【D】NPS!$B$4:$B$96,0), MATCH(NPS!T$2&NPS!$R$1,【D】NPS!$C$2:$GO$2&【D】NPS!$C$3:$GO$3,0)) -> 41 | U14: =INDEX(【D】NPS!$C$4:$GO$96,MATCH(NPS!$B14,【D】NPS!$B$4:$B$96,0), MATCH(NPS!U$2&NPS!$R$1,【D】NPS!$C$2:$GO$2&【D】NPS!$C$3:$GO$3,0)) -> 63 | V14: =INDEX(【D】NPS!$C$4:$GO$96,MATCH(NPS!$B14,【D】NPS!$B$4:$B$96,0), MATCH(NPS!V$2&NPS!$R$1,【D】NPS!$C$2:$GO$2&【D】NPS!$C$3:$GO$3,0)) -> 68 | W14: =INDEX(【D】NPS!$C$4:$GO$96,MATCH(NPS!$B14,【D】NPS!$B$4:$B$96,0), MATCH(NPS!W$2&NPS!$R$1,【D】NPS!$C$2:$GO$2&【D】NPS!$C$3:$GO$3,0)) -> - | X14: =INDEX(【D】NPS!$C$4:$GO$96,MATCH(NPS!$B14,【D】NPS!$B$4:$B$96,0), MATCH(NPS!X$2&NPS!$R$1,【D】NPS!$C$2:$GO$2&【D】NPS!$C$3:$GO$3,0)) -> - | Y14: =INDEX(【D】NPS!$C$4:$GO$96,MATCH(NPS!$B14,【D】NPS!$B$4:$B$96,0), MATCH(NPS!Y$2&NPS!$R$1,【D】NPS!$C$2:$GO$2&【D】NPS!$C$3:$GO$3,0)) -> - | Z14: =INDEX(【D】NPS!$C$4:$GO$96,MATCH(NPS!$B14,【D】NPS!$B$4:$B$96,0), MATCH(NPS!Z$2&NPS!$R$1,【D】NPS!$C$2:$GO$2&【D】NPS!$C$3:$GO$3,0)) -> - | AA14: =INDEX(【D】NPS!$C$4:$GO$96,MATCH(NPS!$B14,【D】NPS!$B$4:$B$96,0), MATCH(NPS!AA$2&NPS!$R$1,【D】NPS!$C$2:$GO$2&【D】NPS!$C$3:$GO$3,0)) -> - | AB14: =INDEX(【D】NPS!$C$4:$GO$96,MATCH(NPS!$B14,【D】NPS!$B$4:$B$96,0), MATCH(NPS!AB$2&NPS!$R$1,【D】NPS!$C$2:$GO$2&【D】NPS!$C$3:$GO$3,0)) -> - | AC14: =INDEX(【D】NPS!$C$4:$GO$96,MATCH(NPS!$B14,【D】NPS!$B$4:$B$96,0), MATCH(NPS!AC$2&NPS!$R$1,【D】NPS!$C$2:$GO$2&【D】NPS!$C$3:$GO$3,0)) -> - | AD14: =INDEX(【D】NPS!$C$4:$GO$96,MATCH(NPS!$B14,【D】NPS!$B$4:$B$96,0), MATCH(NPS!AD$2&NPS!$R$1,【D】NPS!$C$2:$GO$2&【D】NPS!$C$3:$GO$3,0)) -> - | AE14: =INDEX(【D】NPS!$C$4:$GO$96,MATCH(NPS!$B14,【D】NPS!$B$4:$B$96,0), MATCH(NPS!AE$2&NPS!$R$1,【D】NPS!$C$2:$GO$2&【D】NPS!$C$3:$GO$3,0)) -> 52 | AH14: =INDEX(【D】NPS!$C$4:$GO$96,MATCH(NPS!$B14,【D】NPS!$B$4:$B$96,0), MATCH(NPS!AH$2&NPS!$AG$1,【D】NPS!$C$2:$GO$2&【D】NPS!$C$3:$GO$3,0)) -> 31 | AI14: =INDEX(【D】NPS!$C$4:$GO$96,MATCH(NPS!$B14,【D】NPS!$B$4:$B$96,0), MATCH(NPS!AI$2&NPS!$AG$1,【D】NPS!$C$2:$GO$2&【D】NPS!$C$3:$GO$3,0)) -> 41 | AJ14: =INDEX(【D】NPS!$C$4:$GO$96,MATCH(NPS!$B14,【D】NPS!$B$4:$B$96,0), MATCH(NPS!AJ$2&NPS!$AG$1,【D】NPS!$C$2:$GO$2&【D】NPS!$C$3:$GO$3,0)) -> 63 | AK14: =INDEX(【D】NPS!$C$4:$GO$96,MATCH(NPS!$B14,【D】NPS!$B$4:$B$96,0), MATCH(NPS!AK$2&NPS!$AG$1,【D】NPS!$C$2:$GO$2&【D】NPS!$C$3:$GO$3,0)) -> 68 | AL14: =INDEX(【D】NPS!$C$4:$GO$96,MATCH(NPS!$B14,【D】NPS!$B$4:$B$96,0), MATCH(NPS!AL$2&NPS!$AG$1,【D】NPS!$C$2:$GO$2&【D】NPS!$C$3:$GO$3,0)) -> - | AM14: =INDEX(【D】NPS!$C$4:$GO$96,MATCH(NPS!$B14,【D】NPS!$B$4:$B$96,0), MATCH(NPS!AM$2&NPS!$AG$1,【D】NPS!$C$2:$GO$2&【D】NPS!$C$3:$GO$3,0)) -> - | AN14: =INDEX(【D】NPS!$C$4:$GO$96,MATCH(NPS!$B14,【D】NPS!$B$4:$B$96,0), MATCH(NPS!AN$2&NPS!$AG$1,【D】NPS!$C$2:$GO$2&【D】NPS!$C$3:$GO$3,0)) -> - | AO14: =INDEX(【D】NPS!$C$4:$GO$96,MATCH(NPS!$B14,【D】NPS!$B$4:$B$96,0), MATCH(NPS!AO$2&NPS!$AG$1,【D】NPS!$C$2:$GO$2&【D】NPS!$C$3:$GO$3,0)) -> - | AP14: =INDEX(【D】NPS!$C$4:$GO$96,MATCH(NPS!$B14,【D】NPS!$B$4:$B$96,0), MATCH(NPS!AP$2&NPS!$AG$1,【D】NPS!$C$2:$GO$2&【D】NPS!$C$3:$GO$3,0)) -> - | AQ14: =INDEX(【D】NPS!$C$4:$GO$96,MATCH(NPS!$B14,【D】NPS!$B$4:$B$96,0), MATCH(NPS!AQ$2&NPS!$AG$1,【D】NPS!$C$2:$GO$2&【D】NPS!$C$3:$GO$3,0)) -> - | AR14: =INDEX(【D】NPS!$C$4:$GO$96,MATCH(NPS!$B14,【D】NPS!$B$4:$B$96,0), MATCH(NPS!AR$2&NPS!$AG$1,【D】NPS!$C$2:$GO$2&【D】NPS!$C$3:$GO$3,0)) -> - | AS14: =INDEX(【D】NPS!$C$4:$GO$96,MATCH(NPS!$B14,【D】NPS!$B$4:$B$96,0), MATCH(NPS!AS$2&NPS!$AG$1,【D】NPS!$C$2:$GO$2&【D】NPS!$C$3:$GO$3,0)) -> - | AT14: =INDEX(【D】NPS!$C$4:$GO$96,MATCH(NPS!$B14,【D】NPS!$B$4:$B$96,0), MATCH(NPS!AT$2&NPS!$AG$1,【D】NPS!$C$2:$GO$2&【D】NPS!$C$3:$GO$3,0)) -> 52 | AV14: 12 | AW14: 11 | AX14: 敦賀市立博物館 エリア | AY14: 33.33333333 | AZ14: =INDEX(【D】NPS!$C$7:$HB$96, MATCH(NPS!$AX14,【D】NPS!$B$7:$B$96,0), MATCH(NPS!$AZ$2&NPS!$AW$1,【D】NPS!$C$1:$HB$1&【D】NPS!$C$2:$HB$2,0)) -> 12
B15: 東尋坊 エリア | D15: =INDEX(【D】NPS!$C$4:$GO$96,MATCH(NPS!$B15,【D】NPS!$B$4:$B$96,0), MATCH(NPS!D$2&NPS!$C$1,【D】NPS!$C$2:$GO$2&【D】NPS!$C$3:$GO$3,0)) -> 0 | E15: =INDEX(【D】NPS!$C$4:$GO$96,MATCH(NPS!$B15,【D】NPS!$B$4:$B$96,0), MATCH(NPS!E$2&NPS!$C$1,【D】NPS!$C$2:$GO$2&【D】NPS!$C$3:$GO$3,0)) -> 19.6969697 | F15: =INDEX(【D】NPS!$C$4:$GO$96,MATCH(NPS!$B15,【D】NPS!$B$4:$B$96,0), MATCH(NPS!F$2&NPS!$C$1,【D】NPS!$C$2:$GO$2&【D】NPS!$C$3:$GO$3,0)) -> 10.20408163 | G15: =INDEX(【D】NPS!$C$4:$GO$96,MATCH(NPS!$B15,【D】NPS!$B$4:$B$96,0), MATCH(NPS!G$2&NPS!$C$1,【D】NPS!$C$2:$GO$2&【D】NPS!$C$3:$GO$3,0)) -> 5.128205128 | H15: =INDEX(【D】NPS!$C$4:$GO$96,MATCH(NPS!$B15,【D】NPS!$B$4:$B$96,0), MATCH(NPS!H$2&NPS!$C$1,【D】NPS!$C$2:$GO$2&【D】NPS!$C$3:$GO$3,0)) -> None | I15: =INDEX(【D】NPS!$C$4:$GO$96,MATCH(NPS!$B15,【D】NPS!$B$4:$B$96,0), MATCH(NPS!I$2&NPS!$C$1,【D】NPS!$C$2:$GO$2&【D】NPS!$C$3:$GO$3,0)) -> None | J15: =INDEX(【D】NPS!$C$4:$GO$96,MATCH(NPS!$B15,【D】NPS!$B$4:$B$96,0), MATCH(NPS!J$2&NPS!$C$1,【D】NPS!$C$2:$GO$2&【D】NPS!$C$3:$GO$3,0)) -> None | K15: =INDEX(【D】NPS!$C$4:$GO$96,MATCH(NPS!$B15,【D】NPS!$B$4:$B$96,0), MATCH(NPS!K$2&NPS!$C$1,【D】NPS!$C$2:$GO$2&【D】NPS!$C$3:$GO$3,0)) -> None | L15: =INDEX(【D】NPS!$C$4:$GO$96,MATCH(NPS!$B15,【D】NPS!$B$4:$B$96,0), MATCH(NPS!L$2&NPS!$C$1,【D】NPS!$C$2:$GO$2&【D】NPS!$C$3:$GO$3,0)) -> None | M15: =INDEX(【D】NPS!$C$4:$GO$96,MATCH(NPS!$B15,【D】NPS!$B$4:$B$96,0), MATCH(NPS!M$2&NPS!$C$1,【D】NPS!$C$2:$GO$2&【D】NPS!$C$3:$GO$3,0)) -> None | N15: =INDEX(【D】NPS!$C$4:$GO$96,MATCH(NPS!$B15,【D】NPS!$B$4:$B$96,0), MATCH(NPS!N$2&NPS!$C$1,【D】NPS!$C$2:$GO$2&【D】NPS!$C$3:$GO$3,0)) -> None | O15: =INDEX(【D】NPS!$C$4:$GO$96,MATCH(NPS!$B15,【D】NPS!$B$4:$B$96,0), MATCH(NPS!O$2&NPS!$C$1,【D】NPS!$C$2:$GO$2&【D】NPS!$C$3:$GO$3,0)) -> None | P15: =INDEX(【D】NPS!$C$4:$GO$96,MATCH(NPS!$B15,【D】NPS!$B$4:$B$96,0), MATCH(NPS!P$2&NPS!$C$1,【D】NPS!$C$2:$GO$2&【D】NPS!$C$3:$GO$3,0)) -> 9.009009009 | S15: =INDEX(【D】NPS!$C$4:$GO$96,MATCH(NPS!$B15,【D】NPS!$B$4:$B$96,0), MATCH(NPS!S$2&NPS!$R$1,【D】NPS!$C$2:$GO$2&【D】NPS!$C$3:$GO$3,0)) -> 51 | T15: =INDEX(【D】NPS!$C$4:$GO$96,MATCH(NPS!$B15,【D】NPS!$B$4:$B$96,0), MATCH(NPS!T$2&NPS!$R$1,【D】NPS!$C$2:$GO$2&【D】NPS!$C$3:$GO$3,0)) -> 25 | U15: =INDEX(【D】NPS!$C$4:$GO$96,MATCH(NPS!$B15,【D】NPS!$B$4:$B$96,0), MATCH(NPS!U$2&NPS!$R$1,【D】NPS!$C$2:$GO$2&【D】NPS!$C$3:$GO$3,0)) -> 37 | V15: =INDEX(【D】NPS!$C$4:$GO$96,MATCH(NPS!$B15,【D】NPS!$B$4:$B$96,0), MATCH(NPS!V$2&NPS!$R$1,【D】NPS!$C$2:$GO$2&【D】NPS!$C$3:$GO$3,0)) -> 51 | W15: =INDEX(【D】NPS!$C$4:$GO$96,MATCH(NPS!$B15,【D】NPS!$B$4:$B$96,0), MATCH(NPS!W$2&NPS!$R$1,【D】NPS!$C$2:$GO$2&【D】NPS!$C$3:$GO$3,0)) -> - | X15: =INDEX(【D】NPS!$C$4:$GO$96,MATCH(NPS!$B15,【D】NPS!$B$4:$B$96,0), MATCH(NPS!X$2&NPS!$R$1,【D】NPS!$C$2:$GO$2&【D】NPS!$C$3:$GO$3,0)) -> - | Y15: =INDEX(【D】NPS!$C$4:$GO$96,MATCH(NPS!$B15,【D】NPS!$B$4:$B$96,0), MATCH(NPS!Y$2&NPS!$R$1,【D】NPS!$C$2:$GO$2&【D】NPS!$C$3:$GO$3,0)) -> - | Z15: =INDEX(【D】NPS!$C$4:$GO$96,MATCH(NPS!$B15,【D】NPS!$B$4:$B$96,0), MATCH(NPS!Z$2&NPS!$R$1,【D】NPS!$C$2:$GO$2&【D】NPS!$C$3:$GO$3,0)) -> - | AA15: =INDEX(【D】NPS!$C$4:$GO$96,MATCH(NPS!$B15,【D】NPS!$B$4:$B$96,0), MATCH(NPS!AA$2&NPS!$R$1,【D】NPS!$C$2:$GO$2&【D】NPS!$C$3:$GO$3,0)) -> - | AB15: =INDEX(【D】NPS!$C$4:$GO$96,MATCH(NPS!$B15,【D】NPS!$B$4:$B$96,0), MATCH(NPS!AB$2&NPS!$R$1,【D】NPS!$C$2:$GO$2&【D】NPS!$C$3:$GO$3,0)) -> - | AC15: =INDEX(【D】NPS!$C$4:$GO$96,MATCH(NPS!$B15,【D】NPS!$B$4:$B$96,0), MATCH(NPS!AC$2&NPS!$R$1,【D】NPS!$C$2:$GO$2&【D】NPS!$C$3:$GO$3,0)) -> - | AD15: =INDEX(【D】NPS!$C$4:$GO$96,MATCH(NPS!$B15,【D】NPS!$B$4:$B$96,0), MATCH(NPS!AD$2&NPS!$R$1,【D】NPS!$C$2:$GO$2&【D】NPS!$C$3:$GO$3,0)) -> - | AE15: =INDEX(【D】NPS!$C$4:$GO$96,MATCH(NPS!$B15,【D】NPS!$B$4:$B$96,0), MATCH(NPS!AE$2&NPS!$R$1,【D】NPS!$C$2:$GO$2&【D】NPS!$C$3:$GO$3,0)) -> 41 | AH15: =INDEX(【D】NPS!$C$4:$GO$96,MATCH(NPS!$B15,【D】NPS!$B$4:$B$96,0), MATCH(NPS!AH$2&NPS!$AG$1,【D】NPS!$C$2:$GO$2&【D】NPS!$C$3:$GO$3,0)) -> 57 | AI15: =INDEX(【D】NPS!$C$4:$GO$96,MATCH(NPS!$B15,【D】NPS!$B$4:$B$96,0), MATCH(NPS!AI$2&NPS!$AG$1,【D】NPS!$C$2:$GO$2&【D】NPS!$C$3:$GO$3,0)) -> 25 | AJ15: =INDEX(【D】NPS!$C$4:$GO$96,MATCH(NPS!$B15,【D】NPS!$B$4:$B$96,0), MATCH(NPS!AJ$2&NPS!$AG$1,【D】NPS!$C$2:$GO$2&【D】NPS!$C$3:$GO$3,0)) -> 37 | AK15: =INDEX(【D】NPS!$C$4:$GO$96,MATCH(NPS!$B15,【D】NPS!$B$4:$B$96,0), MATCH(NPS!AK$2&NPS!$AG$1,【D】NPS!$C$2:$GO$2&【D】NPS!$C$3:$GO$3,0)) -> 51 | AL15: =INDEX(【D】NPS!$C$4:$GO$96,MATCH(NPS!$B15,【D】NPS!$B$4:$B$96,0), MATCH(NPS!AL$2&NPS!$AG$1,【D】NPS!$C$2:$GO$2&【D】NPS!$C$3:$GO$3,0)) -> - | AM15: =INDEX(【D】NPS!$C$4:$GO$96,MATCH(NPS!$B15,【D】NPS!$B$4:$B$96,0), MATCH(NPS!AM$2&NPS!$AG$1,【D】NPS!$C$2:$GO$2&【D】NPS!$C$3:$GO$3,0)) -> - | AN15: =INDEX(【D】NPS!$C$4:$GO$96,MATCH(NPS!$B15,【D】NPS!$B$4:$B$96,0), MATCH(NPS!AN$2&NPS!$AG$1,【D】NPS!$C$2:$GO$2&【D】NPS!$C$3:$GO$3,0)) -> - | AO15: =INDEX(【D】NPS!$C$4:$GO$96,MATCH(NPS!$B15,【D】NPS!$B$4:$B$96,0), MATCH(NPS!AO$2&NPS!$AG$1,【D】NPS!$C$2:$GO$2&【D】NPS!$C$3:$GO$3,0)) -> - | AP15: =INDEX(【D】NPS!$C$4:$GO$96,MATCH(NPS!$B15,【D】NPS!$B$4:$B$96,0), MATCH(NPS!AP$2&NPS!$AG$1,【D】NPS!$C$2:$GO$2&【D】NPS!$C$3:$GO$3,0)) -> - | AQ15: =INDEX(【D】NPS!$C$4:$GO$96,MATCH(NPS!$B15,【D】NPS!$B$4:$B$96,0), MATCH(NPS!AQ$2&NPS!$AG$1,【D】NPS!$C$2:$GO$2&【D】NPS!$C$3:$GO$3,0)) -> - | AR15: =INDEX(【D】NPS!$C$4:$GO$96,MATCH(NPS!$B15,【D】NPS!$B$4:$B$96,0), MATCH(NPS!AR$2&NPS!$AG$1,【D】NPS!$C$2:$GO$2&【D】NPS!$C$3:$GO$3,0)) -> - | AS15: =INDEX(【D】NPS!$C$4:$GO$96,MATCH(NPS!$B15,【D】NPS!$B$4:$B$96,0), MATCH(NPS!AS$2&NPS!$AG$1,【D】NPS!$C$2:$GO$2&【D】NPS!$C$3:$GO$3,0)) -> - | AT15: =INDEX(【D】NPS!$C$4:$GO$96,MATCH(NPS!$B15,【D】NPS!$B$4:$B$96,0), MATCH(NPS!AT$2&NPS!$AG$1,【D】NPS!$C$2:$GO$2&【D】NPS!$C$3:$GO$3,0)) -> 41 | AV15: 13 | AW15: 13 | AX15: 越前海岸 くりや旅館街 エリア | AY15: 33.33333333 | AZ15: =INDEX(【D】NPS!$C$7:$HB$96, MATCH(NPS!$AX15,【D】NPS!$B$7:$B$96,0), MATCH(NPS!$AZ$2&NPS!$AW$1,【D】NPS!$C$1:$HB$1&【D】NPS!$C$2:$HB$2,0)) -> 3
B16: 越前松島水族館 エリア | D16: =INDEX(【D】NPS!$C$4:$GO$96,MATCH(NPS!$B16,【D】NPS!$B$4:$B$96,0), MATCH(NPS!D$2&NPS!$C$1,【D】NPS!$C$2:$GO$2&【D】NPS!$C$3:$GO$3,0)) -> 37.93103448 | E16: =INDEX(【D】NPS!$C$4:$GO$96,MATCH(NPS!$B16,【D】NPS!$B$4:$B$96,0), MATCH(NPS!E$2&NPS!$C$1,【D】NPS!$C$2:$GO$2&【D】NPS!$C$3:$GO$3,0)) -> 33.33333333 | F16: =INDEX(【D】NPS!$C$4:$GO$96,MATCH(NPS!$B16,【D】NPS!$B$4:$B$96,0), MATCH(NPS!F$2&NPS!$C$1,【D】NPS!$C$2:$GO$2&【D】NPS!$C$3:$GO$3,0)) -> 50 | G16: =INDEX(【D】NPS!$C$4:$GO$96,MATCH(NPS!$B16,【D】NPS!$B$4:$B$96,0), MATCH(NPS!G$2&NPS!$C$1,【D】NPS!$C$2:$GO$2&【D】NPS!$C$3:$GO$3,0)) -> 21.73913043 | H16: =INDEX(【D】NPS!$C$4:$GO$96,MATCH(NPS!$B16,【D】NPS!$B$4:$B$96,0), MATCH(NPS!H$2&NPS!$C$1,【D】NPS!$C$2:$GO$2&【D】NPS!$C$3:$GO$3,0)) -> None | I16: =INDEX(【D】NPS!$C$4:$GO$96,MATCH(NPS!$B16,【D】NPS!$B$4:$B$96,0), MATCH(NPS!I$2&NPS!$C$1,【D】NPS!$C$2:$GO$2&【D】NPS!$C$3:$GO$3,0)) -> None | J16: =INDEX(【D】NPS!$C$4:$GO$96,MATCH(NPS!$B16,【D】NPS!$B$4:$B$96,0), MATCH(NPS!J$2&NPS!$C$1,【D】NPS!$C$2:$GO$2&【D】NPS!$C$3:$GO$3,0)) -> None | K16: =INDEX(【D】NPS!$C$4:$GO$96,MATCH(NPS!$B16,【D】NPS!$B$4:$B$96,0), MATCH(NPS!K$2&NPS!$C$1,【D】NPS!$C$2:$GO$2&【D】NPS!$C$3:$GO$3,0)) -> None | L16: =INDEX(【D】NPS!$C$4:$GO$96,MATCH(NPS!$B16,【D】NPS!$B$4:$B$96,0), MATCH(NPS!L$2&NPS!$C$1,【D】NPS!$C$2:$GO$2&【D】NPS!$C$3:$GO$3,0)) -> None | M16: =INDEX(【D】NPS!$C$4:$GO$96,MATCH(NPS!$B16,【D】NPS!$B$4:$B$96,0), MATCH(NPS!M$2&NPS!$C$1,【D】NPS!$C$2:$GO$2&【D】NPS!$C$3:$GO$3,0)) -> None | N16: =INDEX(【D】NPS!$C$4:$GO$96,MATCH(NPS!$B16,【D】NPS!$B$4:$B$96,0), MATCH(NPS!N$2&NPS!$C$1,【D】NPS!$C$2:$GO$2&【D】NPS!$C$3:$GO$3,0)) -> None | O16: =INDEX(【D】NPS!$C$4:$GO$96,MATCH(NPS!$B16,【D】NPS!$B$4:$B$96,0), MATCH(NPS!O$2&NPS!$C$1,【D】NPS!$C$2:$GO$2&【D】NPS!$C$3:$GO$3,0)) -> None | P16: =INDEX(【D】NPS!$C$4:$GO$96,MATCH(NPS!$B16,【D】NPS!$B$4:$B$96,0), MATCH(NPS!P$2&NPS!$C$1,【D】NPS!$C$2:$GO$2&【D】NPS!$C$3:$GO$3,0)) -> 36.19047619 | S16: =INDEX(【D】NPS!$C$4:$GO$96,MATCH(NPS!$B16,【D】NPS!$B$4:$B$96,0), MATCH(NPS!S$2&NPS!$R$1,【D】NPS!$C$2:$GO$2&【D】NPS!$C$3:$GO$3,0)) -> 10 | T16: =INDEX(【D】NPS!$C$4:$GO$96,MATCH(NPS!$B16,【D】NPS!$B$4:$B$96,0), MATCH(NPS!T$2&NPS!$R$1,【D】NPS!$C$2:$GO$2&【D】NPS!$C$3:$GO$3,0)) -> 15 | U16: =INDEX(【D】NPS!$C$4:$GO$96,MATCH(NPS!$B16,【D】NPS!$B$4:$B$96,0), MATCH(NPS!U$2&NPS!$R$1,【D】NPS!$C$2:$GO$2&【D】NPS!$C$3:$GO$3,0)) -> 6 | V16: =INDEX(【D】NPS!$C$4:$GO$96,MATCH(NPS!$B16,【D】NPS!$B$4:$B$96,0), MATCH(NPS!V$2&NPS!$R$1,【D】NPS!$C$2:$GO$2&【D】NPS!$C$3:$GO$3,0)) -> 23 | W16: =INDEX(【D】NPS!$C$4:$GO$96,MATCH(NPS!$B16,【D】NPS!$B$4:$B$96,0), MATCH(NPS!W$2&NPS!$R$1,【D】NPS!$C$2:$GO$2&【D】NPS!$C$3:$GO$3,0)) -> - | X16: =INDEX(【D】NPS!$C$4:$GO$96,MATCH(NPS!$B16,【D】NPS!$B$4:$B$96,0), MATCH(NPS!X$2&NPS!$R$1,【D】NPS!$C$2:$GO$2&【D】NPS!$C$3:$GO$3,0)) -> - | Y16: =INDEX(【D】NPS!$C$4:$GO$96,MATCH(NPS!$B16,【D】NPS!$B$4:$B$96,0), MATCH(NPS!Y$2&NPS!$R$1,【D】NPS!$C$2:$GO$2&【D】NPS!$C$3:$GO$3,0)) -> - | Z16: =INDEX(【D】NPS!$C$4:$GO$96,MATCH(NPS!$B16,【D】NPS!$B$4:$B$96,0), MATCH(NPS!Z$2&NPS!$R$1,【D】NPS!$C$2:$GO$2&【D】NPS!$C$3:$GO$3,0)) -> - | AA16: =INDEX(【D】NPS!$C$4:$GO$96,MATCH(NPS!$B16,【D】NPS!$B$4:$B$96,0), MATCH(NPS!AA$2&NPS!$R$1,【D】NPS!$C$2:$GO$2&【D】NPS!$C$3:$GO$3,0)) -> - | AB16: =INDEX(【D】NPS!$C$4:$GO$96,MATCH(NPS!$B16,【D】NPS!$B$4:$B$96,0), MATCH(NPS!AB$2&NPS!$R$1,【D】NPS!$C$2:$GO$2&【D】NPS!$C$3:$GO$3,0)) -> - | AC16: =INDEX(【D】NPS!$C$4:$GO$96,MATCH(NPS!$B16,【D】NPS!$B$4:$B$96,0), MATCH(NPS!AC$2&NPS!$R$1,【D】NPS!$C$2:$GO$2&【D】NPS!$C$3:$GO$3,0)) -> - | AD16: =INDEX(【D】NPS!$C$4:$GO$96,MATCH(NPS!$B16,【D】NPS!$B$4:$B$96,0), MATCH(NPS!AD$2&NPS!$R$1,【D】NPS!$C$2:$GO$2&【D】NPS!$C$3:$GO$3,0)) -> - | AE16: =INDEX(【D】NPS!$C$4:$GO$96,MATCH(NPS!$B16,【D】NPS!$B$4:$B$96,0), MATCH(NPS!AE$2&NPS!$R$1,【D】NPS!$C$2:$GO$2&【D】NPS!$C$3:$GO$3,0)) -> 8 | AH16: =INDEX(【D】NPS!$C$4:$GO$96,MATCH(NPS!$B16,【D】NPS!$B$4:$B$96,0), MATCH(NPS!AH$2&NPS!$AG$1,【D】NPS!$C$2:$GO$2&【D】NPS!$C$3:$GO$3,0)) -> 10 | AI16: =INDEX(【D】NPS!$C$4:$GO$96,MATCH(NPS!$B16,【D】NPS!$B$4:$B$96,0), MATCH(NPS!AI$2&NPS!$AG$1,【D】NPS!$C$2:$GO$2&【D】NPS!$C$3:$GO$3,0)) -> 16 | AJ16: =INDEX(【D】NPS!$C$4:$GO$96,MATCH(NPS!$B16,【D】NPS!$B$4:$B$96,0), MATCH(NPS!AJ$2&NPS!$AG$1,【D】NPS!$C$2:$GO$2&【D】NPS!$C$3:$GO$3,0)) -> 7 | AK16: =INDEX(【D】NPS!$C$4:$GO$96,MATCH(NPS!$B16,【D】NPS!$B$4:$B$96,0), MATCH(NPS!AK$2&NPS!$AG$1,【D】NPS!$C$2:$GO$2&【D】NPS!$C$3:$GO$3,0)) -> 24 | AL16: =INDEX(【D】NPS!$C$4:$GO$96,MATCH(NPS!$B16,【D】NPS!$B$4:$B$96,0), MATCH(NPS!AL$2&NPS!$AG$1,【D】NPS!$C$2:$GO$2&【D】NPS!$C$3:$GO$3,0)) -> - | AM16: =INDEX(【D】NPS!$C$4:$GO$96,MATCH(NPS!$B16,【D】NPS!$B$4:$B$96,0), MATCH(NPS!AM$2&NPS!$AG$1,【D】NPS!$C$2:$GO$2&【D】NPS!$C$3:$GO$3,0)) -> - | AN16: =INDEX(【D】NPS!$C$4:$GO$96,MATCH(NPS!$B16,【D】NPS!$B$4:$B$96,0), MATCH(NPS!AN$2&NPS!$AG$1,【D】NPS!$C$2:$GO$2&【D】NPS!$C$3:$GO$3,0)) -> - | AO16: =INDEX(【D】NPS!$C$4:$GO$96,MATCH(NPS!$B16,【D】NPS!$B$4:$B$96,0), MATCH(NPS!AO$2&NPS!$AG$1,【D】NPS!$C$2:$GO$2&【D】NPS!$C$3:$GO$3,0)) -> - | AP16: =INDEX(【D】NPS!$C$4:$GO$96,MATCH(NPS!$B16,【D】NPS!$B$4:$B$96,0), MATCH(NPS!AP$2&NPS!$AG$1,【D】NPS!$C$2:$GO$2&【D】NPS!$C$3:$GO$3,0)) -> - | AQ16: =INDEX(【D】NPS!$C$4:$GO$96,MATCH(NPS!$B16,【D】NPS!$B$4:$B$96,0), MATCH(NPS!AQ$2&NPS!$AG$1,【D】NPS!$C$2:$GO$2&【D】NPS!$C$3:$GO$3,0)) -> - | AR16: =INDEX(【D】NPS!$C$4:$GO$96,MATCH(NPS!$B16,【D】NPS!$B$4:$B$96,0), MATCH(NPS!AR$2&NPS!$AG$1,【D】NPS!$C$2:$GO$2&【D】NPS!$C$3:$GO$3,0)) -> - | AS16: =INDEX(【D】NPS!$C$4:$GO$96,MATCH(NPS!$B16,【D】NPS!$B$4:$B$96,0), MATCH(NPS!AS$2&NPS!$AG$1,【D】NPS!$C$2:$GO$2&【D】NPS!$C$3:$GO$3,0)) -> - | AT16: =INDEX(【D】NPS!$C$4:$GO$96,MATCH(NPS!$B16,【D】NPS!$B$4:$B$96,0), MATCH(NPS!AT$2&NPS!$AG$1,【D】NPS!$C$2:$GO$2&【D】NPS!$C$3:$GO$3,0)) -> 8 | AV16: 14 | AW16: 13 | AX16: 波松 エリア | AY16: 33.33333333 | AZ16: =INDEX(【D】NPS!$C$7:$HB$96, MATCH(NPS!$AX16,【D】NPS!$B$7:$B$96,0), MATCH(NPS!$AZ$2&NPS!$AW$1,【D】NPS!$C$1:$HB$1&【D】NPS!$C$2:$HB$2,0)) -> 3
B17: 芝政ワールド エリア | D17: =INDEX(【D】NPS!$C$4:$GO$96,MATCH(NPS!$B17,【D】NPS!$B$4:$B$96,0), MATCH(NPS!D$2&NPS!$C$1,【D】NPS!$C$2:$GO$2&【D】NPS!$C$3:$GO$3,0)) -> 33.33333333 | E17: =INDEX(【D】NPS!$C$4:$GO$96,MATCH(NPS!$B17,【D】NPS!$B$4:$B$96,0), MATCH(NPS!E$2&NPS!$C$1,【D】NPS!$C$2:$GO$2&【D】NPS!$C$3:$GO$3,0)) -> 52.94117647 | F17: =INDEX(【D】NPS!$C$4:$GO$96,MATCH(NPS!$B17,【D】NPS!$B$4:$B$96,0), MATCH(NPS!F$2&NPS!$C$1,【D】NPS!$C$2:$GO$2&【D】NPS!$C$3:$GO$3,0)) -> -22.22222222 | G17: =INDEX(【D】NPS!$C$4:$GO$96,MATCH(NPS!$B17,【D】NPS!$B$4:$B$96,0), MATCH(NPS!G$2&NPS!$C$1,【D】NPS!$C$2:$GO$2&【D】NPS!$C$3:$GO$3,0)) -> 11.11111111 | H17: =INDEX(【D】NPS!$C$4:$GO$96,MATCH(NPS!$B17,【D】NPS!$B$4:$B$96,0), MATCH(NPS!H$2&NPS!$C$1,【D】NPS!$C$2:$GO$2&【D】NPS!$C$3:$GO$3,0)) -> None | I17: =INDEX(【D】NPS!$C$4:$GO$96,MATCH(NPS!$B17,【D】NPS!$B$4:$B$96,0), MATCH(NPS!I$2&NPS!$C$1,【D】NPS!$C$2:$GO$2&【D】NPS!$C$3:$GO$3,0)) -> None | J17: =INDEX(【D】NPS!$C$4:$GO$96,MATCH(NPS!$B17,【D】NPS!$B$4:$B$96,0), MATCH(NPS!J$2&NPS!$C$1,【D】NPS!$C$2:$GO$2&【D】NPS!$C$3:$GO$3,0)) -> None | K17: =INDEX(【D】NPS!$C$4:$GO$96,MATCH(NPS!$B17,【D】NPS!$B$4:$B$96,0), MATCH(NPS!K$2&NPS!$C$1,【D】NPS!$C$2:$GO$2&【D】NPS!$C$3:$GO$3,0)) -> None | L17: =INDEX(【D】NPS!$C$4:$GO$96,MATCH(NPS!$B17,【D】NPS!$B$4:$B$96,0), MATCH(NPS!L$2&NPS!$C$1,【D】NPS!$C$2:$GO$2&【D】NPS!$C$3:$GO$3,0)) -> None | M17: =INDEX(【D】NPS!$C$4:$GO$96,MATCH(NPS!$B17,【D】NPS!$B$4:$B$96,0), MATCH(NPS!M$2&NPS!$C$1,【D】NPS!$C$2:$GO$2&【D】NPS!$C$3:$GO$3,0)) -> None | N17: =INDEX(【D】NPS!$C$4:$GO$96,MATCH(NPS!$B17,【D】NPS!$B$4:$B$96,0), MATCH(NPS!N$2&NPS!$C$1,【D】NPS!$C$2:$GO$2&【D】NPS!$C$3:$GO$3,0)) -> None | O17: =INDEX(【D】NPS!$C$4:$GO$96,MATCH(NPS!$B17,【D】NPS!$B$4:$B$96,0), MATCH(NPS!O$2&NPS!$C$1,【D】NPS!$C$2:$GO$2&【D】NPS!$C$3:$GO$3,0)) -> None | P17: =INDEX(【D】NPS!$C$4:$GO$96,MATCH(NPS!$B17,【D】NPS!$B$4:$B$96,0), MATCH(NPS!P$2&NPS!$C$1,【D】NPS!$C$2:$GO$2&【D】NPS!$C$3:$GO$3,0)) -> 25.53191489 | S17: =INDEX(【D】NPS!$C$4:$GO$96,MATCH(NPS!$B17,【D】NPS!$B$4:$B$96,0), MATCH(NPS!S$2&NPS!$R$1,【D】NPS!$C$2:$GO$2&【D】NPS!$C$3:$GO$3,0)) -> 14 | T17: =INDEX(【D】NPS!$C$4:$GO$96,MATCH(NPS!$B17,【D】NPS!$B$4:$B$96,0), MATCH(NPS!T$2&NPS!$R$1,【D】NPS!$C$2:$GO$2&【D】NPS!$C$3:$GO$3,0)) -> 2 | U17: =INDEX(【D】NPS!$C$4:$GO$96,MATCH(NPS!$B17,【D】NPS!$B$4:$B$96,0), MATCH(NPS!U$2&NPS!$R$1,【D】NPS!$C$2:$GO$2&【D】NPS!$C$3:$GO$3,0)) -> 70 | V17: =INDEX(【D】NPS!$C$4:$GO$96,MATCH(NPS!$B17,【D】NPS!$B$4:$B$96,0), MATCH(NPS!V$2&NPS!$R$1,【D】NPS!$C$2:$GO$2&【D】NPS!$C$3:$GO$3,0)) -> 42 | W17: =INDEX(【D】NPS!$C$4:$GO$96,MATCH(NPS!$B17,【D】NPS!$B$4:$B$96,0), MATCH(NPS!W$2&NPS!$R$1,【D】NPS!$C$2:$GO$2&【D】NPS!$C$3:$GO$3,0)) -> - | X17: =INDEX(【D】NPS!$C$4:$GO$96,MATCH(NPS!$B17,【D】NPS!$B$4:$B$96,0), MATCH(NPS!X$2&NPS!$R$1,【D】NPS!$C$2:$GO$2&【D】NPS!$C$3:$GO$3,0)) -> - | Y17: =INDEX(【D】NPS!$C$4:$GO$96,MATCH(NPS!$B17,【D】NPS!$B$4:$B$96,0), MATCH(NPS!Y$2&NPS!$R$1,【D】NPS!$C$2:$GO$2&【D】NPS!$C$3:$GO$3,0)) -> - | Z17: =INDEX(【D】NPS!$C$4:$GO$96,MATCH(NPS!$B17,【D】NPS!$B$4:$B$96,0), MATCH(NPS!Z$2&NPS!$R$1,【D】NPS!$C$2:$GO$2&【D】NPS!$C$3:$GO$3,0)) -> - | AA17: =INDEX(【D】NPS!$C$4:$GO$96,MATCH(NPS!$B17,【D】NPS!$B$4:$B$96,0), MATCH(NPS!AA$2&NPS!$R$1,【D】NPS!$C$2:$GO$2&【D】NPS!$C$3:$GO$3,0)) -> - | AB17: =INDEX(【D】NPS!$C$4:$GO$96,MATCH(NPS!$B17,【D】NPS!$B$4:$B$96,0), MATCH(NPS!AB$2&NPS!$R$1,【D】NPS!$C$2:$GO$2&【D】NPS!$C$3:$GO$3,0)) -> - | AC17: =INDEX(【D】NPS!$C$4:$GO$96,MATCH(NPS!$B17,【D】NPS!$B$4:$B$96,0), MATCH(NPS!AC$2&NPS!$R$1,【D】NPS!$C$2:$GO$2&【D】NPS!$C$3:$GO$3,0)) -> - | AD17: =INDEX(【D】NPS!$C$4:$GO$96,MATCH(NPS!$B17,【D】NPS!$B$4:$B$96,0), MATCH(NPS!AD$2&NPS!$R$1,【D】NPS!$C$2:$GO$2&【D】NPS!$C$3:$GO$3,0)) -> - | AE17: =INDEX(【D】NPS!$C$4:$GO$96,MATCH(NPS!$B17,【D】NPS!$B$4:$B$96,0), MATCH(NPS!AE$2&NPS!$R$1,【D】NPS!$C$2:$GO$2&【D】NPS!$C$3:$GO$3,0)) -> 12 | AH17: =INDEX(【D】NPS!$C$4:$GO$96,MATCH(NPS!$B17,【D】NPS!$B$4:$B$96,0), MATCH(NPS!AH$2&NPS!$AG$1,【D】NPS!$C$2:$GO$2&【D】NPS!$C$3:$GO$3,0)) -> 14 | AI17: =INDEX(【D】NPS!$C$4:$GO$96,MATCH(NPS!$B17,【D】NPS!$B$4:$B$96,0), MATCH(NPS!AI$2&NPS!$AG$1,【D】NPS!$C$2:$GO$2&【D】NPS!$C$3:$GO$3,0)) -> 2 | AJ17: =INDEX(【D】NPS!$C$4:$GO$96,MATCH(NPS!$B17,【D】NPS!$B$4:$B$96,0), MATCH(NPS!AJ$2&NPS!$AG$1,【D】NPS!$C$2:$GO$2&【D】NPS!$C$3:$GO$3,0)) -> 71 | AK17: =INDEX(【D】NPS!$C$4:$GO$96,MATCH(NPS!$B17,【D】NPS!$B$4:$B$96,0), MATCH(NPS!AK$2&NPS!$AG$1,【D】NPS!$C$2:$GO$2&【D】NPS!$C$3:$GO$3,0)) -> 42 | AL17: =INDEX(【D】NPS!$C$4:$GO$96,MATCH(NPS!$B17,【D】NPS!$B$4:$B$96,0), MATCH(NPS!AL$2&NPS!$AG$1,【D】NPS!$C$2:$GO$2&【D】NPS!$C$3:$GO$3,0)) -> - | AM17: =INDEX(【D】NPS!$C$4:$GO$96,MATCH(NPS!$B17,【D】NPS!$B$4:$B$96,0), MATCH(NPS!AM$2&NPS!$AG$1,【D】NPS!$C$2:$GO$2&【D】NPS!$C$3:$GO$3,0)) -> - | AN17: =INDEX(【D】NPS!$C$4:$GO$96,MATCH(NPS!$B17,【D】NPS!$B$4:$B$96,0), MATCH(NPS!AN$2&NPS!$AG$1,【D】NPS!$C$2:$GO$2&【D】NPS!$C$3:$GO$3,0)) -> - | AO17: =INDEX(【D】NPS!$C$4:$GO$96,MATCH(NPS!$B17,【D】NPS!$B$4:$B$96,0), MATCH(NPS!AO$2&NPS!$AG$1,【D】NPS!$C$2:$GO$2&【D】NPS!$C$3:$GO$3,0)) -> - | AP17: =INDEX(【D】NPS!$C$4:$GO$96,MATCH(NPS!$B17,【D】NPS!$B$4:$B$96,0), MATCH(NPS!AP$2&NPS!$AG$1,【D】NPS!$C$2:$GO$2&【D】NPS!$C$3:$GO$3,0)) -> - | AQ17: =INDEX(【D】NPS!$C$4:$GO$96,MATCH(NPS!$B17,【D】NPS!$B$4:$B$96,0), MATCH(NPS!AQ$2&NPS!$AG$1,【D】NPS!$C$2:$GO$2&【D】NPS!$C$3:$GO$3,0)) -> - | AR17: =INDEX(【D】NPS!$C$4:$GO$96,MATCH(NPS!$B17,【D】NPS!$B$4:$B$96,0), MATCH(NPS!AR$2&NPS!$AG$1,【D】NPS!$C$2:$GO$2&【D】NPS!$C$3:$GO$3,0)) -> - | AS17: =INDEX(【D】NPS!$C$4:$GO$96,MATCH(NPS!$B17,【D】NPS!$B$4:$B$96,0), MATCH(NPS!AS$2&NPS!$AG$1,【D】NPS!$C$2:$GO$2&【D】NPS!$C$3:$GO$3,0)) -> - | AT17: =INDEX(【D】NPS!$C$4:$GO$96,MATCH(NPS!$B17,【D】NPS!$B$4:$B$96,0), MATCH(NPS!AT$2&NPS!$AG$1,【D】NPS!$C$2:$GO$2&【D】NPS!$C$3:$GO$3,0)) -> 12 | AV17: 15 | AW17: 15 | AX17: 道の駅「恐竜渓谷かつやま」 エリア | AY17: 31.81818182 | AZ17: =INDEX(【D】NPS!$C$7:$HB$96, MATCH(NPS!$AX17,【D】NPS!$B$7:$B$96,0), MATCH(NPS!$AZ$2&NPS!$AW$1,【D】NPS!$C$1:$HB$1&【D】NPS!$C$2:$HB$2,0)) -> 22
